Workbook

Sheet Input
A1: =ROW() -> 1
A2: =ROW() -> 2
A3: =ROW() -> 3
A4: =ROW() -> 4 | C4: SPS California Acquisition
A5: =ROW() -> 5
A6: =ROW() -> 6 | C6: =FS!B1 -> FS | I6: =Merch!B1 -> Generation | O6: =CapEx!B1 -> CapEx | V6: =Tax!B1 -> Tax
A7: =ROW() -> 7 | L7: 130 | M7: Total MW | X7: State | Y7: Fed
A8: =ROW() -> 8 | C8: COD | F8: 2012-08-01 | I8: Plant Nameplate MW | L8: 50 | M8: MW | O8: Capital Costs - | R8: $000 | S8: $/kW | V8: Income Tax | X8: 0.042 | Y8: 0.35
A9: =ROW() -> 9 | C9: Years of Operation | F9: 25 | I9: MW Ramp per Month | L9: 0 | M9: MW | O9: Land Costs | R9: 0 | S9: =R9/$L$8 -> 0 | V9: State NOL on/off | Y9: 1
A10: =ROW() -> 10 | O10: Development Costs | R10: 2203.850692 | S10: 44.07701384 | V10: State NOL (year) | Y10: 2014
A11: =ROW() -> 11 | E11: Months | F11: Years | I11: Yingli 50MW Generation Sensitivity : | L11: 0 | M11: on/off | O11: Equipment | R11: 133468.7049 | S11: 2669.374098 | V11: State Tax Credit on/off | Y11: 0
A12: =ROW() -> 12 | C12: Pre-COD Period | E12: 0 | F12: 3 | I12: Yingli 50MW O&M Sensitivity : | L12: =L11 -> 0 | M12: on/off | O12: Construction | R12: 45267.09321 | S12: 905.3418642 | V12: State Tax Credit (year) | Y12: 0
A13: =ROW() -> 13 | O13: Transmission | R13: 2240.461538 | S13: 44.80923077 | V13: State Tax Credit (year) | Y13: 0
A14: =ROW() -> 14 | C14: Notes : | L14: % | O14: Indirects | R14: 2839.397283 | S14: 56.78794567 | V14: Sales Tax Sens. (on/off) | Y14: 0
A15: =ROW() -> 15 | C15: Minimum Pre-COD Period of 12 months is recommended | I15: Degradation - Solar | L15: 0.005 | O15: Startup | R15: 2577.768884 | S15: 51.55537768 | V15: State Basis Sens. (on/off) | Y15: 0
A16: =ROW() -> 16 | C16: to allow enough room for half-year tax depreciation | I16: Degradation - Yingli Sensitivity | L16: =L12 -> 0 | O16: Other | R16: 5231.941542 | S16: 104.6388308
A17: =ROW() -> 17 | O17: Contingency | R17: 6170.781937 | S17: 123.4156387 | V17: PTC on/off | Y17: 1
A18: =ROW() -> 18 | K18: % | V18: Regular PTC Rate | Y18: 0.15 | Z18: 2018
A19: =ROW() -> 19 | C19: Critical Date | I19: Outages - EFOR | K19: 0.013 | V19: Super PTC Rate | Y19: 0.2625 | Z19: 2016
A20: =ROW() -> 20 | C20: Investment Term - Years | F20: 25 | I20: EPOF Availiability | K20: 1 | O20: CapEx Sensitivities
A21: =ROW() -> 21 | F21: PPA Term | G21: Merchant | O21: CapEx Sensitivity as a % | T21: % | V21: Group NOL (on/off) | Y21: 1
A22: =ROW() -> 22 | C22: PPA Term | F22: 25 | G22: =F20-F22 -> 0 | K22: % | R22: $000 | S22: $/kW | V22: Group NOL (year) | Y22: 2014
A23: =ROW() -> 23 | C23: Commercial Operations Date | F23: =F8 -> 2012-08-01 | G23: =(DATE(YEAR(F23)+1,1,1)-F23)/365 -> 0.4191780822 | I23: Line Loss - Tx | K23: 0 | O23: Capital Costs ($000) | R23: =S23*L8 -> 190000 | S23: 3800 | V23: PTC Deferral Case | Y23: 1
A24: =ROW() -> 24 | C24: Investment End Date | F24: =DATE(YEAR(F23)+F22,MONTH(F23),DAY(F23)-1) -> 2037-07-31 | G24: =(F24-DATE(YEAR(F24)-1,12,31))/365 -> 0.5808219178 | S24: =O49-Q26 -> 401.0443504 | V24: PTC Deferral Calculation | Y24: 1
Q25: CapEx Target
I26: =RF!B1 -> RF | Q26: 3800 | V26: Price Alloc. To equipment - (on/off) | Y26: 1
V27: Price Alloc. To non-CITC - (on/off) | Y27: 0
A28: =ROW() -> 28 | I28: Yingli 50MW No Excess Energy Impact : | L28: =L12 -> 0 | M28: on/off | V28: Asset Retirement Obligation (Real) | Y28: 300 | Z28: 300
I29: Fuel Consumption - mmbtu | L29: 0
A30: =ROW() -> 30 | C30: Minimum Pre-COD Period of 12 months is recommended | V30: Notes :
A31: =ROW() -> 31 | C31: to allow enough room for half-year tax depreciation | O31: Notes : | V31: Does not have FPL Group interest links in place yet
A32: =ROW() -> 32 | O32: Input location for Property Tax & Sales Tax Basis CapEx Allocation
A33: =ROW() -> 33
A34: =ROW() -> 34
A35: =ROW() -> 35 | C35: Worksheets Requiring Input Adjustments | I35: =OM!B3 -> O&M | K35: Operating Characteristics | O35: =CapEx!$B$1 -> CapEx | Q35: Promote Calculation and Sensitivity | V35: =Scen!B5 -> Scen | X35: Project Characteristics
A36: =ROW() -> 36
A37: =ROW() -> 37 | C37: =ToD!$B$1 -> TOD | D37: Sunfish, TOD Multipliers | I37: Operating Cost Toggles | O37: CITC - $4M TRANSMISSION | V37: Disc Rate | Z37: 0.08
A38: =ROW() -> 38 | C38: =GA!B1 -> G&A | D38: FOM, VOM, MM, GA, Escalation Rates | I38: Fuel | K38: VOM | L38: on/off : | M38: 1
A39: =ROW() -> 39 | C39: =CapEx!B1 -> CapEx | D39: Capital Budget, Spending Curve | I39: VOM | K39: VOM | L39: on/off : | M39: 1 | O39: SPS Promote Calculation | S39: $000 | V39: Plant Nameplate MW | Z39: =L8 -> 50
A40: =ROW() -> 40 | C40: =FS!B1 -> FS | D40: AR/AP Days | I40: FOM - Labor | K40: FOM | L40: on/off : | M40: 1 | O40: Promote - CITC eligible (i.e. net of Tx) : | S40: 42611.96269 | V40: Total Project Bid | Z40: 130
A41: =ROW() -> 41 | C41: =Alloc!B1 -> Alloc | D41: Depr Allocation - Book, Fed Tax, State Tax | I41: FOM - Other | K41: FOM | L41: on/off : | M41: 1 | O41: Promote - non-CITC (i.e. allocated to Tx) : | S41: 4000 | T41: Check | V41: % of Total Project | Z41: =Z39/Z40 -> 0.3846153846
A42: =ROW() -> 42 | C42: DA | D42: Use MW ramp for "In Svc" date (on/off switches) | I42: Major Maint | K42: FOM | L42: on/off : | M42: 1 | O42: Total SPS Promote | S42: =S40+S41 -> 46611.96269 | T42: =(S42*Z$41)-S45 -> 0
A43: =ROW() -> 43 | I43: Other Operating Costs | K43: FOM | L43: on/off : | M43: 1 | O43: 50MW Allocation to Solar : | R43: Solar : | S43: =S40*Z$41 -> 16389.21642
A44: =ROW() -> 44 | I44: Property Taxes | K44: GA | L44: on/off : | M44: 1 | O44: 50MW Allocation to Tx : | R44: Tx : | S44: =S41*Z$41 -> 1538.461538 | T44: Check
A45: =ROW() -> 45 | I45: Insurance | K45: GA | L45: on/off : | M45: 1 | O45: Total 50MW Allocation : | R45: 50MW : | S45: =CapEx!V177 -> 17927.67796 | T45: =S45-(Z$41*S42) -> 0 | V45: Availability | Z45: 1
A46: =ROW() -> 46 | I46: Fees | K46: GA | L46: on/off : | M46: 1 | V46: Contract Price | Z46: 0
A47: =ROW() -> 47 | I47: Land Royalty | K47: GA | L47: on/off : | M47: 1 | O47: $/kW | P47: IRR | Q47: NPV | V47: Growth Factor | Z47: 0
A48: =ROW() -> 48 | I48: Performance Bond | K48: GA | L48: on/off : | M48: 1 | O48: =CapEx!Y5/L8 -> 4158.553559 | P48: =Ret!E37 -> 0.07999999821 | Q48: =Ret!BA32 -> -2.082513379e-05
O49: =CapEx!Y146/L8 -> 4201.04435
P51: Tx
A52: =ROW() -> 52 | O52: =[1]Input!$S$42 -> 615.3846154 | P52: =O52*4 -> 2461.538462 | Q52: 20MW : | R52: =[1]Input!$S$43 -> 5415.138362 | S52: =R52*4 -> 21660.55345
P53: =S44 -> 1538.461538 | Q53: 50MW : | S53: =S45 -> 17927.67796
P54: =SUM(P52:P53) -> 4000 | S54: =SUM(S52:S53) -> 39588.23141 | V54: PPA Energy Revenue
V55: Growth Factor | Z55: =AVERAGE(RF!O81:AL81) -> 0.02100402062
V56: Effective Price - $/MWh | Z56: 122.9
Z57: =ToD!D237 -> 1.169609713
A58: =ROW() -> 58
A59: =ROW() -> 59
K62: =Ret!L3 -> -1 | L62: =Ret!M3 -> 0 | M62: =Ret!N3 -> 1 | N62: =Ret!O3 -> 2 | O62: =Ret!P3 -> 3 | P62: =Ret!Q3 -> 4 | Q62: =Ret!R3 -> 5 | R62: =Ret!S3 -> 6 | S62: =Ret!T3 -> 7 | T62: =Ret!U3 -> 8 | U62: =Ret!V3 -> 9 | V62: =Ret!W3 -> 10 | W62: =Ret!X3 -> 11 | X62: =Ret!Y3 -> 12 | Y62: =Ret!Z3 -> 13 | Z62: =Ret!AA3 -> 14 | AA62: =Ret!AB3 -> 15 | AB62: =Ret!AC3 -> 16 | AC62: =Ret!AD3 -> 17 | AD62: =Ret!AE3 -> 18 | AE62: =Ret!AF3 -> 19 | AF62: =Ret!AG3 -> 20 | AG62: =Ret!AH3 -> 21 | AH62: =Ret!AI3 -> 22 | AI62: =Ret!AJ3 -> 23 | AJ62: =Ret!AK3 -> 24 | AK62: =Ret!AL3 -> 25 | AL62: =Ret!AM3 -> 26 | AM62: =Ret!AN3 -> 27 | AN62: =Ret!AO3 -> 28 | AO62: =Ret!AP3 -> 29 | AP62: =Ret!AQ3 -> 30 | AQ62: =Ret!AR3 -> 31
K63: =Ret!L13 -> -105824.0786 | L63: =Ret!M13 -> -104267.5305 | M63: =Ret!N13 -> 64078.96438 | N63: =Ret!O13 -> 13820.85974 | O63: =Ret!P13 -> 27291.54851 | P63: =Ret!Q13 -> 13771.4432 | Q63: =Ret!R13 -> 42563.96333 | R63: =Ret!S13 -> 12650.5157 | S63: =Ret!T13 -> 7749.95021 | T63: =Ret!U13 -> 9689.595599 | U63: =Ret!V13 -> 9812.457376 | V63: =Ret!W13 -> 9931.734597 | W63: =Ret!X13 -> 10061.48332 | X63: =Ret!Y13 -> 10187.45138 | Y63: =Ret!Z13 -> 10230.2884 | Z63: =Ret!AA13 -> 10265.29003 | AA63: =Ret!AB13 -> 10403.80758 | AB63: =Ret!AC13 -> 10505.16824 | AC63: =Ret!AD13 -> 10617.30894 | AD63: =Ret!AE13 -> 10764.01995 | AE63: =Ret!AF13 -> 10918.23512 | AF63: =Ret!AG13 -> 11065.44286 | AG63: =Ret!AH13 -> 11220.21422 | AH63: =Ret!AI13 -> 11366.51041 | AI63: =Ret!AJ13 -> 11523.3399 | AJ63: =Ret!AK13 -> 11675.55869 | AK63: =Ret!AL13 -> 11838.44295 | AL63: =Ret!AM13 -> 8794.27927 | AM63: =Ret!AN13 -> 0 | AN63: =Ret!AO13 -> 0 | AO63: =Ret!AP13 -> 0 | AP63: =Ret!AQ13 -> 0 | AQ63: =Ret!AR13 -> 0
C65: Analyst Notes | K65: -95063.063 | L65: -93504.52995 | M65: 57914.97672 | N65: 13822.0765 | O65: 25488.93464 | P65: 13641.62439 | Q65: 38067.37729 | R65: 12515.469 | S65: 7486.753987 | T65: 9668.307312 | U65: 9791.136264 | V65: 9910.380659 | W65: 10040.09656 | X65: 10166.03179 | Y65: 10218.42673 | Z65: 10262.98627 | AA65: 10401.471 | AB65: 10504.13342 | AC65: 10617.57587 | AD65: 10764.26831 | AE65: 10918.48131 | AF65: 11065.68905 | AG65: 11220.46041 | AH65: 11366.7566 | AI65: 11523.58609 | AJ65: 11675.80488 | AK65: 11838.68914 | AL65: 8794.45504 | AM65: 0 | AN65: 0 | AO65: 0 | AP65: 0 | AQ65: 0
C66: IDC logic to be added | K66: =K63-K65 -> -10761.01558 | L66: =L63-L65 -> -10763.00054 | M66: 6163.987663 | N66: -1.216768122 | O66: 1802.613869 | P66: 129.8188138 | Q66: 4496.586035 | R66: 135.0467015 | S66: 263.1962234 | T66: 21.2882867 | U66: 21.32111207 | V66: 21.35393744 | W66: 21.38676281 | X66: 21.41958818 | Y66: 11.86167512 | Z66: 2.303759333 | AA66: 2.336584704 | AB66: 1.034824515 | AC66: -0.2669356737 | AD66: -0.2483566355 | AE66: -0.2461902827 | AF66: -0.2461902827 | AG66: -0.2461902827 | AH66: -0.2461902827 | AI66: -0.2461902827 | AJ66: -0.2461902827 | AK66: -0.2461902827 | AL66: -0.1757699638 | AM66: 0 | AN66: 0 | AO66: 0 | AP66: 0 | AQ66: 0
C67: Is Promote correct?
C68: Spend curve on promote = end of 6/11
C69: Promote for the transmission … in some sceeno9irs will not be able to pay promote … logic ?
C70: Excess for the 20 MW\
C71: LINKS in ARO
C72: Tax checklist = property tax minimum*

Sheet Scen
L2: Input | M2: Base Case | N2: Target PPA | O2: Target PPA | P2: Target PPA | Q2: Target IRR | R2: Target IRR | S2: Target IRR | T2: Tax | U2: Tax | V2: Tax | W2: Tax | X2: Yingli | Y2: Yingli
M3: Base Case | N3: 0.08 | O3: 0.085 | P3: 0.09 | Q3: 0.08 | R3: 0.085 | S3: 0.09 | T3: 100% Promote = CITC | U3: 100% promote = non-CITC and 15yr SL | V3: 100% of Equipment = taxable | W3: State tax basis reduced by 100% | X3: Yingli - O&M | Y3: Yingli - all | Z3: No EFOR | AA3: Capex Sens at 9%
G4: Active | I4: Scenario | L4: =L121 -> 0 | M4: 0 | N4: 0 | O4: 0 | P4: 0 | Q4: 0 | R4: 0 | S4: 0 | T4: 0 | U4: 0 | V4: 0 | W4: 0 | X4: =X121 -> 0 | Y4: =Y121 -> 0 | Z4: 0 | AA4: 0
B5: Scen | G5: Scenario | I5: Comparison
G6: 0 | I6: 0 | J6: =OFFSET($L1,0,$I$7) -> 0 | L6: 0 | M6: 1 | N6: 2 | O6: 3 | P6: 4 | Q6: 5 | R6: 6 | S6: 7 | T6: 8 | U6: 9 | V6: 10 | W6: 11 | X6: 12 | Y6: 13 | Z6: 14 | AA6: 15
B8: Run Macros and/or Goalseek
B10: Run Macro | F10: Name | G10: =OFFSET($L10,0,$G$6) -> 0
B11: Link to Changing Cell | F11: Link | G11: =OFFSET($L11,0,$G$6) -> 0 | N11: =N56 -> 106.6936172 | O11: =O56 -> 112.3444462 | P11: =P56 -> 118.1341727 | Q11: =Q17 -> 0.09403255744 | R11: 0.09403255744 | S11: 0.09403255744 | T11: 0.09441217162 | U11: 0.08778603597 | V11: 0.0882746835 | W11: 0.09347706825 | X11: 0.09403255742 | Y11: =Y17 -> 0.09025337147 | Z11: =Z17 -> 0.09577200863 | AA11: =AA92 -> 3753.48013
B12: Link to Goalseek Cell | F12: Link | G12: =OFFSET($L12,0,$G$6) -> 0 | N12: =$G124 -> -2.082513379e-08 | O12: -2.082513379e-08 | P12: -2.082513379e-08 | Q12: -2.082513379e-08 | R12: -2.082513379e-08 | S12: -2.082513379e-08 | T12: -2.082513379e-08 | U12: -2.082513379e-08 | V12: -2.082513379e-08 | W12: -2.082513379e-08 | X12: -2.082513379e-08 | Y12: -2.082513379e-08 | Z12: -2.082513379e-08 | AA12: -2.082513379e-08
B13: Goalseek Value | F13: Value | G13: =OFFSET($L13,0,$G$6) -> 0 | L13: 0 | M13: 0 | N13: 0 | O13: 0 | P13: 0 | Q13: 0 | R13: 0 | S13: 0 | T13: 0 | U13: 0 | V13: 0 | W13: 0 | X13: 0 | Y13: 0 | Z13: 0 | AA13: 0
B15: INPUTS
B17: Disc Rate | F17: WACC : | G17: =OFFSET($L17,0,$G$6) -> 0.08 | I17: =OFFSET($L17,0,$I$6) -> 0.08 | J17: =G17-I17 -> 0 | L17: =Input!Z37 -> 0.08 | M17: =$L17 -> 0.08 | N17: 0.08 | O17: 0.085 | P17: 0.09 | Q17: 0.09403255744 | R17: 0.09403255744 | S17: 0.09403255744 | T17: 0.09441217162 | U17: 0.08778603597 | V17: 0.0882746835 | W17: 0.09347706825 | X17: 0.09403255742 | Y17: 0.09025337147 | Z17: 0.09577200863 | AA17: =$L17 -> 0.08
B19: Federal Tax Inputs
B20: Group NOL | F20: year | G20: =OFFSET($L20,0,$G$6) -> 2014 | I20: =OFFSET($L20,0,$I$6) -> 2014 | J20: =G20-I20 -> 0 | L20: =Input!Y22 -> 2014 | M20: 2014 | N20: 2014 | O20: 2014 | P20: 2014 | Q20: 2014 | R20: 2014 | S20: 2014 | T20: 2014 | U20: 2014 | V20: 2014 | W20: 2014 | X20: 2014 | Y20: 2014 | Z20: 2014 | AA20: 2014
B21: Group NOL | F21: on/off : | G21: =OFFSET($L21,0,$G$6) -> 1 | I21: =OFFSET($L21,0,$I$6) -> 1 | J21: =G21-I21 -> 0 | L21: =Input!Y21 -> 1 | M21: =$L21 -> 1 | N21: 1 | O21: 1 | P21: 1 | Q21: 1 | R21: 1 | S21: 1 | T21: =$L21 -> 1 | U21: 1 | V21: 1 | W21: 1 | X21: 1 | Y21: 1 | Z21: 1 | AA21: 1
B22: Federal Income Tax | G22: =OFFSET($L22,0,$G$6) -> 0.35 | I22: =OFFSET($L22,0,$I$6) -> 0.35 | J22: =G22-I22 -> 0 | L22: =Input!Y8 -> 0.35 | M22: 0.35 | N22: 0.35 | O22: 0.35 | P22: 0.35 | Q22: 0.35 | R22: 0.35 | S22: 0.35 | T22: 0.35 | U22: 0.35 | V22: 0.35 | W22: 0.35 | X22: 0.35 | Y22: 0.35 | Z22: 0.35 | AA22: 0.35
B24: State Tax
B25: State NOL | F25: year | G25: =OFFSET($L25,0,$G$6) -> 2014 | I25: =OFFSET($L25,0,$I$6) -> 2014 | J25: =G25-I25 -> 0 | L25: =Input!Y10 -> 2014 | M25: =$L25 -> 2014 | N25: 2014 | O25: 2014 | P25: 2014 | Q25: 2014 | R25: 2014 | S25: 2014 | T25: 2014 | U25: 2014 | V25: 2014 | W25: 2014 | X25: 2014 | Y25: 2014 | Z25: 2014 | AA25: 2014
B26: State NOL | F26: on/off : | G26: =OFFSET($L26,0,$G$6) -> 1 | I26: =OFFSET($L26,0,$I$6) -> 1 | J26: =G26-I26 -> 0 | L26: =Input!Y9 -> 1 | M26: =$L26 -> 1 | N26: =$L26 -> 1 | O26: 1 | P26: 1 | Q26: =$L26 -> 1 | R26: 1 | S26: 1 | T26: =$L26 -> 1 | U26: 1 | V26: 1 | W26: 1 | X26: 1 | Y26: 1 | Z26: =$L26 -> 1 | AA26: =$L26 -> 1
B27: State Income Tax | G27: =OFFSET($L27,0,$G$6) -> 0.042 | I27: =OFFSET($L27,0,$I$6) -> 0.042 | J27: =G27-I27 -> 0 | L27: =Input!X8 -> 0.042 | M27: =$L27 -> 0.042 | N27: 0.042 | O27: 0.042 | P27: 0.042 | Q27: 0.042 | R27: 0.042 | S27: 0.042 | T27: 0.042 | U27: 0.042 | V27: 0.042 | W27: 0.042 | X27: 0.042 | Y27: 0.042 | Z27: 0.042 | AA27: 0.042
B28: State Tax Credit | F28: on/off : | G28: =OFFSET($L28,0,$G$6) -> 0 | I28: =OFFSET($L28,0,$I$6) -> 0 | J28: =G28-I28 -> 0 | L28: =Input!Y11 -> 0 | M28: =$L28 -> 0 | N28: =$L28 -> 0 | O28: 0 | P28: 0 | Q28: =$L28 -> 0 | R28: 0 | S28: 0 | T28: =$L28 -> 0 | U28: 0 | V28: 0 | W28: 0 | X28: 0 | Y28: 0 | Z28: =$L28 -> 0 | AA28: =$L28 -> 0
B29: State Tax Credit | F29: year: | G29: 0 | I29: 0 | J29: 0 | L29: =Input!Y12 -> 0 | M29: 0 | N29: 0 | O29: 0 | P29: 0 | Q29: 0 | R29: 0 | S29: 0 | T29: 0 | U29: 0 | V29: 0 | W29: 0 | X29: 0 | Y29: 0 | Z29: 0 | AA29: 0
B30: State Tax Rate | F30: Rate: | G30: 0 | I30: 0 | J30: 0 | L30: =Input!Y13 -> 0 | M30: 0 | N30: 0 | O30: 0 | P30: 0 | Q30: 0 | R30: 0 | S30: 0 | T30: 0 | U30: 0 | V30: 0 | W30: 0 | X30: 0 | Y30: 0 | Z30: 0 | AA30: 0
B31: Sales Tax Sensitivity | G31: 0 | I31: 0 | J31: 0 | L31: =Input!Y14 -> 0 | M31: 0 | N31: 0 | O31: 0 | P31: 0 | Q31: 0 | R31: 0 | S31: 0 | T31: 0 | U31: 0 | V31: 1 | W31: 0 | X31: 0 | Y31: 0 | Z31: 0 | AA31: 0
B32: State Basis Sens. (on/off) | G32: 0 | I32: 0 | J32: 0 | L32: =Input!Y15 -> 0 | M32: 0 | N32: 0 | O32: 0 | P32: 0 | Q32: 0 | R32: 0 | S32: 0 | T32: 0 | U32: 0 | V32: 0 | W32: 1 | X32: 0 | Y32: 0 | Z32: 0 | AA32: 0
B33: Purchase Price Allocation (equipment) Tax Sensitivity | G33: 1 | I33: 1 | J33: 0 | L33: =Input!Y26 -> 1 | M33: 1 | N33: 1 | O33: 1 | P33: 1 | Q33: 1 | R33: 1 | S33: 1 | T33: 1 | U33: 1 | V33: 1 | W33: 1 | X33: 1 | Y33: 1 | Z33: 1 | AA33: 1
B34: Purchase Price Allocation (non-CITC) Tax Sensitivity | G34: 0 | I34: 0 | J34: 0 | L34: =Input!Y27 -> 0 | M34: 0 | N34: 0 | O34: 0 | P34: 0 | Q34: 0 | R34: 0 | S34: 0 | T34: 0 | U34: 1 | V34: 0 | W34: 0 | X34: 0 | Y34: 0 | Z34: 0 | AA34: 0
B36: ARO Obligation -
B37: Asset Retirement Obligation (Real) | G37: =OFFSET($L37,0,$G$6) -> 300 | I37: =OFFSET($L37,0,$I$6) -> 300 | J37: =G37-I37 -> 0 | L37: =Input!Y28 -> 300 | M37: =$L37 -> 300 | N37: 300 | O37: 300 | P37: 300 | Q37: 300 | R37: 300 | S37: 300 | T37: 300 | U37: 300 | V37: 300 | W37: 300 | X37: 300 | Y37: 300 | Z37: 300 | AA37: 300
B40: PTC
B41: PTC Deferral Case | F41: Case : | G41: =OFFSET($L41,0,$G$6) -> 1 | I41: =OFFSET($L41,0,$I$6) -> 1 | J41: =G41-I41 -> 0 | L41: =Input!Y23 -> 1 | M41: =$L41 -> 1 | N41: 1 | O41: 1 | P41: 1 | Q41: 1 | R41: 1 | S41: 1 | T41: 1 | U41: 1 | V41: 1 | W41: 1 | X41: 1 | Y41: 1 | Z41: 1 | AA41: 1
B42: =FS!C191 -> PTC Deferral Calculation | G42: 1 | I42: 1 | J42: 0 | L42: =Input!Y24 -> 1 | M42: 1 | N42: 1 | O42: 1 | P42: 1 | Q42: 1 | R42: 1 | S42: 1 | T42: 1 | U42: 1 | V42: 1 | W42: 1 | X42: 1 | Y42: 1 | Z42: 1 | AA42: 1
B43: Regular PTC Rate | G43: 0.15 | I43: 0.15 | J43: 0 | L43: =Input!Y18 -> 0.15 | M43: =$L43 -> 0.15 | N43: 0.15 | O43: 0.15 | P43: 0.15 | Q43: 0.15 | R43: 0.15 | S43: 0.15 | T43: 0.15 | U43: 0.15 | V43: 0.15 | W43: 0.15 | X43: 0.15 | Y43: 0.15 | Z43: 0.15 | AA43: 0.15
B44: Super PTC Rate | G44: 0.2625 | I44: 0.2625 | J44: 0 | L44: =Input!Y19 -> 0.2625 | M44: 0.2625 | N44: 0.2625 | O44: 0.2625 | P44: 0.2625 | Q44: 0.2625 | R44: 0.2625 | S44: 0.2625 | T44: 0.2625 | U44: 0.2625 | V44: 0.2625 | W44: 0.2625 | X44: 0.2625 | Y44: 0.2625 | Z44: 0.2625 | AA44: 0.2625
B45: Regular PTC Year | G45: 2018 | I45: 2018 | J45: 0 | L45: =Input!Z18 -> 2018 | M45: 2018 | N45: 2018 | O45: 2018 | P45: 2018 | Q45: 2018 | R45: 2018 | S45: 2018 | T45: 2018 | U45: 2018 | V45: 2018 | W45: 2018 | X45: 2018 | Y45: 2018 | Z45: 2018 | AA45: 2018
B46: Super PTC Year | G46: 2016 | I46: 2016 | J46: 0 | L46: =Input!Z19 -> 2016 | M46: 2016 | N46: 2016 | O46: 2016 | P46: 2016 | Q46: 2016 | R46: 2016 | S46: 2016 | T46: 2016 | U46: 2016 | V46: 2016 | W46: 2016 | X46: 2016 | Y46: 2016 | Z46: 2016 | AA46: 2016
B48: PPA Capacity Revenue
B49: Plant Nameplate MW | F49: MW : | G49: =OFFSET($L49,0,$G$6) -> 50 | I49: =OFFSET($L49,0,$I$6) -> 50 | J49: =G49-I49 -> 0 | L49: =Input!L8 -> 50 | M49: =$L49 -> 50 | N49: 50 | O49: 50 | P49: 50 | Q49: 50 | R49: 50 | S49: 50 | T49: 50 | U49: 50 | V49: 50 | W49: 50 | X49: 50 | Y49: 50 | Z49: 50 | AA49: 50
B50: Availability | F50: Pct : | G50: =OFFSET($L50,0,$G$6) -> 1 | I50: =OFFSET($L50,0,$I$6) -> 1 | J50: =G50-I50 -> 0 | L50: =Input!Z45 -> 1 | M50: 1 | N50: 1 | O50: 1 | P50: 1 | Q50: 1 | R50: 1 | S50: 1 | T50: 1 | U50: 1 | V50: 1 | W50: 1 | X50: 1 | Y50: 1 | Z50: 1 | AA50: 1
B51: Contract Price | F51: $/kWyr : | G51: =OFFSET($L51,0,$G$6) -> 0 | I51: =OFFSET($L51,0,$I$6) -> 0 | J51: =G51-I51 -> 0 | L51: =Input!Z46 -> 0 | M51: 0 | N51: 0 | O51: 0 | P51: 0 | Q51: 0 | R51: 0 | S51: 0 | T51: 0 | U51: 0 | V51: 0 | W51: 0 | X51: 0 | Y51: 0 | Z51: 0 | AA51: 0
B52: Growth Factor | F52: G : | G52: =OFFSET($L52,0,$G$6) -> 0 | I52: =OFFSET($L52,0,$I$6) -> 0 | J52: =G52-I52 -> 0 | L52: =Input!Z47 -> 0 | M52: 0 | N52: 0 | O52: 0 | P52: 0 | Q52: 0 | R52: 0 | S52: 0 | T52: 0 | U52: 0 | V52: 0 | W52: 0 | X52: 0 | Y52: 0 | Z52: 0 | AA52: 0
B54: PPA Energy Revenue | I54: =OFFSET($L54,0,$I$6) -> 0 | J54: =G54-I54 -> 0
B55: Growth Factor | F55: G : | G55: =OFFSET($L55,0,$G$6) -> 0.02100402062 | I55: =OFFSET($L55,0,$I$6) -> 0.02100402062 | J55: =G55-I55 -> 0 | L55: =Input!Z55 -> 0.02100402062 | M55: =$L55 -> 0.02100402062 | N55: 0.02100402062 | O55: 0.02100402062 | P55: 0.02100402062 | Q55: 0.02100402062 | R55: 0.02100402062 | S55: 0.02100402062 | T55: 0.02100402062 | U55: 0.02100402062 | V55: 0.02100402062 | W55: 0.02100402062 | X55: 0.02100402062 | Y55: 0.02100402062 | Z55: 0.02100402062 | AA55: 0.02100402062
B56: Effective Price - $/MWh | F56: $/MWh : | G56: =OFFSET($L56,0,$G$6) -> 122.9 | I56: =OFFSET($L56,0,$I$6) -> 122.9 | J56: =G56-I56 -> 0 | L56: =Input!Z56 -> 122.9 | M56: 122.9 | N56: 106.6936172 | O56: 112.3444462 | P56: 118.1341727 | Q56: 122.9 | R56: 122.9 | S56: 122.9 | T56: 122.9 | U56: 122.9 | V56: 122.9 | W56: 122.9 | X56: 122.9 | Y56: 122.9 | Z56: 122.9 | AA56: 122.9
B57: TOD Adjustment Multiple | F57: TOD: | G57: =OFFSET($L57,0,$G$6) -> 1.169609713 | I57: =OFFSET($L57,0,$I$6) -> 1.169609713 | J57: =G57-I57 -> 0 | L57: =Input!Z57 -> 1.169609713 | M57: 1.169609713 | N57: 1.169609713 | O57: 1.169609713 | P57: 1.169609713 | Q57: 1.169609713 | R57: 1.169609713 | S57: 1.169609713 | T57: 1.169609713 | U57: 1.169609713 | V57: 1.169609713 | W57: 1.169609713 | X57: 1.169609713 | Y57: 1.169609713 | Z57: 1.169609713 | AA57: 1.169609713
B59: PPA Term | G59: =OFFSET($L59,0,$G$6) -> 25 | I59: =OFFSET($L59,0,$I$6) -> 25 | J59: =G59-I59 -> 0 | L59: =Input!F22 -> 25 | M59: 25 | N59: 25 | O59: 25 | P59: 25 | Q59: 25 | R59: 25 | S59: 25 | T59: 25 | U59: 25 | V59: 25 | W59: 25 | X59: 25 | Y59: 25 | Z59: 25 | AA59: 25
B60: Merchant Term | G60: =OFFSET($L60,0,$G$6) -> 0 | I60: =OFFSET($L60,0,$I$6) -> 0 | J60: =G60-I60 -> 0 | L60: =Input!G22 -> 0 | M60: 0 | N60: 0 | O60: 0 | P60: 0 | Q60: 0 | R60: 0 | S60: 0 | T60: 0 | U60: 0 | V60: 0 | W60: 0 | X60: 0 | Y60: 0 | Z60: 0 | AA60: 0
B61: Fuel Consumption - mmbtu | G61: =OFFSET($L61,0,$G$6) -> 0 | I61: =OFFSET($L61,0,$I$6) -> 0 | J61: =G61-I61 -> 0 | L61: =Input!L29 -> 0 | M61: 0 | N61: 0 | O61: 0 | P61: 0 | Q61: 0 | R61: 0 | S61: 0 | T61: 0 | U61: 0 | V61: 0 | W61: 0 | X61: 0 | Y61: 0 | Z61: 0 | AA61: 0
B64: SPS Promote Allocation - $4M Transmission
B65: 50MW Allocation to Solar : | G65: =OFFSET($L65,0,$G$6) -> 16389.21642 | I65: =OFFSET($L65,0,$I$6) -> 16389.21642 | J65: =G65-I65 -> 0 | L65: =Input!S43 -> 16389.21642 | M65: =$L65 -> 16389.21642 | N65: 16389.21642 | O65: 16389.21642 | P65: 16389.21642 | Q65: 16389.21642 | R65: 16389.21642 | S65: 16389.21642 | T65: 16389.21642 | U65: 16389.21642 | V65: 16389.21642 | W65: 16389.21642 | X65: 16389.21642 | Y65: 16389.21642 | Z65: 16389.21642 | AA65: 16389.21642
B66: 50MW Allocation to Tx : | G66: =OFFSET($L66,0,$G$6) -> 1538.461538 | I66: =OFFSET($L66,0,$I$6) -> 1538.461538 | J66: =G66-I66 -> 0 | L66: =Input!S44 -> 1538.461538 | M66: 1538.461538 | N66: 1538.461538 | O66: 1538.461538 | P66: 1538.461538 | Q66: 1538.461538 | R66: 1538.461538 | S66: 1538.461538 | T66: 1538.461538 | U66: 1538.461538 | V66: 1538.461538 | W66: 1538.461538 | X66: 1538.461538 | Y66: 1538.461538 | Z66: 1538.461538 | AA66: 1538.461538
B67: Total 50MW Allocation : | G67: =OFFSET($L67,0,$G$6) -> 17927.67796 | I67: =OFFSET($L67,0,$I$6) -> 17927.67796 | J67: =G67-I67 -> 0 | L67: =Input!S45 -> 17927.67796 | M67: 17927.67796 | N67: 17927.67796 | O67: 17927.67796 | P67: 17927.67796 | Q67: 17927.67796 | R67: 17927.67796 | S67: 17927.67796 | T67: 17927.67796 | U67: 17927.67796 | V67: 17927.67796 | W67: 17927.67796 | X67: 17927.67796 | Y67: 17927.67796 | Z67: 17927.67796 | AA67: 17927.67796
B69: Promote - CITC eligible (i.e. net of Tx) : | G69: =OFFSET($L69,0,$G$6) -> 42611.96269 | I69: =OFFSET($L69,0,$I$6) -> 42611.96269 | J69: =G69-I69 -> 0 | L69: =Input!S40 -> 42611.96269 | M69: 42611.96269 | N69: 42611.96269 | O69: 42611.96269 | P69: 42611.96269 | Q69: 42611.96269 | R69: 42611.96269 | S69: 42611.96269 | T69: 42611.96269 | U69: 42611.96269 | V69: 42611.96269 | W69: 42611.96269 | X69: 42611.96269 | Y69: 42611.96269 | Z69: 42611.96269 | AA69: 42611.96269
B70: Promote - non-CITC (i.e. allocated to Tx) : | G70: 4000 | I70: 4000 | J70: 0 | L70: =Input!S41 -> 4000 | M70: 4000 | N70: 4000 | O70: 4000 | P70: 4000 | Q70: 4000 | R70: 4000 | S70: 4000 | T70: 4000 | U70: 4000 | V70: 4000 | W70: 4000 | X70: 4000 | Y70: 4000 | Z70: 4000 | AA70: 4000
B71: Total SPS Promote | G71: 46611.96269 | I71: 46611.96269 | J71: 0 | L71: =Input!S42 -> 46611.96269 | M71: 46611.96269 | N71: 46611.96269 | O71: 46611.96269 | P71: 46611.96269 | Q71: 46611.96269 | R71: 46611.96269 | S71: 46611.96269 | T71: 46611.96269 | U71: 46611.96269 | V71: 46611.96269 | W71: 46611.96269 | X71: 46611.96269 | Y71: 46611.96269 | Z71: 46611.96269 | AA71: 46611.96269
B79: Capital Costs -
B80: Land Costs | G80: =OFFSET($L80,0,$G$6) -> 0 | I80: =OFFSET($L80,0,$I$6) -> 0 | J80: =G80-I80 -> 0 | K80: waiting | L80: =Input!R9 -> 0 | M80: =$L80 -> 0 | N80: 0 | O80: 0 | P80: 0 | Q80: 0 | R80: 0 | S80: 0 | T80: 0 | U80: 0 | V80: 0 | W80: 0 | X80: 0 | Y80: 0 | Z80: 0 | AA80: 0
B81: Development Costs | G81: 2203.850692 | I81: 2203.850692 | J81: 0 | K81: for E&C | L81: =Input!R10 -> 2203.850692 | M81: 2203.850692 | N81: 2203.850692 | O81: 2203.850692 | P81: 2203.850692 | Q81: 2203.850692 | R81: 2203.850692 | S81: 2203.850692 | T81: 2203.850692 | U81: 2203.850692 | V81: 2203.850692 | W81: 2203.850692 | X81: 2203.850692 | Y81: 2203.850692 | Z81: 2203.850692 | AA81: 2203.850692
B82: Equipment | G82: 133468.7049 | I82: 133468.7049 | J82: 0 | K82: data | L82: =Input!R11 -> 133468.7049 | M82: 133468.7049 | N82: 133468.7049 | O82: 133468.7049 | P82: 133468.7049 | Q82: 133468.7049 | R82: 133468.7049 | S82: 133468.7049 | T82: 133468.7049 | U82: 133468.7049 | V82: 133468.7049 | W82: 133468.7049 | X82: 133468.7049 | Y82: 133468.7049 | Z82: 133468.7049 | AA82: 133468.7049
B83: Construction | G83: 45267.09321 | I83: 45267.09321 | J83: 0 | L83: =Input!R12 -> 45267.09321 | M83: 45267.09321 | N83: 45267.09321 | O83: 45267.09321 | P83: 45267.09321 | Q83: 45267.09321 | R83: 45267.09321 | S83: 45267.09321 | T83: 45267.09321 | U83: 45267.09321 | V83: 45267.09321 | W83: 45267.09321 | X83: 45267.09321 | Y83: 45267.09321 | Z83: 45267.09321 | AA83: 45267.09321
B84: Transmission | G84: 2240.461538 | I84: 2240.461538 | J84: 0 | L84: =Input!R13 -> 2240.461538 | M84: 2240.461538 | N84: 2240.461538 | O84: 2240.461538 | P84: 2240.461538 | Q84: 2240.461538 | R84: 2240.461538 | S84: 2240.461538 | T84: 2240.461538 | U84: 2240.461538 | V84: 2240.461538 | W84: 2240.461538 | X84: 2240.461538 | Y84: 2240.461538 | Z84: 2240.461538 | AA84: 2240.461538
B85: Indirects | G85: 2839.397283 | I85: 2839.397283 | J85: 0 | L85: =Input!R14 -> 2839.397283 | M85: 2839.397283 | N85: 2839.397283 | O85: 2839.397283 | P85: 2839.397283 | Q85: 2839.397283 | R85: 2839.397283 | S85: 2839.397283 | T85: 2839.397283 | U85: 2839.397283 | V85: 2839.397283 | W85: 2839.397283 | X85: 2839.397283 | Y85: 2839.397283 | Z85: 2839.397283 | AA85: 2839.397283
B86: Startup | G86: 2577.768884 | I86: 2577.768884 | J86: 0 | L86: =Input!R15 -> 2577.768884 | M86: 2577.768884 | N86: 2577.768884 | O86: 2577.768884 | P86: 2577.768884 | Q86: 2577.768884 | R86: 2577.768884 | S86: 2577.768884 | T86: 2577.768884 | U86: 2577.768884 | V86: 2577.768884 | W86: 2577.768884 | X86: 2577.768884 | Y86: 2577.768884 | Z86: 2577.768884 | AA86: 2577.768884
B87: Other | G87: 5231.941542 | I87: 5231.941542 | J87: 0 | L87: =Input!R16 -> 5231.941542 | M87: 5231.941542 | N87: 5231.941542 | O87: 5231.941542 | P87: 5231.941542 | Q87: 5231.941542 | R87: 5231.941542 | S87: 5231.941542 | T87: 5231.941542 | U87: 5231.941542 | V87: 5231.941542 | W87: 5231.941542 | X87: 5231.941542 | Y87: 5231.941542 | Z87: 5231.941542 | AA87: 5231.941542
B88: Contingency | G88: 6170.781937 | I88: 6170.781937 | J88: 0 | L88: =Input!R17 -> 6170.781937 | M88: 6170.781937 | N88: 6170.781937 | O88: 6170.781937 | P88: 6170.781937 | Q88: 6170.781937 | R88: 6170.781937 | S88: 6170.781937 | T88: 6170.781937 | U88: 6170.781937 | V88: 6170.781937 | W88: 6170.781937 | X88: 6170.781937 | Y88: 6170.781937 | Z88: 6170.781937 | AA88: 6170.781937
B91: CapEx Sensitivity as a % | F91: Percent : | G91: =OFFSET($L91,0,$G$6) -> 0 | I91: 0 | J91: =G91-I91 -> 0 | L91: =Input!S21 -> 0 | M91: 0 | N91: 0 | O91: 0 | P91: 0 | Q91: 0 | R91: 0 | S91: 0 | T91: 0 | U91: 0 | V91: 0 | W91: 0 | X91: 0 | Y91: 0 | Z91: 0 | AA91: 0
B92: CapEx Sensitivity as $/KW | F92: $/kW : | G92: =OFFSET($L92,0,$G$6) -> 3800 | I92: 3800 | J92: =G92-I92 -> 0 | L92: =Input!S23 -> 3800 | M92: 3800 | N92: 3800 | O92: 3800 | P92: 3800 | Q92: 3800 | R92: 3800 | S92: 3800 | T92: 3800 | U92: 3800 | V92: 3800 | W92: 3800 | X92: 3800 | Y92: 3800 | Z92: 3800 | AA92: 3753.48013
B95: Operating Cost Toggles
B96: Fuel | E96: VOM | F96: on/off : | G96: =OFFSET($L96,0,$G$6) -> 1 | I96: =OFFSET($L96,0,$I$6) -> 1 | J96: =G96-I96 -> 0 | L96: =Input!M38 -> 1 | M96: =$L96 -> 1 | N96: 1 | O96: 1 | P96: 1 | Q96: 1 | R96: 1 | S96: 1 | T96: 1 | U96: 1 | V96: 1 | W96: 1 | X96: 1 | Y96: 1 | Z96: 1 | AA96: 1
B97: VOM | E97: VOM | F97: on/off : | G97: =OFFSET($L97,0,$G$6) -> 1 | I97: =OFFSET($L97,0,$I$6) -> 1 | J97: =G97-I97 -> 0 | L97: =Input!M39 -> 1 | M97: 1 | N97: 1 | O97: 1 | P97: 1 | Q97: 1 | R97: 1 | S97: 1 | T97: 1 | U97: 1 | V97: 1 | W97: 1 | X97: 1 | Y97: 1 | Z97: 1 | AA97: 1
B98: FOM - Labor | E98: FOM | F98: on/off : | G98: 1 | I98: =OFFSET($L98,0,$I$6) -> 1 | J98: =G98-I98 -> 0 | L98: =Input!M40 -> 1 | M98: 1 | N98: 1 | O98: 1 | P98: 1 | Q98: 1 | R98: 1 | S98: 1 | T98: 1 | U98: 1 | V98: 1 | W98: 1 | X98: 1 | Y98: 1 | Z98: 1 | AA98: 1
B99: FOM - Other | E99: FOM | F99: on/off : | G99: 1 | I99: 1 | J99: 0 | L99: =Input!M41 -> 1 | M99: 1 | N99: 1 | O99: 1 | P99: 1 | Q99: 1 | R99: 1 | S99: 1 | T99: 1 | U99: 1 | V99: 1 | W99: 1 | X99: 1 | Y99: 1 | Z99: 1 | AA99: 1
B100: Major Maint | E100: FOM | F100: on/off : | G100: 1 | I100: 1 | J100: 0 | L100: =Input!M42 -> 1 | M100: 1 | N100: 1 | O100: 1 | P100: 1 | Q100: 1 | R100: 1 | S100: 1 | T100: 1 | U100: 1 | V100: 1 | W100: 1 | X100: 1 | Y100: 1 | Z100: 1 | AA100: 1
B101: Other Operating Costs | E101: FOM | F101: on/off : | G101: 1 | I101: 1 | J101: 0 | L101: =Input!M43 -> 1 | M101: 1 | N101: 1 | O101: 1 | P101: 1 | Q101: 1 | R101: 1 | S101: 1 | T101: 1 | U101: 1 | V101: 1 | W101: 1 | X101: 1 | Y101: 1 | Z101: 1 | AA101: 1
B102: Property Taxes | E102: GA | F102: on/off : | G102: 1 | I102: 1 | J102: 0 | L102: =Input!M44 -> 1 | M102: 1 | N102: 1 | O102: 1 | P102: 1 | Q102: 1 | R102: 1 | S102: 1 | T102: 1 | U102: 1 | V102: 1 | W102: 1 | X102: 1 | Y102: 1 | Z102: 1 | AA102: 1
B103: Insurance | E103: GA | F103: on/off : | G103: 1 | I103: 1 | J103: 0 | L103: =Input!M45 -> 1 | M103: 1 | N103: 1 | O103: 1 | P103: 1 | Q103: 1 | R103: 1 | S103: 1 | T103: 1 | U103: 1 | V103: 1 | W103: 1 | X103: 1 | Y103: 1 | Z103: 1 | AA103: 1
B104: Fees | E104: GA | F104: on/off : | G104: 1 | I104: 1 | J104: 0 | L104: =Input!M46 -> 1 | M104: 1 | N104: 1 | O104: 1 | P104: 1 | Q104: 1 | R104: 1 | S104: 1 | T104: 1 | U104: 1 | V104: 1 | W104: 1 | X104: 1 | Y104: 1 | Z104: 1 | AA104: 1
B105: Land Royalty | E105: GA | F105: on/off : | G105: 1 | I105: 1 | J105: 0 | L105: =Input!M47 -> 1 | M105: 1 | N105: 1 | O105: 1 | P105: 1 | Q105: 1 | R105: 1 | S105: 1 | T105: 1 | U105: 1 | V105: 1 | W105: 1 | X105: 1 | Y105: 1 | Z105: 1 | AA105: 1
B106: Performance Bond | E106: GA | F106: on/off : | G106: 1 | I106: 1 | J106: 0 | L106: =Input!M48 -> 1 | M106: 1 | N106: 1 | O106: 1 | P106: 1 | Q106: 1 | R106: 1 | S106: 1 | T106: 1 | U106: 1 | V106: 1 | W106: 1 | X106: 1 | Y106: 1 | Z106: 1 | AA106: 1
B108: Generation
B109: Degradation - Base Case | G109: =OFFSET($L111,0,$G$6) -> 0 | I109: =OFFSET($L111,0,$I$6) -> 0 | J109: =G109-I109 -> 0 | L109: =Input!L15 -> 0.005 | M109: =$L109 -> 0.005 | N109: 0.005 | O109: 0.005 | P109: 0.005 | Q109: 0.005 | R109: 0.005 | S109: 0.005 | T109: 0.005 | U109: 0.005 | V109: 0.005 | W109: 0.005 | X109: 0.005 | Y109: 0.005 | Z109: 0.005 | AA109: 0.005
B110: Degradation - Yingli Sensitivity | G110: =OFFSET($L112,0,$G$6) -> 0 | I110: =OFFSET($L112,0,$I$6) -> 0 | J110: =G110-I110 -> 0 | L110: =Input!L16 -> 0 | M110: 0 | N110: 0 | O110: 0 | P110: 0 | Q110: 0 | R110: 0 | S110: 0 | T110: 0 | U110: 0 | V110: 0 | W110: 0 | X110: 0 | Y110: 1 | Z110: 0 | AA110: 0
B111: Yingli 50MW Generation Sensitivity | G111: =OFFSET($L111,0,$G$6) -> 0 | I111: =OFFSET($L111,0,$I$6) -> 0 | J111: =G111-I111 -> 0 | L111: =Input!L11 -> 0 | M111: =$L111 -> 0 | N111: 0 | O111: 0 | P111: 0 | Q111: 0 | R111: 0 | S111: 0 | T111: 0 | U111: 0 | V111: 0 | W111: 0 | X111: 0 | Y111: 1 | Z111: 0 | AA111: 0
B112: Yingli 50MW O&M ensitivity | G112: =OFFSET($L112,0,$G$6) -> 0 | I112: =OFFSET($L112,0,$I$6) -> 0 | J112: =G112-I112 -> 0 | L112: =Input!L12 -> 0 | M112: 0 | N112: 0 | O112: 0 | P112: 0 | Q112: 0 | R112: 0 | S112: 0 | T112: 0 | U112: 0 | V112: 0 | W112: 0 | X112: 1 | Y112: 1 | Z112: 1 | AA112: 0
B113: Yingli 50MW Adusted Energy Impact | G113: =OFFSET($L113,0,$G$6) -> 0 | I113: =OFFSET($L113,0,$I$6) -> 0 | J113: =G113-I113 -> 0 | L113: =Input!L28 -> 0 | M113: 0 | N113: 0 | O113: 0 | P113: 0 | Q113: 0 | R113: 0 | S113: 0 | T113: 0 | U113: 0 | V113: 0 | W113: 0 | X113: 0 | Y113: 1 | Z113: 0 | AA113: 0
B114: Line Loss | G114: =OFFSET($L114,0,$G$6) -> 0 | I114: =OFFSET($L114,0,$I$6) -> 0 | J114: =G114-I114 -> 0 | L114: =Input!K23 -> 0 | M114: 0 | N114: 0 | O114: 0 | P114: 0 | Q114: 0 | R114: 0 | S114: 0 | T114: 0 | U114: 0 | V114: 0 | W114: 0 | X114: 0 | Y114: 0 | Z114: 0 | AA114: 0
B115: EFOR | G115: 0.013 | I115: 0.013 | J115: 0 | L115: =Input!K19 -> 0.013 | M115: 0.013 | N115: 0.013 | O115: 0.013 | P115: 0.013 | Q115: 0.013 | R115: 0.013 | S115: 0.013 | T115: 0.013 | U115: 0.013 | V115: 0.013 | W115: 0.013 | X115: 0.013 | Y115: 0.013 | Z115: 0 | AA115: 0.013
B116: EPOF | G116: 1 | I116: 1 | J116: 0 | L116: =Input!K20 -> 1 | M116: 1 | N116: 1 | O116: 1 | P116: 1 | Q116: 1 | R116: 1 | S116: 1 | T116: 1 | U116: 1 | V116: 1 | W116: 1 | X116: 1 | Y116: 1 | Z116: 1 | AA116: 1
I117: 0 | J117: 0
I118: 0 | J118: 0
B121: RESULTS
B123: IRR | G123: =FS!$E$240 -> 0.07999999821 | I123: =OFFSET($L123,0,$I$6) -> 0.09403136075 | J123: =G123-I123 -> -0.01403136253 | L123: 0.09403136075 | M123: 0.09403136075 | N123: 0.07999999821 | O123: 0.0849999994 | P123: 0.0900000006 | Q123: 0.09403136075 | R123: 0.09403136075 | S123: 0.09403136075 | T123: 0.09441096485 | U123: 0.08778603971 | V123: 0.08827542365 | W123: 0.09347771704 | X123: 0.09403136075 | Y123: 0.09025224745 | Z123: 0.09577077925 | AA123: 0.0900000006
B124: NPV | F124: =FS!$F$233 -> 0.08 | G124: =FS!$F$240 -> -2.082513379e-08 | I124: 2.595824601 | J124: -2.595824622 | L124: 2.595824601 | M124: 2.595824601 | N124: -4.092497234e-10 | O124: -4.036959353e-10 | P124: -3.981280088e-10 | Q124: -0.0007385184861 | R124: -0.000738518486 | S124: -0.0007385184861 | T124: -0.0007396635257 | U124: 2.190837887e-06 | V124: 0.0005062864753 | W124: 0.0004041973405 | X124: -0.0007385184859 | Y124: -0.000717124904 | Z124: -0.0007488875085 | AA124: 1.774164923e-08
B125: NCF | G125: =ToD!E73 -> 0.2347559225 | I125: 0.2347559225 | J125: 0 | L125: 0.2347559225 | M125: 0.2347559225 | N125: 0.2347559225 | O125: 0.2347559225 | P125: 0.2347559225 | Q125: 0.2347559225 | R125: 0.2347559225 | S125: 0.2347559225 | T125: 0.2347559225 | U125: 0.2347559225 | V125: 0.2347559225 | W125: 0.2347559225 | X125: 0.2347559225 | Y125: 0.2271701987 | Z125: 0.2347559225 | AA125: 0.2347559225
I126: 0 | J126: 0
I127: 0 | J127: 0
B128: CapEx | F128: $M : | G128: =CapEx!Y146/1000 -> 210.0522175 | I128: 181.8770122 | J128: 28.17520536 | L128: 181.8770122 | M128: 181.8770122 | N128: 181.8770122 | O128: 181.8770122 | P128: 181.8770122 | Q128: 181.8770122 | R128: 181.8770122 | S128: 181.8770122 | T128: 182.0185325 | U128: 189.2049143 | V128: 193.1125551 | W128: 181.8770122 | X128: 181.8770122 | Y128: 181.8770122 | Z128: 181.8770122 | AA128: 189.6290472
B129: CapEx | F129: $/kW : | G129: =G128/G49*1000 -> 4201.04435 | I129: 3637.540243 | J129: 563.5041073 | L129: 3637.540243 | M129: 3637.540243 | N129: 3637.540243 | O129: 3637.540243 | P129: 3637.540243 | Q129: 3637.540243 | R129: 3637.540243 | S129: 3637.540243 | T129: 3640.370649 | U129: 3784.098285 | V129: 3862.251102 | W129: 3637.540243 | X129: 3637.540243 | Y129: 3637.540243 | Z129: 3637.540243 | AA129: 3792.580944
B130: Grant | F130: $M : | G130: =Alloc!R50/1000 -> 59.36896861 | I130: 51.76366119 | J130: 7.605307422 | L130: 51.76366119 | M130: 51.76366119 | N130: 51.76366119 | O130: 51.76366119 | P130: 51.76366119 | Q130: 51.76366119 | R130: 51.76366119 | S130: 51.76366119 | T130: 52.20665171 | U130: 51.76366119 | V130: 54.99949756 | W130: 51.76366119 | X130: 51.76366119 | Y130: 51.76366119 | Z130: 51.76366119 | AA130: 53.99624729
I131: 0 | J131: 0

Sheet FS
B1: FS | H1: =H13 -> 0 | I1: 0 | J1: 0 | K1: 0 | L1: 0 | M1: 0 | N1: 0.4180327869 | O1: 1 | P1: 1 | Q1: 1 | R1: 1 | S1: 1 | T1: 1 | U1: 1 | V1: 1 | W1: 1 | X1: 1 | Y1: 1 | Z1: 1 | AA1: 1 | AB1: 1 | AC1: 1 | AD1: 1 | AE1: 1 | AF1: 1 | AG1: 1 | AH1: 1 | AI1: 1 | AJ1: 1 | AK1: 1 | AL1: 1 | AM1: 0.5819672131 | AN1: 0 | AO1: 0 | AP1: 0 | AQ1: 0 | AR1: 0 | AS1: 0 | AT1: 0 | AU1: 0 | AV1: 0 | AW1: 0 | AX1: 0 | AY1: 0 | AZ1: 0 | BA1: 0
H2: =H$11 -> 2007-06-30 | I2: 2008-06-30 | J2: 2009-06-30 | K2: 2010-06-30 | L2: 2011-10-01 | M2: 2012-08-01 | N2: 2012-12-01 | O2: 2013-08-15 | P2: 2014-08-15 | Q2: 2015-08-15 | R2: 2016-08-15 | S2: 2017-08-15 | T2: 2018-08-15 | U2: 2019-08-15 | V2: 2020-08-15 | W2: 2021-08-15 | X2: 2022-08-15 | Y2: 2023-08-15 | Z2: 2024-08-15 | AA2: 2025-08-15 | AB2: 2026-08-15 | AC2: 2027-08-15 | AD2: 2028-08-15 | AE2: 2029-08-15 | AF2: 2030-08-15 | AG2: 2031-08-15 | AH2: 2032-08-15 | AI2: 2033-08-15 | AJ2: 2034-08-15 | AK2: 2035-08-15 | AL2: 2036-08-15 | AM2: 2037-08-15 | AN2: 2038-08-15 | AO2: 2039-08-15 | AP2: 2040-08-15 | AQ2: 2041-08-15 | AR2: 2042-08-15 | AS2: 2043-08-15 | AT2: 2044-08-15 | AU2: 2045-08-15 | AV2: 2046-08-15 | AW2: 2047-08-15 | AX2: 2048-08-15 | AY2: 2049-08-15 | AZ2: 2050-08-15 | BA2: 2051-08-15
H3: =H$7 -> -5 | I3: -4 | J3: -3 | K3: -2 | L3: -1 | M3: 0 | N3: 1 | O3: 2 | P3: 3 | Q3: 4 | R3: 5 | S3: 6 | T3: 7 | U3: 8 | V3: 9 | W3: 10 | X3: 11 | Y3: 12 | Z3: 13 | AA3: 14 | AB3: 15 | AC3: 16 | AD3: 17 | AE3: 18 | AF3: 19 | AG3: 20 | AH3: 21 | AI3: 22 | AJ3: 23 | AK3: 24 | AL3: 25 | AM3: 26 | AN3: 27 | AO3: 28 | AP3: 29 | AQ3: 30 | AR3: 31 | AS3: 32 | AT3: 33 | AU3: 34 | AV3: 35 | AW3: 36 | AX3: 37 | AY3: 38 | AZ3: 39 | BA3: 40
H4: =H$8 -> 2007 | I4: 2008 | J4: 2009 | K4: 2010 | L4: 2011 | M4: 2012 | N4: 2012 | O4: 2013 | P4: 2014 | Q4: 2015 | R4: 2016 | S4: 2017 | T4: 2018 | U4: 2019 | V4: 2020 | W4: 2021 | X4: 2022 | Y4: 2023 | Z4: 2024 | AA4: 2025 | AB4: 2026 | AC4: 2027 | AD4: 2028 | AE4: 2029 | AF4: 2030 | AG4: 2031 | AH4: 2032 | AI4: 2033 | AJ4: 2034 | AK4: 2035 | AL4: 2036 | AM4: 2037 | AN4: 2038 | AO4: 2039 | AP4: 2040 | AQ4: 2041 | AR4: 2042 | AS4: 2043 | AT4: 2044 | AU4: 2045 | AV4: 2046 | AW4: 2047 | AX4: 2048 | AY4: 2049 | AZ4: 2050 | BA4: 2051
B5: PERIOD
E7: COD | G7: Period : | H7: =I7-1 -> -5 | I7: -4 | J7: -3 | K7: -2 | L7: -1 | M7: 0 | N7: =M7+1 -> 1 | O7: 2 | P7: 3 | Q7: 4 | R7: 5 | S7: 6 | T7: 7 | U7: 8 | V7: 9 | W7: 10 | X7: 11 | Y7: 12 | Z7: 13 | AA7: 14 | AB7: 15 | AC7: 16 | AD7: 17 | AE7: 18 | AF7: 19 | AG7: 20 | AH7: 21 | AI7: 22 | AJ7: 23 | AK7: 24 | AL7: 25 | AM7: 26 | AN7: 27 | AO7: 28 | AP7: 29 | AQ7: 30 | AR7: 31 | AS7: 32 | AT7: 33 | AU7: 34 | AV7: 35 | AW7: 36 | AX7: 37 | AY7: 38 | AZ7: 39 | BA7: 40
E8: =Input!F8 -> 2012-08-01 | G8: Year : | H8: 2007 | I8: 2008 | J8: 2009 | K8: 2010 | L8: 2011 | M8: =YEAR(E8) -> 2012 | N8: 2012 | O8: =N8+1 -> 2013 | P8: 2014 | Q8: 2015 | R8: 2016 | S8: 2017 | T8: 2018 | U8: 2019 | V8: 2020 | W8: 2021 | X8: 2022 | Y8: 2023 | Z8: 2024 | AA8: 2025 | AB8: 2026 | AC8: 2027 | AD8: 2028 | AE8: 2029 | AF8: 2030 | AG8: 2031 | AH8: 2032 | AI8: 2033 | AJ8: 2034 | AK8: 2035 | AL8: 2036 | AM8: 2037 | AN8: 2038 | AO8: 2039 | AP8: 2040 | AQ8: 2041 | AR8: 2042 | AS8: 2043 | AT8: 2044 | AU8: 2045 | AV8: 2046 | AW8: 2047 | AX8: 2048 | AY8: 2049 | AZ8: 2050 | BA8: 2051
G9: Month : | H9: 6 | I9: 6 | J9: 6 | K9: 6 | L9: 10 | M9: =MONTH(E8) -> 8 | N9: =M9+4 -> 12 | O9: 8 | P9: =O9 -> 8 | Q9: 8 | R9: 8 | S9: 8 | T9: 8 | U9: 8 | V9: 8 | W9: 8 | X9: 8 | Y9: 8 | Z9: 8 | AA9: 8 | AB9: 8 | AC9: 8 | AD9: 8 | AE9: 8 | AF9: 8 | AG9: 8 | AH9: 8 | AI9: 8 | AJ9: 8 | AK9: 8 | AL9: 8 | AM9: 8 | AN9: 8 | AO9: 8 | AP9: 8 | AQ9: 8 | AR9: 8 | AS9: 8 | AT9: 8 | AU9: 8 | AV9: 8 | AW9: 8 | AX9: 8 | AY9: 8 | AZ9: 8 | BA9: 8
G10: Day : | H10: 30 | I10: 30 | J10: 30 | K10: 30 | L10: 1 | M10: =DAY(E8) -> 1 | N10: =M10 -> 1 | O10: 15 | P10: =O10 -> 15 | Q10: 15 | R10: 15 | S10: 15 | T10: 15 | U10: 15 | V10: 15 | W10: 15 | X10: 15 | Y10: 15 | Z10: 15 | AA10: 15 | AB10: 15 | AC10: 15 | AD10: 15 | AE10: 15 | AF10: 15 | AG10: 15 | AH10: 15 | AI10: 15 | AJ10: 15 | AK10: 15 | AL10: 15 | AM10: 15 | AN10: 15 | AO10: 15 | AP10: 15 | AQ10: 15 | AR10: 15 | AS10: 15 | AT10: 15 | AU10: 15 | AV10: 15 | AW10: 15 | AX10: 15 | AY10: 15 | AZ10: 15 | BA10: 15
G11: Disc Date : | H11: =DATE(H8,H9,H10) -> 2007-06-30 | I11: 2008-06-30 | J11: 2009-06-30 | K11: 2010-06-30 | L11: 2011-10-01 | M11: 2012-08-01 | N11: 2012-12-01 | O11: 2013-08-15 | P11: 2014-08-15 | Q11: 2015-08-15 | R11: 2016-08-15 | S11: 2017-08-15 | T11: 2018-08-15 | U11: 2019-08-15 | V11: 2020-08-15 | W11: 2021-08-15 | X11: 2022-08-15 | Y11: 2023-08-15 | Z11: 2024-08-15 | AA11: 2025-08-15 | AB11: 2026-08-15 | AC11: 2027-08-15 | AD11: 2028-08-15 | AE11: 2029-08-15 | AF11: 2030-08-15 | AG11: 2031-08-15 | AH11: 2032-08-15 | AI11: 2033-08-15 | AJ11: 2034-08-15 | AK11: 2035-08-15 | AL11: 2036-08-15 | AM11: 2037-08-15 | AN11: 2038-08-15 | AO11: 2039-08-15 | AP11: 2040-08-15 | AQ11: 2041-08-15 | AR11: 2042-08-15 | AS11: 2043-08-15 | AT11: 2044-08-15 | AU11: 2045-08-15 | AV11: 2046-08-15 | AW11: 2047-08-15 | AX11: 2048-08-15 | AY11: 2049-08-15 | AZ11: 2050-08-15 | BA11: 2051-08-15
E12: COD | F12: Term | G12: Days : | H12: =DATE(H8,12,31)-DATE(H8,1,1)+1 -> 365 | I12: 366 | J12: 365 | K12: 365 | L12: 365 | M12: 366 | N12: 366 | O12: 365 | P12: 365 | Q12: 365 | R12: 366 | S12: 365 | T12: 365 | U12: 365 | V12: 366 | W12: 365 | X12: 365 | Y12: 365 | Z12: 366 | AA12: 365 | AB12: 365 | AC12: 365 | AD12: 366 | AE12: 365 | AF12: 365 | AG12: 365 | AH12: 366 | AI12: 365 | AJ12: 365 | AK12: 365 | AL12: 366 | AM12: 365 | AN12: 365 | AO12: 365 | AP12: 366 | AQ12: 365 | AR12: 365 | AS12: 365 | AT12: 366 | AU12: 365 | AV12: 365 | AW12: 365 | AX12: 366 | AY12: 365 | AZ12: 365 | BA12: 365
E13: =M11 -> 2012-08-01 | F13: =Input!F20 -> 25 | G13: Par Year : | H13: 0 | I13: =IF(YEAR($E13)>I8,0,IF(YEAR($E13)=I8,(DATE(I8,12,31)-$E13+1)/I12,MIN(1,$F13-SUM($H13:H13))))*(I$7>0) -> 0 | J13: =IF(YEAR($E13)>J8,0,IF(YEAR($E13)=J8,(DATE(J8,12,31)-$E13+1)/J12,MIN(1,$F13-SUM($H13:I13))))*(J$7>0) -> 0 | K13: =IF(YEAR($E13)>K8,0,IF(YEAR($E13)=K8,(DATE(K8,12,31)-$E13+1)/K12,MIN(1,$F13-SUM($H13:J13))))*(K$7>0) -> 0 | L13: =IF(YEAR($E13)>L8,0,IF(YEAR($E13)=L8,(DATE(L8,12,31)-$E13+1)/L12,MIN(1,$F13-SUM($H13:K13))))*(L$7>0) -> 0 | M13: =IF(YEAR($E13)>M8,0,IF(YEAR($E13)=M8,(DATE(M8,12,31)-$E13+1)/M12,MIN(1,$F13-SUM($H13:L13))))*(M$7>0) -> 0 | N13: =IF(YEAR($E13)>N8,0,IF(YEAR($E13)=N8,(DATE(N8,12,31)-$E13+1)/N12,MIN(1,$F13-SUM($H13:M13))))*(N$7>0) -> 0.4180327869 | O13: =IF(YEAR($E13)>O8,0,IF(YEAR($E13)=O8,(DATE(O8,12,31)-$E13+1)/O12,MIN(1,$F13-SUM($H13:N13))))*(O$7>0) -> 1 | P13: =IF(YEAR($E13)>P8,0,IF(YEAR($E13)=P8,(DATE(P8,12,31)-$E13+1)/P12,MIN(1,$F13-SUM($H13:O13))))*(P$7>0) -> 1 | Q13: =IF(YEAR($E13)>Q8,0,IF(YEAR($E13)=Q8,(DATE(Q8,12,31)-$E13+1)/Q12,MIN(1,$F13-SUM($H13:P13))))*(Q$7>0) -> 1 | R13: =IF(YEAR($E13)>R8,0,IF(YEAR($E13)=R8,(DATE(R8,12,31)-$E13+1)/R12,MIN(1,$F13-SUM($H13:Q13))))*(R$7>0) -> 1 | S13: =IF(YEAR($E13)>S8,0,IF(YEAR($E13)=S8,(DATE(S8,12,31)-$E13+1)/S12,MIN(1,$F13-SUM($H13:R13))))*(S$7>0) -> 1 | T13: =IF(YEAR($E13)>T8,0,IF(YEAR($E13)=T8,(DATE(T8,12,31)-$E13+1)/T12,MIN(1,$F13-SUM($H13:S13))))*(T$7>0) -> 1 | U13: =IF(YEAR($E13)>U8,0,IF(YEAR($E13)=U8,(DATE(U8,12,31)-$E13+1)/U12,MIN(1,$F13-SUM($H13:T13))))*(U$7>0) -> 1 | V13: =IF(YEAR($E13)>V8,0,IF(YEAR($E13)=V8,(DATE(V8,12,31)-$E13+1)/V12,MIN(1,$F13-SUM($H13:U13))))*(V$7>0) -> 1 | W13: =IF(YEAR($E13)>W8,0,IF(YEAR($E13)=W8,(DATE(W8,12,31)-$E13+1)/W12,MIN(1,$F13-SUM($H13:V13))))*(W$7>0) -> 1 | X13: =IF(YEAR($E13)>X8,0,IF(YEAR($E13)=X8,(DATE(X8,12,31)-$E13+1)/X12,MIN(1,$F13-SUM($H13:W13))))*(X$7>0) -> 1 | Y13: =IF(YEAR($E13)>Y8,0,IF(YEAR($E13)=Y8,(DATE(Y8,12,31)-$E13+1)/Y12,MIN(1,$F13-SUM($H13:X13))))*(Y$7>0) -> 1 | Z13: =IF(YEAR($E13)>Z8,0,IF(YEAR($E13)=Z8,(DATE(Z8,12,31)-$E13+1)/Z12,MIN(1,$F13-SUM($H13:Y13))))*(Z$7>0) -> 1 | AA13: =IF(YEAR($E13)>AA8,0,IF(YEAR($E13)=AA8,(DATE(AA8,12,31)-$E13+1)/AA12,MIN(1,$F13-SUM($H13:Z13))))*(AA$7>0) -> 1 | AB13: =IF(YEAR($E13)>AB8,0,IF(YEAR($E13)=AB8,(DATE(AB8,12,31)-$E13+1)/AB12,MIN(1,$F13-SUM($H13:AA13))))*(AB$7>0) -> 1 | AC13: =IF(YEAR($E13)>AC8,0,IF(YEAR($E13)=AC8,(DATE(AC8,12,31)-$E13+1)/AC12,MIN(1,$F13-SUM($H13:AB13))))*(AC$7>0) -> 1 | AD13: =IF(YEAR($E13)>AD8,0,IF(YEAR($E13)=AD8,(DATE(AD8,12,31)-$E13+1)/AD12,MIN(1,$F13-SUM($H13:AC13))))*(AD$7>0) -> 1 | AE13: =IF(YEAR($E13)>AE8,0,IF(YEAR($E13)=AE8,(DATE(AE8,12,31)-$E13+1)/AE12,MIN(1,$F13-SUM($H13:AD13))))*(AE$7>0) -> 1 | AF13: =IF(YEAR($E13)>AF8,0,IF(YEAR($E13)=AF8,(DATE(AF8,12,31)-$E13+1)/AF12,MIN(1,$F13-SUM($H13:AE13))))*(AF$7>0) -> 1 | AG13: =IF(YEAR($E13)>AG8,0,IF(YEAR($E13)=AG8,(DATE(AG8,12,31)-$E13+1)/AG12,MIN(1,$F13-SUM($H13:AF13))))*(AG$7>0) -> 1 | AH13: =IF(YEAR($E13)>AH8,0,IF(YEAR($E13)=AH8,(DATE(AH8,12,31)-$E13+1)/AH12,MIN(1,$F13-SUM($H13:AG13))))*(AH$7>0) -> 1 | AI13: =IF(YEAR($E13)>AI8,0,IF(YEAR($E13)=AI8,(DATE(AI8,12,31)-$E13+1)/AI12,MIN(1,$F13-SUM($H13:AH13))))*(AI$7>0) -> 1 | AJ13: =IF(YEAR($E13)>AJ8,0,IF(YEAR($E13)=AJ8,(DATE(AJ8,12,31)-$E13+1)/AJ12,MIN(1,$F13-SUM($H13:AI13))))*(AJ$7>0) -> 1 | AK13: =IF(YEAR($E13)>AK8,0,IF(YEAR($E13)=AK8,(DATE(AK8,12,31)-$E13+1)/AK12,MIN(1,$F13-SUM($H13:AJ13))))*(AK$7>0) -> 1 | AL13: =IF(YEAR($E13)>AL8,0,IF(YEAR($E13)=AL8,(DATE(AL8,12,31)-$E13+1)/AL12,MIN(1,$F13-SUM($H13:AK13))))*(AL$7>0) -> 1 | AM13: =IF(YEAR($E13)>AM8,0,IF(YEAR($E13)=AM8,(DATE(AM8,12,31)-$E13+1)/AM12,MIN(1,$F13-SUM($H13:AL13))))*(AM$7>0) -> 0.5819672131 | AN13: =IF(YEAR($E13)>AN8,0,IF(YEAR($E13)=AN8,(DATE(AN8,12,31)-$E13+1)/AN12,MIN(1,$F13-SUM($H13:AM13))))*(AN$7>0) -> 0 | AO13: =IF(YEAR($E13)>AO8,0,IF(YEAR($E13)=AO8,(DATE(AO8,12,31)-$E13+1)/AO12,MIN(1,$F13-SUM($H13:AN13))))*(AO$7>0) -> 0 | AP13: =IF(YEAR($E13)>AP8,0,IF(YEAR($E13)=AP8,(DATE(AP8,12,31)-$E13+1)/AP12,MIN(1,$F13-SUM($H13:AO13))))*(AP$7>0) -> 0 | AQ13: =IF(YEAR($E13)>AQ8,0,IF(YEAR($E13)=AQ8,(DATE(AQ8,12,31)-$E13+1)/AQ12,MIN(1,$F13-SUM($H13:AP13))))*(AQ$7>0) -> 0 | AR13: =IF(YEAR($E13)>AR8,0,IF(YEAR($E13)=AR8,(DATE(AR8,12,31)-$E13+1)/AR12,MIN(1,$F13-SUM($H13:AQ13))))*(AR$7>0) -> 0 | AS13: =IF(YEAR($E13)>AS8,0,IF(YEAR($E13)=AS8,(DATE(AS8,12,31)-$E13+1)/AS12,MIN(1,$F13-SUM($H13:AR13))))*(AS$7>0) -> 0 | AT13: =IF(YEAR($E13)>AT8,0,IF(YEAR($E13)=AT8,(DATE(AT8,12,31)-$E13+1)/AT12,MIN(1,$F13-SUM($H13:AS13))))*(AT$7>0) -> 0 | AU13: =IF(YEAR($E13)>AU8,0,IF(YEAR($E13)=AU8,(DATE(AU8,12,31)-$E13+1)/AU12,MIN(1,$F13-SUM($H13:AT13))))*(AU$7>0) -> 0 | AV13: =IF(YEAR($E13)>AV8,0,IF(YEAR($E13)=AV8,(DATE(AV8,12,31)-$E13+1)/AV12,MIN(1,$F13-SUM($H13:AU13))))*(AV$7>0) -> 0 | AW13: =IF(YEAR($E13)>AW8,0,IF(YEAR($E13)=AW8,(DATE(AW8,12,31)-$E13+1)/AW12,MIN(1,$F13-SUM($H13:AV13))))*(AW$7>0) -> 0 | AX13: =IF(YEAR($E13)>AX8,0,IF(YEAR($E13)=AX8,(DATE(AX8,12,31)-$E13+1)/AX12,MIN(1,$F13-SUM($H13:AW13))))*(AX$7>0) -> 0 | AY13: =IF(YEAR($E13)>AY8,0,IF(YEAR($E13)=AY8,(DATE(AY8,12,31)-$E13+1)/AY12,MIN(1,$F13-SUM($H13:AX13))))*(AY$7>0) -> 0 | AZ13: =IF(YEAR($E13)>AZ8,0,IF(YEAR($E13)=AZ8,(DATE(AZ8,12,31)-$E13+1)/AZ12,MIN(1,$F13-SUM($H13:AY13))))*(AZ$7>0) -> 0 | BA13: =IF(YEAR($E13)>BA8,0,IF(YEAR($E13)=BA8,(DATE(BA8,12,31)-$E13+1)/BA12,MIN(1,$F13-SUM($H13:AZ13))))*(BA$7>0) -> 0
B15: INCOME STATEMENT
B17: Revenue | E17: AR
B18: Contract - Capacity Payments | E18: 1 | H18: 0 | I18: 0 | J18: 0 | K18: 0 | L18: 0 | M18: 0 | N18: =RF!N8 -> 0 | O18: =RF!O8 -> 0 | P18: =RF!P8 -> 0 | Q18: =RF!Q8 -> 0 | R18: =RF!R8 -> 0 | S18: =RF!S8 -> 0 | T18: =RF!T8 -> 0 | U18: =RF!U8 -> 0 | V18: =RF!V8 -> 0 | W18: =RF!W8 -> 0 | X18: =RF!X8 -> 0 | Y18: =RF!Y8 -> 0 | Z18: =RF!Z8 -> 0 | AA18: =RF!AA8 -> 0 | AB18: =RF!AB8 -> 0 | AC18: =RF!AC8 -> 0 | AD18: =RF!AD8 -> 0 | AE18: =RF!AE8 -> 0 | AF18: =RF!AF8 -> 0 | AG18: =RF!AG8 -> 0 | AH18: =RF!AH8 -> 0 | AI18: =RF!AI8 -> 0 | AJ18: =RF!AJ8 -> 0 | AK18: =RF!AK8 -> 0 | AL18: =RF!AL8 -> 0 | AM18: =RF!AM8 -> 0 | AN18: =RF!AN8 -> 0 | AO18: =RF!AO8 -> 0 | AP18: =RF!AP8 -> 0 | AQ18: =RF!AQ8 -> 0 | AR18: =RF!AR8 -> 0 | AS18: =RF!AS8 -> 0 | AT18: =RF!AT8 -> 0 | AU18: =RF!AU8 -> 0 | AV18: =RF!AV8 -> 0 | AW18: =RF!AW8 -> 0 | AX18: =RF!AX8 -> 0 | AY18: =RF!AY8 -> 0 | AZ18: =RF!AZ8 -> 0 | BA18: =RF!BA8 -> 0
B19: Contract - Energy Payments | E19: 1 | H19: 0 | I19: 0 | J19: 0 | K19: 0 | L19: 0 | M19: 0 | N19: =RF!N9 -> 6097.528086 | O19: =RF!O9 -> 14518.33806 | P19: =RF!P9 -> 14851.5543 | Q19: =RF!Q9 -> 15050.57716 | R19: =RF!R9 -> 15255.00336 | S19: =RF!S9 -> 15460.24126 | T19: =RF!T9 -> 15657.69382 | U19: =RF!U9 -> 15855.80689 | V19: =RF!V9 -> 16060.73352 | W19: =RF!W9 -> 16272.87107 | X19: =RF!X9 -> 16489.35027 | Y19: =RF!Y9 -> 16706.09022 | Z19: =RF!Z9 -> 16924.49518 | AA19: =RF!AA9 -> 17142.59449 | AB19: =RF!AB9 -> 17366.97476 | AC19: =RF!AC9 -> 17616.67118 | AD19: =RF!AD9 -> 17868.05993 | AE19: =RF!AE9 -> 18120.02185 | AF19: =RF!AF9 -> 18375.01075 | AG19: =RF!AG9 -> 18631.67452 | AH19: =RF!AH9 -> 18887.89314 | AI19: =RF!AI9 -> 19143.14478 | AJ19: =RF!AJ9 -> 19403.84595 | AK19: =RF!AK9 -> 19669.83162 | AL19: =RF!AL9 -> 19940.55831 | AM19: =RF!AM9 -> 11664.95315 | AN19: =RF!AN9 -> 0 | AO19: =RF!AO9 -> 0 | AP19: =RF!AP9 -> 0 | AQ19: =RF!AQ9 -> 0 | AR19: =RF!AR9 -> 0 | AS19: =RF!AS9 -> 0 | AT19: =RF!AT9 -> 0 | AU19: =RF!AU9 -> 0 | AV19: =RF!AV9 -> 0 | AW19: =RF!AW9 -> 0 | AX19: =RF!AX9 -> 0 | AY19: =RF!AY9 -> 0 | AZ19: =RF!AZ9 -> 0 | BA19: =RF!BA9 -> 0
B20: Merchant - Capacity | E20: 1 | H20: 0 | I20: 0 | J20: 0 | K20: 0 | L20: 0 | M20: 0 | N20: =RF!N13 -> 0 | O20: =RF!O13 -> 0 | P20: =RF!P13 -> 0 | Q20: =RF!Q13 -> 0 | R20: =RF!R13 -> 0 | S20: =RF!S13 -> 0 | T20: =RF!T13 -> 0 | U20: =RF!U13 -> 0 | V20: =RF!V13 -> 0 | W20: =RF!W13 -> 0 | X20: =RF!X13 -> 0 | Y20: =RF!Y13 -> 0 | Z20: =RF!Z13 -> 0 | AA20: =RF!AA13 -> 0 | AB20: =RF!AB13 -> 0 | AC20: =RF!AC13 -> 0 | AD20: =RF!AD13 -> 0 | AE20: =RF!AE13 -> 0 | AF20: =RF!AF13 -> 0 | AG20: =RF!AG13 -> 0 | AH20: =RF!AH13 -> 0 | AI20: =RF!AI13 -> 0 | AJ20: =RF!AJ13 -> 0 | AK20: =RF!AK13 -> 0 | AL20: =RF!AL13 -> 0 | AM20: =RF!AM13 -> 0 | AN20: =RF!AN13 -> 0 | AO20: =RF!AO13 -> 0 | AP20: =RF!AP13 -> 0 | AQ20: =RF!AQ13 -> 0 | AR20: =RF!AR13 -> 0 | AS20: =RF!AS13 -> 0 | AT20: =RF!AT13 -> 0 | AU20: =RF!AU13 -> 0 | AV20: =RF!AV13 -> 0 | AW20: =RF!AW13 -> 0 | AX20: =RF!AX13 -> 0 | AY20: =RF!AY13 -> 0 | AZ20: =RF!AZ13 -> 0 | BA20: =RF!BA13 -> 0
B21: Merchant - Energy | E21: 1 | H21: 0 | I21: 0 | J21: 0 | K21: 0 | L21: 0 | M21: 0 | N21: =RF!N14 -> 0 | O21: =RF!O14 -> 0 | P21: =RF!P14 -> 0 | Q21: =RF!Q14 -> 0 | R21: =RF!R14 -> 0 | S21: =RF!S14 -> 0 | T21: =RF!T14 -> 0 | U21: =RF!U14 -> 0 | V21: =RF!V14 -> 0 | W21: =RF!W14 -> 0 | X21: =RF!X14 -> 0 | Y21: =RF!Y14 -> 0 | Z21: =RF!Z14 -> 0 | AA21: =RF!AA14 -> 0 | AB21: =RF!AB14 -> 0 | AC21: =RF!AC14 -> 0 | AD21: =RF!AD14 -> 0 | AE21: =RF!AE14 -> 0 | AF21: =RF!AF14 -> 0 | AG21: =RF!AG14 -> 0 | AH21: =RF!AH14 -> 0 | AI21: =RF!AI14 -> 0 | AJ21: =RF!AJ14 -> 0 | AK21: =RF!AK14 -> 0 | AL21: =RF!AL14 -> 0 | AM21: =RF!AM14 -> 0 | AN21: =RF!AN14 -> 0 | AO21: =RF!AO14 -> 0 | AP21: =RF!AP14 -> 0 | AQ21: =RF!AQ14 -> 0 | AR21: =RF!AR14 -> 0 | AS21: =RF!AS14 -> 0 | AT21: =RF!AT14 -> 0 | AU21: =RF!AU14 -> 0 | AV21: =RF!AV14 -> 0 | AW21: =RF!AW14 -> 0 | AX21: =RF!AX14 -> 0 | AY21: =RF!AY14 -> 0 | AZ21: =RF!AZ14 -> 0 | BA21: =RF!BA14 -> 0
B22: Merchant - REC Energy Prices | E22: 1 | H22: 0 | I22: 0 | J22: 0 | K22: 0 | L22: 0 | M22: 0 | N22: =RF!N15 -> 0 | O22: =RF!O15 -> 0 | P22: =RF!P15 -> 0 | Q22: =RF!Q15 -> 0 | R22: =RF!R15 -> 0 | S22: =RF!S15 -> 0 | T22: =RF!T15 -> 0 | U22: =RF!U15 -> 0 | V22: =RF!V15 -> 0 | W22: =RF!W15 -> 0 | X22: =RF!X15 -> 0 | Y22: =RF!Y15 -> 0 | Z22: =RF!Z15 -> 0 | AA22: =RF!AA15 -> 0 | AB22: =RF!AB15 -> 0 | AC22: =RF!AC15 -> 0 | AD22: =RF!AD15 -> 0 | AE22: =RF!AE15 -> 0 | AF22: =RF!AF15 -> 0 | AG22: =RF!AG15 -> 0 | AH22: =RF!AH15 -> 0 | AI22: =RF!AI15 -> 0 | AJ22: =RF!AJ15 -> 0 | AK22: =RF!AK15 -> 0 | AL22: =RF!AL15 -> 0 | AM22: =RF!AM15 -> 0 | AN22: =RF!AN15 -> 0 | AO22: =RF!AO15 -> 0 | AP22: =RF!AP15 -> 0 | AQ22: =RF!AQ15 -> 0 | AR22: =RF!AR15 -> 0 | AS22: =RF!AS15 -> 0 | AT22: =RF!AT15 -> 0 | AU22: =RF!AU15 -> 0 | AV22: =RF!AV15 -> 0 | AW22: =RF!AW15 -> 0 | AX22: =RF!AX15 -> 0 | AY22: =RF!AY15 -> 0 | AZ22: =RF!AZ15 -> 0 | BA22: =RF!BA15 -> 0
B23: Merchant - Other | E23: 1 | H23: 0 | I23: 0 | J23: 0 | K23: 0 | L23: 0 | M23: 0 | N23: =RF!N16 -> 0 | O23: =RF!O16 -> 0 | P23: =RF!P16 -> 0 | Q23: =RF!Q16 -> 0 | R23: =RF!R16 -> 0 | S23: =RF!S16 -> 0 | T23: =RF!T16 -> 0 | U23: =RF!U16 -> 0 | V23: =RF!V16 -> 0 | W23: =RF!W16 -> 0 | X23: =RF!X16 -> 0 | Y23: =RF!Y16 -> 0 | Z23: =RF!Z16 -> 0 | AA23: =RF!AA16 -> 0 | AB23: =RF!AB16 -> 0 | AC23: =RF!AC16 -> 0 | AD23: =RF!AD16 -> 0 | AE23: =RF!AE16 -> 0 | AF23: =RF!AF16 -> 0 | AG23: =RF!AG16 -> 0 | AH23: =RF!AH16 -> 0 | AI23: =RF!AI16 -> 0 | AJ23: =RF!AJ16 -> 0 | AK23: =RF!AK16 -> 0 | AL23: =RF!AL16 -> 0 | AM23: =RF!AM16 -> 0 | AN23: =RF!AN16 -> 0 | AO23: =RF!AO16 -> 0 | AP23: =RF!AP16 -> 0 | AQ23: =RF!AQ16 -> 0 | AR23: =RF!AR16 -> 0 | AS23: =RF!AS16 -> 0 | AT23: =RF!AT16 -> 0 | AU23: =RF!AU16 -> 0 | AV23: =RF!AV16 -> 0 | AW23: =RF!AW16 -> 0 | AX23: =RF!AX16 -> 0 | AY23: =RF!AY16 -> 0 | AZ23: =RF!AZ16 -> 0 | BA23: =RF!BA16 -> 0
B24: Other | E24: 1 | H24: 0 | I24: 0 | J24: 0 | K24: 0 | L24: 0 | M24: 0 | N24: 0 | O24: 0 | P24: 0 | Q24: 0 | R24: 0 | S24: 0 | T24: 0 | U24: 0 | V24: 0 | W24: 0 | X24: 0 | Y24: 0 | Z24: 0 | AA24: 0 | AB24: 0 | AC24: 0 | AD24: 0 | AE24: 0 | AF24: 0 | AG24: 0 | AH24: 0 | AI24: 0 | AJ24: 0 | AK24: 0 | AL24: 0 | AM24: 0 | AN24: 0 | AO24: 0 | AP24: 0 | AQ24: 0 | AR24: 0 | AS24: 0 | AT24: 0 | AU24: 0 | AV24: 0 | AW24: 0 | AX24: 0 | AY24: 0 | AZ24: 0 | BA24: 0
B25: Other | E25: 1 | H25: 0 | I25: 0 | J25: 0 | K25: 0 | L25: 0 | M25: 0 | N25: 0 | O25: 0 | P25: 0 | Q25: 0 | R25: 0 | S25: 0 | T25: 0 | U25: 0 | V25: 0 | W25: 0 | X25: 0 | Y25: 0 | Z25: 0 | AA25: 0 | AB25: 0 | AC25: 0 | AD25: 0 | AE25: 0 | AF25: 0 | AG25: 0 | AH25: 0 | AI25: 0 | AJ25: 0 | AK25: 0 | AL25: 0 | AM25: 0 | AN25: 0 | AO25: 0 | AP25: 0 | AQ25: 0 | AR25: 0 | AS25: 0 | AT25: 0 | AU25: 0 | AV25: 0 | AW25: 0 | AX25: 0 | AY25: 0 | AZ25: 0 | BA25: 0
B26: Total Revenue | H26: =SUM(H18:H25) -> 0 | I26: 0 | J26: 0 | K26: 0 | L26: 0 | M26: 0 | N26: 6097.528086 | O26: 14518.33806 | P26: 14851.5543 | Q26: 15050.57716 | R26: 15255.00336 | S26: 15460.24126 | T26: 15657.69382 | U26: 15855.80689 | V26: 16060.73352 | W26: 16272.87107 | X26: 16489.35027 | Y26: 16706.09022 | Z26: 16924.49518 | AA26: 17142.59449 | AB26: 17366.97476 | AC26: 17616.67118 | AD26: 17868.05993 | AE26: 18120.02185 | AF26: 18375.01075 | AG26: 18631.67452 | AH26: 18887.89314 | AI26: 19143.14478 | AJ26: 19403.84595 | AK26: 19669.83162 | AL26: 19940.55831 | AM26: 11664.95315 | AN26: 0 | AO26: 0 | AP26: 0 | AQ26: 0 | AR26: 0 | AS26: 0 | AT26: 0 | AU26: 0 | AV26: 0 | AW26: 0 | AX26: 0 | AY26: 0 | AZ26: 0 | BA26: 0
B28: Operating Costs | D28: on/off | E28: AP | F28: WC
B29: Fuel | D29: =Scen!G96 -> 1 | E29: 1 | F29: 0 | H29: 0 | I29: 0 | J29: 0 | K29: 0 | L29: 0 | M29: 0 | N29: =-RF!N132*$D29 -> 0 | O29: =-RF!O132*$D29 -> 0 | P29: =-RF!P132*$D29 -> 0 | Q29: =-RF!Q132*$D29 -> 0 | R29: =-RF!R132*$D29 -> 0 | S29: =-RF!S132*$D29 -> 0 | T29: =-RF!T132*$D29 -> 0 | U29: =-RF!U132*$D29 -> 0 | V29: =-RF!V132*$D29 -> 0 | W29: =-RF!W132*$D29 -> 0 | X29: =-RF!X132*$D29 -> 0 | Y29: =-RF!Y132*$D29 -> 0 | Z29: =-RF!Z132*$D29 -> 0 | AA29: =-RF!AA132*$D29 -> 0 | AB29: =-RF!AB132*$D29 -> 0 | AC29: =-RF!AC132*$D29 -> 0 | AD29: =-RF!AD132*$D29 -> 0 | AE29: =-RF!AE132*$D29 -> 0 | AF29: =-RF!AF132*$D29 -> 0 | AG29: =-RF!AG132*$D29 -> 0 | AH29: =-RF!AH132*$D29 -> 0 | AI29: =-RF!AI132*$D29 -> 0 | AJ29: =-RF!AJ132*$D29 -> 0 | AK29: =-RF!AK132*$D29 -> 0 | AL29: =-RF!AL132*$D29 -> 0 | AM29: =-RF!AM132*$D29 -> 0 | AN29: =-RF!AN132*$D29 -> 0 | AO29: =-RF!AO132*$D29 -> 0 | AP29: =-RF!AP132*$D29 -> 0 | AQ29: =-RF!AQ132*$D29 -> 0 | AR29: =-RF!AR132*$D29 -> 0 | AS29: =-RF!AS132*$D29 -> 0 | AT29: =-RF!AT132*$D29 -> 0 | AU29: =-RF!AU132*$D29 -> 0 | AV29: =-RF!AV132*$D29 -> 0 | AW29: =-RF!AW132*$D29 -> 0 | AX29: =-RF!AX132*$D29 -> 0 | AY29: =-RF!AY132*$D29 -> 0 | AZ29: =-RF!AZ132*$D29 -> 0 | BA29: =-RF!BA132*$D29 -> 0
B30: VOM | D30: =Scen!G97 -> 1 | E30: 1 | F30: 0 | H30: 0 | I30: 0 | J30: 0 | K30: 0 | L30: 0 | M30: 0 | N30: =-OM!N14*$D30 -> 0 | O30: =-OM!O14*$D30 -> 0 | P30: =-OM!P14*$D30 -> 0 | Q30: =-OM!Q14*$D30 -> 0 | R30: =-OM!R14*$D30 -> 0 | S30: =-OM!S14*$D30 -> 0 | T30: =-OM!T14*$D30 -> 0 | U30: =-OM!U14*$D30 -> 0 | V30: =-OM!V14*$D30 -> 0 | W30: =-OM!W14*$D30 -> 0 | X30: =-OM!X14*$D30 -> 0 | Y30: =-OM!Y14*$D30 -> 0 | Z30: =-OM!Z14*$D30 -> 0 | AA30: =-OM!AA14*$D30 -> 0 | AB30: =-OM!AB14*$D30 -> 0 | AC30: =-OM!AC14*$D30 -> 0 | AD30: =-OM!AD14*$D30 -> 0 | AE30: =-OM!AE14*$D30 -> 0 | AF30: =-OM!AF14*$D30 -> 0 | AG30: =-OM!AG14*$D30 -> 0 | AH30: =-OM!AH14*$D30 -> 0 | AI30: =-OM!AI14*$D30 -> 0 | AJ30: =-OM!AJ14*$D30 -> 0 | AK30: =-OM!AK14*$D30 -> 0 | AL30: =-OM!AL14*$D30 -> 0 | AM30: =-OM!AM14*$D30 -> 0 | AN30: =-OM!AN14*$D30 -> 0 | AO30: =-OM!AO14*$D30 -> 0 | AP30: =-OM!AP14*$D30 -> 0 | AQ30: =-OM!AQ14*$D30 -> 0 | AR30: =-OM!AR14*$D30 -> 0 | AS30: =-OM!AS14*$D30 -> 0 | AT30: =-OM!AT14*$D30 -> 0 | AU30: =-OM!AU14*$D30 -> 0 | AV30: =-OM!AV14*$D30 -> 0 | AW30: =-OM!AW14*$D30 -> 0 | AX30: =-OM!AX14*$D30 -> 0 | AY30: =-OM!AY14*$D30 -> 0 | AZ30: =-OM!AZ14*$D30 -> 0 | BA30: =-OM!BA14*$D30 -> 0
B31: FOM - Labor | D31: =Scen!G98 -> 1 | E31: 0 | F31: 1 | H31: 0 | I31: 0 | J31: 0 | K31: 0 | L31: 0 | M31: =-OM!M25*$D31 -> -39.39154478 | N31: =-OM!N25*$D31 -> -129.6392024 | O31: =-OM!O25*$D31 -> -320.9714135 | P31: =-OM!P25*$D31 -> -332.2054129 | Q31: =-OM!Q25*$D31 -> -343.8326024 | R31: =-OM!R25*$D31 -> -355.8667435 | S31: =-OM!S25*$D31 -> -368.3220795 | T31: =-OM!T25*$D31 -> -381.2133523 | U31: =-OM!U25*$D31 -> -394.5558196 | V31: =-OM!V25*$D31 -> -408.3652733 | W31: =-OM!W25*$D31 -> -422.6580579 | X31: =-OM!X25*$D31 -> -437.4510899 | Y31: =-OM!Y25*$D31 -> -452.761878 | Z31: =-OM!Z25*$D31 -> -468.6085438 | AA31: =-OM!AA25*$D31 -> -485.0098428 | AB31: =-OM!AB25*$D31 -> -501.9851873 | AC31: =-OM!AC25*$D31 -> -519.5546688 | AD31: =-OM!AD25*$D31 -> -537.7390822 | AE31: =-OM!AE25*$D31 -> -556.5599501 | AF31: =-OM!AF25*$D31 -> -576.0395484 | AG31: =-OM!AG25*$D31 -> -596.2009326 | AH31: =-OM!AH25*$D31 -> -617.0679652 | AI31: =-OM!AI25*$D31 -> -638.665344 | AJ31: =-OM!AJ25*$D31 -> -661.018631 | AK31: =-OM!AK25*$D31 -> -684.1542831 | AL31: =-OM!AL25*$D31 -> -708.099683 | AM31: =-OM!AM25*$D31 -> -426.5139771 | AN31: =-OM!AN25*$D31 -> 0 | AO31: =-OM!AO25*$D31 -> 0 | AP31: =-OM!AP25*$D31 -> 0 | AQ31: =-OM!AQ25*$D31 -> 0 | AR31: =-OM!AR25*$D31 -> 0 | AS31: =-OM!AS25*$D31 -> 0 | AT31: =-OM!AT25*$D31 -> 0 | AU31: =-OM!AU25*$D31 -> 0 | AV31: =-OM!AV25*$D31 -> 0 | AW31: =-OM!AW25*$D31 -> 0 | AX31: =-OM!AX25*$D31 -> 0 | AY31: =-OM!AY25*$D31 -> 0 | AZ31: =-OM!AZ25*$D31 -> 0 | BA31: =-OM!BA25*$D31 -> 0
B32: FOM - Other | D32: =Scen!G99 -> 1 | E32: 1 | F32: 0 | H32: 0 | I32: 0 | J32: 0 | K32: 0 | L32: 0 | M32: 0 | N32: =-OM!N31*$D32 -> -70.13283493 | O32: =-OM!O31*$D32 -> -171.1241172 | P32: =-OM!P31*$D32 -> -174.5465996 | Q32: =-OM!Q31*$D32 -> -178.0375316 | R32: =-OM!R31*$D32 -> -181.5982822 | S32: =-OM!S31*$D32 -> -185.2302478 | T32: =-OM!T31*$D32 -> -188.9348528 | U32: =-OM!U31*$D32 -> -192.7135499 | V32: =-OM!V31*$D32 -> -196.5678209 | W32: =-OM!W31*$D32 -> -200.4991773 | X32: =-OM!X31*$D32 -> -204.5091608 | Y32: =-OM!Y31*$D32 -> -208.599344 | Z32: =-OM!Z31*$D32 -> -212.7713309 | AA32: =-OM!AA31*$D32 -> -217.0267575 | AB32: =-OM!AB31*$D32 -> -221.3672927 | AC32: =-OM!AC31*$D32 -> -225.7946385 | AD32: =-OM!AD31*$D32 -> -230.3105313 | AE32: =-OM!AE31*$D32 -> -234.9167419 | AF32: =-OM!AF31*$D32 -> -239.6150768 | AG32: =-OM!AG31*$D32 -> -244.4073783 | AH32: =-OM!AH31*$D32 -> -249.2955259 | AI32: =-OM!AI31*$D32 -> -254.2814364 | AJ32: =-OM!AJ31*$D32 -> -259.3670651 | AK32: =-OM!AK31*$D32 -> -264.5544064 | AL32: =-OM!AL31*$D32 -> -269.8454946 | AM32: =-OM!AM31*$D32 -> -160.182055 | AN32: =-OM!AN31*$D32 -> 0 | AO32: =-OM!AO31*$D32 -> 0 | AP32: =-OM!AP31*$D32 -> 0 | AQ32: =-OM!AQ31*$D32 -> 0 | AR32: =-OM!AR31*$D32 -> 0 | AS32: =-OM!AS31*$D32 -> 0 | AT32: =-OM!AT31*$D32 -> 0 | AU32: =-OM!AU31*$D32 -> 0 | AV32: =-OM!AV31*$D32 -> 0 | AW32: =-OM!AW31*$D32 -> 0 | AX32: =-OM!AX31*$D32 -> 0 | AY32: =-OM!AY31*$D32 -> 0 | AZ32: =-OM!AZ31*$D32 -> 0 | BA32: =-OM!BA31*$D32 -> 0
B33: Major Maint | D33: =Scen!G100 -> 1 | E33: 1 | F33: 0 | H33: 0 | I33: 0 | J33: 0 | K33: 0 | L33: 0 | M33: 0 | N33: =-OM!N38*$D33 -> 0 | O33: =-OM!O38*$D33 -> 0 | P33: =-OM!P38*$D33 -> 0 | Q33: =-OM!Q38*$D33 -> 0 | R33: =-OM!R38*$D33 -> 0 | S33: =-OM!S38*$D33 -> 0 | T33: =-OM!T38*$D33 -> 0 | U33: =-OM!U38*$D33 -> 0 | V33: =-OM!V38*$D33 -> 0 | W33: =-OM!W38*$D33 -> 0 | X33: =-OM!X38*$D33 -> 0 | Y33: =-OM!Y38*$D33 -> 0 | Z33: =-OM!Z38*$D33 -> 0 | AA33: =-OM!AA38*$D33 -> 0 | AB33: =-OM!AB38*$D33 -> 0 | AC33: =-OM!AC38*$D33 -> 0 | AD33: =-OM!AD38*$D33 -> 0 | AE33: =-OM!AE38*$D33 -> 0 | AF33: =-OM!AF38*$D33 -> 0 | AG33: =-OM!AG38*$D33 -> 0 | AH33: =-OM!AH38*$D33 -> 0 | AI33: =-OM!AI38*$D33 -> 0 | AJ33: =-OM!AJ38*$D33 -> 0 | AK33: =-OM!AK38*$D33 -> 0 | AL33: =-OM!AL38*$D33 -> 0 | AM33: =-OM!AM38*$D33 -> 0 | AN33: =-OM!AN38*$D33 -> 0 | AO33: =-OM!AO38*$D33 -> 0 | AP33: =-OM!AP38*$D33 -> 0 | AQ33: =-OM!AQ38*$D33 -> 0 | AR33: =-OM!AR38*$D33 -> 0 | AS33: =-OM!AS38*$D33 -> 0 | AT33: =-OM!AT38*$D33 -> 0 | AU33: =-OM!AU38*$D33 -> 0 | AV33: =-OM!AV38*$D33 -> 0 | AW33: =-OM!AW38*$D33 -> 0 | AX33: =-OM!AX38*$D33 -> 0 | AY33: =-OM!AY38*$D33 -> 0 | AZ33: =-OM!AZ38*$D33 -> 0 | BA33: =-OM!BA38*$D33 -> 0
B34: Other Oper Costs | D34: =Scen!G101 -> 1 | E34: 1 | F34: 0 | H34: 0 | I34: 0 | J34: 0 | K34: 0 | L34: 0 | M34: 0 | N34: =-OM!N40*$D34 -> -67.35769231 | O34: =-OM!O40*$D34 -> -75.85769231 | P34: =-OM!P40*$D34 -> -67.35769231 | Q34: =-OM!Q40*$D34 -> -75.85769231 | R34: =-OM!R40*$D34 -> -67.35769231 | S34: =-OM!S40*$D34 -> -75.85769231 | T34: =-OM!T40*$D34 -> -67.35769231 | U34: =-OM!U40*$D34 -> -75.85769231 | V34: =-OM!V40*$D34 -> -67.35769231 | W34: =-OM!W40*$D34 -> -75.85769231 | X34: =-OM!X40*$D34 -> -67.35769231 | Y34: =-OM!Y40*$D34 -> -75.85769231 | Z34: =-OM!Z40*$D34 -> -67.35769231 | AA34: =-OM!AA40*$D34 -> -75.85769231 | AB34: =-OM!AB40*$D34 -> -67.35769231 | AC34: =-OM!AC40*$D34 -> -75.85769231 | AD34: =-OM!AD40*$D34 -> -67.35769231 | AE34: =-OM!AE40*$D34 -> -75.85769231 | AF34: =-OM!AF40*$D34 -> -67.35769231 | AG34: =-OM!AG40*$D34 -> -75.85769231 | AH34: =-OM!AH40*$D34 -> -67.35769231 | AI34: =-OM!AI40*$D34 -> -75.85769231 | AJ34: =-OM!AJ40*$D34 -> -67.35769231 | AK34: =-OM!AK40*$D34 -> -75.85769231 | AL34: =-OM!AL40*$D34 -> -67.35769231 | AM34: =-OM!AM40*$D34 -> 0 | AN34: =-OM!AN40*$D34 -> 0 | AO34: =-OM!AO40*$D34 -> 0 | AP34: =-OM!AP40*$D34 -> 0 | AQ34: =-OM!AQ40*$D34 -> 0 | AR34: =-OM!AR40*$D34 -> 0 | AS34: =-OM!AS40*$D34 -> 0 | AT34: =-OM!AT40*$D34 -> 0 | AU34: =-OM!AU40*$D34 -> 0 | AV34: =-OM!AV40*$D34 -> 0 | AW34: =-OM!AW40*$D34 -> 0 | AX34: =-OM!AX40*$D34 -> 0 | AY34: =-OM!AY40*$D34 -> 0 | AZ34: =-OM!AZ40*$D34 -> 0 | BA34: =-OM!BA40*$D34 -> 0
B35: Property Taxes | D35: =Scen!G102 -> 1 | E35: 1 | F35: 0 | H35: 0 | I35: 0 | J35: 0 | K35: 0 | L35: 0 | M35: 0 | N35: =-GA!N12*$D35 -> -10.04860942 | O35: =-GA!O12*$D35 -> -23.03627291 | P35: =-GA!P12*$D35 -> -22.03469583 | Q35: =-GA!Q12*$D35 -> -21.03311874 | R35: =-GA!R12*$D35 -> -20.03154166 | S35: =-GA!S12*$D35 -> -19.02996458 | T35: =-GA!T12*$D35 -> -18.02838749 | U35: =-GA!U12*$D35 -> -17.02681041 | V35: =-GA!V12*$D35 -> -16.02523333 | W35: =-GA!W12*$D35 -> -15.02365624 | X35: =-GA!X12*$D35 -> -14.02207916 | Y35: =-GA!Y12*$D35 -> -13.02050208 | Z35: =-GA!Z12*$D35 -> -12.018925 | AA35: =-GA!AA12*$D35 -> -11.01734791 | AB35: =-GA!AB12*$D35 -> -10.01577083 | AC35: =-GA!AC12*$D35 -> -9.014193747 | AD35: =-GA!AD12*$D35 -> -8.012616664 | AE35: =-GA!AE12*$D35 -> -7.511828122 | AF35: =-GA!AF12*$D35 -> -7.511828122 | AG35: =-GA!AG12*$D35 -> -7.511828122 | AH35: =-GA!AH12*$D35 -> -7.511828122 | AI35: =-GA!AI12*$D35 -> -7.511828122 | AJ35: =-GA!AJ12*$D35 -> -7.511828122 | AK35: =-GA!AK12*$D35 -> -7.511828122 | AL35: =-GA!AL12*$D35 -> -7.511828122 | AM35: =-GA!AM12*$D35 -> -4.371637678 | AN35: =-GA!AN12*$D35 -> 0 | AO35: =-GA!AO12*$D35 -> 0 | AP35: =-GA!AP12*$D35 -> 0 | AQ35: =-GA!AQ12*$D35 -> 0 | AR35: =-GA!AR12*$D35 -> 0 | AS35: =-GA!AS12*$D35 -> 0 | AT35: =-GA!AT12*$D35 -> 0 | AU35: =-GA!AU12*$D35 -> 0 | AV35: =-GA!AV12*$D35 -> 0 | AW35: =-GA!AW12*$D35 -> 0 | AX35: =-GA!AX12*$D35 -> 0 | AY35: =-GA!AY12*$D35 -> 0 | AZ35: =-GA!AZ12*$D35 -> 0 | BA35: =-GA!BA12*$D35 -> 0
B36: Insurance | D36: =Scen!G103 -> 1 | E36: 1 | F36: 0 | H36: 0 | I36: 0 | J36: 0 | K36: 0 | L36: 0 | M36: 0 | N36: =-GA!N21*$D36 -> -15.16679393 | O36: =-GA!O21*$D36 -> -84.83789051 | P36: =-GA!P21*$D36 -> -82.7722723 | Q36: =-GA!Q21*$D36 -> -80.59009421 | R36: =-GA!R21*$D36 -> -78.28752009 | S36: =-GA!S21*$D36 -> -75.86060697 | T36: =-GA!T21*$D36 -> -73.30530232 | U36: =-GA!U21*$D36 -> -70.61744123 | V36: =-GA!V21*$D36 -> -67.79274358 | W36: =-GA!W21*$D36 -> -64.82681105 | X36: =-GA!X21*$D36 -> -61.71512412 | Y36: =-GA!Y21*$D36 -> -58.45303899 | Z36: =-GA!Z21*$D36 -> -55.0357844 | AA36: =-GA!AA21*$D36 -> -51.45845841 | AB36: =-GA!AB21*$D36 -> -47.71602507 | AC36: =-GA!AC21*$D36 -> -43.80331102 | AD36: =-GA!AD21*$D36 -> -39.71500199 | AE36: =-GA!AE21*$D36 -> -37.97747065 | AF36: =-GA!AF21*$D36 -> -38.73702007 | AG36: =-GA!AG21*$D36 -> -39.51176047 | AH36: =-GA!AH21*$D36 -> -40.30199568 | AI36: =-GA!AI21*$D36 -> -41.10803559 | AJ36: =-GA!AJ21*$D36 -> -41.9301963 | AK36: =-GA!AK21*$D36 -> -42.76880023 | AL36: =-GA!AL21*$D36 -> -43.62417623 | AM36: =-GA!AM21*$D36 -> -15.07038846 | AN36: =-GA!AN21*$D36 -> 0 | AO36: =-GA!AO21*$D36 -> 0 | AP36: =-GA!AP21*$D36 -> 0 | AQ36: =-GA!AQ21*$D36 -> 0 | AR36: =-GA!AR21*$D36 -> 0 | AS36: =-GA!AS21*$D36 -> 0 | AT36: =-GA!AT21*$D36 -> 0 | AU36: =-GA!AU21*$D36 -> 0 | AV36: =-GA!AV21*$D36 -> 0 | AW36: =-GA!AW21*$D36 -> 0 | AX36: =-GA!AX21*$D36 -> 0 | AY36: =-GA!AY21*$D36 -> 0 | AZ36: =-GA!AZ21*$D36 -> 0 | BA36: =-GA!BA21*$D36 -> 0
B37: Fees | D37: =Scen!G104 -> 1 | E37: 1 | F37: 0 | H37: 0 | I37: 0 | J37: 0 | K37: 0 | L37: 0 | M37: 0 | N37: =-GA!N32*$D37 -> -5.37696649 | O37: =-GA!O32*$D37 -> -31.38461538 | P37: =-GA!P32*$D37 -> -32.01230769 | Q37: =-GA!Q32*$D37 -> -32.65255385 | R37: =-GA!R32*$D37 -> -33.30560492 | S37: =-GA!S32*$D37 -> -33.97171702 | T37: =-GA!T32*$D37 -> -34.65115136 | U37: =-GA!U32*$D37 -> -35.34417439 | V37: =-GA!V32*$D37 -> -36.05105788 | W37: =-GA!W32*$D37 -> -36.77207903 | X37: =-GA!X32*$D37 -> -37.50752062 | Y37: =-GA!Y32*$D37 -> -38.25767103 | Z37: =-GA!Z32*$D37 -> -39.02282445 | AA37: =-GA!AA32*$D37 -> -39.80328094 | AB37: =-GA!AB32*$D37 -> -40.59934656 | AC37: =-GA!AC32*$D37 -> -41.41133349 | AD37: =-GA!AD32*$D37 -> -42.23956016 | AE37: =-GA!AE32*$D37 -> -43.08435136 | AF37: =-GA!AF32*$D37 -> -43.94603839 | AG37: =-GA!AG32*$D37 -> -44.82495915 | AH37: =-GA!AH32*$D37 -> -45.72145834 | AI37: =-GA!AI32*$D37 -> -46.6358875 | AJ37: =-GA!AJ32*$D37 -> -47.56860525 | AK37: =-GA!AK32*$D37 -> -48.51997736 | AL37: =-GA!AL32*$D37 -> -49.49037691 | AM37: =-GA!AM32*$D37 -> -17.09692353 | AN37: =-GA!AN32*$D37 -> 0 | AO37: =-GA!AO32*$D37 -> 0 | AP37: =-GA!AP32*$D37 -> 0 | AQ37: =-GA!AQ32*$D37 -> 0 | AR37: =-GA!AR32*$D37 -> 0 | AS37: =-GA!AS32*$D37 -> 0 | AT37: =-GA!AT32*$D37 -> 0 | AU37: =-GA!AU32*$D37 -> 0 | AV37: =-GA!AV32*$D37 -> 0 | AW37: =-GA!AW32*$D37 -> 0 | AX37: =-GA!AX32*$D37 -> 0 | AY37: =-GA!AY32*$D37 -> 0 | AZ37: =-GA!AZ32*$D37 -> 0 | BA37: =-GA!BA32*$D37 -> 0
B38: Land Royalty | D38: =Scen!G105 -> 1 | E38: 1 | F38: 0 | H38: 0 | I38: 0 | J38: 0 | K38: 0 | L38: 0 | M38: 0 | N38: =-GA!N39*$D38 -> 0 | O38: =-GA!O39*$D38 -> 0 | P38: =-GA!P39*$D38 -> 0 | Q38: =-GA!Q39*$D38 -> 0 | R38: =-GA!R39*$D38 -> 0 | S38: =-GA!S39*$D38 -> 0 | T38: =-GA!T39*$D38 -> 0 | U38: =-GA!U39*$D38 -> 0 | V38: =-GA!V39*$D38 -> 0 | W38: =-GA!W39*$D38 -> 0 | X38: =-GA!X39*$D38 -> 0 | Y38: =-GA!Y39*$D38 -> 0 | Z38: =-GA!Z39*$D38 -> 0 | AA38: =-GA!AA39*$D38 -> 0 | AB38: =-GA!AB39*$D38 -> 0 | AC38: =-GA!AC39*$D38 -> 0 | AD38: =-GA!AD39*$D38 -> 0 | AE38: =-GA!AE39*$D38 -> 0 | AF38: =-GA!AF39*$D38 -> 0 | AG38: =-GA!AG39*$D38 -> 0 | AH38: =-GA!AH39*$D38 -> 0 | AI38: =-GA!AI39*$D38 -> 0 | AJ38: =-GA!AJ39*$D38 -> 0 | AK38: =-GA!AK39*$D38 -> 0 | AL38: =-GA!AL39*$D38 -> 0 | AM38: =-GA!AM39*$D38 -> 0 | AN38: =-GA!AN39*$D38 -> 0 | AO38: =-GA!AO39*$D38 -> 0 | AP38: =-GA!AP39*$D38 -> 0 | AQ38: =-GA!AQ39*$D38 -> 0 | AR38: =-GA!AR39*$D38 -> 0 | AS38: =-GA!AS39*$D38 -> 0 | AT38: =-GA!AT39*$D38 -> 0 | AU38: =-GA!AU39*$D38 -> 0 | AV38: =-GA!AV39*$D38 -> 0 | AW38: =-GA!AW39*$D38 -> 0 | AX38: =-GA!AX39*$D38 -> 0 | AY38: =-GA!AY39*$D38 -> 0 | AZ38: =-GA!AZ39*$D38 -> 0 | BA38: =-GA!BA39*$D38 -> 0
B39: Performance Bond | D39: =Scen!G106 -> 1 | E39: 1 | F39: 0 | H39: 0 | I39: 0 | J39: 0 | K39: 0 | L39: 0 | M39: 0 | N39: =-GA!N51*$D39 -> -91.96721311 | O39: =-GA!O51*$D39 -> -224.4 | P39: =-GA!P51*$D39 -> -228.888 | Q39: =-GA!Q51*$D39 -> -233.46576 | R39: =-GA!R51*$D39 -> -238.1350752 | S39: =-GA!S51*$D39 -> -242.8977767 | T39: =-GA!T51*$D39 -> -247.7557322 | U39: =-GA!U51*$D39 -> -252.7108469 | V39: =-GA!V51*$D39 -> -257.7650638 | W39: =-GA!W51*$D39 -> -262.9203651 | X39: =-GA!X51*$D39 -> -268.1787724 | Y39: =-GA!Y51*$D39 -> -273.5423478 | Z39: =-GA!Z51*$D39 -> -279.0131948 | AA39: =-GA!AA51*$D39 -> -284.5934587 | AB39: =-GA!AB51*$D39 -> -290.2853279 | AC39: =-GA!AC51*$D39 -> -296.0910344 | AD39: =-GA!AD51*$D39 -> -302.0128551 | AE39: =-GA!AE51*$D39 -> -308.0531122 | AF39: =-GA!AF51*$D39 -> -314.2141745 | AG39: =-GA!AG51*$D39 -> -320.498458 | AH39: =-GA!AH51*$D39 -> -326.9084271 | AI39: =-GA!AI51*$D39 -> -333.4465957 | AJ39: =-GA!AJ51*$D39 -> -340.1155276 | AK39: =-GA!AK51*$D39 -> -346.9178381 | AL39: =-GA!AL51*$D39 -> -353.8561949 | AM39: =-GA!AM51*$D39 -> -210.0513577 | AN39: =-GA!AN51*$D39 -> 0 | AO39: =-GA!AO51*$D39 -> 0 | AP39: =-GA!AP51*$D39 -> 0 | AQ39: =-GA!AQ51*$D39 -> 0 | AR39: =-GA!AR51*$D39 -> 0 | AS39: =-GA!AS51*$D39 -> 0 | AT39: =-GA!AT51*$D39 -> 0 | AU39: =-GA!AU51*$D39 -> 0 | AV39: =-GA!AV51*$D39 -> 0 | AW39: =-GA!AW51*$D39 -> 0 | AX39: =-GA!AX51*$D39 -> 0 | AY39: =-GA!AY51*$D39 -> 0 | AZ39: =-GA!AZ51*$D39 -> 0 | BA39: =-GA!BA51*$D39 -> 0
B40: Land Lease | E40: 1 | F40: 0 | H40: 0 | I40: 0 | J40: 0 | K40: 0 | L40: 0 | M40: 0 | N40: =OM!N49 -> 203 | O40: =OM!O49 -> 207.06 | P40: =OM!P49 -> 211.2012 | Q40: =OM!Q49 -> 215.425224 | R40: =OM!R49 -> 219.7337285 | S40: =OM!S49 -> 320.1834329 | T40: =OM!T49 -> 326.5871016 | U40: =OM!U49 -> 333.1188436 | V40: =OM!V49 -> 339.7812205 | W40: =OM!W49 -> 346.5768449 | X40: =OM!X49 -> 353.5083818 | Y40: =OM!Y49 -> 367.5737733 | Z40: =OM!Z49 -> 382.1987986 | AA40: =OM!AA49 -> 397.4057244 | AB40: =OM!AB49 -> 413.2177033 | AC40: =OM!AC49 -> 429.6588093 | AD40: =OM!AD49 -> 446.754074 | AE40: =OM!AE49 -> 464.5295251 | AF40: =OM!AF49 -> 483.0122259 | AG40: =OM!AG49 -> 502.2303163 | AH40: =OM!AH49 -> 522.2130561 | AI40: =OM!AI49 -> 542.9908692 | AJ40: =OM!AJ49 -> 564.5953899 | AK40: =OM!AK49 -> 587.0595113 | AL40: =OM!AL49 -> 610.4174351 | AM40: =OM!AM49 -> 634.704724 | AN40: =OM!AN49 -> 0 | AO40: =OM!AO49 -> 0 | AP40: =OM!AP49 -> 0 | AQ40: =OM!AQ49 -> 0 | AR40: =OM!AR49 -> 0 | AS40: =OM!AS49 -> 0 | AT40: =OM!AT49 -> 0 | AU40: =OM!AU49 -> 0 | AV40: =OM!AV49 -> 0 | AW40: =OM!AW49 -> 0 | AX40: =OM!AX49 -> 0 | AY40: =OM!AY49 -> 0 | AZ40: =OM!AZ49 -> 0 | BA40: =OM!BA49 -> 0
B41: Other | E41: 1 | F41: 0 | H41: 0 | I41: 0 | J41: 0 | K41: 0 | L41: 0 | M41: 0 | N41: 0 | O41: 0 | P41: 0 | Q41: 0 | R41: 0 | S41: 0 | T41: 0 | U41: 0 | V41: 0 | W41: 0 | X41: 0 | Y41: 0 | Z41: 0 | AA41: 0 | AB41: 0 | AC41: 0 | AD41: 0 | AE41: 0 | AF41: 0 | AG41: 0 | AH41: 0 | AI41: 0 | AJ41: 0 | AK41: 0 | AL41: 0 | AM41: 0 | AN41: 0 | AO41: 0 | AP41: 0 | AQ41: 0 | AR41: 0 | AS41: 0 | AT41: 0 | AU41: 0 | AV41: 0 | AW41: 0 | AX41: 0 | AY41: 0 | AZ41: 0 | BA41: 0
B42: Other | E42: 1 | F42: 0 | H42: 0 | I42: 0 | J42: 0 | K42: 0 | L42: 0 | M42: 0 | N42: 0 | O42: 0 | P42: 0 | Q42: 0 | R42: 0 | S42: 0 | T42: 0 | U42: 0 | V42: 0 | W42: 0 | X42: 0 | Y42: 0 | Z42: 0 | AA42: 0 | AB42: 0 | AC42: 0 | AD42: 0 | AE42: 0 | AF42: 0 | AG42: 0 | AH42: 0 | AI42: 0 | AJ42: 0 | AK42: 0 | AL42: 0 | AM42: 0 | AN42: 0 | AO42: 0 | AP42: 0 | AQ42: 0 | AR42: 0 | AS42: 0 | AT42: 0 | AU42: 0 | AV42: 0 | AW42: 0 | AX42: 0 | AY42: 0 | AZ42: 0 | BA42: 0
B43: Sub-total | H43: =SUM(H29:H42) -> 0 | I43: 0 | J43: 0 | K43: 0 | L43: 0 | M43: -39.39154478 | N43: -186.6893126 | O43: -724.5520018 | P43: -728.6157806 | Q43: -750.0441291 | R43: -754.8487314 | S43: -680.986652 | T43: -684.6593692 | U43: -705.7074911 | V43: -710.1436646 | W43: -731.980994 | X43: -737.2330575 | Y43: -752.918701 | Z43: -751.629497 | AA43: -767.3611142 | AB43: -766.1089393 | AC43: -781.868063 | AD43: -780.6332658 | AE43: -799.4316216 | AF43: -804.4091526 | AG43: -826.5826926 | AH43: -831.9518365 | AI43: -854.5159504 | AJ43: -860.2741558 | AK43: -883.2253144 | AL43: -889.3680109 | AM43: -198.5816154 | AN43: 0 | AO43: 0 | AP43: 0 | AQ43: 0 | AR43: 0 | AS43: 0 | AT43: 0 | AU43: 0 | AV43: 0 | AW43: 0 | AX43: 0 | AY43: 0 | AZ43: 0 | BA43: 0
B45: EBITDA | H45: =H26+H43 -> 0 | I45: 0 | J45: 0 | K45: 0 | L45: 0 | M45: -39.39154478 | N45: 5910.838773 | O45: 13793.78606 | P45: 14122.93852 | Q45: 14300.53303 | R45: 14500.15463 | S45: 14779.25461 | T45: 14973.03445 | U45: 15150.0994 | V45: 15350.58985 | W45: 15540.89008 | X45: 15752.11721 | Y45: 15953.17152 | Z45: 16172.86568 | AA45: 16375.23338 | AB45: 16600.86582 | AC45: 16834.80312 | AD45: 17087.42667 | AE45: 17320.59022 | AF45: 17570.6016 | AG45: 17805.09183 | AH45: 18055.94131 | AI45: 18288.62883 | AJ45: 18543.57179 | AK45: 18786.60631 | AL45: 19051.1903 | AM45: 11466.37153 | AN45: 0 | AO45: 0 | AP45: 0 | AQ45: 0 | AR45: 0 | AS45: 0 | AT45: 0 | AU45: 0 | AV45: 0 | AW45: 0 | AX45: 0 | AY45: 0 | AZ45: 0 | BA45: 0
B46: Depreciation | H46: 0 | I46: 0 | J46: 0 | K46: 0 | L46: 0 | M46: =-Depr!M10 -> 0 | N46: =-Depr!N10 -> -2917.3919 | O46: =-Depr!O10 -> -7001.7405 | P46: =-Depr!P10 -> -7001.7405 | Q46: =-Depr!Q10 -> -7001.7405 | R46: =-Depr!R10 -> -7001.7405 | S46: =-Depr!S10 -> -7001.7405 | T46: =-Depr!T10 -> -7001.7405 | U46: =-Depr!U10 -> -7001.7405 | V46: =-Depr!V10 -> -7001.7405 | W46: =-Depr!W10 -> -7001.7405 | X46: =-Depr!X10 -> -7001.7405 | Y46: =-Depr!Y10 -> -7001.7405 | Z46: =-Depr!Z10 -> -7001.7405 | AA46: =-Depr!AA10 -> -7001.7405 | AB46: =-Depr!AB10 -> -7001.7405 | AC46: =-Depr!AC10 -> -7001.7405 | AD46: =-Depr!AD10 -> -7001.7405 | AE46: =-Depr!AE10 -> -7001.7405 | AF46: =-Depr!AF10 -> -7001.7405 | AG46: =-Depr!AG10 -> -7001.7405 | AH46: =-Depr!AH10 -> -7001.7405 | AI46: =-Depr!AI10 -> -7001.7405 | AJ46: =-Depr!AJ10 -> -7001.7405 | AK46: =-Depr!AK10 -> -7001.7405 | AL46: =-Depr!AL10 -> -46094.7923 | AM46: =-Depr!AM10 -> 0 | AN46: =-Depr!AN10 -> 0 | AO46: =-Depr!AO10 -> 0 | AP46: =-Depr!AP10 -> 0 | AQ46: =-Depr!AQ10 -> 0 | AR46: =-Depr!AR10 -> 0 | AS46: =-Depr!AS10 -> 0 | AT46: =-Depr!AT10 -> 0 | AU46: =-Depr!AU10 -> 0 | AV46: =-Depr!AV10 -> 0 | AW46: =-Depr!AW10 -> 0 | AX46: =-Depr!AX10 -> 0 | AY46: =-Depr!AY10 -> 0 | AZ46: =-Depr!AZ10 -> 0 | BA46: =-Depr!BA10 -> 0
B47: Pre-Tax Income | H47: =H45+H46 -> 0 | I47: 0 | J47: 0 | K47: 0 | L47: 0 | M47: -39.39154478 | N47: 2993.446873 | O47: 6792.045562 | P47: 7121.198024 | Q47: 7298.792533 | R47: 7498.414127 | S47: 7777.51411 | T47: 7971.293952 | U47: 8148.358897 | V47: 8348.849353 | W47: 8539.14958 | X47: 8750.376712 | Y47: 8951.431017 | Z47: 9171.125184 | AA47: 9373.49288 | AB47: 9599.125323 | AC47: 9833.062619 | AD47: 10085.68617 | AE47: 10318.84972 | AF47: 10568.8611 | AG47: 10803.35133 | AH47: 11054.20081 | AI47: 11286.88833 | AJ47: 11541.83129 | AK47: 11784.86581 | AL47: -27043.602 | AM47: 11466.37153 | AN47: 0 | AO47: 0 | AP47: 0 | AQ47: 0 | AR47: 0 | AS47: 0 | AT47: 0 | AU47: 0 | AV47: 0 | AW47: 0 | AX47: 0 | AY47: 0 | AZ47: 0 | BA47: 0
B50: BALANCE SHEET
B52: Cash | E52: Days | H52: =H104 -> 0 | I52: 0 | J52: 0 | K52: 0 | L52: 0 | M52: 0 | N52: 13.19060603 | O52: 13.65227724 | P52: 14.13010695 | Q52: 14.62466069 | R52: 15.13652381 | S52: 15.66630215 | T52: 16.21462272 | U52: 16.78213452 | V52: 17.36950923 | W52: 17.97744205 | X52: 18.60665252 | Y52: 19.25788536 | Z52: 19.93191135 | AA52: 20.62952824 | AB52: 21.35156173 | AC52: 22.09886639 | AD52: 22.87232672 | AE52: 23.67285815 | AF52: 24.50140819 | AG52: 25.35895747 | AH52: 26.24652099 | AI52: 27.16514922 | AJ52: 28.11592944 | AK52: 29.09998697 | AL52: 30.11848652 | AM52: 0 | AN52: 0 | AO52: 0 | AP52: 0 | AQ52: 0 | AR52: 0 | AS52: 0 | AT52: 0 | AU52: 0 | AV52: 0 | AW52: 0 | AX52: 0 | AY52: 0 | AZ52: 0 | BA52: 0
B53: Accounts Receivable | E53: 30 | H53: 0 | I53: 0 | J53: 0 | K53: 0 | L53: 0 | M53: 0 | N53: =IF(O$13=0,0,SUMPRODUCT($E$18:$E$25,N$18:N$25)*($E53/(365*N$13))) -> 1198.869342 | O53: 1193.28806 | P53: 1220.675696 | Q53: 1237.033739 | R53: 1253.835892 | S53: 1270.704761 | T53: 1286.933739 | U53: 1303.217005 | V53: 1320.060289 | W53: 1337.496253 | X53: 1355.289063 | Y53: 1373.103306 | Z53: 1391.054398 | AA53: 1408.980369 | AB53: 1427.422583 | AC53: 1447.945577 | AD53: 1468.607666 | AE53: 1489.316864 | AF53: 1510.274857 | AG53: 1531.370509 | AH53: 1552.429573 | AI53: 1573.40916 | AJ53: 1594.836653 | AK53: 1616.69849 | AL53: 1638.949998 | AM53: 0 | AN53: 0 | AO53: 0 | AP53: 0 | AQ53: 0 | AR53: 0 | AS53: 0 | AT53: 0 | AU53: 0 | AV53: 0 | AW53: 0 | AX53: 0 | AY53: 0 | AZ53: 0 | BA53: 0
B54: Other | H54: 0 | I54: 0 | J54: 0 | K54: 0 | L54: 0 | M54: 0 | N54: 0 | O54: 0 | P54: 0 | Q54: 0 | R54: 0 | S54: 0 | T54: 0 | U54: 0 | V54: 0 | W54: 0 | X54: 0 | Y54: 0 | Z54: 0 | AA54: 0 | AB54: 0 | AC54: 0 | AD54: 0 | AE54: 0 | AF54: 0 | AG54: 0 | AH54: 0 | AI54: 0 | AJ54: 0 | AK54: 0 | AL54: 0 | AM54: 0 | AN54: 0 | AO54: 0 | AP54: 0 | AQ54: 0 | AR54: 0 | AS54: 0 | AT54: 0 | AU54: 0 | AV54: 0 | AW54: 0 | AX54: 0 | AY54: 0 | AZ54: 0 | BA54: 0
B55: Other | H55: 0 | I55: 0 | J55: 0 | K55: 0 | L55: 0 | M55: 0 | N55: 0 | O55: 0 | P55: 0 | Q55: 0 | R55: 0 | S55: 0 | T55: 0 | U55: 0 | V55: 0 | W55: 0 | X55: 0 | Y55: 0 | Z55: 0 | AA55: 0 | AB55: 0 | AC55: 0 | AD55: 0 | AE55: 0 | AF55: 0 | AG55: 0 | AH55: 0 | AI55: 0 | AJ55: 0 | AK55: 0 | AL55: 0 | AM55: 0 | AN55: 0 | AO55: 0 | AP55: 0 | AQ55: 0 | AR55: 0 | AS55: 0 | AT55: 0 | AU55: 0 | AV55: 0 | AW55: 0 | AX55: 0 | AY55: 0 | AZ55: 0 | BA55: 0
B56: Sub-total | H56: =SUM(H52:H55) -> 0 | I56: 0 | J56: 0 | K56: 0 | L56: 0 | M56: 0 | N56: 1212.059948 | O56: 1206.940337 | P56: 1234.805803 | Q56: 1251.6584 | R56: 1268.972416 | S56: 1286.371063 | T56: 1303.148361 | U56: 1319.999139 | V56: 1337.429798 | W56: 1355.473695 | X56: 1373.895716 | Y56: 1392.361191 | Z56: 1410.98631 | AA56: 1429.609898 | AB56: 1448.774145 | AC56: 1470.044443 | AD56: 1491.479992 | AE56: 1512.989722 | AF56: 1534.776265 | AG56: 1556.729466 | AH56: 1578.676094 | AI56: 1600.574309 | AJ56: 1622.952583 | AK56: 1645.798476 | AL56: 1669.068484 | AM56: 0 | AN56: 0 | AO56: 0 | AP56: 0 | AQ56: 0 | AR56: 0 | AS56: 0 | AT56: 0 | AU56: 0 | AV56: 0 | AW56: 0 | AX56: 0 | AY56: 0 | AZ56: 0 | BA56: 0
B58: Property, Plant & Equipment | H58: =F58-H91 -> 1e-08 | I58: =G58-I91 -> 0 | J58: =I58-J91 -> 0 | K58: 0 | L58: 105824.0786 | M58: 210052.2175 | N58: 210052.2175 | O58: 210052.2175 | P58: 210052.2175 | Q58: 210052.2175 | R58: 210052.2175 | S58: 210052.2175 | T58: 210052.2175 | U58: 210052.2175 | V58: 210052.2175 | W58: 210052.2175 | X58: 210052.2175 | Y58: 210052.2175 | Z58: 210052.2175 | AA58: 210052.2175 | AB58: 210052.2175 | AC58: 210052.2175 | AD58: 210052.2175 | AE58: 210052.2175 | AF58: 210052.2175 | AG58: 210052.2175 | AH58: 210052.2175 | AI58: 210052.2175 | AJ58: 210052.2175 | AK58: 210052.2175 | AL58: 210052.2175 | AM58: 210052.2175 | AN58: 210052.2175 | AO58: 210052.2175 | AP58: 210052.2175 | AQ58: 210052.2175 | AR58: 210052.2175 | AS58: 210052.2175 | AT58: 210052.2175 | AU58: 210052.2175 | AV58: 210052.2175 | AW58: 210052.2175 | AX58: 210052.2175 | AY58: 210052.2175 | AZ58: 210052.2175 | BA58: 210052.2175
B59: Accumulated Depreciation | H59: =F59+H46 -> 0 | I59: =G59+I46 -> 0 | J59: =I59+J46 -> 0 | K59: 0 | L59: 0 | M59: =L59+M46 -> 0 | N59: -2917.3919 | O59: -9919.1324 | P59: -16920.8729 | Q59: -23922.6134 | R59: -30924.3539 | S59: -37926.0944 | T59: -44927.8349 | U59: -51929.5754 | V59: -58931.3159 | W59: -65933.0564 | X59: -72934.7969 | Y59: -79936.5374 | Z59: -86938.2779 | AA59: -93940.0184 | AB59: -100941.7589 | AC59: -107943.4994 | AD59: -114945.2399 | AE59: -121946.9804 | AF59: -128948.7209 | AG59: -135950.4614 | AH59: -142952.2019 | AI59: -149953.9424 | AJ59: -156955.6829 | AK59: -163957.4234 | AL59: -210052.2157 | AM59: -210052.2157 | AN59: -210052.2157 | AO59: -210052.2157 | AP59: -210052.2157 | AQ59: -210052.2157 | AR59: -210052.2157 | AS59: -210052.2157 | AT59: -210052.2157 | AU59: -210052.2157 | AV59: -210052.2157 | AW59: -210052.2157 | AX59: -210052.2157 | AY59: -210052.2157 | AZ59: -210052.2157 | BA59: -210052.2157
B60: Net PP&E | H60: =SUM(H58:H59) -> 1e-08 | I60: 0 | J60: 0 | K60: 0 | L60: 105824.0786 | M60: 210052.2175 | N60: 207134.8256 | O60: 200133.0851 | P60: 193131.3446 | Q60: 186129.6041 | R60: 179127.8636 | S60: 172126.1231 | T60: 165124.3826 | U60: 158122.6421 | V60: 151120.9016 | W60: 144119.1611 | X60: 137117.4206 | Y60: 130115.6801 | Z60: 123113.9396 | AA60: 116112.1991 | AB60: 109110.4586 | AC60: 102108.7181 | AD60: 95106.97762 | AE60: 88105.23712 | AF60: 81103.49662 | AG60: 74101.75612 | AH60: 67100.01562 | AI60: 60098.27512 | AJ60: 53096.53462 | AK60: 46094.79412 | AL60: 0.001822128979 | AM60: 0.001822128979 | AN60: 0.001822128979 | AO60: 0.001822128979 | AP60: 0.001822128979 | AQ60: 0.001822128979 | AR60: 0.001822128979 | AS60: 0.001822128979 | AT60: 0.001822128979 | AU60: 0.001822128979 | AV60: 0.001822128979 | AW60: 0.001822128979 | AX60: 0.001822128979 | AY60: 0.001822128979 | AZ60: 0.001822128979 | BA60: 0.001822128979
B62: Total Assets | H62: =H56+H60 -> 1e-08 | I62: 0 | J62: 0 | K62: 0 | L62: 105824.0786 | M62: 210052.2175 | N62: 208346.8856 | O62: 201340.0255 | P62: 194366.1504 | Q62: 187381.2625 | R62: 180396.836 | S62: 173412.4942 | T62: 166427.531 | U62: 159442.6413 | V62: 152458.3314 | W62: 145474.6348 | X62: 138491.3163 | Y62: 131508.0413 | Z62: 124524.9259 | AA62: 117541.809 | AB62: 110559.2328 | AC62: 103578.7626 | AD62: 96598.45761 | AE62: 89618.22684 | AF62: 82638.27289 | AG62: 75658.48559 | AH62: 68678.69172 | AI62: 61698.84943 | AJ62: 54719.4872 | AK62: 47740.5926 | AL62: 1669.070307 | AM62: 0.001822128979 | AN62: 0.001822128979 | AO62: 0.001822128979 | AP62: 0.001822128979 | AQ62: 0.001822128979 | AR62: 0.001822128979 | AS62: 0.001822128979 | AT62: 0.001822128979 | AU62: 0.001822128979 | AV62: 0.001822128979 | AW62: 0.001822128979 | AX62: 0.001822128979 | AY62: 0.001822128979 | AZ62: 0.001822128979 | BA62: 0.001822128979
E64: Days
B65: Accounts Payable | E65: 30 | H65: 0 | I65: 0 | J65: 0 | K65: 0 | L65: 0 | M65: 0 | N65: =IF(O$13=0,0,SUMPRODUCT($E$29:$E$42,-N$29:N$42)*($E65/(365*N$13))) -> 11.2169435 | O65: 33.17100726 | P65: 32.58167406 | Q65: 33.38724877 | R65: 32.7930401 | S65: 25.69845801 | T65: 24.94076852 | U65: 25.57410998 | V65: 24.80370339 | W65: 25.42380297 | X65: 24.63961378 | Y65: 24.67042381 | Z65: 23.26199616 | AA65: 23.20695382 | AB65: 21.70880153 | AC65: 21.560005 | AD65: 19.96390549 | AE65: 19.96205519 | AF65: 18.77010446 | AG65: 18.93548712 | AH65: 17.66168805 | AI65: 17.74114573 | AJ65: 16.37716642 | AK65: 16.36200257 | AL65: 14.89876667 | AM65: 0 | AN65: 0 | AO65: 0 | AP65: 0 | AQ65: 0 | AR65: 0 | AS65: 0 | AT65: 0 | AU65: 0 | AV65: 0 | AW65: 0 | AX65: 0 | AY65: 0 | AZ65: 0 | BA65: 0
B66: Other | H66: 0 | I66: 0 | J66: 0 | K66: 0 | L66: 0 | M66: 0 | N66: 0 | O66: 0 | P66: 0 | Q66: 0 | R66: 0 | S66: 0 | T66: 0 | U66: 0 | V66: 0 | W66: 0 | X66: 0 | Y66: 0 | Z66: 0 | AA66: 0 | AB66: 0 | AC66: 0 | AD66: 0 | AE66: 0 | AF66: 0 | AG66: 0 | AH66: 0 | AI66: 0 | AJ66: 0 | AK66: 0 | AL66: 0 | AM66: 0 | AN66: 0 | AO66: 0 | AP66: 0 | AQ66: 0 | AR66: 0 | AS66: 0 | AT66: 0 | AU66: 0 | AV66: 0 | AW66: 0 | AX66: 0 | AY66: 0 | AZ66: 0 | BA66: 0
B67: Sub-total | H67: =SUM(H65:H66) -> 0 | I67: 0 | J67: 0 | K67: 0 | L67: 0 | M67: 0 | N67: 11.2169435 | O67: 33.17100726 | P67: 32.58167406 | Q67: 33.38724877 | R67: 32.7930401 | S67: 25.69845801 | T67: 24.94076852 | U67: 25.57410998 | V67: 24.80370339 | W67: 25.42380297 | X67: 24.63961378 | Y67: 24.67042381 | Z67: 23.26199616 | AA67: 23.20695382 | AB67: 21.70880153 | AC67: 21.560005 | AD67: 19.96390549 | AE67: 19.96205519 | AF67: 18.77010446 | AG67: 18.93548712 | AH67: 17.66168805 | AI67: 17.74114573 | AJ67: 16.37716642 | AK67: 16.36200257 | AL67: 14.89876667 | AM67: 0 | AN67: 0 | AO67: 0 | AP67: 0 | AQ67: 0 | AR67: 0 | AS67: 0 | AT67: 0 | AU67: 0 | AV67: 0 | AW67: 0 | AX67: 0 | AY67: 0 | AZ67: 0 | BA67: 0
B69: Initial Investment | H69: =-SUM($H91:H91) -> 1e-08 | I69: =-SUM($H91:I91) -> 1e-08 | J69: =-SUM($H91:J91) -> 1e-08 | K69: =-SUM($H91:K91) -> 1e-08 | L69: =-SUM($H91:L91) -> 105824.0786 | M69: =-SUM($H91:M91) -> 210052.2175 | N69: =-SUM($H91:N91) -> 210052.2175 | O69: =-SUM($H91:O91) -> 210052.2175 | P69: =-SUM($H91:P91) -> 210052.2175 | Q69: =-SUM($H91:Q91) -> 210052.2175 | R69: =-SUM($H91:R91) -> 210052.2175 | S69: =-SUM($H91:S91) -> 210052.2175 | T69: =-SUM($H91:T91) -> 210052.2175 | U69: =-SUM($H91:U91) -> 210052.2175 | V69: =-SUM($H91:V91) -> 210052.2175 | W69: =-SUM($H91:W91) -> 210052.2175 | X69: =-SUM($H91:X91) -> 210052.2175 | Y69: =-SUM($H91:Y91) -> 210052.2175 | Z69: =-SUM($H91:Z91) -> 210052.2175 | AA69: =-SUM($H91:AA91) -> 210052.2175 | AB69: =-SUM($H91:AB91) -> 210052.2175 | AC69: =-SUM($H91:AC91) -> 210052.2175 | AD69: =-SUM($H91:AD91) -> 210052.2175 | AE69: =-SUM($H91:AE91) -> 210052.2175 | AF69: =-SUM($H91:AF91) -> 210052.2175 | AG69: =-SUM($H91:AG91) -> 210052.2175 | AH69: =-SUM($H91:AH91) -> 210052.2175 | AI69: =-SUM($H91:AI91) -> 210052.2175 | AJ69: =-SUM($H91:AJ91) -> 210052.2175 | AK69: =-SUM($H91:AK91) -> 210052.2175 | AL69: =-SUM($H91:AL91) -> 210052.2175 | AM69: =-SUM($H91:AM91) -> 210052.2175 | AN69: =-SUM($H91:AN91) -> 210052.2175 | AO69: =-SUM($H91:AO91) -> 210052.2175 | AP69: =-SUM($H91:AP91) -> 210052.2175 | AQ69: =-SUM($H91:AQ91) -> 210052.2175 | AR69: =-SUM($H91:AR91) -> 210052.2175 | AS69: =-SUM($H91:AS91) -> 210052.2175 | AT69: =-SUM($H91:AT91) -> 210052.2175 | AU69: =-SUM($H91:AU91) -> 210052.2175 | AV69: =-SUM($H91:AV91) -> 210052.2175 | AW69: =-SUM($H91:AW91) -> 210052.2175 | AX69: =-SUM($H91:AX91) -> 210052.2175 | AY69: =-SUM($H91:AY91) -> 210052.2175 | AZ69: =-SUM($H91:AZ91) -> 210052.2175 | BA69: =-SUM($H91:BA91) -> 210052.2175
B70: Accumulated Earnings | H70: =F70+H47 -> 0 | I70: =G70+I47 -> 0 | J70: =I70+J47 -> 0 | K70: 0 | L70: 0 | M70: -39.39154478 | N70: 2954.055328 | O70: 9746.100891 | P70: 16867.29892 | Q70: 24166.09145 | R70: 31664.50558 | S70: 39442.01969 | T70: 47413.31364 | U70: 55561.67253 | V70: 63910.52189 | W70: 72449.67147 | X70: 81200.04818 | Y70: 90151.4792 | Z70: 99322.60438 | AA70: 108696.0973 | AB70: 118295.2226 | AC70: 128128.2852 | AD70: 138213.9714 | AE70: 148532.8211 | AF70: 159101.6822 | AG70: 169905.0335 | AH70: 180959.2343 | AI70: 192246.1227 | AJ70: 203787.9539 | AK70: 215572.8198 | AL70: 188529.2178 | AM70: 199995.5893 | AN70: 199995.5893 | AO70: 199995.5893 | AP70: 199995.5893 | AQ70: 199995.5893 | AR70: 199995.5893 | AS70: 199995.5893 | AT70: 199995.5893 | AU70: 199995.5893 | AV70: 199995.5893 | AW70: 199995.5893 | AX70: 199995.5893 | AY70: 199995.5893 | AZ70: 199995.5893 | BA70: 199995.5893
B71: Accumulated Distributions | H71: =F71+H97 -> 0 | I71: =G71+I97 -> 0 | J71: =I71+J97 -> 0 | K71: 0 | L71: 0 | M71: 39.39154478 | N71: -4670.604224 | O71: -18491.46396 | P71: -32585.94769 | Q71: -46870.4337 | R71: -61352.6801 | S71: -76107.44148 | T71: -91062.94094 | U71: -106196.8229 | V71: -121529.2117 | W71: -137052.678 | X71: -152785.589 | Y71: -168720.3258 | Z71: -184873.158 | AA71: -201229.7127 | AB71: -217809.9161 | AC71: -234623.3002 | AD71: -251687.6952 | AE71: -268986.7738 | AF71: -286534.3969 | AG71: -304317.7009 | AH71: -322350.4218 | AI71: -340617.2319 | AJ71: -359137.0614 | AK71: -377900.8067 | AL71: -396927.2637 | AM71: -410047.805 | AN71: -410047.805 | AO71: -410047.805 | AP71: -410047.805 | AQ71: -410047.805 | AR71: -410047.805 | AS71: -410047.805 | AT71: -410047.805 | AU71: -410047.805 | AV71: -410047.805 | AW71: -410047.805 | AX71: -410047.805 | AY71: -410047.805 | AZ71: -410047.805 | BA71: -410047.805
B72: Sub-total | H72: =SUM(H69:H71) -> 1e-08 | I72: 1e-08 | J72: 1e-08 | K72: 1e-08 | L72: 105824.0786 | M72: 210052.2175 | N72: 208335.6686 | O72: 201306.8545 | P72: 194333.5688 | Q72: 187347.8753 | R72: 180364.043 | S72: 173386.7957 | T72: 166402.5902 | U72: 159417.0672 | V72: 152433.5277 | W72: 145449.211 | X72: 138466.6767 | Y72: 131483.3709 | Z72: 124501.6639 | AA72: 117518.6021 | AB72: 110537.524 | AC72: 103557.2026 | AD72: 96578.49371 | AE72: 89598.26479 | AF72: 82619.50278 | AG72: 75639.5501 | AH72: 68661.03003 | AI72: 61681.10829 | AJ72: 54703.11004 | AK72: 47724.2306 | AL72: 1654.17154 | AM72: 0.00182213902 | AN72: 0.00182213902 | AO72: 0.00182213902 | AP72: 0.00182213902 | AQ72: 0.00182213902 | AR72: 0.00182213902 | AS72: 0.00182213902 | AT72: 0.00182213902 | AU72: 0.00182213902 | AV72: 0.00182213902 | AW72: 0.00182213902 | AX72: 0.00182213902 | AY72: 0.00182213902 | AZ72: 0.00182213902 | BA72: 0.00182213902
B74: Total Liabilities and Equity | H74: =H67+H72 -> 1e-08 | I74: 1e-08 | J74: 1e-08 | K74: 1e-08 | L74: 105824.0786 | M74: 210052.2175 | N74: 208346.8856 | O74: 201340.0255 | P74: 194366.1504 | Q74: 187381.2625 | R74: 180396.836 | S74: 173412.4942 | T74: 166427.531 | U74: 159442.6413 | V74: 152458.3314 | W74: 145474.6348 | X74: 138491.3163 | Y74: 131508.0413 | Z74: 124524.9259 | AA74: 117541.809 | AB74: 110559.2328 | AC74: 103578.7626 | AD74: 96598.45761 | AE74: 89618.22684 | AF74: 82638.27289 | AG74: 75658.48559 | AH74: 68678.69172 | AI74: 61698.84943 | AJ74: 54719.4872 | AK74: 47740.5926 | AL74: 1669.070307 | AM74: 0.00182213902 | AN74: 0.00182213902 | AO74: 0.00182213902 | AP74: 0.00182213902 | AQ74: 0.00182213902 | AR74: 0.00182213902 | AS74: 0.00182213902 | AT74: 0.00182213902 | AU74: 0.00182213902 | AV74: 0.00182213902 | AW74: 0.00182213902 | AX74: 0.00182213902 | AY74: 0.00182213902 | AZ74: 0.00182213902 | BA74: 0.00182213902
E75: Zero Check
B76: Check Total | E76: =SUM(M76:BA76) -> 0 | H76: =ROUND(H62-H74,2) -> 0 | I76: =ROUND(I62-I74,2) -> 0 | J76: 0 | K76: 0 | L76: 0 | M76: 0 | N76: 0 | O76: 0 | P76: 0 | Q76: 0 | R76: 0 | S76: 0 | T76: 0 | U76: 0 | V76: 0 | W76: 0 | X76: 0 | Y76: 0 | Z76: 0 | AA76: 0 | AB76: 0 | AC76: 0 | AD76: 0 | AE76: 0 | AF76: 0 | AG76: 0 | AH76: 0 | AI76: 0 | AJ76: 0 | AK76: 0 | AL76: 0 | AM76: 0 | AN76: 0 | AO76: 0 | AP76: 0 | AQ76: 0 | AR76: 0 | AS76: 0 | AT76: 0 | AU76: 0 | AV76: 0 | AW76: 0 | AX76: 0 | AY76: 0 | AZ76: 0 | BA76: 0
B79: CASH FLOW STATEMENT
B81: Pre-Tax Income | H81: =H47 -> 0 | I81: 0 | J81: 0 | K81: 0 | L81: 0 | M81: =M47 -> -39.39154478 | N81: 2993.446873 | O81: 6792.045562 | P81: 7121.198024 | Q81: 7298.792533 | R81: 7498.414127 | S81: 7777.51411 | T81: 7971.293952 | U81: 8148.358897 | V81: 8348.849353 | W81: 8539.14958 | X81: 8750.376712 | Y81: 8951.431017 | Z81: 9171.125184 | AA81: 9373.49288 | AB81: 9599.125323 | AC81: 9833.062619 | AD81: 10085.68617 | AE81: 10318.84972 | AF81: 10568.8611 | AG81: 10803.35133 | AH81: 11054.20081 | AI81: 11286.88833 | AJ81: 11541.83129 | AK81: 11784.86581 | AL81: -27043.602 | AM81: 11466.37153 | AN81: 0 | AO81: 0 | AP81: 0 | AQ81: 0 | AR81: 0 | AS81: 0 | AT81: 0 | AU81: 0 | AV81: 0 | AW81: 0 | AX81: 0 | AY81: 0 | AZ81: 0 | BA81: 0
B82: Addback Depreciation | H82: =-H46 -> 0 | I82: 0 | J82: 0 | K82: 0 | L82: 0 | M82: 0 | N82: 2917.3919 | O82: 7001.7405 | P82: 7001.7405 | Q82: 7001.7405 | R82: 7001.7405 | S82: 7001.7405 | T82: 7001.7405 | U82: 7001.7405 | V82: 7001.7405 | W82: 7001.7405 | X82: 7001.7405 | Y82: 7001.7405 | Z82: 7001.7405 | AA82: 7001.7405 | AB82: 7001.7405 | AC82: 7001.7405 | AD82: 7001.7405 | AE82: 7001.7405 | AF82: 7001.7405 | AG82: 7001.7405 | AH82: 7001.7405 | AI82: 7001.7405 | AJ82: 7001.7405 | AK82: 7001.7405 | AL82: 46094.7923 | AM82: 0 | AN82: 0 | AO82: 0 | AP82: 0 | AQ82: 0 | AR82: 0 | AS82: 0 | AT82: 0 | AU82: 0 | AV82: 0 | AW82: 0 | AX82: 0 | AY82: 0 | AZ82: 0 | BA82: 0
B83: Changes in Working Capital | E83: Zero Check
B84: Accounts Receivable | E84: =SUM(M84:BA84) -> 0 | H84: =F53-H53 -> 0 | I84: =G53-I53 -> 0 | J84: =I53-J53 -> 0 | K84: 0 | L84: 0 | M84: 0 | N84: -1198.869342 | O84: 5.581281524 | P84: -27.38763622 | Q84: -16.35804304 | R84: -16.80215315 | S84: -16.86886879 | T84: -16.22897742 | U84: -16.28326581 | V84: -16.84328465 | W84: -17.43596351 | X84: -17.79281059 | Y84: -17.81424234 | Z84: -17.95109289 | AA84: -17.92597092 | AB84: -18.44221383 | AC84: -20.5229934 | AD84: -20.66208901 | AE84: -20.70919841 | AF84: -20.95799249 | AG84: -21.09565206 | AH84: -21.05906476 | AI84: -20.97958635 | AJ84: -21.42749336 | AK84: -21.86183644 | AL84: -22.25150835 | AM84: 1638.949998 | AN84: 0 | AO84: 0 | AP84: 0 | AQ84: 0 | AR84: 0 | AS84: 0 | AT84: 0 | AU84: 0 | AV84: 0 | AW84: 0 | AX84: 0 | AY84: 0 | AZ84: 0 | BA84: 0
B85: Other Assets | E85: =SUM(M85:BA85) -> 0 | H85: =F55-H55 -> 0 | I85: =G55-I55 -> 0 | J85: =I55-J55 -> 0 | K85: 0 | L85: 0 | M85: 0 | N85: 0 | O85: 0 | P85: 0 | Q85: 0 | R85: 0 | S85: 0 | T85: 0 | U85: 0 | V85: 0 | W85: 0 | X85: 0 | Y85: 0 | Z85: 0 | AA85: 0 | AB85: 0 | AC85: 0 | AD85: 0 | AE85: 0 | AF85: 0 | AG85: 0 | AH85: 0 | AI85: 0 | AJ85: 0 | AK85: 0 | AL85: 0 | AM85: 0 | AN85: 0 | AO85: 0 | AP85: 0 | AQ85: 0 | AR85: 0 | AS85: 0 | AT85: 0 | AU85: 0 | AV85: 0 | AW85: 0 | AX85: 0 | AY85: 0 | AZ85: 0 | BA85: 0
B86: Accounts Payable | E86: =SUM(M86:BA86) -> 0 | H86: =H65-F65 -> 0 | I86: =I65-G65 -> 0 | J86: =J65-I65 -> 0 | K86: 0 | L86: 0 | M86: 0 | N86: 11.2169435 | O86: 21.95406376 | P86: -0.5893332028 | Q86: 0.8055747102 | R86: -0.5942086664 | S86: -7.094582088 | T86: -0.7576894986 | U86: 0.6333414681 | V86: -0.7704065903 | W86: 0.6200995748 | X86: -0.7841891904 | Y86: 0.03081003014 | Z86: -1.408427647 | AA86: -0.05504234496 | AB86: -1.498152283 | AC86: -0.1487965297 | AD86: -1.596099509 | AE86: -0.001850305017 | AF86: -1.191950731 | AG86: 0.1653826645 | AH86: -1.273799072 | AI86: 0.07945767636 | AJ86: -1.36397931 | AK86: -0.01516384844 | AL86: -1.463235895 | AM86: -14.89876667 | AN86: 0 | AO86: 0 | AP86: 0 | AQ86: 0 | AR86: 0 | AS86: 0 | AT86: 0 | AU86: 0 | AV86: 0 | AW86: 0 | AX86: 0 | AY86: 0 | AZ86: 0 | BA86: 0
B87: Other Liabilities | E87: =SUM(M87:BA87) -> 0 | H87: =H66-F66 -> 0 | I87: =I66-G66 -> 0 | J87: =J66-I66 -> 0 | K87: 0 | L87: 0 | M87: 0 | N87: 0 | O87: 0 | P87: 0 | Q87: 0 | R87: 0 | S87: 0 | T87: 0 | U87: 0 | V87: 0 | W87: 0 | X87: 0 | Y87: 0 | Z87: 0 | AA87: 0 | AB87: 0 | AC87: 0 | AD87: 0 | AE87: 0 | AF87: 0 | AG87: 0 | AH87: 0 | AI87: 0 | AJ87: 0 | AK87: 0 | AL87: 0 | AM87: 0 | AN87: 0 | AO87: 0 | AP87: 0 | AQ87: 0 | AR87: 0 | AS87: 0 | AT87: 0 | AU87: 0 | AV87: 0 | AW87: 0 | AX87: 0 | AY87: 0 | AZ87: 0 | BA87: 0
B88: Other | E88: =SUM(M88:BA88) -> 0 | H88: 0 | I88: 0 | J88: 0 | K88: 0 | L88: 0 | M88: 0 | N88: 0 | O88: 0 | P88: 0 | Q88: 0 | R88: 0 | S88: 0 | T88: 0 | U88: 0 | V88: 0 | W88: 0 | X88: 0 | Y88: 0 | Z88: 0 | AA88: 0 | AB88: 0 | AC88: 0 | AD88: 0 | AE88: 0 | AF88: 0 | AG88: 0 | AH88: 0 | AI88: 0 | AJ88: 0 | AK88: 0 | AL88: 0 | AM88: 0 | AN88: 0 | AO88: 0 | AP88: 0 | AQ88: 0 | AR88: 0 | AS88: 0 | AT88: 0 | AU88: 0 | AV88: 0 | AW88: 0 | AX88: 0 | AY88: 0 | AZ88: 0 | BA88: 0
B89: Cash Flow from Operations | H89: =SUM(H81:H88) -> 0 | I89: 0 | J89: 0 | K89: 0 | L89: 0 | M89: -39.39154478 | N89: 4723.186375 | O89: 13821.32141 | P89: 14094.96155 | Q89: 14284.98056 | R89: 14482.75827 | S89: 14755.29116 | T89: 14956.04778 | U89: 15134.44947 | V89: 15332.97616 | W89: 15524.07422 | X89: 15733.54021 | Y89: 15935.38808 | Z89: 16153.50616 | AA89: 16357.25237 | AB89: 16580.92546 | AC89: 16814.13133 | AD89: 17065.16848 | AE89: 17299.87918 | AF89: 17548.45166 | AG89: 17784.16156 | AH89: 18033.60844 | AI89: 18267.7287 | AJ89: 18520.78032 | AK89: 18764.72931 | AL89: 19027.47555 | AM89: 13090.42276 | AN89: 0 | AO89: 0 | AP89: 0 | AQ89: 0 | AR89: 0 | AS89: 0 | AT89: 0 | AU89: 0 | AV89: 0 | AW89: 0 | AX89: 0 | AY89: 0 | AZ89: 0 | BA89: 0
B91: Capital Additions | H91: -1e-08 | I91: =-CapEx!E165 -> 0 | J91: =-CapEx!F165 -> 0 | K91: =-CapEx!G165 -> 0 | L91: =-CapEx!H165 -> -105824.0786 | M91: =-CapEx!I165 -> -104228.1389 | N91: 0 | O91: 0 | P91: 0 | Q91: 0 | R91: 0 | S91: 0 | T91: 0 | U91: 0 | V91: 0 | W91: 0 | X91: 0 | Y91: 0 | Z91: 0 | AA91: 0 | AB91: 0 | AC91: 0 | AD91: 0 | AE91: 0 | AF91: 0 | AG91: 0 | AH91: 0 | AI91: 0 | AJ91: 0 | AK91: 0 | AL91: 0 | AM91: 0 | AN91: 0 | AO91: 0 | AP91: 0 | AQ91: 0 | AR91: 0 | AS91: 0 | AT91: 0 | AU91: 0 | AV91: 0 | AW91: 0 | AX91: 0 | AY91: 0 | AZ91: 0 | BA91: 0
B92: Other | H92: 0 | I92: 0 | J92: 0 | K92: 0 | L92: 0 | M92: 0 | N92: 0 | O92: 0 | P92: 0 | Q92: 0 | R92: 0 | S92: 0 | T92: 0 | U92: 0 | V92: 0 | W92: 0 | X92: 0 | Y92: 0 | Z92: 0 | AA92: 0 | AB92: 0 | AC92: 0 | AD92: 0 | AE92: 0 | AF92: 0 | AG92: 0 | AH92: 0 | AI92: 0 | AJ92: 0 | AK92: 0 | AL92: 0 | AM92: 0 | AN92: 0 | AO92: 0 | AP92: 0 | AQ92: 0 | AR92: 0 | AS92: 0 | AT92: 0 | AU92: 0 | AV92: 0 | AW92: 0 | AX92: 0 | AY92: 0 | AZ92: 0 | BA92: 0
B93: Other | H93: 0 | I93: 0 | J93: 0 | K93: 0 | L93: 0 | M93: 0 | N93: 0 | O93: 0 | P93: 0 | Q93: 0 | R93: 0 | S93: 0 | T93: 0 | U93: 0 | V93: 0 | W93: 0 | X93: 0 | Y93: 0 | Z93: 0 | AA93: 0 | AB93: 0 | AC93: 0 | AD93: 0 | AE93: 0 | AF93: 0 | AG93: 0 | AH93: 0 | AI93: 0 | AJ93: 0 | AK93: 0 | AL93: 0 | AM93: 0 | AN93: 0 | AO93: 0 | AP93: 0 | AQ93: 0 | AR93: 0 | AS93: 0 | AT93: 0 | AU93: 0 | AV93: 0 | AW93: 0 | AX93: 0 | AY93: 0 | AZ93: 0 | BA93: 0
B94: Cash Flows from Investment | H94: =SUM(H91:H93) -> -1e-08 | I94: 0 | J94: 0 | K94: 0 | L94: -105824.0786 | M94: -104228.1389 | N94: 0 | O94: 0 | P94: 0 | Q94: 0 | R94: 0 | S94: 0 | T94: 0 | U94: 0 | V94: 0 | W94: 0 | X94: 0 | Y94: 0 | Z94: 0 | AA94: 0 | AB94: 0 | AC94: 0 | AD94: 0 | AE94: 0 | AF94: 0 | AG94: 0 | AH94: 0 | AI94: 0 | AJ94: 0 | AK94: 0 | AL94: 0 | AM94: 0 | AN94: 0 | AO94: 0 | AP94: 0 | AQ94: 0 | AR94: 0 | AS94: 0 | AT94: 0 | AU94: 0 | AV94: 0 | AW94: 0 | AX94: 0 | AY94: 0 | AZ94: 0 | BA94: 0
B96: Contributions | H96: =-H91 -> 1e-08 | I96: 0 | J96: 0 | K96: 0 | L96: 105824.0786 | M96: 104228.1389 | N96: 0 | O96: 0 | P96: 0 | Q96: 0 | R96: 0 | S96: 0 | T96: 0 | U96: 0 | V96: 0 | W96: 0 | X96: 0 | Y96: 0 | Z96: 0 | AA96: 0 | AB96: 0 | AC96: 0 | AD96: 0 | AE96: 0 | AF96: 0 | AG96: 0 | AH96: 0 | AI96: 0 | AJ96: 0 | AK96: 0 | AL96: 0 | AM96: 0 | AN96: 0 | AO96: 0 | AP96: 0 | AQ96: 0 | AR96: 0 | AS96: 0 | AT96: 0 | AU96: 0 | AV96: 0 | AW96: 0 | AX96: 0 | AY96: 0 | AZ96: 0 | BA96: 0
B97: Distributions | H97: =-H106-H96 -> 0 | I97: 0 | J97: 0 | K97: 0 | L97: 0 | M97: 39.39154478 | N97: -4709.995769 | O97: -13820.85974 | P97: -14094.48373 | Q97: -14284.48601 | R97: -14482.2464 | S97: -14754.76138 | T97: -14955.49946 | U97: -15133.88196 | V97: -15332.38879 | W97: -15523.46628 | X97: -15732.911 | Y97: -15934.73685 | Z97: -16152.83214 | AA97: -16356.55475 | AB97: -16580.20342 | AC97: -16813.38402 | AD97: -17064.39502 | AE97: -17299.07864 | AF97: -17547.62311 | AG97: -17783.30401 | AH97: -18032.72088 | AI97: -18266.81007 | AJ97: -18519.82954 | AK97: -18763.74525 | AL97: -19026.45705 | AM97: -13120.54125 | AN97: 0 | AO97: 0 | AP97: 0 | AQ97: 0 | AR97: 0 | AS97: 0 | AT97: 0 | AU97: 0 | AV97: 0 | AW97: 0 | AX97: 0 | AY97: 0 | AZ97: 0 | BA97: 0
B98: Cash Flows from Financing | H98: =SUM(H96:H97) -> 1e-08 | I98: 0 | J98: 0 | K98: 0 | L98: 105824.0786 | M98: 104267.5305 | N98: -4709.995769 | O98: -13820.85974 | P98: -14094.48373 | Q98: -14284.48601 | R98: -14482.2464 | S98: -14754.76138 | T98: -14955.49946 | U98: -15133.88196 | V98: -15332.38879 | W98: -15523.46628 | X98: -15732.911 | Y98: -15934.73685 | Z98: -16152.83214 | AA98: -16356.55475 | AB98: -16580.20342 | AC98: -16813.38402 | AD98: -17064.39502 | AE98: -17299.07864 | AF98: -17547.62311 | AG98: -17783.30401 | AH98: -18032.72088 | AI98: -18266.81007 | AJ98: -18519.82954 | AK98: -18763.74525 | AL98: -19026.45705 | AM98: -13120.54125 | AN98: 0 | AO98: 0 | AP98: 0 | AQ98: 0 | AR98: 0 | AS98: 0 | AT98: 0 | AU98: 0 | AV98: 0 | AW98: 0 | AX98: 0 | AY98: 0 | AZ98: 0 | BA98: 0
B100: Beginning Cash Balance | H100: 0 | I100: =G102 -> 0 | J100: =I102 -> 0 | K100: 0 | L100: 0 | M100: 0 | N100: 0 | O100: 13.19060603 | P100: 13.65227724 | Q100: 14.13010695 | R100: 14.62466069 | S100: 15.13652381 | T100: 15.66630215 | U100: 16.21462272 | V100: 16.78213452 | W100: 17.36950923 | X100: 17.97744205 | Y100: 18.60665252 | Z100: 19.25788536 | AA100: 19.93191135 | AB100: 20.62952824 | AC100: 21.35156173 | AD100: 22.09886639 | AE100: 22.87232672 | AF100: 23.67285815 | AG100: 24.50140819 | AH100: 25.35895747 | AI100: 26.24652099 | AJ100: 27.16514922 | AK100: 28.11592944 | AL100: 29.09998697 | AM100: 30.11848652 | AN100: 0 | AO100: 0 | AP100: 0 | AQ100: 0 | AR100: 0 | AS100: 0 | AT100: 0 | AU100: 0 | AV100: 0 | AW100: 0 | AX100: 0 | AY100: 0 | AZ100: 0 | BA100: 0
B101: Net Change in Cash | H101: =H89+H94+H98 -> 0 | I101: 0 | J101: 0 | K101: 0 | L101: 0 | M101: 0 | N101: 13.19060603 | O101: 0.4616712111 | P101: 0.4778297035 | Q101: 0.4945537432 | R101: 0.5118631242 | S101: 0.5297783335 | T101: 0.5483205752 | U101: 0.5675117953 | V101: 0.5873747082 | W101: 0.6079328229 | X101: 0.6292104717 | Y101: 0.6512328383 | Z101: 0.6740259876 | AA101: 0.6976168972 | AB101: 0.7220334886 | AC101: 0.7473046607 | AD101: 0.7734603238 | AE101: 0.8005314351 | AF101: 0.8285500353 | AG101: 0.8575492866 | AH101: 0.8875635116 | AI101: 0.9186282345 | AJ101: 0.9507802227 | AK101: 0.9840575305 | AL101: 1.018499544 | AM101: -30.11848652 | AN101: 0 | AO101: 0 | AP101: 0 | AQ101: 0 | AR101: 0 | AS101: 0 | AT101: 0 | AU101: 0 | AV101: 0 | AW101: 0 | AX101: 0 | AY101: 0 | AZ101: 0 | BA101: 0
B102: Ending Cash Balance | H102: =SUM(H100:H101) -> 0 | I102: 0 | J102: 0 | K102: 0 | L102: 0 | M102: 0 | N102: 13.19060603 | O102: 13.65227724 | P102: 14.13010695 | Q102: 14.62466069 | R102: 15.13652381 | S102: 15.66630215 | T102: 16.21462272 | U102: 16.78213452 | V102: 17.36950923 | W102: 17.97744205 | X102: 18.60665252 | Y102: 19.25788536 | Z102: 19.93191135 | AA102: 20.62952824 | AB102: 21.35156173 | AC102: 22.09886639 | AD102: 22.87232672 | AE102: 23.67285815 | AF102: 24.50140819 | AG102: 25.35895747 | AH102: 26.24652099 | AI102: 27.16514922 | AJ102: 28.11592944 | AK102: 29.09998697 | AL102: 30.11848652 | AM102: 0 | AN102: 0 | AO102: 0 | AP102: 0 | AQ102: 0 | AR102: 0 | AS102: 0 | AT102: 0 | AU102: 0 | AV102: 0 | AW102: 0 | AX102: 0 | AY102: 0 | AZ102: 0 | BA102: 0
E103: Days | F103: $000's
B104: Target Working Capital | E104: 15 | F104: 0 | H104: 0 | I104: 0 | J104: 0 | K104: 0 | L104: 0 | M104: 0 | N104: =IF(O$13=0,0,SUMPRODUCT($F$29:$F$42,-O$29:O$42)*($E104/(365*O$13)))+$F104 -> 13.19060603 | O104: 13.65227724 | P104: 14.13010695 | Q104: 14.62466069 | R104: 15.13652381 | S104: 15.66630215 | T104: 16.21462272 | U104: 16.78213452 | V104: 17.36950923 | W104: 17.97744205 | X104: 18.60665252 | Y104: 19.25788536 | Z104: 19.93191135 | AA104: 20.62952824 | AB104: 21.35156173 | AC104: 22.09886639 | AD104: 22.87232672 | AE104: 23.67285815 | AF104: 24.50140819 | AG104: 25.35895747 | AH104: 26.24652099 | AI104: 27.16514922 | AJ104: 28.11592944 | AK104: 29.09998697 | AL104: 30.11848652 | AM104: 0 | AN104: 0 | AO104: 0 | AP104: 0 | AQ104: 0 | AR104: 0 | AS104: 0 | AT104: 0 | AU104: 0 | AV104: 0 | AW104: 0 | AX104: 0 | AY104: 0 | AZ104: 0 | BA104: 0
B106: Pre-Tax Cash Available / (Required) | H106: =H89+H94+H100-H104 -> -1e-08 | I106: 0 | J106: 0 | K106: 0 | L106: -105824.0786 | M106: -104267.5305 | N106: 4709.995769 | O106: 13820.85974 | P106: 14094.48373 | Q106: 14284.48601 | R106: 14482.2464 | S106: 14754.76138 | T106: 14955.49946 | U106: 15133.88196 | V106: 15332.38879 | W106: 15523.46628 | X106: 15732.911 | Y106: 15934.73685 | Z106: 16152.83214 | AA106: 16356.55475 | AB106: 16580.20342 | AC106: 16813.38402 | AD106: 17064.39502 | AE106: 17299.07864 | AF106: 17547.62311 | AG106: 17783.30401 | AH106: 18032.72088 | AI106: 18266.81007 | AJ106: 18519.82954 | AK106: 18763.74525 | AL106: 19026.45705 | AM106: 13120.54125 | AN106: 0 | AO106: 0 | AP106: 0 | AQ106: 0 | AR106: 0 | AS106: 0 | AT106: 0 | AU106: 0 | AV106: 0 | AW106: 0 | AX106: 0 | AY106: 0 | AZ106: 0 | BA106: 0
B109: INCOME TAX
D111: Fed | E111: State | F111: Eff
B112: Effective Tax Rate | D112: 0.35 | E112: 0.042 | F112: =D112+E112*(1-D112) -> 0.3773 | H112: =$F112 -> 0.3773 | I112: 0.3773 | J112: 0.3773 | K112: 0.3773 | L112: 0.3773 | M112: 0.3773 | N112: 0.3773 | O112: 0.3773 | P112: 0.3773 | Q112: 0.3773 | R112: 0.3773 | S112: 0.3773 | T112: 0.3773 | U112: 0.3773 | V112: 0.3773 | W112: 0.3773 | X112: 0.3773 | Y112: 0.3773 | Z112: 0.3773 | AA112: 0.3773 | AB112: 0.3773 | AC112: 0.3773 | AD112: 0.3773 | AE112: 0.3773 | AF112: 0.3773 | AG112: 0.3773 | AH112: 0.3773 | AI112: 0.3773 | AJ112: 0.3773 | AK112: 0.3773 | AL112: 0.3773 | AM112: 0.3773 | AN112: 0.3773 | AO112: 0.3773 | AP112: 0.3773 | AQ112: 0.3773 | AR112: 0.3773 | AS112: 0.3773 | AT112: 0.3773 | AU112: 0.3773 | AV112: 0.3773 | AW112: 0.3773 | AX112: 0.3773 | AY112: 0.3773 | AZ112: 0.3773 | BA112: 0.3773
E113: (unitary)
B114: State
B115: Pre-Tax Income | H115: =H$81 -> 0 | I115: 0 | J115: 0 | K115: 0 | L115: 0 | M115: -39.39154478 | N115: 2993.446873 | O115: 6792.045562 | P115: 7121.198024 | Q115: 7298.792533 | R115: 7498.414127 | S115: 7777.51411 | T115: 7971.293952 | U115: 8148.358897 | V115: 8348.849353 | W115: 8539.14958 | X115: 8750.376712 | Y115: 8951.431017 | Z115: 9171.125184 | AA115: 9373.49288 | AB115: 9599.125323 | AC115: 9833.062619 | AD115: 10085.68617 | AE115: 10318.84972 | AF115: 10568.8611 | AG115: 10803.35133 | AH115: 11054.20081 | AI115: 11286.88833 | AJ115: 11541.83129 | AK115: 11784.86581 | AL115: -27043.602 | AM115: 11466.37153 | AN115: 0 | AO115: 0 | AP115: 0 | AQ115: 0 | AR115: 0 | AS115: 0 | AT115: 0 | AU115: 0 | AV115: 0 | AW115: 0 | AX115: 0 | AY115: 0 | AZ115: 0 | BA115: 0
B116: Addback: Book Depreciation | H116: =-H$46 -> 0 | I116: 0 | J116: 0 | K116: 0 | L116: 0 | M116: 0 | N116: 2917.3919 | O116: 7001.7405 | P116: 7001.7405 | Q116: 7001.7405 | R116: 7001.7405 | S116: 7001.7405 | T116: 7001.7405 | U116: 7001.7405 | V116: 7001.7405 | W116: 7001.7405 | X116: 7001.7405 | Y116: 7001.7405 | Z116: 7001.7405 | AA116: 7001.7405 | AB116: 7001.7405 | AC116: 7001.7405 | AD116: 7001.7405 | AE116: 7001.7405 | AF116: 7001.7405 | AG116: 7001.7405 | AH116: 7001.7405 | AI116: 7001.7405 | AJ116: 7001.7405 | AK116: 7001.7405 | AL116: 46094.7923 | AM116: 0 | AN116: 0 | AO116: 0 | AP116: 0 | AQ116: 0 | AR116: 0 | AS116: 0 | AT116: 0 | AU116: 0 | AV116: 0 | AW116: 0 | AX116: 0 | AY116: 0 | AZ116: 0 | BA116: 0
B117: Deduct: Tax Depreciation - State | H117: 0 | I117: 0 | J117: 0 | K117: 0 | L117: 0 | M117: =-Depr!M9 -> 0 | N117: =-Depr!N9 -> -90073.52017 | O117: =-Depr!O9 -> -11193.9149 | P117: =-Depr!P9 -> -9803.9617 | Q117: =-Depr!Q9 -> -8586.8242 | R117: =-Depr!R9 -> -7520.9929 | S117: =-Depr!S9 -> -7010.5672 | T117: =-Depr!T9 -> -6997.7405 | U117: =-Depr!U9 -> -6997.7405 | V117: =-Depr!V9 -> -6997.7405 | W117: =-Depr!W9 -> -6997.7405 | X117: =-Depr!X9 -> -6997.7405 | Y117: =-Depr!Y9 -> -6997.7405 | Z117: =-Depr!Z9 -> -3614.31 | AA117: =-Depr!AA9 -> -230.8795 | AB117: =-Depr!AB9 -> -230.8795 | AC117: =-Depr!AC9 -> -115.4398 | AD117: =-Depr!AD9 -> 0 | AE117: =-Depr!AE9 -> 0 | AF117: =-Depr!AF9 -> 0 | AG117: =-Depr!AG9 -> 0 | AH117: =-Depr!AH9 -> 0 | AI117: =-Depr!AI9 -> 0 | AJ117: =-Depr!AJ9 -> 0 | AK117: =-Depr!AK9 -> 0 | AL117: =-Depr!AL9 -> 0 | AM117: =-Depr!AM9 -> 0 | AN117: =-Depr!AN9 -> 0 | AO117: =-Depr!AO9 -> 0 | AP117: =-Depr!AP9 -> 0 | AQ117: =-Depr!AQ9 -> 0 | AR117: =-Depr!AR9 -> 0 | AS117: =-Depr!AS9 -> 0 | AT117: =-Depr!AT9 -> 0 | AU117: =-Depr!AU9 -> 0 | AV117: =-Depr!AV9 -> 0 | AW117: =-Depr!AW9 -> 0 | AX117: =-Depr!AX9 -> 0 | AY117: =-Depr!AY9 -> 0 | AZ117: =-Depr!AZ9 -> 0 | BA117: =-Depr!BA9 -> 0
B118: State Taxable Income | H118: =SUM(H115:H117) -> 0 | I118: 0 | J118: 0 | K118: 0 | L118: 0 | M118: -39.39154478 | N118: -84162.68139 | O118: 2599.871162 | P118: 4318.976824 | Q118: 5713.708833 | R118: 6979.161727 | S118: 7768.68741 | T118: 7975.293952 | U118: 8152.358897 | V118: 8352.849353 | W118: 8543.14958 | X118: 8754.376712 | Y118: 8955.431017 | Z118: 12558.55568 | AA118: 16144.35388 | AB118: 16369.98632 | AC118: 16719.36332 | AD118: 17087.42667 | AE118: 17320.59022 | AF118: 17570.6016 | AG118: 17805.09183 | AH118: 18055.94131 | AI118: 18288.62883 | AJ118: 18543.57179 | AK118: 18786.60631 | AL118: 19051.1903 | AM118: 11466.37153 | AN118: 0 | AO118: 0 | AP118: 0 | AQ118: 0 | AR118: 0 | AS118: 0 | AT118: 0 | AU118: 0 | AV118: 0 | AW118: 0 | AX118: 0 | AY118: 0 | AZ118: 0 | BA118: 0
B120: NOL - Roll Forward
B121: Beg Balance | E121: on/off | F121: Roll Off | G121: Beg : | H121: 0 | I121: =H125 -> 0 | J121: 0 | K121: 0 | L121: 0 | M121: 0 | N121: 39.39154478 | O121: 84202.07294 | P121: 81602.20178 | Q121: 0 | R121: 0 | S121: 0 | T121: 0 | U121: 0 | V121: 0 | W121: 0 | X121: 0 | Y121: 0 | Z121: 0 | AA121: 0 | AB121: 0 | AC121: 0 | AD121: 0 | AE121: 0 | AF121: 0 | AG121: 0 | AH121: 0 | AI121: 0 | AJ121: 0 | AK121: 0 | AL121: 0 | AM121: 0 | AN121: 0 | AO121: 0 | AP121: 0 | AQ121: 0 | AR121: 0 | AS121: 0 | AT121: 0 | AU121: 0 | AV121: 0 | AW121: 0 | AX121: 0 | AY121: 0 | AZ121: 0 | BA121: 0
B122: Additions | E122: =Scen!G21 -> 1 | F122: 2014 | G122: Addn's : | H122: =-MIN(H118,0)*($F122>H$4)*$E122 -> 0 | I122: 0 | J122: 0 | K122: 0 | L122: 0 | M122: 39.39154478 | N122: 84162.68139 | O122: 0 | P122: 0 | Q122: 0 | R122: 0 | S122: 0 | T122: 0 | U122: 0 | V122: 0 | W122: 0 | X122: 0 | Y122: 0 | Z122: 0 | AA122: 0 | AB122: 0 | AC122: 0 | AD122: 0 | AE122: 0 | AF122: 0 | AG122: 0 | AH122: 0 | AI122: 0 | AJ122: 0 | AK122: 0 | AL122: 0 | AM122: 0 | AN122: 0 | AO122: 0 | AP122: 0 | AQ122: 0 | AR122: 0 | AS122: 0 | AT122: 0 | AU122: 0 | AV122: 0 | AW122: 0 | AX122: 0 | AY122: 0 | AZ122: 0 | BA122: 0
B123: Utilization Group | E123: =E122 -> 1 | F123: =F122 -> 2014 | G123: Util : | H123: =($F123=H$4)*-(H121+H122) -> 0 | I123: 0 | J123: 0 | K123: 0 | L123: 0 | M123: 0 | N123: 0 | O123: 0 | P123: -81602.20178 | Q123: 0 | R123: 0 | S123: 0 | T123: 0 | U123: 0 | V123: 0 | W123: 0 | X123: 0 | Y123: 0 | Z123: 0 | AA123: 0 | AB123: 0 | AC123: 0 | AD123: 0 | AE123: 0 | AF123: 0 | AG123: 0 | AH123: 0 | AI123: 0 | AJ123: 0 | AK123: 0 | AL123: 0 | AM123: 0 | AN123: 0 | AO123: 0 | AP123: 0 | AQ123: 0 | AR123: 0 | AS123: 0 | AT123: 0 | AU123: 0 | AV123: 0 | AW123: 0 | AX123: 0 | AY123: 0 | AZ123: 0 | BA123: 0
B124: Utilization | G124: Util : | H124: =-MIN(MAX(H118,0),SUM(H121:H123)) -> 0 | I124: 0 | J124: 0 | K124: 0 | L124: 0 | M124: 0 | N124: 0 | O124: -2599.871162 | P124: 0 | Q124: 0 | R124: 0 | S124: 0 | T124: 0 | U124: 0 | V124: 0 | W124: 0 | X124: 0 | Y124: 0 | Z124: 0 | AA124: 0 | AB124: 0 | AC124: 0 | AD124: 0 | AE124: 0 | AF124: 0 | AG124: 0 | AH124: 0 | AI124: 0 | AJ124: 0 | AK124: 0 | AL124: 0 | AM124: 0 | AN124: 0 | AO124: 0 | AP124: 0 | AQ124: 0 | AR124: 0 | AS124: 0 | AT124: 0 | AU124: 0 | AV124: 0 | AW124: 0 | AX124: 0 | AY124: 0 | AZ124: 0 | BA124: 0
B125: Ending Balance | G125: End : | H125: =SUM(H121:H124) -> 0 | I125: 0 | J125: 0 | K125: 0 | L125: 0 | M125: 39.39154478 | N125: 84202.07294 | O125: 81602.20178 | P125: 0 | Q125: 0 | R125: 0 | S125: 0 | T125: 0 | U125: 0 | V125: 0 | W125: 0 | X125: 0 | Y125: 0 | Z125: 0 | AA125: 0 | AB125: 0 | AC125: 0 | AD125: 0 | AE125: 0 | AF125: 0 | AG125: 0 | AH125: 0 | AI125: 0 | AJ125: 0 | AK125: 0 | AL125: 0 | AM125: 0 | AN125: 0 | AO125: 0 | AP125: 0 | AQ125: 0 | AR125: 0 | AS125: 0 | AT125: 0 | AU125: 0 | AV125: 0 | AW125: 0 | AX125: 0 | AY125: 0 | AZ125: 0 | BA125: 0
B127: NOL Adjusted State Taxable Income | E127: State | H127: =H118+SUM(H122:H124) -> 0 | I127: 0 | J127: 0 | K127: 0 | L127: 0 | M127: 0 | N127: 0 | O127: 0 | P127: -77283.22495 | Q127: 5713.708833 | R127: 6979.161727 | S127: 7768.68741 | T127: 7975.293952 | U127: 8152.358897 | V127: 8352.849353 | W127: 8543.14958 | X127: 8754.376712 | Y127: 8955.431017 | Z127: 12558.55568 | AA127: 16144.35388 | AB127: 16369.98632 | AC127: 16719.36332 | AD127: 17087.42667 | AE127: 17320.59022 | AF127: 17570.6016 | AG127: 17805.09183 | AH127: 18055.94131 | AI127: 18288.62883 | AJ127: 18543.57179 | AK127: 18786.60631 | AL127: 19051.1903 | AM127: 11466.37153 | AN127: 0 | AO127: 0 | AP127: 0 | AQ127: 0 | AR127: 0 | AS127: 0 | AT127: 0 | AU127: 0 | AV127: 0 | AW127: 0 | AX127: 0 | AY127: 0 | AZ127: 0 | BA127: 0
B128: State Tax Benefit / (Payment) | E128: =E112 -> 0.042 | H128: =-H127*$E128 -> 0 | I128: 0 | J128: 0 | K128: 0 | L128: 0 | M128: 0 | N128: 0 | O128: 0 | P128: 3245.895448 | Q128: -239.975771 | R128: -293.1247925 | S128: -326.2848712 | T128: -334.962346 | U128: -342.3990737 | V128: -350.8196728 | W128: -358.8122824 | X128: -367.6838219 | Y128: -376.1281027 | Z128: -527.4593387 | AA128: -678.062863 | AB128: -687.5394256 | AC128: -702.2132594 | AD128: -717.67192 | AE128: -727.4647894 | AF128: -737.9652673 | AG128: -747.8138568 | AH128: -758.3495349 | AI128: -768.1224107 | AJ128: -778.8300152 | AK128: -789.0374649 | AL128: -800.1499924 | AM128: -481.5876043 | AN128: 0 | AO128: 0 | AP128: 0 | AQ128: 0 | AR128: 0 | AS128: 0 | AT128: 0 | AU128: 0 | AV128: 0 | AW128: 0 | AX128: 0 | AY128: 0 | AZ128: 0 | BA128: 0
B130: State Investment Tax Credit | E130: on/off | F130: Thru
B131: Qualified State Tax Income | E131: 0 | F131: 2022 | H131: =MAX(H118,0)*($F131>=H$4)*$E131 -> 0 | I131: 0 | J131: 0 | K131: 0 | L131: 0 | M131: 0 | N131: 0 | O131: 0 | P131: 0 | Q131: 0 | R131: 0 | S131: 0 | T131: 0 | U131: 0 | V131: 0 | W131: 0 | X131: 0 | Y131: 0 | Z131: 0 | AA131: 0 | AB131: 0 | AC131: 0 | AD131: 0 | AE131: 0 | AF131: 0 | AG131: 0 | AH131: 0 | AI131: 0 | AJ131: 0 | AK131: 0 | AL131: 0 | AM131: 0 | AN131: 0 | AO131: 0 | AP131: 0 | AQ131: 0 | AR131: 0 | AS131: 0 | AT131: 0 | AU131: 0 | AV131: 0 | AW131: 0 | AX131: 0 | AY131: 0 | AZ131: 0 | BA131: 0
B132: State State Tax Rate | E132: 0.07 | H132: =$E132 -> 0.07 | I132: 0.07 | J132: 0.07 | K132: 0.07 | L132: 0.07 | M132: 0.07 | N132: 0.07 | O132: 0.07 | P132: 0.07 | Q132: 0.07 | R132: 0.07 | S132: 0.07 | T132: 0.07 | U132: 0.07 | V132: 0.07 | W132: 0.07 | X132: 0.07 | Y132: 0.07 | Z132: 0.07 | AA132: 0.07 | AB132: 0.07 | AC132: 0.07 | AD132: 0.07 | AE132: 0.07 | AF132: 0.07 | AG132: 0.07 | AH132: 0.07 | AI132: 0.07 | AJ132: 0.07 | AK132: 0.07 | AL132: 0.07 | AM132: 0.07 | AN132: 0.07 | AO132: 0.07 | AP132: 0.07 | AQ132: 0.07 | AR132: 0.07 | AS132: 0.07 | AT132: 0.07 | AU132: 0.07 | AV132: 0.07 | AW132: 0.07 | AX132: 0.07 | AY132: 0.07 | AZ132: 0.07 | BA132: 0.07
B133: State Tax Credit Adjustment | H133: =H131*H132 -> 0 | I133: 0 | J133: 0 | K133: 0 | L133: 0 | M133: 0 | N133: 0 | O133: 0 | P133: 0 | Q133: 0 | R133: 0 | S133: 0 | T133: 0 | U133: 0 | V133: 0 | W133: 0 | X133: 0 | Y133: 0 | Z133: 0 | AA133: 0 | AB133: 0 | AC133: 0 | AD133: 0 | AE133: 0 | AF133: 0 | AG133: 0 | AH133: 0 | AI133: 0 | AJ133: 0 | AK133: 0 | AL133: 0 | AM133: 0 | AN133: 0 | AO133: 0 | AP133: 0 | AQ133: 0 | AR133: 0 | AS133: 0 | AT133: 0 | AU133: 0 | AV133: 0 | AW133: 0 | AX133: 0 | AY133: 0 | AZ133: 0 | BA133: 0
B135: State Investment Tax Credit - Roll Forward
B136: Beg Balance | H136: 0 | I136: =H139 -> 0 | J136: 0 | K136: 0 | L136: 0 | M136: 0 | N136: 0 | O136: 0 | P136: 0 | Q136: 0 | R136: 0 | S136: 0 | T136: 0 | U136: 0 | V136: 0 | W136: 0 | X136: 0 | Y136: 0 | Z136: 0 | AA136: 0 | AB136: 0 | AC136: 0 | AD136: 0 | AE136: 0 | AF136: 0 | AG136: 0 | AH136: 0 | AI136: 0 | AJ136: 0 | AK136: 0 | AL136: 0 | AM136: 0 | AN136: 0 | AO136: 0 | AP136: 0 | AQ136: 0 | AR136: 0 | AS136: 0 | AT136: 0 | AU136: 0 | AV136: 0 | AW136: 0 | AX136: 0 | AY136: 0 | AZ136: 0 | BA136: 0
B137: Additions | H137: =H133 -> 0 | I137: 0 | J137: 0 | K137: 0 | L137: 0 | M137: 0 | N137: 0 | O137: 0 | P137: 0 | Q137: 0 | R137: 0 | S137: 0 | T137: 0 | U137: 0 | V137: 0 | W137: 0 | X137: 0 | Y137: 0 | Z137: 0 | AA137: 0 | AB137: 0 | AC137: 0 | AD137: 0 | AE137: 0 | AF137: 0 | AG137: 0 | AH137: 0 | AI137: 0 | AJ137: 0 | AK137: 0 | AL137: 0 | AM137: 0 | AN137: 0 | AO137: 0 | AP137: 0 | AQ137: 0 | AR137: 0 | AS137: 0 | AT137: 0 | AU137: 0 | AV137: 0 | AW137: 0 | AX137: 0 | AY137: 0 | AZ137: 0 | BA137: 0
B138: Utilization | H138: =IF(SUM(H136:H137)>-H128, MIN(H128,0),-SUM(H136:H137)) -> 0 | I138: 0 | J138: 0 | K138: 0 | L138: 0 | M138: 0 | N138: 0 | O138: 0 | P138: 0 | Q138: 0 | R138: 0 | S138: 0 | T138: 0 | U138: 0 | V138: 0 | W138: 0 | X138: 0 | Y138: 0 | Z138: 0 | AA138: 0 | AB138: 0 | AC138: 0 | AD138: 0 | AE138: 0 | AF138: 0 | AG138: 0 | AH138: 0 | AI138: 0 | AJ138: 0 | AK138: 0 | AL138: 0 | AM138: 0 | AN138: 0 | AO138: 0 | AP138: 0 | AQ138: 0 | AR138: 0 | AS138: 0 | AT138: 0 | AU138: 0 | AV138: 0 | AW138: 0 | AX138: 0 | AY138: 0 | AZ138: 0 | BA138: 0
B139: Ending Balance | H139: =SUM(H136:H138) -> 0 | I139: 0 | J139: 0 | K139: 0 | L139: 0 | M139: 0 | N139: 0 | O139: 0 | P139: 0 | Q139: 0 | R139: 0 | S139: 0 | T139: 0 | U139: 0 | V139: 0 | W139: 0 | X139: 0 | Y139: 0 | Z139: 0 | AA139: 0 | AB139: 0 | AC139: 0 | AD139: 0 | AE139: 0 | AF139: 0 | AG139: 0 | AH139: 0 | AI139: 0 | AJ139: 0 | AK139: 0 | AL139: 0 | AM139: 0 | AN139: 0 | AO139: 0 | AP139: 0 | AQ139: 0 | AR139: 0 | AS139: 0 | AT139: 0 | AU139: 0 | AV139: 0 | AW139: 0 | AX139: 0 | AY139: 0 | AZ139: 0 | BA139: 0
B141: State Tax Benefit / (Payment) | H141: =H128+H133 -> 0 | I141: 0 | J141: 0 | K141: 0 | L141: 0 | M141: 0 | N141: 0 | O141: 0 | P141: 3245.895448 | Q141: -239.975771 | R141: -293.1247925 | S141: -326.2848712 | T141: -334.962346 | U141: -342.3990737 | V141: -350.8196728 | W141: -358.8122824 | X141: -367.6838219 | Y141: -376.1281027 | Z141: -527.4593387 | AA141: -678.062863 | AB141: -687.5394256 | AC141: -702.2132594 | AD141: -717.67192 | AE141: -727.4647894 | AF141: -737.9652673 | AG141: -747.8138568 | AH141: -758.3495349 | AI141: -768.1224107 | AJ141: -778.8300152 | AK141: -789.0374649 | AL141: -800.1499924 | AM141: -481.5876043 | AN141: 0 | AO141: 0 | AP141: 0 | AQ141: 0 | AR141: 0 | AS141: 0 | AT141: 0 | AU141: 0 | AV141: 0 | AW141: 0 | AX141: 0 | AY141: 0 | AZ141: 0 | BA141: 0
B145: Federal
B146: Pre-Tax Income | H146: =H$81 -> 0 | I146: 0 | J146: 0 | K146: 0 | L146: 0 | M146: -39.39154478 | N146: 2993.446873 | O146: 6792.045562 | P146: 7121.198024 | Q146: 7298.792533 | R146: 7498.414127 | S146: 7777.51411 | T146: 7971.293952 | U146: 8148.358897 | V146: 8348.849353 | W146: 8539.14958 | X146: 8750.376712 | Y146: 8951.431017 | Z146: 9171.125184 | AA146: 9373.49288 | AB146: 9599.125323 | AC146: 9833.062619 | AD146: 10085.68617 | AE146: 10318.84972 | AF146: 10568.8611 | AG146: 10803.35133 | AH146: 11054.20081 | AI146: 11286.88833 | AJ146: 11541.83129 | AK146: 11784.86581 | AL146: -27043.602 | AM146: 11466.37153 | AN146: 0 | AO146: 0 | AP146: 0 | AQ146: 0 | AR146: 0 | AS146: 0 | AT146: 0 | AU146: 0 | AV146: 0 | AW146: 0 | AX146: 0 | AY146: 0 | AZ146: 0 | BA146: 0
B147: Addback: Book Depreciation | H147: =-H$46 -> 0 | I147: 0 | J147: 0 | K147: 0 | L147: 0 | M147: 0 | N147: 2917.3919 | O147: 7001.7405 | P147: 7001.7405 | Q147: 7001.7405 | R147: 7001.7405 | S147: 7001.7405 | T147: 7001.7405 | U147: 7001.7405 | V147: 7001.7405 | W147: 7001.7405 | X147: 7001.7405 | Y147: 7001.7405 | Z147: 7001.7405 | AA147: 7001.7405 | AB147: 7001.7405 | AC147: 7001.7405 | AD147: 7001.7405 | AE147: 7001.7405 | AF147: 7001.7405 | AG147: 7001.7405 | AH147: 7001.7405 | AI147: 7001.7405 | AJ147: 7001.7405 | AK147: 7001.7405 | AL147: 46094.7923 | AM147: 0 | AN147: 0 | AO147: 0 | AP147: 0 | AQ147: 0 | AR147: 0 | AS147: 0 | AT147: 0 | AU147: 0 | AV147: 0 | AW147: 0 | AX147: 0 | AY147: 0 | AZ147: 0 | BA147: 0
B148: Deduct: State Tax Benefit / (Payment) | H148: =H141 -> 0 | I148: 0 | J148: 0 | K148: 0 | L148: 0 | M148: 0 | N148: 0 | O148: 0 | P148: 3245.895448 | Q148: -239.975771 | R148: -293.1247925 | S148: -326.2848712 | T148: -334.962346 | U148: -342.3990737 | V148: -350.8196728 | W148: -358.8122824 | X148: -367.6838219 | Y148: -376.1281027 | Z148: -527.4593387 | AA148: -678.062863 | AB148: -687.5394256 | AC148: -702.2132594 | AD148: -717.67192 | AE148: -727.4647894 | AF148: -737.9652673 | AG148: -747.8138568 | AH148: -758.3495349 | AI148: -768.1224107 | AJ148: -778.8300152 | AK148: -789.0374649 | AL148: -800.1499924 | AM148: -481.5876043 | AN148: 0 | AO148: 0 | AP148: 0 | AQ148: 0 | AR148: 0 | AS148: 0 | AT148: 0 | AU148: 0 | AV148: 0 | AW148: 0 | AX148: 0 | AY148: 0 | AZ148: 0 | BA148: 0
B149: Deduct: Tax Depreciation - Federal | H149: 0 | I149: 0 | J149: 0 | K149: 0 | L149: 0 | M149: =-Depr!M8 -> 0 | N149: =-Depr!N8 -> -102771.883 | O149: =-Depr!O8 -> -29923.9999 | P149: =-Depr!P8 -> -18065.834 | Q149: =-Depr!Q8 -> -10939.7911 | R149: =-Depr!R8 -> -10909.7039 | S149: =-Depr!S8 -> -5563.1657 | T149: =-Depr!T8 -> -230.8795 | U149: =-Depr!U8 -> -230.8795 | V149: =-Depr!V8 -> -230.8795 | W149: =-Depr!W8 -> -230.8795 | X149: =-Depr!X8 -> -230.8795 | Y149: =-Depr!Y8 -> -230.8795 | Z149: =-Depr!Z8 -> -230.8795 | AA149: =-Depr!AA8 -> -230.8795 | AB149: =-Depr!AB8 -> -230.8795 | AC149: =-Depr!AC8 -> -115.4398 | AD149: =-Depr!AD8 -> 0 | AE149: =-Depr!AE8 -> 0 | AF149: =-Depr!AF8 -> 0 | AG149: =-Depr!AG8 -> 0 | AH149: =-Depr!AH8 -> 0 | AI149: =-Depr!AI8 -> 0 | AJ149: =-Depr!AJ8 -> 0 | AK149: =-Depr!AK8 -> 0 | AL149: =-Depr!AL8 -> 0 | AM149: =-Depr!AM8 -> 0 | AN149: =-Depr!AN8 -> 0 | AO149: =-Depr!AO8 -> 0 | AP149: =-Depr!AP8 -> 0 | AQ149: =-Depr!AQ8 -> 0 | AR149: =-Depr!AR8 -> 0 | AS149: =-Depr!AS8 -> 0 | AT149: =-Depr!AT8 -> 0 | AU149: =-Depr!AU8 -> 0 | AV149: =-Depr!AV8 -> 0 | AW149: =-Depr!AW8 -> 0 | AX149: =-Depr!AX8 -> 0 | AY149: =-Depr!AY8 -> 0 | AZ149: =-Depr!AZ8 -> 0 | BA149: =-Depr!BA8 -> 0
B150: Fed Taxable Income | E150: Fed | H150: =SUM(H146:H149) -> 0 | I150: 0 | J150: 0 | K150: 0 | L150: 0 | M150: -39.39154478 | N150: -96861.04419 | O150: -16130.21384 | P150: -697.0000277 | Q150: 3120.766162 | R150: 3297.325935 | S150: 8889.804039 | T150: 14407.19261 | U150: 14576.82082 | V150: 14768.89068 | W150: 14951.1983 | X150: 15153.55389 | Y150: 15346.16391 | Z150: 15414.52685 | AA150: 15466.29102 | AB150: 15682.4469 | AC150: 16017.15006 | AD150: 16369.75475 | AE150: 16593.12543 | AF150: 16832.63633 | AG150: 17057.27797 | AH150: 17297.59177 | AI150: 17520.50642 | AJ150: 17764.74177 | AK150: 17997.56884 | AL150: 18251.0403 | AM150: 10984.78393 | AN150: 0 | AO150: 0 | AP150: 0 | AQ150: 0 | AR150: 0 | AS150: 0 | AT150: 0 | AU150: 0 | AV150: 0 | AW150: 0 | AX150: 0 | AY150: 0 | AZ150: 0 | BA150: 0
B152: Beg NOL Balance | E152: on/off | F152: Roll Off | G152: Beg : | H152: 0 | I152: =H156 -> 0 | J152: 0 | K152: 0 | L152: 0 | M152: 0 | N152: 39.39154478 | O152: 96900.43574 | P152: 113030.6496 | Q152: 0 | R152: 0 | S152: 0 | T152: 0 | U152: 0 | V152: 0 | W152: 0 | X152: 0 | Y152: 0 | Z152: 0 | AA152: 0 | AB152: 0 | AC152: 0 | AD152: 0 | AE152: 0 | AF152: 0 | AG152: 0 | AH152: 0 | AI152: 0 | AJ152: 0 | AK152: 0 | AL152: 0 | AM152: 0 | AN152: 0 | AO152: 0 | AP152: 0 | AQ152: 0 | AR152: 0 | AS152: 0 | AT152: 0 | AU152: 0 | AV152: 0 | AW152: 0 | AX152: 0 | AY152: 0 | AZ152: 0 | BA152: 0
B153: NOL Additions | E153: =E122 -> 1 | F153: =F122 -> 2014 | G153: Addn's : | H153: =-MIN(H150,0)*($F153>H$4)*$E153 -> 0 | I153: 0 | J153: 0 | K153: 0 | L153: 0 | M153: 39.39154478 | N153: 96861.04419 | O153: 16130.21384 | P153: 0 | Q153: 0 | R153: 0 | S153: 0 | T153: 0 | U153: 0 | V153: 0 | W153: 0 | X153: 0 | Y153: 0 | Z153: 0 | AA153: 0 | AB153: 0 | AC153: 0 | AD153: 0 | AE153: 0 | AF153: 0 | AG153: 0 | AH153: 0 | AI153: 0 | AJ153: 0 | AK153: 0 | AL153: 0 | AM153: 0 | AN153: 0 | AO153: 0 | AP153: 0 | AQ153: 0 | AR153: 0 | AS153: 0 | AT153: 0 | AU153: 0 | AV153: 0 | AW153: 0 | AX153: 0 | AY153: 0 | AZ153: 0 | BA153: 0
B154: NOL Utilization Group | E154: =E153 -> 1 | F154: =F153 -> 2014 | G154: Util : | H154: =($F154=H$4)*-(H152+H153) -> 0 | I154: 0 | J154: 0 | K154: 0 | L154: 0 | M154: 0 | N154: 0 | O154: 0 | P154: -113030.6496 | Q154: 0 | R154: 0 | S154: 0 | T154: 0 | U154: 0 | V154: 0 | W154: 0 | X154: 0 | Y154: 0 | Z154: 0 | AA154: 0 | AB154: 0 | AC154: 0 | AD154: 0 | AE154: 0 | AF154: 0 | AG154: 0 | AH154: 0 | AI154: 0 | AJ154: 0 | AK154: 0 | AL154: 0 | AM154: 0 | AN154: 0 | AO154: 0 | AP154: 0 | AQ154: 0 | AR154: 0 | AS154: 0 | AT154: 0 | AU154: 0 | AV154: 0 | AW154: 0 | AX154: 0 | AY154: 0 | AZ154: 0 | BA154: 0
B155: NOL Utilization | G155: Util : | H155: =-MIN(MAX(H150,0),SUM(H152:H154)) -> 0 | I155: 0 | J155: 0 | K155: 0 | L155: 0 | M155: 0 | N155: 0 | O155: 0 | P155: 0 | Q155: 0 | R155: 0 | S155: 0 | T155: 0 | U155: 0 | V155: 0 | W155: 0 | X155: 0 | Y155: 0 | Z155: 0 | AA155: 0 | AB155: 0 | AC155: 0 | AD155: 0 | AE155: 0 | AF155: 0 | AG155: 0 | AH155: 0 | AI155: 0 | AJ155: 0 | AK155: 0 | AL155: 0 | AM155: 0 | AN155: 0 | AO155: 0 | AP155: 0 | AQ155: 0 | AR155: 0 | AS155: 0 | AT155: 0 | AU155: 0 | AV155: 0 | AW155: 0 | AX155: 0 | AY155: 0 | AZ155: 0 | BA155: 0
B156: Ending NOL Balance | G156: End : | H156: =SUM(H152:H155) -> 0 | I156: 0 | J156: 0 | K156: 0 | L156: 0 | M156: 39.39154478 | N156: 96900.43574 | O156: 113030.6496 | P156: 0 | Q156: 0 | R156: 0 | S156: 0 | T156: 0 | U156: 0 | V156: 0 | W156: 0 | X156: 0 | Y156: 0 | Z156: 0 | AA156: 0 | AB156: 0 | AC156: 0 | AD156: 0 | AE156: 0 | AF156: 0 | AG156: 0 | AH156: 0 | AI156: 0 | AJ156: 0 | AK156: 0 | AL156: 0 | AM156: 0 | AN156: 0 | AO156: 0 | AP156: 0 | AQ156: 0 | AR156: 0 | AS156: 0 | AT156: 0 | AU156: 0 | AV156: 0 | AW156: 0 | AX156: 0 | AY156: 0 | AZ156: 0 | BA156: 0
B158: NOL Adjusted Federal Taxable Income | F158: Fed | H158: =H150+SUM(H153:H155) -> 0 | I158: 0 | J158: 0 | K158: 0 | L158: 0 | M158: 0 | N158: 0 | O158: 0 | P158: -113727.6496 | Q158: 3120.766162 | R158: 3297.325935 | S158: 8889.804039 | T158: 14407.19261 | U158: 14576.82082 | V158: 14768.89068 | W158: 14951.1983 | X158: 15153.55389 | Y158: 15346.16391 | Z158: 15414.52685 | AA158: 15466.29102 | AB158: 15682.4469 | AC158: 16017.15006 | AD158: 16369.75475 | AE158: 16593.12543 | AF158: 16832.63633 | AG158: 17057.27797 | AH158: 17297.59177 | AI158: 17520.50642 | AJ158: 17764.74177 | AK158: 17997.56884 | AL158: 18251.0403 | AM158: 10984.78393 | AN158: 0 | AO158: 0 | AP158: 0 | AQ158: 0 | AR158: 0 | AS158: 0 | AT158: 0 | AU158: 0 | AV158: 0 | AW158: 0 | AX158: 0 | AY158: 0 | AZ158: 0 | BA158: 0
B159: Fed Tax Benefit / (Payment) | F159: =D112 -> 0.35 | H159: =-H158*$F159 -> 0 | I159: 0 | J159: 0 | K159: 0 | L159: 0 | M159: 0 | N159: 0 | O159: 0 | P159: 39804.67736 | Q159: -1092.268157 | R159: -1154.064077 | S159: -3111.431414 | T159: -5042.517412 | U159: -5101.887288 | V159: -5169.111738 | W159: -5232.919404 | X159: -5303.743862 | Y159: -5371.15737 | Z159: -5395.084396 | AA159: -5413.201856 | AB159: -5488.856414 | AC159: -5606.002521 | AD159: -5729.414161 | AE159: -5807.593902 | AF159: -5891.422717 | AG159: -5970.04729 | AH159: -6054.15712 | AI159: -6132.177245 | AJ159: -6217.659621 | AK159: -6299.149095 | AL159: -6387.864106 | AM159: -3844.674374 | AN159: 0 | AO159: 0 | AP159: 0 | AQ159: 0 | AR159: 0 | AS159: 0 | AT159: 0 | AU159: 0 | AV159: 0 | AW159: 0 | AX159: 0 | AY159: 0 | AZ159: 0 | BA159: 0
B161: Tax Benefit / (Payment) | H161: =H141+H159 -> 0 | I161: 0 | J161: 0 | K161: 0 | L161: 0 | M161: 0 | N161: 0 | O161: 0 | P161: =P141+P159 -> 43050.57281 | Q161: -1332.243928 | R161: -1447.18887 | S161: -3437.716285 | T161: -5377.479758 | U161: -5444.286362 | V161: -5519.931411 | W161: -5591.731687 | X161: -5671.427683 | Y161: -5747.285473 | Z161: -5922.543735 | AA161: -6091.264719 | AB161: -6176.39584 | AC161: -6308.21578 | AD161: -6447.086081 | AE161: -6535.058692 | AF161: -6629.387984 | AG161: -6717.861147 | AH161: -6812.506655 | AI161: -6900.299656 | AJ161: -6996.489636 | AK161: -7088.18656 | AL161: -7188.014099 | AM161: -4326.261979 | AN161: 0 | AO161: 0 | AP161: 0 | AQ161: 0 | AR161: 0 | AS161: 0 | AT161: 0 | AU161: 0 | AV161: 0 | AW161: 0 | AX161: 0 | AY161: 0 | AZ161: 0 | BA161: 0
B164: PTC/ITC Deferral Penalty
F166: Check
B167: PTC Utilization Profile | F167: =SUM(H167:BA167) -> 1 | G167: Percent : | H167: 1 | I167: 0 | J167: 0 | K167: 0 | L167: 0 | M167: 0 | N167: 0 | O167: 0 | P167: 0 | Q167: 0 | R167: 0 | S167: 0 | T167: 0 | U167: 0 | V167: 0 | W167: 0 | X167: 0 | Y167: 0 | Z167: 0 | AA167: 0 | AB167: 0 | AC167: 0 | AD167: 0 | AE167: 0 | AF167: 0 | AG167: 0 | AH167: 0 | AI167: 0 | AJ167: 0 | AK167: 0 | AL167: 0 | AM167: 0 | AN167: 0 | AO167: 0 | AP167: 0 | AQ167: 0 | AR167: 0 | AS167: 0 | AT167: 0 | AU167: 0 | AV167: 0 | AW167: 0 | AX167: 0 | AY167: 0 | AZ167: 0 | BA167: 0
E169: Rate | F169: Roll Off
B170: Super PTC Deferral Logic | E170: 0.2625 | F170: 2016 | G170: Pct Def : | H170: =$E170 * (H$4<$F170) -> 0.2625 | I170: 0.2625 | J170: 0.2625 | K170: 0.2625 | L170: 0.2625 | M170: 0.2625 | N170: 0.2625 | O170: 0.2625 | P170: 0.2625 | Q170: 0.2625 | R170: 0 | S170: 0 | T170: 0 | U170: 0 | V170: 0 | W170: 0 | X170: 0 | Y170: 0 | Z170: 0 | AA170: 0 | AB170: 0 | AC170: 0 | AD170: 0 | AE170: 0 | AF170: 0 | AG170: 0 | AH170: 0 | AI170: 0 | AJ170: 0 | AK170: 0 | AL170: 0 | AM170: 0 | AN170: 0 | AO170: 0 | AP170: 0 | AQ170: 0 | AR170: 0 | AS170: 0 | AT170: 0 | AU170: 0 | AV170: 0 | AW170: 0 | AX170: 0 | AY170: 0 | AZ170: 0 | BA170: 0
G171: Income : | H171: =H$158*H170 -> 0 | I171: 0 | J171: 0 | K171: 0 | L171: 0 | M171: 0 | N171: 0 | O171: 0 | P171: -29853.50802 | Q171: 819.2011175 | R171: 0 | S171: 0 | T171: 0 | U171: 0 | V171: 0 | W171: 0 | X171: 0 | Y171: 0 | Z171: 0 | AA171: 0 | AB171: 0 | AC171: 0 | AD171: 0 | AE171: 0 | AF171: 0 | AG171: 0 | AH171: 0 | AI171: 0 | AJ171: 0 | AK171: 0 | AL171: 0 | AM171: 0 | AN171: 0 | AO171: 0 | AP171: 0 | AQ171: 0 | AR171: 0 | AS171: 0 | AT171: 0 | AU171: 0 | AV171: 0 | AW171: 0 | AX171: 0 | AY171: 0 | AZ171: 0 | BA171: 0
G172: Logic : | H172: =--(H170=0) -> 0 | I172: 0 | J172: 0 | K172: 0 | L172: 0 | M172: 0 | N172: 0 | O172: 0 | P172: 0 | Q172: 0 | R172: 1 | S172: 1 | T172: 1 | U172: 1 | V172: 1 | W172: 1 | X172: 1 | Y172: 1 | Z172: 1 | AA172: 1 | AB172: 1 | AC172: 1 | AD172: 1 | AE172: 1 | AF172: 1 | AG172: 1 | AH172: 1 | AI172: 1 | AJ172: 1 | AK172: 1 | AL172: 1 | AM172: 1 | AN172: 1 | AO172: 1 | AP172: 1 | AQ172: 1 | AR172: 1 | AS172: 1 | AT172: 1 | AU172: 1 | AV172: 1 | AW172: 1 | AX172: 1 | AY172: 1 | AZ172: 1 | BA172: 1
G173: Logic : | H173: =SUM($H172:H172) -> 0 | I173: =SUM($H172:I172) -> 0 | J173: =SUM($H172:J172) -> 0 | K173: =SUM($H172:K172) -> 0 | L173: =SUM($H172:L172) -> 0 | M173: =SUM($H172:M172) -> 0 | N173: =SUM($H172:N172) -> 0 | O173: =SUM($H172:O172) -> 0 | P173: =SUM($H172:P172) -> 0 | Q173: =SUM($H172:Q172) -> 0 | R173: =SUM($H172:R172) -> 1 | S173: =SUM($H172:S172) -> 2 | T173: =SUM($H172:T172) -> 3 | U173: =SUM($H172:U172) -> 4 | V173: =SUM($H172:V172) -> 5 | W173: =SUM($H172:W172) -> 6 | X173: =SUM($H172:X172) -> 7 | Y173: =SUM($H172:Y172) -> 8 | Z173: =SUM($H172:Z172) -> 9 | AA173: =SUM($H172:AA172) -> 10 | AB173: =SUM($H172:AB172) -> 11 | AC173: =SUM($H172:AC172) -> 12 | AD173: =SUM($H172:AD172) -> 13 | AE173: =SUM($H172:AE172) -> 14 | AF173: =SUM($H172:AF172) -> 15 | AG173: =SUM($H172:AG172) -> 16 | AH173: =SUM($H172:AH172) -> 17 | AI173: =SUM($H172:AI172) -> 18 | AJ173: =SUM($H172:AJ172) -> 19 | AK173: =SUM($H172:AK172) -> 20 | AL173: =SUM($H172:AL172) -> 21 | AM173: =SUM($H172:AM172) -> 22 | AN173: =SUM($H172:AN172) -> 23 | AO173: =SUM($H172:AO172) -> 24 | AP173: =SUM($H172:AP172) -> 25 | AQ173: =SUM($H172:AQ172) -> 26 | AR173: =SUM($H172:AR172) -> 27 | AS173: =SUM($H172:AS172) -> 28 | AT173: =SUM($H172:AT172) -> 29 | AU173: =SUM($H172:AU172) -> 30 | AV173: =SUM($H172:AV172) -> 31 | AW173: =SUM($H172:AW172) -> 32 | AX173: =SUM($H172:AX172) -> 33 | AY173: =SUM($H172:AY172) -> 34 | AZ173: =SUM($H172:AZ172) -> 35 | BA173: =SUM($H172:BA172) -> 36
G174: Pct Util : | H174: =IF(H173>0, OFFSET($H$167,0,H173-1),0) -> 0 | I174: 0 | J174: 0 | K174: 0 | L174: 0 | M174: 0 | N174: 0 | O174: 0 | P174: 0 | Q174: 0 | R174: 1 | S174: 0 | T174: 0 | U174: 0 | V174: 0 | W174: 0 | X174: 0 | Y174: 0 | Z174: 0 | AA174: 0 | AB174: 0 | AC174: 0 | AD174: 0 | AE174: 0 | AF174: 0 | AG174: 0 | AH174: 0 | AI174: 0 | AJ174: 0 | AK174: 0 | AL174: 0 | AM174: 0 | AN174: 0 | AO174: 0 | AP174: 0 | AQ174: 0 | AR174: 0 | AS174: 0 | AT174: 0 | AU174: 0 | AV174: 0 | AW174: 0 | AX174: 0 | AY174: 0 | AZ174: 0 | BA174: 0
F175: Check | G175: Util : | H175: =-SUM($H171:H171)*H174 -> 0 | I175: =-SUM($H171:I171)*I174 -> 0 | J175: =-SUM($H171:J171)*J174 -> 0 | K175: =-SUM($H171:K171)*K174 -> 0 | L175: =-SUM($H171:L171)*L174 -> 0 | M175: =-SUM($H171:M171)*M174 -> 0 | N175: =-SUM($H171:N171)*N174 -> 0 | O175: =-SUM($H171:O171)*O174 -> 0 | P175: =-SUM($H171:P171)*P174 -> 0 | Q175: =-SUM($H171:Q171)*Q174 -> 0 | R175: =-SUM($H171:R171)*R174 -> 29034.3069 | S175: =-SUM($H171:S171)*S174 -> 0 | T175: =-SUM($H171:T171)*T174 -> 0 | U175: =-SUM($H171:U171)*U174 -> 0 | V175: =-SUM($H171:V171)*V174 -> 0 | W175: =-SUM($H171:W171)*W174 -> 0 | X175: =-SUM($H171:X171)*X174 -> 0 | Y175: =-SUM($H171:Y171)*Y174 -> 0 | Z175: =-SUM($H171:Z171)*Z174 -> 0 | AA175: =-SUM($H171:AA171)*AA174 -> 0 | AB175: =-SUM($H171:AB171)*AB174 -> 0 | AC175: =-SUM($H171:AC171)*AC174 -> 0 | AD175: =-SUM($H171:AD171)*AD174 -> 0 | AE175: =-SUM($H171:AE171)*AE174 -> 0 | AF175: =-SUM($H171:AF171)*AF174 -> 0 | AG175: =-SUM($H171:AG171)*AG174 -> 0 | AH175: =-SUM($H171:AH171)*AH174 -> 0 | AI175: =-SUM($H171:AI171)*AI174 -> 0 | AJ175: =-SUM($H171:AJ171)*AJ174 -> 0 | AK175: =-SUM($H171:AK171)*AK174 -> 0 | AL175: =-SUM($H171:AL171)*AL174 -> 0 | AM175: =-SUM($H171:AM171)*AM174 -> 0 | AN175: =-SUM($H171:AN171)*AN174 -> 0 | AO175: =-SUM($H171:AO171)*AO174 -> 0 | AP175: =-SUM($H171:AP171)*AP174 -> 0 | AQ175: =-SUM($H171:AQ171)*AQ174 -> 0 | AR175: =-SUM($H171:AR171)*AR174 -> 0 | AS175: =-SUM($H171:AS171)*AS174 -> 0 | AT175: =-SUM($H171:AT171)*AT174 -> 0 | AU175: =-SUM($H171:AU171)*AU174 -> 0 | AV175: =-SUM($H171:AV171)*AV174 -> 0 | AW175: =-SUM($H171:AW171)*AW174 -> 0 | AX175: =-SUM($H171:AX171)*AX174 -> 0 | AY175: =-SUM($H171:AY171)*AY174 -> 0 | AZ175: =-SUM($H171:AZ171)*AZ174 -> 0 | BA175: =-SUM($H171:BA171)*BA174 -> 0
F176: =SUM(H176:BA176) -> 0 | G176: Mk Wh : | H176: =H171+H175 -> 0 | I176: 0 | J176: 0 | K176: 0 | L176: 0 | M176: 0 | N176: 0 | O176: 0 | P176: -29853.50802 | Q176: 819.2011175 | R176: 29034.3069 | S176: 0 | T176: 0 | U176: 0 | V176: 0 | W176: 0 | X176: 0 | Y176: 0 | Z176: 0 | AA176: 0 | AB176: 0 | AC176: 0 | AD176: 0 | AE176: 0 | AF176: 0 | AG176: 0 | AH176: 0 | AI176: 0 | AJ176: 0 | AK176: 0 | AL176: 0 | AM176: 0 | AN176: 0 | AO176: 0 | AP176: 0 | AQ176: 0 | AR176: 0 | AS176: 0 | AT176: 0 | AU176: 0 | AV176: 0 | AW176: 0 | AX176: 0 | AY176: 0 | AZ176: 0 | BA176: 0
E178: Rate | F178: Roll Off
B179: Regular PTC Deferral Logic | E179: 0.15 | F179: 2018 | G179: Pct Def : | H179: =$E179 * (H$4<$F179)* (H170=0) -> 0 | I179: 0 | J179: 0 | K179: 0 | L179: 0 | M179: 0 | N179: 0 | O179: 0 | P179: 0 | Q179: 0 | R179: 0.15 | S179: 0.15 | T179: 0 | U179: 0 | V179: 0 | W179: 0 | X179: 0 | Y179: 0 | Z179: 0 | AA179: 0 | AB179: 0 | AC179: 0 | AD179: 0 | AE179: 0 | AF179: 0 | AG179: 0 | AH179: 0 | AI179: 0 | AJ179: 0 | AK179: 0 | AL179: 0 | AM179: 0 | AN179: 0 | AO179: 0 | AP179: 0 | AQ179: 0 | AR179: 0 | AS179: 0 | AT179: 0 | AU179: 0 | AV179: 0 | AW179: 0 | AX179: 0 | AY179: 0 | AZ179: 0 | BA179: 0
G180: Income : | H180: =H$158*H179 -> 0 | I180: 0 | J180: 0 | K180: 0 | L180: 0 | M180: 0 | N180: 0 | O180: 0 | P180: 0 | Q180: 0 | R180: 494.5988902 | S180: 1333.470606 | T180: 0 | U180: 0 | V180: 0 | W180: 0 | X180: 0 | Y180: 0 | Z180: 0 | AA180: 0 | AB180: 0 | AC180: 0 | AD180: 0 | AE180: 0 | AF180: 0 | AG180: 0 | AH180: 0 | AI180: 0 | AJ180: 0 | AK180: 0 | AL180: 0 | AM180: 0 | AN180: 0 | AO180: 0 | AP180: 0 | AQ180: 0 | AR180: 0 | AS180: 0 | AT180: 0 | AU180: 0 | AV180: 0 | AW180: 0 | AX180: 0 | AY180: 0 | AZ180: 0 | BA180: 0
G181: Logic : | H181: =--((H179+H170)=0) -> 0 | I181: 0 | J181: 0 | K181: 0 | L181: 0 | M181: 0 | N181: 0 | O181: 0 | P181: 0 | Q181: 0 | R181: 0 | S181: 0 | T181: 1 | U181: 1 | V181: 1 | W181: 1 | X181: 1 | Y181: 1 | Z181: 1 | AA181: 1 | AB181: 1 | AC181: 1 | AD181: 1 | AE181: 1 | AF181: 1 | AG181: 1 | AH181: 1 | AI181: 1 | AJ181: 1 | AK181: 1 | AL181: 1 | AM181: 1 | AN181: 1 | AO181: 1 | AP181: 1 | AQ181: 1 | AR181: 1 | AS181: 1 | AT181: 1 | AU181: 1 | AV181: 1 | AW181: 1 | AX181: 1 | AY181: 1 | AZ181: 1 | BA181: 1
G182: Logic : | H182: =SUM($H181:H181) -> 0 | I182: =SUM($H181:I181) -> 0 | J182: =SUM($H181:J181) -> 0 | K182: =SUM($H181:K181) -> 0 | L182: =SUM($H181:L181) -> 0 | M182: =SUM($H181:M181) -> 0 | N182: =SUM($H181:N181) -> 0 | O182: =SUM($H181:O181) -> 0 | P182: =SUM($H181:P181) -> 0 | Q182: =SUM($H181:Q181) -> 0 | R182: =SUM($H181:R181) -> 0 | S182: =SUM($H181:S181) -> 0 | T182: =SUM($H181:T181) -> 1 | U182: =SUM($H181:U181) -> 2 | V182: =SUM($H181:V181) -> 3 | W182: =SUM($H181:W181) -> 4 | X182: =SUM($H181:X181) -> 5 | Y182: =SUM($H181:Y181) -> 6 | Z182: =SUM($H181:Z181) -> 7 | AA182: =SUM($H181:AA181) -> 8 | AB182: =SUM($H181:AB181) -> 9 | AC182: =SUM($H181:AC181) -> 10 | AD182: =SUM($H181:AD181) -> 11 | AE182: =SUM($H181:AE181) -> 12 | AF182: =SUM($H181:AF181) -> 13 | AG182: =SUM($H181:AG181) -> 14 | AH182: =SUM($H181:AH181) -> 15 | AI182: =SUM($H181:AI181) -> 16 | AJ182: =SUM($H181:AJ181) -> 17 | AK182: =SUM($H181:AK181) -> 18 | AL182: =SUM($H181:AL181) -> 19 | AM182: =SUM($H181:AM181) -> 20 | AN182: =SUM($H181:AN181) -> 21 | AO182: =SUM($H181:AO181) -> 22 | AP182: =SUM($H181:AP181) -> 23 | AQ182: =SUM($H181:AQ181) -> 24 | AR182: =SUM($H181:AR181) -> 25 | AS182: =SUM($H181:AS181) -> 26 | AT182: =SUM($H181:AT181) -> 27 | AU182: =SUM($H181:AU181) -> 28 | AV182: =SUM($H181:AV181) -> 29 | AW182: =SUM($H181:AW181) -> 30 | AX182: =SUM($H181:AX181) -> 31 | AY182: =SUM($H181:AY181) -> 32 | AZ182: =SUM($H181:AZ181) -> 33 | BA182: =SUM($H181:BA181) -> 34
G183: Pct Util : | H183: =IF(H182>0, OFFSET($H$167,0,H182-1),0) -> 0 | I183: 0 | J183: 0 | K183: 0 | L183: 0 | M183: 0 | N183: 0 | O183: 0 | P183: 0 | Q183: 0 | R183: 0 | S183: 0 | T183: 1 | U183: 0 | V183: 0 | W183: 0 | X183: 0 | Y183: 0 | Z183: 0 | AA183: 0 | AB183: 0 | AC183: 0 | AD183: 0 | AE183: 0 | AF183: 0 | AG183: 0 | AH183: 0 | AI183: 0 | AJ183: 0 | AK183: 0 | AL183: 0 | AM183: 0 | AN183: 0 | AO183: 0 | AP183: 0 | AQ183: 0 | AR183: 0 | AS183: 0 | AT183: 0 | AU183: 0 | AV183: 0 | AW183: 0 | AX183: 0 | AY183: 0 | AZ183: 0 | BA183: 0
F184: Check | G184: Util : | H184: =-SUM($H180:H180)*H183 -> 0 | I184: =-SUM($H180:I180)*I183 -> 0 | J184: =-SUM($H180:J180)*J183 -> 0 | K184: =-SUM($H180:K180)*K183 -> 0 | L184: =-SUM($H180:L180)*L183 -> 0 | M184: =-SUM($H180:M180)*M183 -> 0 | N184: =-SUM($H180:N180)*N183 -> 0 | O184: =-SUM($H180:O180)*O183 -> 0 | P184: =-SUM($H180:P180)*P183 -> 0 | Q184: =-SUM($H180:Q180)*Q183 -> 0 | R184: =-SUM($H180:R180)*R183 -> 0 | S184: =-SUM($H180:S180)*S183 -> 0 | T184: =-SUM($H180:T180)*T183 -> -1828.069496 | U184: =-SUM($H180:U180)*U183 -> 0 | V184: =-SUM($H180:V180)*V183 -> 0 | W184: =-SUM($H180:W180)*W183 -> 0 | X184: =-SUM($H180:X180)*X183 -> 0 | Y184: =-SUM($H180:Y180)*Y183 -> 0 | Z184: =-SUM($H180:Z180)*Z183 -> 0 | AA184: =-SUM($H180:AA180)*AA183 -> 0 | AB184: =-SUM($H180:AB180)*AB183 -> 0 | AC184: =-SUM($H180:AC180)*AC183 -> 0 | AD184: =-SUM($H180:AD180)*AD183 -> 0 | AE184: =-SUM($H180:AE180)*AE183 -> 0 | AF184: =-SUM($H180:AF180)*AF183 -> 0 | AG184: =-SUM($H180:AG180)*AG183 -> 0 | AH184: =-SUM($H180:AH180)*AH183 -> 0 | AI184: =-SUM($H180:AI180)*AI183 -> 0 | AJ184: =-SUM($H180:AJ180)*AJ183 -> 0 | AK184: =-SUM($H180:AK180)*AK183 -> 0 | AL184: =-SUM($H180:AL180)*AL183 -> 0 | AM184: =-SUM($H180:AM180)*AM183 -> 0 | AN184: =-SUM($H180:AN180)*AN183 -> 0 | AO184: =-SUM($H180:AO180)*AO183 -> 0 | AP184: =-SUM($H180:AP180)*AP183 -> 0 | AQ184: =-SUM($H180:AQ180)*AQ183 -> 0 | AR184: =-SUM($H180:AR180)*AR183 -> 0 | AS184: =-SUM($H180:AS180)*AS183 -> 0 | AT184: =-SUM($H180:AT180)*AT183 -> 0 | AU184: =-SUM($H180:AU180)*AU183 -> 0 | AV184: =-SUM($H180:AV180)*AV183 -> 0 | AW184: =-SUM($H180:AW180)*AW183 -> 0 | AX184: =-SUM($H180:AX180)*AX183 -> 0 | AY184: =-SUM($H180:AY180)*AY183 -> 0 | AZ184: =-SUM($H180:AZ180)*AZ183 -> 0 | BA184: =-SUM($H180:BA180)*BA183 -> 0
F185: =SUM(H185:BA185) -> 0 | G185: Mk Wh : | H185: =H180+H184 -> 0 | I185: 0 | J185: 0 | K185: 0 | L185: 0 | M185: 0 | N185: 0 | O185: 0 | P185: 0 | Q185: 0 | R185: 494.5988902 | S185: 1333.470606 | T185: -1828.069496 | U185: 0 | V185: 0 | W185: 0 | X185: 0 | Y185: 0 | Z185: 0 | AA185: 0 | AB185: 0 | AC185: 0 | AD185: 0 | AE185: 0 | AF185: 0 | AG185: 0 | AH185: 0 | AI185: 0 | AJ185: 0 | AK185: 0 | AL185: 0 | AM185: 0 | AN185: 0 | AO185: 0 | AP185: 0 | AQ185: 0 | AR185: 0 | AS185: 0 | AT185: 0 | AU185: 0 | AV185: 0 | AW185: 0 | AX185: 0 | AY185: 0 | AZ185: 0 | BA185: 0
B187: Total PTC Make Whole | G187: Mk Wh : | H187: =H176+H185 -> 0 | I187: 0 | J187: 0 | K187: 0 | L187: 0 | M187: 0 | N187: 0 | O187: 0 | P187: -29853.50802 | Q187: 819.2011175 | R187: 29528.90579 | S187: 1333.470606 | T187: -1828.069496 | U187: 0 | V187: 0 | W187: 0 | X187: 0 | Y187: 0 | Z187: 0 | AA187: 0 | AB187: 0 | AC187: 0 | AD187: 0 | AE187: 0 | AF187: 0 | AG187: 0 | AH187: 0 | AI187: 0 | AJ187: 0 | AK187: 0 | AL187: 0 | AM187: 0 | AN187: 0 | AO187: 0 | AP187: 0 | AQ187: 0 | AR187: 0 | AS187: 0 | AT187: 0 | AU187: 0 | AV187: 0 | AW187: 0 | AX187: 0 | AY187: 0 | AZ187: 0 | BA187: 0
B189: PTC Deferral Penalty
B190: Active
B191: =Scen!$G$41 -> 1 | C191: =OFFSET(C192,$B191,0) -> PTC Deferral Calculation | H191: =OFFSET(H192,$B191,0) -> 0 | I191: 0 | J191: 0 | K191: 0 | L191: 0 | M191: 0 | N191: 0 | O191: 0 | P191: -29853.50802 | Q191: 819.2011175 | R191: 29528.90579 | S191: 1333.470606 | T191: -1828.069496 | U191: 0 | V191: 0 | W191: 0 | X191: 0 | Y191: 0 | Z191: 0 | AA191: 0 | AB191: 0 | AC191: 0 | AD191: 0 | AE191: 0 | AF191: 0 | AG191: 0 | AH191: 0 | AI191: 0 | AJ191: 0 | AK191: 0 | AL191: 0 | AM191: 0 | AN191: 0 | AO191: 0 | AP191: 0 | AQ191: 0 | AR191: 0 | AS191: 0 | AT191: 0 | AU191: 0 | AV191: 0 | AW191: 0 | AX191: 0 | AY191: 0 | AZ191: 0 | BA191: 0
B192: 0 | C192: No Penalty | H192: 0 | I192: 0 | J192: 0 | K192: 0 | L192: 0 | M192: 0 | N192: 0 | O192: 0 | P192: 0 | Q192: 0 | R192: 0 | S192: 0 | T192: 0 | U192: 0 | V192: 0 | W192: 0 | X192: 0 | Y192: 0 | Z192: 0 | AA192: 0 | AB192: 0 | AC192: 0 | AD192: 0 | AE192: 0 | AF192: 0 | AG192: 0 | AH192: 0 | AI192: 0 | AJ192: 0 | AK192: 0 | AL192: 0 | AM192: 0 | AN192: 0 | AO192: 0 | AP192: 0 | AQ192: 0 | AR192: 0 | AS192: 0 | AT192: 0 | AU192: 0 | AV192: 0 | AW192: 0 | AX192: 0 | AY192: 0 | AZ192: 0 | BA192: 0
B193: 1 | C193: PTC Deferral Calculation | H193: =H187 -> 0 | I193: 0 | J193: 0 | K193: 0 | L193: 0 | M193: 0 | N193: 0 | O193: 0 | P193: -29853.50802 | Q193: 819.2011175 | R193: 29528.90579 | S193: 1333.470606 | T193: -1828.069496 | U193: 0 | V193: 0 | W193: 0 | X193: 0 | Y193: 0 | Z193: 0 | AA193: 0 | AB193: 0 | AC193: 0 | AD193: 0 | AE193: 0 | AF193: 0 | AG193: 0 | AH193: 0 | AI193: 0 | AJ193: 0 | AK193: 0 | AL193: 0 | AM193: 0 | AN193: 0 | AO193: 0 | AP193: 0 | AQ193: 0 | AR193: 0 | AS193: 0 | AT193: 0 | AU193: 0 | AV193: 0 | AW193: 0 | AX193: 0 | AY193: 0 | AZ193: 0 | BA193: 0
B194: 2 | C194: Building Wind Assets thru 2012 | H194: 0 | I194: 0 | J194: 0 | K194: 0 | L194: 0 | M194: 0 | N194: 0 | O194: 0 | P194: 0 | Q194: 0 | R194: 0 | S194: 0 | T194: 0 | U194: 0 | V194: 0 | W194: 0 | X194: 0 | Y194: 0 | Z194: 0 | AA194: 0 | AB194: 0 | AC194: 0 | AD194: 0 | AE194: 0 | AF194: 0 | AG194: 0 | AH194: 0 | AI194: 0 | AJ194: 0 | AK194: 0 | AL194: 0 | AM194: 0 | AN194: 0 | AO194: 0 | AP194: 0 | AQ194: 0 | AR194: 0 | AS194: 0 | AT194: 0 | AU194: 0 | AV194: 0 | AW194: 0 | AX194: 0 | AY194: 0 | AZ194: 0 | BA194: 0
B196: ITC Deferral Penalty
B197: Active
B198: 0 | C198: =OFFSET(C199,$B198,0) -> No Penalty | H198: =OFFSET(H199,$B198,0) -> 0 | I198: 0 | J198: 0 | K198: 0 | L198: 0 | M198: 0 | N198: 0 | O198: 0 | P198: 0 | Q198: 0 | R198: 0 | S198: 0 | T198: 0 | U198: 0 | V198: 0 | W198: 0 | X198: 0 | Y198: 0 | Z198: 0 | AA198: 0 | AB198: 0 | AC198: 0 | AD198: 0 | AE198: 0 | AF198: 0 | AG198: 0 | AH198: 0 | AI198: 0 | AJ198: 0 | AK198: 0 | AL198: 0 | AM198: 0 | AN198: 0 | AO198: 0 | AP198: 0 | AQ198: 0 | AR198: 0 | AS198: 0 | AT198: 0 | AU198: 0 | AV198: 0 | AW198: 0 | AX198: 0 | AY198: 0 | AZ198: 0 | BA198: 0
B199: 0 | C199: No Penalty | H199: 0 | I199: 0 | J199: 0 | K199: 0 | L199: 0 | M199: 0 | N199: 0 | O199: 0 | P199: 0 | Q199: 0 | R199: 0 | S199: 0 | T199: 0 | U199: 0 | V199: 0 | W199: 0 | X199: 0 | Y199: 0 | Z199: 0 | AA199: 0 | AB199: 0 | AC199: 0 | AD199: 0 | AE199: 0 | AF199: 0 | AG199: 0 | AH199: 0 | AI199: 0 | AJ199: 0 | AK199: 0 | AL199: 0 | AM199: 0 | AN199: 0 | AO199: 0 | AP199: 0 | AQ199: 0 | AR199: 0 | AS199: 0 | AT199: 0 | AU199: 0 | AV199: 0 | AW199: 0 | AX199: 0 | AY199: 0 | AZ199: 0 | BA199: 0
B200: 1 | C200: No Penalty | H200: 0 | I200: 0 | J200: 0 | K200: 0 | L200: 0 | M200: 0 | N200: 0 | O200: 0 | P200: 0 | Q200: 0 | R200: 0 | S200: 0 | T200: 0 | U200: 0 | V200: 0 | W200: 0 | X200: 0 | Y200: 0 | Z200: 0 | AA200: 0 | AB200: 0 | AC200: 0 | AD200: 0 | AE200: 0 | AF200: 0 | AG200: 0 | AH200: 0 | AI200: 0 | AJ200: 0 | AK200: 0 | AL200: 0 | AM200: 0 | AN200: 0 | AO200: 0 | AP200: 0 | AQ200: 0 | AR200: 0 | AS200: 0 | AT200: 0 | AU200: 0 | AV200: 0 | AW200: 0 | AX200: 0 | AY200: 0 | AZ200: 0 | BA200: 0
B201: 2 | C201: No Penalty | H201: 0 | I201: 0 | J201: 0 | K201: 0 | L201: 0 | M201: 0 | N201: 0 | O201: 0 | P201: 0 | Q201: 0 | R201: 0 | S201: 0 | T201: 0 | U201: 0 | V201: 0 | W201: 0 | X201: 0 | Y201: 0 | Z201: 0 | AA201: 0 | AB201: 0 | AC201: 0 | AD201: 0 | AE201: 0 | AF201: 0 | AG201: 0 | AH201: 0 | AI201: 0 | AJ201: 0 | AK201: 0 | AL201: 0 | AM201: 0 | AN201: 0 | AO201: 0 | AP201: 0 | AQ201: 0 | AR201: 0 | AS201: 0 | AT201: 0 | AU201: 0 | AV201: 0 | AW201: 0 | AX201: 0 | AY201: 0 | AZ201: 0 | BA201: 0
B204: Total PTC/ITC Deferral Penalty | H204: =H191+H198 -> 0 | I204: 0 | J204: 0 | K204: 0 | L204: 0 | M204: 0 | N204: 0 | O204: 0 | P204: -29853.50802 | Q204: 819.2011175 | R204: 29528.90579 | S204: 1333.470606 | T204: -1828.069496 | U204: 0 | V204: 0 | W204: 0 | X204: 0 | Y204: 0 | Z204: 0 | AA204: 0 | AB204: 0 | AC204: 0 | AD204: 0 | AE204: 0 | AF204: 0 | AG204: 0 | AH204: 0 | AI204: 0 | AJ204: 0 | AK204: 0 | AL204: 0 | AM204: 0 | AN204: 0 | AO204: 0 | AP204: 0 | AQ204: 0 | AR204: 0 | AS204: 0 | AT204: 0 | AU204: 0 | AV204: 0 | AW204: 0 | AX204: 0 | AY204: 0 | AZ204: 0 | BA204: 0
B208: PROJECT RETURN - Unlevered
B210: Project Cash Flow
B211: Capital Investment | H211: =-H96 -> -1e-08 | I211: 0 | J211: 0 | K211: 0 | L211: -105824.0786 | M211: -104228.1389 | N211: 0 | O211: 0 | P211: 0 | Q211: 0 | R211: 0 | S211: 0 | T211: 0 | U211: 0 | V211: 0 | W211: 0 | X211: 0 | Y211: 0 | Z211: 0 | AA211: 0 | AB211: 0 | AC211: 0 | AD211: 0 | AE211: 0 | AF211: 0 | AG211: 0 | AH211: 0 | AI211: 0 | AJ211: 0 | AK211: 0 | AL211: 0 | AM211: 0 | AN211: 0 | AO211: 0 | AP211: 0 | AQ211: 0 | AR211: 0 | AS211: 0 | AT211: 0 | AU211: 0 | AV211: 0 | AW211: 0 | AX211: 0 | AY211: 0 | AZ211: 0 | BA211: 0
B212: Pre-Tax Distributions | H212: =H106-H211 -> 0 | I212: 0 | J212: 0 | K212: 0 | L212: 0 | M212: -39.39154478 | N212: 4709.995769 | O212: 13820.85974 | P212: 14094.48373 | Q212: 14284.48601 | R212: 14482.2464 | S212: 14754.76138 | T212: 14955.49946 | U212: 15133.88196 | V212: 15332.38879 | W212: 15523.46628 | X212: 15732.911 | Y212: 15934.73685 | Z212: 16152.83214 | AA212: 16356.55475 | AB212: 16580.20342 | AC212: 16813.38402 | AD212: 17064.39502 | AE212: 17299.07864 | AF212: 17547.62311 | AG212: 17783.30401 | AH212: 18032.72088 | AI212: 18266.81007 | AJ212: 18519.82954 | AK212: 18763.74525 | AL212: 19026.45705 | AM212: 13120.54125 | AN212: 0 | AO212: 0 | AP212: 0 | AQ212: 0 | AR212: 0 | AS212: 0 | AT212: 0 | AU212: 0 | AV212: 0 | AW212: 0 | AX212: 0 | AY212: 0 | AZ212: 0 | BA212: 0
B213: Tax Benefit / (Payment) | F213: ITC/CITC | H213: =H161 -> 0 | I213: 0 | J213: 0 | K213: 0 | L213: 0 | M213: 0 | N213: 0 | O213: 0 | P213: 43050.57281 | Q213: -1332.243928 | R213: -1447.18887 | S213: -3437.716285 | T213: -5377.479758 | U213: -5444.286362 | V213: -5519.931411 | W213: -5591.731687 | X213: -5671.427683 | Y213: -5747.285473 | Z213: -5922.543735 | AA213: -6091.264719 | AB213: -6176.39584 | AC213: -6308.21578 | AD213: -6447.086081 | AE213: -6535.058692 | AF213: -6629.387984 | AG213: -6717.861147 | AH213: -6812.506655 | AI213: -6900.299656 | AJ213: -6996.489636 | AK213: -7088.18656 | AL213: -7188.014099 | AM213: -4326.261979 | AN213: 0 | AO213: 0 | AP213: 0 | AQ213: 0 | AR213: 0 | AS213: 0 | AT213: 0 | AU213: 0 | AV213: 0 | AW213: 0 | AX213: 0 | AY213: 0 | AZ213: 0 | BA213: 0
B214: ITC/CITC | F214: =Alloc!R50 -> 59368.96861 | H214: =$F214*(H3=1) -> 0 | I214: 0 | J214: 0 | K214: 0 | L214: 0 | M214: 0 | N214: 59368.96861 | O214: 0 | P214: 0 | Q214: 0 | R214: 0 | S214: 0 | T214: 0 | U214: 0 | V214: 0 | W214: 0 | X214: 0 | Y214: 0 | Z214: 0 | AA214: 0 | AB214: 0 | AC214: 0 | AD214: 0 | AE214: 0 | AF214: 0 | AG214: 0 | AH214: 0 | AI214: 0 | AJ214: 0 | AK214: 0 | AL214: 0 | AM214: 0 | AN214: 0 | AO214: 0 | AP214: 0 | AQ214: 0 | AR214: 0 | AS214: 0 | AT214: 0 | AU214: 0 | AV214: 0 | AW214: 0 | AX214: 0 | AY214: 0 | AZ214: 0 | BA214: 0
B215: PTC/ITC Deferral Penalty | H215: =H204 -> 0 | I215: 0 | J215: 0 | K215: 0 | L215: 0 | M215: 0 | N215: 0 | O215: 0 | P215: -29853.50802 | Q215: 819.2011175 | R215: 29528.90579 | S215: 1333.470606 | T215: -1828.069496 | U215: 0 | V215: 0 | W215: 0 | X215: 0 | Y215: 0 | Z215: 0 | AA215: 0 | AB215: 0 | AC215: 0 | AD215: 0 | AE215: 0 | AF215: 0 | AG215: 0 | AH215: 0 | AI215: 0 | AJ215: 0 | AK215: 0 | AL215: 0 | AM215: 0 | AN215: 0 | AO215: 0 | AP215: 0 | AQ215: 0 | AR215: 0 | AS215: 0 | AT215: 0 | AU215: 0 | AV215: 0 | AW215: 0 | AX215: 0 | AY215: 0 | AZ215: 0 | BA215: 0
B216: After-Tax Cash Flow | H216: =SUM(H211:H215) -> -1e-08 | I216: 0 | J216: 0 | K216: 0 | L216: -105824.0786 | M216: -104267.5305 | N216: 64078.96438 | O216: 13820.85974 | P216: 27291.54851 | Q216: 13771.4432 | R216: 42563.96333 | S216: 12650.5157 | T216: 7749.95021 | U216: 9689.595599 | V216: 9812.457376 | W216: 9931.734597 | X216: 10061.48332 | Y216: 10187.45138 | Z216: 10230.2884 | AA216: 10265.29003 | AB216: 10403.80758 | AC216: 10505.16824 | AD216: 10617.30894 | AE216: 10764.01995 | AF216: 10918.23512 | AG216: 11065.44286 | AH216: 11220.21422 | AI216: 11366.51041 | AJ216: 11523.3399 | AK216: 11675.55869 | AL216: 11838.44295 | AM216: 8794.27927 | AN216: 0 | AO216: 0 | AP216: 0 | AQ216: 0 | AR216: 0 | AS216: 0 | AT216: 0 | AU216: 0 | AV216: 0 | AW216: 0 | AX216: 0 | AY216: 0 | AZ216: 0 | BA216: 0
B219: Weighted Average Discount Date (WADD)
D220: COD | E220: Days | F220: Receipt
B221: Grant Funding | D221: =FS!E13 -> 2012-08-01 | E221: 90 | F221: =D221+E221 -> 2012-10-30 | G221: Disc Date : | H221: =IF(H214>0,$F221,H2) -> 2007-06-30 | I221: 2008-06-30 | J221: 2009-06-30 | K221: 2010-06-30 | L221: 2011-10-01 | M221: 2012-08-01 | N221: 2012-10-30 | O221: 2013-08-15 | P221: 2014-08-15 | Q221: 2015-08-15 | R221: 2016-08-15 | S221: 2017-08-15 | T221: 2018-08-15 | U221: 2019-08-15 | V221: 2020-08-15 | W221: 2021-08-15 | X221: 2022-08-15 | Y221: 2023-08-15 | Z221: 2024-08-15 | AA221: 2025-08-15 | AB221: 2026-08-15 | AC221: 2027-08-15 | AD221: 2028-08-15 | AE221: 2029-08-15 | AF221: 2030-08-15 | AG221: 2031-08-15 | AH221: 2032-08-15 | AI221: 2033-08-15 | AJ221: 2034-08-15 | AK221: 2035-08-15 | AL221: 2036-08-15 | AM221: 2037-08-15 | AN221: 2038-08-15 | AO221: 2039-08-15 | AP221: 2040-08-15 | AQ221: 2041-08-15 | AR221: 2042-08-15 | AS221: 2043-08-15 | AT221: 2044-08-15 | AU221: 2045-08-15 | AV221: 2046-08-15 | AW221: 2047-08-15 | AX221: 2048-08-15 | AY221: 2049-08-15 | AZ221: 2050-08-15 | BA221: 2051-08-15
B222: Investment / Ops | G222: Disc Date : | H222: =H2 -> 2007-06-30 | I222: 2008-06-30 | J222: 2009-06-30 | K222: 2010-06-30 | L222: 2011-10-01 | M222: 2012-08-01 | N222: 2012-12-01 | O222: 2013-08-15 | P222: 2014-08-15 | Q222: 2015-08-15 | R222: 2016-08-15 | S222: 2017-08-15 | T222: 2018-08-15 | U222: 2019-08-15 | V222: 2020-08-15 | W222: 2021-08-15 | X222: 2022-08-15 | Y222: 2023-08-15 | Z222: 2024-08-15 | AA222: 2025-08-15 | AB222: 2026-08-15 | AC222: 2027-08-15 | AD222: 2028-08-15 | AE222: 2029-08-15 | AF222: 2030-08-15 | AG222: 2031-08-15 | AH222: 2032-08-15 | AI222: 2033-08-15 | AJ222: 2034-08-15 | AK222: 2035-08-15 | AL222: 2036-08-15 | AM222: 2037-08-15 | AN222: 2038-08-15 | AO222: 2039-08-15 | AP222: 2040-08-15 | AQ222: 2041-08-15 | AR222: 2042-08-15 | AS222: 2043-08-15 | AT222: 2044-08-15 | AU222: 2045-08-15 | AV222: 2046-08-15 | AW222: 2047-08-15 | AX222: 2048-08-15 | AY222: 2049-08-15 | AZ222: 2050-08-15 | BA222: 2051-08-15
B224: Grant Funding | G224: Abs $000's : | H224: =ABS(H214) -> 0 | I224: 0 | J224: 0 | K224: 0 | L224: 0 | M224: 0 | N224: 59368.96861 | O224: 0 | P224: 0 | Q224: 0 | R224: 0 | S224: 0 | T224: 0 | U224: 0 | V224: 0 | W224: 0 | X224: 0 | Y224: 0 | Z224: 0 | AA224: 0 | AB224: 0 | AC224: 0 | AD224: 0 | AE224: 0 | AF224: 0 | AG224: 0 | AH224: 0 | AI224: 0 | AJ224: 0 | AK224: 0 | AL224: 0 | AM224: 0 | AN224: 0 | AO224: 0 | AP224: 0 | AQ224: 0 | AR224: 0 | AS224: 0 | AT224: 0 | AU224: 0 | AV224: 0 | AW224: 0 | AX224: 0 | AY224: 0 | AZ224: 0 | BA224: 0
B225: Investment | G225: Abs $000's : | H225: =ABS(H211) -> 1e-08 | I225: 0 | J225: 0 | K225: 0 | L225: 105824.0786 | M225: 104228.1389 | N225: 0 | O225: 0 | P225: 0 | Q225: 0 | R225: 0 | S225: 0 | T225: 0 | U225: 0 | V225: 0 | W225: 0 | X225: 0 | Y225: 0 | Z225: 0 | AA225: 0 | AB225: 0 | AC225: 0 | AD225: 0 | AE225: 0 | AF225: 0 | AG225: 0 | AH225: 0 | AI225: 0 | AJ225: 0 | AK225: 0 | AL225: 0 | AM225: 0 | AN225: 0 | AO225: 0 | AP225: 0 | AQ225: 0 | AR225: 0 | AS225: 0 | AT225: 0 | AU225: 0 | AV225: 0 | AW225: 0 | AX225: 0 | AY225: 0 | AZ225: 0 | BA225: 0
B226: Operations | G226: Abs $000's : | H226: =ABS(SUM(H212:H213,H215)) -> 0 | I226: 0 | J226: 0 | K226: 0 | L226: 0 | M226: 39.39154478 | N226: 4709.995769 | O226: 13820.85974 | P226: 27291.54851 | Q226: 13771.4432 | R226: 42563.96333 | S226: 12650.5157 | T226: 7749.95021 | U226: 9689.595599 | V226: 9812.457376 | W226: 9931.734597 | X226: 10061.48332 | Y226: 10187.45138 | Z226: 10230.2884 | AA226: 10265.29003 | AB226: 10403.80758 | AC226: 10505.16824 | AD226: 10617.30894 | AE226: 10764.01995 | AF226: 10918.23512 | AG226: 11065.44286 | AH226: 11220.21422 | AI226: 11366.51041 | AJ226: 11523.3399 | AK226: 11675.55869 | AL226: 11838.44295 | AM226: 8794.27927 | AN226: 0 | AO226: 0 | AP226: 0 | AQ226: 0 | AR226: 0 | AS226: 0 | AT226: 0 | AU226: 0 | AV226: 0 | AW226: 0 | AX226: 0 | AY226: 0 | AZ226: 0 | BA226: 0
H227: =SUM(H224:H226) -> 1e-08 | I227: 0 | J227: 0 | K227: 0 | L227: 105824.0786 | M227: 104267.5305 | N227: 64078.96438 | O227: 13820.85974 | P227: 27291.54851 | Q227: 13771.4432 | R227: 42563.96333 | S227: 12650.5157 | T227: 7749.95021 | U227: 9689.595599 | V227: 9812.457376 | W227: 9931.734597 | X227: 10061.48332 | Y227: 10187.45138 | Z227: 10230.2884 | AA227: 10265.29003 | AB227: 10403.80758 | AC227: 10505.16824 | AD227: 10617.30894 | AE227: 10764.01995 | AF227: 10918.23512 | AG227: 11065.44286 | AH227: 11220.21422 | AI227: 11366.51041 | AJ227: 11523.3399 | AK227: 11675.55869 | AL227: 11838.44295 | AM227: 8794.27927 | AN227: 0 | AO227: 0 | AP227: 0 | AQ227: 0 | AR227: 0 | AS227: 0 | AT227: 0 | AU227: 0 | AV227: 0 | AW227: 0 | AX227: 0 | AY227: 0 | AZ227: 0 | BA227: 0
B229: Grant Funding | G229: Wt Factors : | H229: =IF(H227=0,0,H224/H227) -> 0 | I229: 0 | J229: 0 | K229: 0 | L229: 0 | M229: 0 | N229: 0.9264970055 | O229: 0 | P229: 0 | Q229: 0 | R229: 0 | S229: 0 | T229: 0 | U229: 0 | V229: 0 | W229: 0 | X229: 0 | Y229: 0 | Z229: 0 | AA229: 0 | AB229: 0 | AC229: 0 | AD229: 0 | AE229: 0 | AF229: 0 | AG229: 0 | AH229: 0 | AI229: 0 | AJ229: 0 | AK229: 0 | AL229: 0 | AM229: 0 | AN229: 0 | AO229: 0 | AP229: 0 | AQ229: 0 | AR229: 0 | AS229: 0 | AT229: 0 | AU229: 0 | AV229: 0 | AW229: 0 | AX229: 0 | AY229: 0 | AZ229: 0 | BA229: 0
B230: Investment / Ops | G230: Wt Factors : | H230: =1-H229 -> 1 | I230: 1 | J230: 1 | K230: 1 | L230: 1 | M230: 1 | N230: 0.07350299454 | O230: 1 | P230: 1 | Q230: 1 | R230: 1 | S230: 1 | T230: 1 | U230: 1 | V230: 1 | W230: 1 | X230: 1 | Y230: 1 | Z230: 1 | AA230: 1 | AB230: 1 | AC230: 1 | AD230: 1 | AE230: 1 | AF230: 1 | AG230: 1 | AH230: 1 | AI230: 1 | AJ230: 1 | AK230: 1 | AL230: 1 | AM230: 1 | AN230: 1 | AO230: 1 | AP230: 1 | AQ230: 1 | AR230: 1 | AS230: 1 | AT230: 1 | AU230: 1 | AV230: 1 | AW230: 1 | AX230: 1 | AY230: 1 | AZ230: 1 | BA230: 1
F232: Disc Rate
F233: =Scen!G17 -> 0.08 | G233: WADD : | H233: =SUMPRODUCT(H221:H222,H229:H230) -> 2007-06-30 | I233: 2008-06-30 | J233: 2009-06-30 | K233: 2010-06-30 | L233: 2011-10-01 | M233: 2012-08-01 | N233: 2012-11-01T08:27:01.079 | O233: 2013-08-15 | P233: 2014-08-15 | Q233: 2015-08-15 | R233: 2016-08-15 | S233: 2017-08-15 | T233: 2018-08-15 | U233: 2019-08-15 | V233: 2020-08-15 | W233: 2021-08-15 | X233: 2022-08-15 | Y233: 2023-08-15 | Z233: 2024-08-15 | AA233: 2025-08-15 | AB233: 2026-08-15 | AC233: 2027-08-15 | AD233: 2028-08-15 | AE233: 2029-08-15 | AF233: 2030-08-15 | AG233: 2031-08-15 | AH233: 2032-08-15 | AI233: 2033-08-15 | AJ233: 2034-08-15 | AK233: 2035-08-15 | AL233: 2036-08-15 | AM233: 2037-08-15 | AN233: 2038-08-15 | AO233: 2039-08-15 | AP233: 2040-08-15 | AQ233: 2041-08-15 | AR233: 2042-08-15 | AS233: 2043-08-15 | AT233: 2044-08-15 | AU233: 2045-08-15 | AV233: 2046-08-15 | AW233: 2047-08-15 | AX233: 2048-08-15 | AY233: 2049-08-15 | AZ233: 2050-08-15 | BA233: 2051-08-15
D234: Year | E234: xIRR | F234: xNPV | G234: xIRR : | H234: 0 | I234: 0 | J234: 0 | K234: 0 | L234: 0 | M234: 0 | N234: =XIRR($H216:N216,$H233:N233) -> 2.980232239e-09 | O234: =XIRR($H216:O216,$H233:O233) -> 2.980232239e-09 | P234: =XIRR($H216:P216,$H233:P233) -> 2.980232239e-09 | Q234: =XIRR($H216:Q216,$H233:Q233) -> 2.980232239e-09 | R234: =XIRR($H216:R216,$H233:R233) -> 2.980232239e-09 | S234: =XIRR($H216:S216,$H233:S233) -> 2.980232239e-09 | T234: =XIRR($H216:T216,$H233:T233) -> 2.980232239e-09 | U234: =XIRR($H216:U216,$H233:U233) -> 2.980232239e-09 | V234: =XIRR($H216:V216,$H233:V233) -> 2.980232239e-09 | W234: =XIRR($H216:W216,$H233:W233) -> 0.001733246446 | X234: =XIRR($H216:X216,$H233:X233) -> 0.01413985789 | Y234: =XIRR($H216:Y216,$H233:Y233) -> 0.02461380661 | Z234: =XIRR($H216:Z216,$H233:Z233) -> 0.03341462314 | AA234: =XIRR($H216:AA216,$H233:AA233) -> 0.04084202349 | AB234: =XIRR($H216:AB216,$H233:AB233) -> 0.04720343649 | AC234: =XIRR($H216:AC216,$H233:AC233) -> 0.05265578926 | AD234: =XIRR($H216:AD216,$H233:AD233) -> 0.05735401213 | AE234: =XIRR($H216:AE216,$H233:AE233) -> 0.06143268645 | AF234: =XIRR($H216:AF216,$H233:AF233) -> 0.06498902142 | AG234: =XIRR($H216:AG216,$H233:AG233) -> 0.0680988282 | AH234: =XIRR($H216:AH216,$H233:AH233) -> 0.07082861364 | AI234: =XIRR($H216:AI216,$H233:AI233) -> 0.07323099077 | AJ234: =XIRR($H216:AJ216,$H233:AJ233) -> 0.07535342276 | AK234: =XIRR($H216:AK216,$H233:AK233) -> 0.07723293006 | AL234: =XIRR($H216:AL216,$H233:AL233) -> 0.07890272439 | AM234: =XIRR($H216:AM216,$H233:AM233) -> 0.07999999821 | AN234: =XIRR($H216:AN216,$H233:AN233) -> 0.07999999821 | AO234: =XIRR($H216:AO216,$H233:AO233) -> 0.07999999821 | AP234: =XIRR($H216:AP216,$H233:AP233) -> 0.07999999821 | AQ234: =XIRR($H216:AQ216,$H233:AQ233) -> 0.07999999821 | AR234: =XIRR($H216:AR216,$H233:AR233) -> 0.07999999821 | AS234: =XIRR($H216:AS216,$H233:AS233) -> 0.07999999821 | AT234: =XIRR($H216:AT216,$H233:AT233) -> 0.07999999821 | AU234: =XIRR($H216:AU216,$H233:AU233) -> 0.07999999821 | AV234: =XIRR($H216:AV216,$H233:AV233) -> 0.07999999821 | AW234: =XIRR($H216:AW216,$H233:AW233) -> 0.07999999821 | AX234: =XIRR($H216:AX216,$H233:AX233) -> 0.07999999821 | AY234: =XIRR($H216:AY216,$H233:AY233) -> 0.07999999821 | AZ234: =XIRR($H216:AZ216,$H233:AZ233) -> 0.07999999821 | BA234: =XIRR($H216:BA216,$H233:BA233) -> 0.07999999821
D235: 5 | E235: =OFFSET($M$234,0,$D235) -> 2.980232239e-09 | F235: =OFFSET($M$235,0,$D235)/1000 -> -51.42061429 | G235: xNPV : | H235: =XNPV($F$233,$H216:H216,$H233:H233) -> -1e-08 | I235: =XNPV($F$233,$H216:I216,$H233:I233) -> -1e-08 | J235: =XNPV($F$233,$H216:J216,$H233:J233) -> -1e-08 | K235: =XNPV($F$233,$H216:K216,$H233:K233) -> -1e-08 | L235: =XNPV($F$233,$H216:L216,$H233:L233) -> -76257.35051 | M235: =XNPV($F$233,$H216:M216,$H233:M233) -> -146713.169 | N235: =XNPV($F$233,$H216:N216,$H233:N233) -> -104245.4785 | O235: =XNPV($F$233,$H216:O216,$H233:O233) -> -95623.69582 | P235: =XNPV($F$233,$H216:P216,$H233:P233) -> -79859.69544 | Q235: =XNPV($F$233,$H216:Q216,$H233:Q233) -> -72494.33578 | R235: =XNPV($F$233,$H216:R216,$H233:R233) -> -51420.61429 | S235: =XNPV($F$233,$H216:S216,$H233:S233) -> -45621.20646 | T235: =XNPV($F$233,$H216:T216,$H233:T233) -> -42331.54977 | U235: =XNPV($F$233,$H216:U216,$H233:U233) -> -38523.22865 | V235: =XNPV($F$233,$H216:V216,$H233:V233) -> -34953.04657 | W235: =XNPV($F$233,$H216:W216,$H233:W233) -> -31607.13906 | X235: =XNPV($F$233,$H216:X216,$H233:X233) -> -28468.60329 | Y235: =XNPV($F$233,$H216:Y216,$H233:Y233) -> -25526.16838 | Z235: =XNPV($F$233,$H216:Z216,$H233:Z233) -> -22790.81232 | AA235: =XNPV($F$233,$H216:AA216,$H233:AA233) -> -20249.4098 | AB235: =XNPV($F$233,$H216:AB216,$H233:AB233) -> -17864.50642 | AC235: =XNPV($F$233,$H216:AC216,$H233:AC233) -> -15634.74841 | AD235: =XNPV($F$233,$H216:AD216,$H233:AD233) -> -13548.55846 | AE235: =XNPV($F$233,$H216:AE216,$H233:AE233) -> -11590.20927 | AF235: =XNPV($F$233,$H216:AF216,$H233:AF233) -> -9750.944185 | AG235: =XNPV($F$233,$H216:AG216,$H233:AG233) -> -8024.95954 | AH235: =XNPV($F$233,$H216:AH216,$H233:AH233) -> -6404.814299 | AI235: =XNPV($F$233,$H216:AI216,$H233:AI233) -> -4885.120124 | AJ235: =XNPV($F$233,$H216:AJ216,$H233:AJ233) -> -3458.581083 | AK235: =XNPV($F$233,$H216:AK216,$H233:AK233) -> -2120.263434 | AL235: =XNPV($F$233,$H216:AL216,$H233:AL233) -> -864.0576396 | AM235: =XNPV($F$233,$H216:AM216,$H233:AM233) -> -2.082513379e-05 | AN235: =XNPV($F$233,$H216:AN216,$H233:AN233) -> -2.082513379e-05 | AO235: =XNPV($F$233,$H216:AO216,$H233:AO233) -> -2.082513379e-05 | AP235: =XNPV($F$233,$H216:AP216,$H233:AP233) -> -2.082513379e-05 | AQ235: =XNPV($F$233,$H216:AQ216,$H233:AQ233) -> -2.082513379e-05 | AR235: =XNPV($F$233,$H216:AR216,$H233:AR233) -> -2.082513379e-05 | AS235: =XNPV($F$233,$H216:AS216,$H233:AS233) -> -2.082513379e-05 | AT235: =XNPV($F$233,$H216:AT216,$H233:AT233) -> -2.082513379e-05 | AU235: =XNPV($F$233,$H216:AU216,$H233:AU233) -> -2.082513379e-05 | AV235: =XNPV($F$233,$H216:AV216,$H233:AV233) -> -2.082513379e-05 | AW235: =XNPV($F$233,$H216:AW216,$H233:AW233) -> -2.082513379e-05 | AX235: =XNPV($F$233,$H216:AX216,$H233:AX233) -> -2.082513379e-05 | AY235: =XNPV($F$233,$H216:AY216,$H233:AY233) -> -2.082513379e-05 | AZ235: =XNPV($F$233,$H216:AZ216,$H233:AZ233) -> -2.082513379e-05 | BA235: =XNPV($F$233,$H216:BA216,$H233:BA233) -> -2.082513379e-05
D236: 10 | E236: 0.001733246446 | F236: -31.60713906
D237: 15 | E237: 0.04720343649 | F237: -17.86450642
D238: 20 | E238: 0.0680988282 | F238: -8.02495954
D239: 25 | E239: 0.07890272439 | F239: -0.8640576396
D240: 31 | E240: 0.07999999821 | F240: -2.082513379e-08
B243: Basic Impairment Test
B245: EBITDA | H245: =H45 -> 0 | I245: 0 | J245: 0 | K245: 0 | L245: 0 | M245: -39.39154478 | N245: 5910.838773 | O245: 13793.78606 | P245: 14122.93852 | Q245: 14300.53303 | R245: 14500.15463 | S245: 14779.25461 | T245: 14973.03445 | U245: 15150.0994 | V245: 15350.58985 | W245: 15540.89008 | X245: 15752.11721 | Y245: 15953.17152 | Z245: 16172.86568 | AA245: 16375.23338 | AB245: 16600.86582 | AC245: 16834.80312 | AD245: 17087.42667 | AE245: 17320.59022 | AF245: 17570.6016 | AG245: 17805.09183 | AH245: 18055.94131 | AI245: 18288.62883 | AJ245: 18543.57179 | AK245: 18786.60631 | AL245: 19051.1903 | AM245: 11466.37153 | AN245: 0 | AO245: 0 | AP245: 0 | AQ245: 0 | AR245: 0 | AS245: 0 | AT245: 0 | AU245: 0 | AV245: 0 | AW245: 0 | AX245: 0 | AY245: 0 | AZ245: 0 | BA245: 0
B246: Total Remaining EBITDA - Nominal | H246: =SUM(H245:$BA245) -> 410047.805 | I246: =SUM(I245:$BA245) -> 410047.805 | J246: =SUM(J245:$BA245) -> 410047.805 | K246: =SUM(K245:$BA245) -> 410047.805 | L246: =SUM(L245:$BA245) -> 410047.805 | M246: =SUM(M245:$BA245) -> 410047.805 | N246: =SUM(N245:$BA245) -> 410087.1965 | O246: =SUM(O245:$BA245) -> 404176.3578 | P246: =SUM(P245:$BA245) -> 390382.5717 | Q246: =SUM(Q245:$BA245) -> 376259.6332 | R246: =SUM(R245:$BA245) -> 361959.1001 | S246: =SUM(S245:$BA245) -> 347458.9455 | T246: =SUM(T245:$BA245) -> 332679.6909 | U246: =SUM(U245:$BA245) -> 317706.6564 | V246: =SUM(V245:$BA245) -> 302556.557 | W246: =SUM(W245:$BA245) -> 287205.9672 | X246: =SUM(X245:$BA245) -> 271665.0771 | Y246: =SUM(Y245:$BA245) -> 255912.9599 | Z246: =SUM(Z245:$BA245) -> 239959.7884 | AA246: =SUM(AA245:$BA245) -> 223786.9227 | AB246: =SUM(AB245:$BA245) -> 207411.6893 | AC246: =SUM(AC245:$BA245) -> 190810.8235 | AD246: =SUM(AD245:$BA245) -> 173976.0204 | AE246: =SUM(AE245:$BA245) -> 156888.5937 | AF246: =SUM(AF245:$BA245) -> 139568.0035 | AG246: =SUM(AG245:$BA245) -> 121997.4019 | AH246: =SUM(AH245:$BA245) -> 104192.3101 | AI246: =SUM(AI245:$BA245) -> 86136.36875 | AJ246: =SUM(AJ245:$BA245) -> 67847.73993 | AK246: =SUM(AK245:$BA245) -> 49304.16814 | AL246: =SUM(AL245:$BA245) -> 30517.56183 | AM246: =SUM(AM245:$BA245) -> 11466.37153 | AN246: =SUM(AN245:$BA245) -> 0 | AO246: =SUM(AO245:$BA245) -> 0 | AP246: =SUM(AP245:$BA245) -> 0 | AQ246: =SUM(AQ245:$BA245) -> 0 | AR246: =SUM(AR245:$BA245) -> 0 | AS246: =SUM(AS245:$BA245) -> 0 | AT246: =SUM(AT245:$BA245) -> 0 | AU246: =SUM(AU245:$BA245) -> 0 | AV246: =SUM(AV245:$BA245) -> 0 | AW246: =SUM(AW245:$BA245) -> 0 | AX246: =SUM(AX245:$BA245) -> 0 | AY246: =SUM(AY245:$BA245) -> 0 | AZ246: =SUM(AZ245:$BA245) -> 0 | BA246: =SUM(BA245:$BA245) -> 0
B247: Remaining Book Basis - Beginning | F247: Max Impairment | H247: =H60-H46 -> 1e-08 | I247: 0 | J247: 0 | K247: 0 | L247: 105824.0786 | M247: 210052.2175 | N247: 210052.2175 | O247: 207134.8256 | P247: 200133.0851 | Q247: 193131.3446 | R247: 186129.6041 | S247: 179127.8636 | T247: 172126.1231 | U247: 165124.3826 | V247: 158122.6421 | W247: 151120.9016 | X247: 144119.1611 | Y247: 137117.4206 | Z247: 130115.6801 | AA247: 123113.9396 | AB247: 116112.1991 | AC247: 109110.4586 | AD247: 102108.7181 | AE247: 95106.97762 | AF247: 88105.23712 | AG247: 81103.49662 | AH247: 74101.75612 | AI247: 67100.01562 | AJ247: 60098.27512 | AK247: 53096.53462 | AL247: 46094.79412 | AM247: 0.001822128979 | AN247: 0.001822128979 | AO247: 0.001822128979 | AP247: 0.001822128979 | AQ247: 0.001822128979 | AR247: 0.001822128979 | AS247: 0.001822128979 | AT247: 0.001822128979 | AU247: 0.001822128979 | AV247: 0.001822128979 | AW247: 0.001822128979 | AX247: 0.001822128979 | AY247: 0.001822128979 | AZ247: 0.001822128979 | BA247: 0.001822128979
F248: =MIN(H248:BA248) -> -15577.23229 | H248: =H246-H247 -> 410047.805 | I248: 410047.805 | J248: 410047.805 | K248: 410047.805 | L248: 304223.7264 | M248: 199995.5875 | N248: 200034.979 | O248: 197041.5321 | P248: 190249.4866 | Q248: 183128.2885 | R248: 175829.496 | S248: 168331.0819 | T248: 160553.5678 | U248: 152582.2738 | V248: 144433.9149 | W248: 136085.0656 | X248: 127545.916 | Y248: 118795.5393 | Z248: 109844.1083 | AA248: 100672.9831 | AB248: 91299.4902 | AC248: 81700.36488 | AD248: 71867.30226 | AE248: 61781.61609 | AF248: 51462.76637 | AG248: 40893.90526 | AH248: 30090.55394 | AI248: 19036.35313 | AJ248: 7749.464804 | AK248: -3792.366486 | AL248: -15577.23229 | AM248: 11466.36971 | AN248: -0.001822128979 | AO248: -0.001822128979 | AP248: -0.001822128979 | AQ248: -0.001822128979 | AR248: -0.001822128979 | AS248: -0.001822128979 | AT248: -0.001822128979 | AU248: -0.001822128979 | AV248: -0.001822128979 | AW248: -0.001822128979 | AX248: -0.001822128979 | AY248: -0.001822128979 | AZ248: -0.001822128979 | BA248: -0.001822128979
B250: Impaired (1=Impaired, 0=OK) | F250: =--(SUM(H250:BA250)>0) -> 1 | H250: =--(ROUND(H248,0)<0) -> 0 | I250: 0 | J250: 0 | K250: 0 | L250: 0 | M250: 0 | N250: 0 | O250: 0 | P250: 0 | Q250: 0 | R250: 0 | S250: 0 | T250: 0 | U250: 0 | V250: 0 | W250: 0 | X250: 0 | Y250: 0 | Z250: 0 | AA250: 0 | AB250: 0 | AC250: 0 | AD250: 0 | AE250: 0 | AF250: 0 | AG250: 0 | AH250: 0 | AI250: 0 | AJ250: 0 | AK250: 1 | AL250: 1 | AM250: 0 | AN250: 0 | AO250: 0 | AP250: 0 | AQ250: 0 | AR250: 0 | AS250: 0 | AT250: 0 | AU250: 0 | AV250: 0 | AW250: 0 | AX250: 0 | AY250: 0 | AZ250: 0 | BA250: 0

Sheet Ret
H1: =FS!H1 -> 0 | I1: =FS!I1 -> 0 | J1: =FS!J1 -> 0 | K1: =FS!K1 -> 0 | L1: =FS!L1 -> 0 | M1: =FS!M1 -> 0 | N1: =FS!N1 -> 0.4180327869 | O1: =FS!O1 -> 1 | P1: =FS!P1 -> 1 | Q1: =FS!Q1 -> 1 | R1: =FS!R1 -> 1 | S1: =FS!S1 -> 1 | T1: =FS!T1 -> 1 | U1: =FS!U1 -> 1 | V1: =FS!V1 -> 1 | W1: =FS!W1 -> 1 | X1: =FS!X1 -> 1 | Y1: =FS!Y1 -> 1 | Z1: =FS!Z1 -> 1 | AA1: =FS!AA1 -> 1 | AB1: =FS!AB1 -> 1 | AC1: =FS!AC1 -> 1 | AD1: =FS!AD1 -> 1 | AE1: =FS!AE1 -> 1 | AF1: =FS!AF1 -> 1 | AG1: =FS!AG1 -> 1 | AH1: =FS!AH1 -> 1 | AI1: =FS!AI1 -> 1 | AJ1: =FS!AJ1 -> 1 | AK1: =FS!AK1 -> 1 | AL1: =FS!AL1 -> 1 | AM1: =FS!AM1 -> 0.5819672131 | AN1: =FS!AN1 -> 0 | AO1: =FS!AO1 -> 0 | AP1: =FS!AP1 -> 0 | AQ1: =FS!AQ1 -> 0 | AR1: =FS!AR1 -> 0 | AS1: =FS!AS1 -> 0 | AT1: =FS!AT1 -> 0 | AU1: =FS!AU1 -> 0 | AV1: =FS!AV1 -> 0 | AW1: =FS!AW1 -> 0 | AX1: =FS!AX1 -> 0 | AY1: =FS!AY1 -> 0 | AZ1: =FS!AZ1 -> 0 | BA1: =FS!BA1 -> 0
H2: =FS!H2 -> 2007-06-30 | I2: =FS!I2 -> 2008-06-30 | J2: =FS!J2 -> 2009-06-30 | K2: =FS!K2 -> 2010-06-30 | L2: =FS!L2 -> 2011-10-01 | M2: =FS!M2 -> 2012-08-01 | N2: =FS!N2 -> 2012-12-01 | O2: =FS!O2 -> 2013-08-15 | P2: =FS!P2 -> 2014-08-15 | Q2: =FS!Q2 -> 2015-08-15 | R2: =FS!R2 -> 2016-08-15 | S2: =FS!S2 -> 2017-08-15 | T2: =FS!T2 -> 2018-08-15 | U2: =FS!U2 -> 2019-08-15 | V2: =FS!V2 -> 2020-08-15 | W2: =FS!W2 -> 2021-08-15 | X2: =FS!X2 -> 2022-08-15 | Y2: =FS!Y2 -> 2023-08-15 | Z2: =FS!Z2 -> 2024-08-15 | AA2: =FS!AA2 -> 2025-08-15 | AB2: =FS!AB2 -> 2026-08-15 | AC2: =FS!AC2 -> 2027-08-15 | AD2: =FS!AD2 -> 2028-08-15 | AE2: =FS!AE2 -> 2029-08-15 | AF2: =FS!AF2 -> 2030-08-15 | AG2: =FS!AG2 -> 2031-08-15 | AH2: =FS!AH2 -> 2032-08-15 | AI2: =FS!AI2 -> 2033-08-15 | AJ2: =FS!AJ2 -> 2034-08-15 | AK2: =FS!AK2 -> 2035-08-15 | AL2: =FS!AL2 -> 2036-08-15 | AM2: =FS!AM2 -> 2037-08-15 | AN2: =FS!AN2 -> 2038-08-15 | AO2: =FS!AO2 -> 2039-08-15 | AP2: =FS!AP2 -> 2040-08-15 | AQ2: =FS!AQ2 -> 2041-08-15 | AR2: =FS!AR2 -> 2042-08-15 | AS2: =FS!AS2 -> 2043-08-15 | AT2: =FS!AT2 -> 2044-08-15 | AU2: =FS!AU2 -> 2045-08-15 | AV2: =FS!AV2 -> 2046-08-15 | AW2: =FS!AW2 -> 2047-08-15 | AX2: =FS!AX2 -> 2048-08-15 | AY2: =FS!AY2 -> 2049-08-15 | AZ2: =FS!AZ2 -> 2050-08-15 | BA2: =FS!BA2 -> 2051-08-15
H3: =FS!H3 -> -5 | I3: =FS!I3 -> -4 | J3: =FS!J3 -> -3 | K3: =FS!K3 -> -2 | L3: =FS!L3 -> -1 | M3: =FS!M3 -> 0 | N3: =FS!N3 -> 1 | O3: =FS!O3 -> 2 | P3: =FS!P3 -> 3 | Q3: =FS!Q3 -> 4 | R3: =FS!R3 -> 5 | S3: =FS!S3 -> 6 | T3: =FS!T3 -> 7 | U3: =FS!U3 -> 8 | V3: =FS!V3 -> 9 | W3: =FS!W3 -> 10 | X3: =FS!X3 -> 11 | Y3: =FS!Y3 -> 12 | Z3: =FS!Z3 -> 13 | AA3: =FS!AA3 -> 14 | AB3: =FS!AB3 -> 15 | AC3: =FS!AC3 -> 16 | AD3: =FS!AD3 -> 17 | AE3: =FS!AE3 -> 18 | AF3: =FS!AF3 -> 19 | AG3: =FS!AG3 -> 20 | AH3: =FS!AH3 -> 21 | AI3: =FS!AI3 -> 22 | AJ3: =FS!AJ3 -> 23 | AK3: =FS!AK3 -> 24 | AL3: =FS!AL3 -> 25 | AM3: =FS!AM3 -> 26 | AN3: =FS!AN3 -> 27 | AO3: =FS!AO3 -> 28 | AP3: =FS!AP3 -> 29 | AQ3: =FS!AQ3 -> 30 | AR3: =FS!AR3 -> 31 | AS3: =FS!AS3 -> 32 | AT3: =FS!AT3 -> 33 | AU3: =FS!AU3 -> 34 | AV3: =FS!AV3 -> 35 | AW3: =FS!AW3 -> 36 | AX3: =FS!AX3 -> 37 | AY3: =FS!AY3 -> 38 | AZ3: =FS!AZ3 -> 39 | BA3: =FS!BA3 -> 40
H4: =FS!H4 -> 2007 | I4: =FS!I4 -> 2008 | J4: =FS!J4 -> 2009 | K4: =FS!K4 -> 2010 | L4: =FS!L4 -> 2011 | M4: =FS!M4 -> 2012 | N4: =FS!N4 -> 2012 | O4: =FS!O4 -> 2013 | P4: =FS!P4 -> 2014 | Q4: =FS!Q4 -> 2015 | R4: =FS!R4 -> 2016 | S4: =FS!S4 -> 2017 | T4: =FS!T4 -> 2018 | U4: =FS!U4 -> 2019 | V4: =FS!V4 -> 2020 | W4: =FS!W4 -> 2021 | X4: =FS!X4 -> 2022 | Y4: =FS!Y4 -> 2023 | Z4: =FS!Z4 -> 2024 | AA4: =FS!AA4 -> 2025 | AB4: =FS!AB4 -> 2026 | AC4: =FS!AC4 -> 2027 | AD4: =FS!AD4 -> 2028 | AE4: =FS!AE4 -> 2029 | AF4: =FS!AF4 -> 2030 | AG4: =FS!AG4 -> 2031 | AH4: =FS!AH4 -> 2032 | AI4: =FS!AI4 -> 2033 | AJ4: =FS!AJ4 -> 2034 | AK4: =FS!AK4 -> 2035 | AL4: =FS!AL4 -> 2036 | AM4: =FS!AM4 -> 2037 | AN4: =FS!AN4 -> 2038 | AO4: =FS!AO4 -> 2039 | AP4: =FS!AP4 -> 2040 | AQ4: =FS!AQ4 -> 2041 | AR4: =FS!AR4 -> 2042 | AS4: =FS!AS4 -> 2043 | AT4: =FS!AT4 -> 2044 | AU4: =FS!AU4 -> 2045 | AV4: =FS!AV4 -> 2046 | AW4: =FS!AW4 -> 2047 | AX4: =FS!AX4 -> 2048 | AY4: =FS!AY4 -> 2049 | AZ4: =FS!AZ4 -> 2050 | BA4: =FS!BA4 -> 2051
B5: PROJECT RETURN - Unlevered
B7: Project Cash Flow
B8: Capital Investment | H8: =-FS!H96 -> -1e-08 | I8: =-FS!I96 -> 0 | J8: =-FS!J96 -> 0 | K8: =-FS!K96 -> 0 | L8: =-FS!L96 -> -105824.0786 | M8: =-FS!M96 -> -104228.1389 | N8: =-FS!N96 -> 0 | O8: =-FS!O96 -> 0 | P8: =-FS!P96 -> 0 | Q8: =-FS!Q96 -> 0 | R8: =-FS!R96 -> 0 | S8: =-FS!S96 -> 0 | T8: =-FS!T96 -> 0 | U8: =-FS!U96 -> 0 | V8: =-FS!V96 -> 0 | W8: =-FS!W96 -> 0 | X8: =-FS!X96 -> 0 | Y8: =-FS!Y96 -> 0 | Z8: =-FS!Z96 -> 0 | AA8: =-FS!AA96 -> 0 | AB8: =-FS!AB96 -> 0 | AC8: =-FS!AC96 -> 0 | AD8: =-FS!AD96 -> 0 | AE8: =-FS!AE96 -> 0 | AF8: =-FS!AF96 -> 0 | AG8: =-FS!AG96 -> 0 | AH8: =-FS!AH96 -> 0 | AI8: =-FS!AI96 -> 0 | AJ8: =-FS!AJ96 -> 0 | AK8: =-FS!AK96 -> 0 | AL8: =-FS!AL96 -> 0 | AM8: =-FS!AM96 -> 0 | AN8: =-FS!AN96 -> 0 | AO8: =-FS!AO96 -> 0 | AP8: =-FS!AP96 -> 0 | AQ8: =-FS!AQ96 -> 0 | AR8: =-FS!AR96 -> 0 | AS8: =-FS!AS96 -> 0 | AT8: =-FS!AT96 -> 0 | AU8: =-FS!AU96 -> 0 | AV8: =-FS!AV96 -> 0 | AW8: =-FS!AW96 -> 0 | AX8: =-FS!AX96 -> 0 | AY8: =-FS!AY96 -> 0 | AZ8: =-FS!AZ96 -> 0 | BA8: =-FS!BA96 -> 0
B9: Pre-Tax Distributions | H9: =FS!H106-H8 -> 0 | I9: =FS!I106-I8 -> 0 | J9: =FS!J106-J8 -> 0 | K9: =FS!K106-K8 -> 0 | L9: =FS!L106-L8 -> 0 | M9: =FS!M106-M8 -> -39.39154478 | N9: =FS!N106-N8 -> 4709.995769 | O9: =FS!O106-O8 -> 13820.85974 | P9: =FS!P106-P8 -> 14094.48373 | Q9: =FS!Q106-Q8 -> 14284.48601 | R9: =FS!R106-R8 -> 14482.2464 | S9: =FS!S106-S8 -> 14754.76138 | T9: =FS!T106-T8 -> 14955.49946 | U9: =FS!U106-U8 -> 15133.88196 | V9: =FS!V106-V8 -> 15332.38879 | W9: =FS!W106-W8 -> 15523.46628 | X9: =FS!X106-X8 -> 15732.911 | Y9: =FS!Y106-Y8 -> 15934.73685 | Z9: =FS!Z106-Z8 -> 16152.83214 | AA9: =FS!AA106-AA8 -> 16356.55475 | AB9: =FS!AB106-AB8 -> 16580.20342 | AC9: =FS!AC106-AC8 -> 16813.38402 | AD9: =FS!AD106-AD8 -> 17064.39502 | AE9: =FS!AE106-AE8 -> 17299.07864 | AF9: =FS!AF106-AF8 -> 17547.62311 | AG9: =FS!AG106-AG8 -> 17783.30401 | AH9: =FS!AH106-AH8 -> 18032.72088 | AI9: =FS!AI106-AI8 -> 18266.81007 | AJ9: =FS!AJ106-AJ8 -> 18519.82954 | AK9: =FS!AK106-AK8 -> 18763.74525 | AL9: =FS!AL106-AL8 -> 19026.45705 | AM9: =FS!AM106-AM8 -> 13120.54125 | AN9: =FS!AN106-AN8 -> 0 | AO9: =FS!AO106-AO8 -> 0 | AP9: =FS!AP106-AP8 -> 0 | AQ9: =FS!AQ106-AQ8 -> 0 | AR9: =FS!AR106-AR8 -> 0 | AS9: =FS!AS106-AS8 -> 0 | AT9: =FS!AT106-AT8 -> 0 | AU9: =FS!AU106-AU8 -> 0 | AV9: =FS!AV106-AV8 -> 0 | AW9: =FS!AW106-AW8 -> 0 | AX9: =FS!AX106-AX8 -> 0 | AY9: =FS!AY106-AY8 -> 0 | AZ9: =FS!AZ106-AZ8 -> 0 | BA9: =FS!BA106-BA8 -> 0
B10: Tax Benefit / (Payment) | F10: ITC/CITC | H10: =Tax!H57 -> 0 | I10: =Tax!I57 -> 0 | J10: =Tax!J57 -> 0 | K10: =Tax!K57 -> 0 | L10: =Tax!L57 -> 0 | M10: =Tax!M57 -> 0 | N10: =Tax!N57 -> 0 | O10: =Tax!O57 -> 0 | P10: =Tax!P57 -> 43050.57281 | Q10: =Tax!Q57 -> -1332.243928 | R10: =Tax!R57 -> -1447.18887 | S10: =Tax!S57 -> -3437.716285 | T10: =Tax!T57 -> -5377.479758 | U10: =Tax!U57 -> -5444.286362 | V10: =Tax!V57 -> -5519.931411 | W10: =Tax!W57 -> -5591.731687 | X10: =Tax!X57 -> -5671.427683 | Y10: =Tax!Y57 -> -5747.285473 | Z10: =Tax!Z57 -> -5922.543735 | AA10: =Tax!AA57 -> -6091.264719 | AB10: =Tax!AB57 -> -6176.39584 | AC10: =Tax!AC57 -> -6308.21578 | AD10: =Tax!AD57 -> -6447.086081 | AE10: =Tax!AE57 -> -6535.058692 | AF10: =Tax!AF57 -> -6629.387984 | AG10: =Tax!AG57 -> -6717.861147 | AH10: =Tax!AH57 -> -6812.506655 | AI10: =Tax!AI57 -> -6900.299656 | AJ10: =Tax!AJ57 -> -6996.489636 | AK10: =Tax!AK57 -> -7088.18656 | AL10: =Tax!AL57 -> -7188.014099 | AM10: =Tax!AM57 -> -4326.261979 | AN10: =Tax!AN57 -> 0 | AO10: =Tax!AO57 -> 0 | AP10: =Tax!AP57 -> 0 | AQ10: =Tax!AQ57 -> 0 | AR10: =Tax!AR57 -> 0 | AS10: =Tax!AS57 -> 0 | AT10: =Tax!AT57 -> 0 | AU10: =Tax!AU57 -> 0 | AV10: =Tax!AV57 -> 0 | AW10: =Tax!AW57 -> 0 | AX10: =Tax!AX57 -> 0 | AY10: =Tax!AY57 -> 0 | AZ10: =Tax!AZ57 -> 0 | BA10: =Tax!BA57 -> 0
B11: ITC/CITC | F11: =Alloc!R50 -> 59368.96861 | H11: =$F11*(H3=1) -> 0 | I11: 0 | J11: 0 | K11: 0 | L11: 0 | M11: 0 | N11: =$F11*(N3=1) -> 59368.96861 | O11: 0 | P11: 0 | Q11: 0 | R11: 0 | S11: 0 | T11: 0 | U11: 0 | V11: 0 | W11: 0 | X11: 0 | Y11: 0 | Z11: 0 | AA11: 0 | AB11: 0 | AC11: 0 | AD11: 0 | AE11: 0 | AF11: 0 | AG11: 0 | AH11: 0 | AI11: 0 | AJ11: 0 | AK11: 0 | AL11: 0 | AM11: 0 | AN11: 0 | AO11: 0 | AP11: 0 | AQ11: 0 | AR11: 0 | AS11: 0 | AT11: 0 | AU11: 0 | AV11: 0 | AW11: 0 | AX11: 0 | AY11: 0 | AZ11: 0 | BA11: 0
B12: PTC/ITC Deferral Penalty | H12: =Tax!H100 -> 0 | I12: =Tax!I100 -> 0 | J12: =Tax!J100 -> 0 | K12: =Tax!K100 -> 0 | L12: =Tax!L100 -> 0 | M12: =Tax!M100 -> 0 | N12: =Tax!N100 -> 0 | O12: =Tax!O100 -> 0 | P12: =Tax!P100 -> -29853.50802 | Q12: =Tax!Q100 -> 819.2011175 | R12: =Tax!R100 -> 29528.90579 | S12: =Tax!S100 -> 1333.470606 | T12: =Tax!T100 -> -1828.069496 | U12: =Tax!U100 -> 0 | V12: =Tax!V100 -> 0 | W12: =Tax!W100 -> 0 | X12: =Tax!X100 -> 0 | Y12: =Tax!Y100 -> 0 | Z12: =Tax!Z100 -> 0 | AA12: =Tax!AA100 -> 0 | AB12: =Tax!AB100 -> 0 | AC12: =Tax!AC100 -> 0 | AD12: =Tax!AD100 -> 0 | AE12: =Tax!AE100 -> 0 | AF12: =Tax!AF100 -> 0 | AG12: =Tax!AG100 -> 0 | AH12: =Tax!AH100 -> 0 | AI12: =Tax!AI100 -> 0 | AJ12: =Tax!AJ100 -> 0 | AK12: =Tax!AK100 -> 0 | AL12: =Tax!AL100 -> 0 | AM12: =Tax!AM100 -> 0 | AN12: =Tax!AN100 -> 0 | AO12: =Tax!AO100 -> 0 | AP12: =Tax!AP100 -> 0 | AQ12: =Tax!AQ100 -> 0 | AR12: =Tax!AR100 -> 0 | AS12: =Tax!AS100 -> 0 | AT12: =Tax!AT100 -> 0 | AU12: =Tax!AU100 -> 0 | AV12: =Tax!AV100 -> 0 | AW12: =Tax!AW100 -> 0 | AX12: =Tax!AX100 -> 0 | AY12: =Tax!AY100 -> 0 | AZ12: =Tax!AZ100 -> 0 | BA12: =Tax!BA100 -> 0
B13: After-Tax Cash Flow | H13: =SUM(H8:H12) -> -1e-08 | I13: 0 | J13: 0 | K13: 0 | L13: -105824.0786 | M13: -104267.5305 | N13: 64078.96438 | O13: 13820.85974 | P13: 27291.54851 | Q13: 13771.4432 | R13: 42563.96333 | S13: 12650.5157 | T13: 7749.95021 | U13: 9689.595599 | V13: 9812.457376 | W13: 9931.734597 | X13: 10061.48332 | Y13: 10187.45138 | Z13: 10230.2884 | AA13: 10265.29003 | AB13: 10403.80758 | AC13: 10505.16824 | AD13: 10617.30894 | AE13: 10764.01995 | AF13: 10918.23512 | AG13: 11065.44286 | AH13: 11220.21422 | AI13: 11366.51041 | AJ13: 11523.3399 | AK13: 11675.55869 | AL13: 11838.44295 | AM13: 8794.27927 | AN13: 0 | AO13: 0 | AP13: 0 | AQ13: 0 | AR13: 0 | AS13: 0 | AT13: 0 | AU13: 0 | AV13: 0 | AW13: 0 | AX13: 0 | AY13: 0 | AZ13: 0 | BA13: 0
B16: Weighted Average Discount Date (WADD)
D17: COD | E17: Days | F17: Receipt
B18: Grant Funding | D18: =FS!E13 -> 2012-08-01 | E18: 90 | F18: =D18+E18 -> 2012-10-30 | G18: Disc Date : | H18: =IF(H11>0,$F18,H2) -> 2007-06-30 | I18: 2008-06-30 | J18: 2009-06-30 | K18: 2010-06-30 | L18: 2011-10-01 | M18: 2012-08-01 | N18: 2012-10-30 | O18: 2013-08-15 | P18: 2014-08-15 | Q18: 2015-08-15 | R18: 2016-08-15 | S18: 2017-08-15 | T18: 2018-08-15 | U18: 2019-08-15 | V18: 2020-08-15 | W18: 2021-08-15 | X18: 2022-08-15 | Y18: 2023-08-15 | Z18: 2024-08-15 | AA18: 2025-08-15 | AB18: 2026-08-15 | AC18: 2027-08-15 | AD18: 2028-08-15 | AE18: 2029-08-15 | AF18: 2030-08-15 | AG18: 2031-08-15 | AH18: 2032-08-15 | AI18: 2033-08-15 | AJ18: 2034-08-15 | AK18: 2035-08-15 | AL18: 2036-08-15 | AM18: 2037-08-15 | AN18: 2038-08-15 | AO18: 2039-08-15 | AP18: 2040-08-15 | AQ18: 2041-08-15 | AR18: 2042-08-15 | AS18: 2043-08-15 | AT18: 2044-08-15 | AU18: 2045-08-15 | AV18: 2046-08-15 | AW18: 2047-08-15 | AX18: 2048-08-15 | AY18: 2049-08-15 | AZ18: 2050-08-15 | BA18: 2051-08-15
B19: Investment / Ops | G19: Disc Date : | H19: =H2 -> 2007-06-30 | I19: 2008-06-30 | J19: 2009-06-30 | K19: 2010-06-30 | L19: 2011-10-01 | M19: 2012-08-01 | N19: 2012-12-01 | O19: 2013-08-15 | P19: 2014-08-15 | Q19: 2015-08-15 | R19: 2016-08-15 | S19: 2017-08-15 | T19: 2018-08-15 | U19: 2019-08-15 | V19: 2020-08-15 | W19: 2021-08-15 | X19: 2022-08-15 | Y19: 2023-08-15 | Z19: 2024-08-15 | AA19: 2025-08-15 | AB19: 2026-08-15 | AC19: 2027-08-15 | AD19: 2028-08-15 | AE19: 2029-08-15 | AF19: 2030-08-15 | AG19: 2031-08-15 | AH19: 2032-08-15 | AI19: 2033-08-15 | AJ19: 2034-08-15 | AK19: 2035-08-15 | AL19: 2036-08-15 | AM19: 2037-08-15 | AN19: 2038-08-15 | AO19: 2039-08-15 | AP19: 2040-08-15 | AQ19: 2041-08-15 | AR19: 2042-08-15 | AS19: 2043-08-15 | AT19: 2044-08-15 | AU19: 2045-08-15 | AV19: 2046-08-15 | AW19: 2047-08-15 | AX19: 2048-08-15 | AY19: 2049-08-15 | AZ19: 2050-08-15 | BA19: 2051-08-15
B21: Grant Funding | G21: Abs $000's : | H21: =ABS(H11) -> 0 | I21: 0 | J21: 0 | K21: 0 | L21: 0 | M21: 0 | N21: 59368.96861 | O21: 0 | P21: 0 | Q21: 0 | R21: 0 | S21: 0 | T21: 0 | U21: 0 | V21: 0 | W21: 0 | X21: 0 | Y21: 0 | Z21: 0 | AA21: 0 | AB21: 0 | AC21: 0 | AD21: 0 | AE21: 0 | AF21: 0 | AG21: 0 | AH21: 0 | AI21: 0 | AJ21: 0 | AK21: 0 | AL21: 0 | AM21: 0 | AN21: 0 | AO21: 0 | AP21: 0 | AQ21: 0 | AR21: 0 | AS21: 0 | AT21: 0 | AU21: 0 | AV21: 0 | AW21: 0 | AX21: 0 | AY21: 0 | AZ21: 0 | BA21: 0
B22: Investment | G22: Abs $000's : | H22: =ABS(H8) -> 1e-08 | I22: 0 | J22: 0 | K22: 0 | L22: 105824.0786 | M22: 104228.1389 | N22: 0 | O22: 0 | P22: 0 | Q22: 0 | R22: 0 | S22: 0 | T22: 0 | U22: 0 | V22: 0 | W22: 0 | X22: 0 | Y22: 0 | Z22: 0 | AA22: 0 | AB22: 0 | AC22: 0 | AD22: 0 | AE22: 0 | AF22: 0 | AG22: 0 | AH22: 0 | AI22: 0 | AJ22: 0 | AK22: 0 | AL22: 0 | AM22: 0 | AN22: 0 | AO22: 0 | AP22: 0 | AQ22: 0 | AR22: 0 | AS22: 0 | AT22: 0 | AU22: 0 | AV22: 0 | AW22: 0 | AX22: 0 | AY22: 0 | AZ22: 0 | BA22: 0
B23: Operations | G23: Abs $000's : | H23: =ABS(SUM(H9:H10,H12)) -> 0 | I23: 0 | J23: 0 | K23: 0 | L23: 0 | M23: 39.39154478 | N23: 4709.995769 | O23: 13820.85974 | P23: 27291.54851 | Q23: 13771.4432 | R23: 42563.96333 | S23: 12650.5157 | T23: 7749.95021 | U23: 9689.595599 | V23: 9812.457376 | W23: 9931.734597 | X23: 10061.48332 | Y23: 10187.45138 | Z23: 10230.2884 | AA23: 10265.29003 | AB23: 10403.80758 | AC23: 10505.16824 | AD23: 10617.30894 | AE23: 10764.01995 | AF23: 10918.23512 | AG23: 11065.44286 | AH23: 11220.21422 | AI23: 11366.51041 | AJ23: 11523.3399 | AK23: 11675.55869 | AL23: 11838.44295 | AM23: 8794.27927 | AN23: 0 | AO23: 0 | AP23: 0 | AQ23: 0 | AR23: 0 | AS23: 0 | AT23: 0 | AU23: 0 | AV23: 0 | AW23: 0 | AX23: 0 | AY23: 0 | AZ23: 0 | BA23: 0
H24: =SUM(H21:H23) -> 1e-08 | I24: 0 | J24: 0 | K24: 0 | L24: 105824.0786 | M24: 104267.5305 | N24: 64078.96438 | O24: 13820.85974 | P24: 27291.54851 | Q24: 13771.4432 | R24: 42563.96333 | S24: 12650.5157 | T24: 7749.95021 | U24: 9689.595599 | V24: 9812.457376 | W24: 9931.734597 | X24: 10061.48332 | Y24: 10187.45138 | Z24: 10230.2884 | AA24: 10265.29003 | AB24: 10403.80758 | AC24: 10505.16824 | AD24: 10617.30894 | AE24: 10764.01995 | AF24: 10918.23512 | AG24: 11065.44286 | AH24: 11220.21422 | AI24: 11366.51041 | AJ24: 11523.3399 | AK24: 11675.55869 | AL24: 11838.44295 | AM24: 8794.27927 | AN24: 0 | AO24: 0 | AP24: 0 | AQ24: 0 | AR24: 0 | AS24: 0 | AT24: 0 | AU24: 0 | AV24: 0 | AW24: 0 | AX24: 0 | AY24: 0 | AZ24: 0 | BA24: 0
B26: Grant Funding | G26: Wt Factors : | H26: =IF(H24=0,0,H21/H24) -> 0 | I26: 0 | J26: 0 | K26: 0 | L26: 0 | M26: 0 | N26: 0.9264970055 | O26: 0 | P26: 0 | Q26: 0 | R26: 0 | S26: 0 | T26: 0 | U26: 0 | V26: 0 | W26: 0 | X26: 0 | Y26: 0 | Z26: 0 | AA26: 0 | AB26: 0 | AC26: 0 | AD26: 0 | AE26: 0 | AF26: 0 | AG26: 0 | AH26: 0 | AI26: 0 | AJ26: 0 | AK26: 0 | AL26: 0 | AM26: 0 | AN26: 0 | AO26: 0 | AP26: 0 | AQ26: 0 | AR26: 0 | AS26: 0 | AT26: 0 | AU26: 0 | AV26: 0 | AW26: 0 | AX26: 0 | AY26: 0 | AZ26: 0 | BA26: 0
B27: Investment / Ops | G27: Wt Factors : | H27: =1-H26 -> 1 | I27: 1 | J27: 1 | K27: 1 | L27: 1 | M27: 1 | N27: 0.07350299454 | O27: 1 | P27: 1 | Q27: 1 | R27: 1 | S27: 1 | T27: 1 | U27: 1 | V27: 1 | W27: 1 | X27: 1 | Y27: 1 | Z27: 1 | AA27: 1 | AB27: 1 | AC27: 1 | AD27: 1 | AE27: 1 | AF27: 1 | AG27: 1 | AH27: 1 | AI27: 1 | AJ27: 1 | AK27: 1 | AL27: 1 | AM27: 1 | AN27: 1 | AO27: 1 | AP27: 1 | AQ27: 1 | AR27: 1 | AS27: 1 | AT27: 1 | AU27: 1 | AV27: 1 | AW27: 1 | AX27: 1 | AY27: 1 | AZ27: 1 | BA27: 1
F29: Disc Rate
F30: =Scen!G17 -> 0.08 | G30: WADD : | H30: =SUMPRODUCT(H18:H19,H26:H27) -> 2007-06-30 | I30: 2008-06-30 | J30: 2009-06-30 | K30: 2010-06-30 | L30: 2011-10-01 | M30: 2012-08-01 | N30: 2012-11-01T08:27:01.079 | O30: 2013-08-15 | P30: 2014-08-15 | Q30: 2015-08-15 | R30: 2016-08-15 | S30: 2017-08-15 | T30: 2018-08-15 | U30: 2019-08-15 | V30: 2020-08-15 | W30: 2021-08-15 | X30: 2022-08-15 | Y30: 2023-08-15 | Z30: 2024-08-15 | AA30: 2025-08-15 | AB30: 2026-08-15 | AC30: 2027-08-15 | AD30: 2028-08-15 | AE30: 2029-08-15 | AF30: 2030-08-15 | AG30: 2031-08-15 | AH30: 2032-08-15 | AI30: 2033-08-15 | AJ30: 2034-08-15 | AK30: 2035-08-15 | AL30: 2036-08-15 | AM30: 2037-08-15 | AN30: 2038-08-15 | AO30: 2039-08-15 | AP30: 2040-08-15 | AQ30: 2041-08-15 | AR30: 2042-08-15 | AS30: 2043-08-15 | AT30: 2044-08-15 | AU30: 2045-08-15 | AV30: 2046-08-15 | AW30: 2047-08-15 | AX30: 2048-08-15 | AY30: 2049-08-15 | AZ30: 2050-08-15 | BA30: 2051-08-15
D31: Year | E31: xIRR | F31: xNPV | G31: xIRR : | H31: 0 | I31: 0 | J31: 0 | K31: 0 | L31: 0 | M31: 0 | N31: =XIRR($H13:N13,$H30:N30) -> 2.980232239e-09 | O31: =XIRR($H13:O13,$H30:O30) -> 2.980232239e-09 | P31: =XIRR($H13:P13,$H30:P30) -> 2.980232239e-09 | Q31: =XIRR($H13:Q13,$H30:Q30) -> 2.980232239e-09 | R31: =XIRR($H13:R13,$H30:R30) -> 2.980232239e-09 | S31: =XIRR($H13:S13,$H30:S30) -> 2.980232239e-09 | T31: =XIRR($H13:T13,$H30:T30) -> 2.980232239e-09 | U31: =XIRR($H13:U13,$H30:U30) -> 2.980232239e-09 | V31: =XIRR($H13:V13,$H30:V30) -> 2.980232239e-09 | W31: =XIRR($H13:W13,$H30:W30) -> 0.001733246446 | X31: =XIRR($H13:X13,$H30:X30) -> 0.01413985789 | Y31: =XIRR($H13:Y13,$H30:Y30) -> 0.02461380661 | Z31: =XIRR($H13:Z13,$H30:Z30) -> 0.03341462314 | AA31: =XIRR($H13:AA13,$H30:AA30) -> 0.04084202349 | AB31: =XIRR($H13:AB13,$H30:AB30) -> 0.04720343649 | AC31: =XIRR($H13:AC13,$H30:AC30) -> 0.05265578926 | AD31: =XIRR($H13:AD13,$H30:AD30) -> 0.05735401213 | AE31: =XIRR($H13:AE13,$H30:AE30) -> 0.06143268645 | AF31: =XIRR($H13:AF13,$H30:AF30) -> 0.06498902142 | AG31: =XIRR($H13:AG13,$H30:AG30) -> 0.0680988282 | AH31: =XIRR($H13:AH13,$H30:AH30) -> 0.07082861364 | AI31: =XIRR($H13:AI13,$H30:AI30) -> 0.07323099077 | AJ31: =XIRR($H13:AJ13,$H30:AJ30) -> 0.07535342276 | AK31: =XIRR($H13:AK13,$H30:AK30) -> 0.07723293006 | AL31: =XIRR($H13:AL13,$H30:AL30) -> 0.07890272439 | AM31: =XIRR($H13:AM13,$H30:AM30) -> 0.07999999821 | AN31: =XIRR($H13:AN13,$H30:AN30) -> 0.07999999821 | AO31: =XIRR($H13:AO13,$H30:AO30) -> 0.07999999821 | AP31: =XIRR($H13:AP13,$H30:AP30) -> 0.07999999821 | AQ31: =XIRR($H13:AQ13,$H30:AQ30) -> 0.07999999821 | AR31: =XIRR($H13:AR13,$H30:AR30) -> 0.07999999821 | AS31: =XIRR($H13:AS13,$H30:AS30) -> 0.07999999821 | AT31: =XIRR($H13:AT13,$H30:AT30) -> 0.07999999821 | AU31: =XIRR($H13:AU13,$H30:AU30) -> 0.07999999821 | AV31: =XIRR($H13:AV13,$H30:AV30) -> 0.07999999821 | AW31: =XIRR($H13:AW13,$H30:AW30) -> 0.07999999821 | AX31: =XIRR($H13:AX13,$H30:AX30) -> 0.07999999821 | AY31: =XIRR($H13:AY13,$H30:AY30) -> 0.07999999821 | AZ31: =XIRR($H13:AZ13,$H30:AZ30) -> 0.07999999821 | BA31: =XIRR($H13:BA13,$H30:BA30) -> 0.07999999821
D32: 5 | E32: =OFFSET($M$31,0,$D32) -> 2.980232239e-09 | F32: =OFFSET($M$32,0,$D32)/1000 -> -51.42061429 | G32: xNPV : | H32: =XNPV($F$30,$H13:H13,$H30:H30) -> -1e-08 | I32: =XNPV($F$30,$H13:I13,$H30:I30) -> -1e-08 | J32: =XNPV($F$30,$H13:J13,$H30:J30) -> -1e-08 | K32: =XNPV($F$30,$H13:K13,$H30:K30) -> -1e-08 | L32: =XNPV($F$30,$H13:L13,$H30:L30) -> -76257.35051 | M32: =XNPV($F$30,$H13:M13,$H30:M30) -> -146713.169 | N32: =XNPV($F$30,$H13:N13,$H30:N30) -> -104245.4785 | O32: =XNPV($F$30,$H13:O13,$H30:O30) -> -95623.69582 | P32: =XNPV($F$30,$H13:P13,$H30:P30) -> -79859.69544 | Q32: =XNPV($F$30,$H13:Q13,$H30:Q30) -> -72494.33578 | R32: =XNPV($F$30,$H13:R13,$H30:R30) -> -51420.61429 | S32: =XNPV($F$30,$H13:S13,$H30:S30) -> -45621.20646 | T32: =XNPV($F$30,$H13:T13,$H30:T30) -> -42331.54977 | U32: =XNPV($F$30,$H13:U13,$H30:U30) -> -38523.22865 | V32: =XNPV($F$30,$H13:V13,$H30:V30) -> -34953.04657 | W32: =XNPV($F$30,$H13:W13,$H30:W30) -> -31607.13906 | X32: =XNPV($F$30,$H13:X13,$H30:X30) -> -28468.60329 | Y32: =XNPV($F$30,$H13:Y13,$H30:Y30) -> -25526.16838 | Z32: =XNPV($F$30,$H13:Z13,$H30:Z30) -> -22790.81232 | AA32: =XNPV($F$30,$H13:AA13,$H30:AA30) -> -20249.4098 | AB32: =XNPV($F$30,$H13:AB13,$H30:AB30) -> -17864.50642 | AC32: =XNPV($F$30,$H13:AC13,$H30:AC30) -> -15634.74841 | AD32: =XNPV($F$30,$H13:AD13,$H30:AD30) -> -13548.55846 | AE32: =XNPV($F$30,$H13:AE13,$H30:AE30) -> -11590.20927 | AF32: =XNPV($F$30,$H13:AF13,$H30:AF30) -> -9750.944185 | AG32: =XNPV($F$30,$H13:AG13,$H30:AG30) -> -8024.95954 | AH32: =XNPV($F$30,$H13:AH13,$H30:AH30) -> -6404.814299 | AI32: =XNPV($F$30,$H13:AI13,$H30:AI30) -> -4885.120124 | AJ32: =XNPV($F$30,$H13:AJ13,$H30:AJ30) -> -3458.581083 | AK32: =XNPV($F$30,$H13:AK13,$H30:AK30) -> -2120.263434 | AL32: =XNPV($F$30,$H13:AL13,$H30:AL30) -> -864.0576396 | AM32: =XNPV($F$30,$H13:AM13,$H30:AM30) -> -2.082513379e-05 | AN32: =XNPV($F$30,$H13:AN13,$H30:AN30) -> -2.082513379e-05 | AO32: =XNPV($F$30,$H13:AO13,$H30:AO30) -> -2.082513379e-05 | AP32: =XNPV($F$30,$H13:AP13,$H30:AP30) -> -2.082513379e-05 | AQ32: =XNPV($F$30,$H13:AQ13,$H30:AQ30) -> -2.082513379e-05 | AR32: =XNPV($F$30,$H13:AR13,$H30:AR30) -> -2.082513379e-05 | AS32: =XNPV($F$30,$H13:AS13,$H30:AS30) -> -2.082513379e-05 | AT32: =XNPV($F$30,$H13:AT13,$H30:AT30) -> -2.082513379e-05 | AU32: =XNPV($F$30,$H13:AU13,$H30:AU30) -> -2.082513379e-05 | AV32: =XNPV($F$30,$H13:AV13,$H30:AV30) -> -2.082513379e-05 | AW32: =XNPV($F$30,$H13:AW13,$H30:AW30) -> -2.082513379e-05 | AX32: =XNPV($F$30,$H13:AX13,$H30:AX30) -> -2.082513379e-05 | AY32: =XNPV($F$30,$H13:AY13,$H30:AY30) -> -2.082513379e-05 | AZ32: =XNPV($F$30,$H13:AZ13,$H30:AZ30) -> -2.082513379e-05 | BA32: =XNPV($F$30,$H13:BA13,$H30:BA30) -> -2.082513379e-05
D33: 10 | E33: 0.001733246446 | F33: -31.60713906
D34: 15 | E34: 0.04720343649 | F34: -17.86450642
D35: 20 | E35: 0.0680988282 | F35: -8.02495954
D36: 25 | E36: 0.07890272439 | F36: -0.8640576396
D37: 31 | E37: 0.07999999821 | F37: -2.082513379e-08

Sheet RF
B1: RF | L1: Par Yr : | M1: =FS!M1 -> 0 | N1: =FS!N1 -> 0.4180327869 | O1: =FS!O1 -> 1 | P1: =FS!P1 -> 1 | Q1: =FS!Q1 -> 1 | R1: =FS!R1 -> 1 | S1: =FS!S1 -> 1 | T1: =FS!T1 -> 1 | U1: =FS!U1 -> 1 | V1: =FS!V1 -> 1 | W1: =FS!W1 -> 1 | X1: =FS!X1 -> 1 | Y1: =FS!Y1 -> 1 | Z1: =FS!Z1 -> 1 | AA1: =FS!AA1 -> 1 | AB1: =FS!AB1 -> 1 | AC1: =FS!AC1 -> 1 | AD1: =FS!AD1 -> 1 | AE1: =FS!AE1 -> 1 | AF1: =FS!AF1 -> 1 | AG1: =FS!AG1 -> 1 | AH1: =FS!AH1 -> 1 | AI1: =FS!AI1 -> 1 | AJ1: =FS!AJ1 -> 1 | AK1: =FS!AK1 -> 1 | AL1: =FS!AL1 -> 1 | AM1: =FS!AM1 -> 0.5819672131 | AN1: =FS!AN1 -> 0 | AO1: =FS!AO1 -> 0 | AP1: =FS!AP1 -> 0 | AQ1: =FS!AQ1 -> 0 | AR1: =FS!AR1 -> 0 | AS1: =FS!AS1 -> 0 | AT1: =FS!AT1 -> 0 | AU1: =FS!AU1 -> 0 | AV1: =FS!AV1 -> 0 | AW1: =FS!AW1 -> 0 | AX1: =FS!AX1 -> 0 | AY1: =FS!AY1 -> 0 | AZ1: =FS!AZ1 -> 0 | BA1: =FS!BA1 -> 0
L2: Disc Date : | M2: =FS!M2 -> 2012-08-01 | N2: =FS!N2 -> 2012-12-01 | O2: =FS!O2 -> 2013-08-15 | P2: =FS!P2 -> 2014-08-15 | Q2: =FS!Q2 -> 2015-08-15 | R2: =FS!R2 -> 2016-08-15 | S2: =FS!S2 -> 2017-08-15 | T2: =FS!T2 -> 2018-08-15 | U2: =FS!U2 -> 2019-08-15 | V2: =FS!V2 -> 2020-08-15 | W2: =FS!W2 -> 2021-08-15 | X2: =FS!X2 -> 2022-08-15 | Y2: =FS!Y2 -> 2023-08-15 | Z2: =FS!Z2 -> 2024-08-15 | AA2: =FS!AA2 -> 2025-08-15 | AB2: =FS!AB2 -> 2026-08-15 | AC2: =FS!AC2 -> 2027-08-15 | AD2: =FS!AD2 -> 2028-08-15 | AE2: =FS!AE2 -> 2029-08-15 | AF2: =FS!AF2 -> 2030-08-15 | AG2: =FS!AG2 -> 2031-08-15 | AH2: =FS!AH2 -> 2032-08-15 | AI2: =FS!AI2 -> 2033-08-15 | AJ2: =FS!AJ2 -> 2034-08-15 | AK2: =FS!AK2 -> 2035-08-15 | AL2: =FS!AL2 -> 2036-08-15 | AM2: =FS!AM2 -> 2037-08-15 | AN2: =FS!AN2 -> 2038-08-15 | AO2: =FS!AO2 -> 2039-08-15 | AP2: =FS!AP2 -> 2040-08-15 | AQ2: =FS!AQ2 -> 2041-08-15 | AR2: =FS!AR2 -> 2042-08-15 | AS2: =FS!AS2 -> 2043-08-15 | AT2: =FS!AT2 -> 2044-08-15 | AU2: =FS!AU2 -> 2045-08-15 | AV2: =FS!AV2 -> 2046-08-15 | AW2: =FS!AW2 -> 2047-08-15 | AX2: =FS!AX2 -> 2048-08-15 | AY2: =FS!AY2 -> 2049-08-15 | AZ2: =FS!AZ2 -> 2050-08-15 | BA2: =FS!BA2 -> 2051-08-15
B3: REVENUES & FUEL COST | L3: Period : | M3: =FS!M3 -> 0 | N3: =FS!N3 -> 1 | O3: =FS!O3 -> 2 | P3: =FS!P3 -> 3 | Q3: =FS!Q3 -> 4 | R3: =FS!R3 -> 5 | S3: =FS!S3 -> 6 | T3: =FS!T3 -> 7 | U3: =FS!U3 -> 8 | V3: =FS!V3 -> 9 | W3: =FS!W3 -> 10 | X3: =FS!X3 -> 11 | Y3: =FS!Y3 -> 12 | Z3: =FS!Z3 -> 13 | AA3: =FS!AA3 -> 14 | AB3: =FS!AB3 -> 15 | AC3: =FS!AC3 -> 16 | AD3: =FS!AD3 -> 17 | AE3: =FS!AE3 -> 18 | AF3: =FS!AF3 -> 19 | AG3: =FS!AG3 -> 20 | AH3: =FS!AH3 -> 21 | AI3: =FS!AI3 -> 22 | AJ3: =FS!AJ3 -> 23 | AK3: =FS!AK3 -> 24 | AL3: =FS!AL3 -> 25 | AM3: =FS!AM3 -> 26 | AN3: =FS!AN3 -> 27 | AO3: =FS!AO3 -> 28 | AP3: =FS!AP3 -> 29 | AQ3: =FS!AQ3 -> 30 | AR3: =FS!AR3 -> 31 | AS3: =FS!AS3 -> 32 | AT3: =FS!AT3 -> 33 | AU3: =FS!AU3 -> 34 | AV3: =FS!AV3 -> 35 | AW3: =FS!AW3 -> 36 | AX3: =FS!AX3 -> 37 | AY3: =FS!AY3 -> 38 | AZ3: =FS!AZ3 -> 39 | BA3: =FS!BA3 -> 40
L4: Year : | M4: =FS!M4 -> 2012 | N4: =FS!N4 -> 2012 | O4: =FS!O4 -> 2013 | P4: =FS!P4 -> 2014 | Q4: =FS!Q4 -> 2015 | R4: =FS!R4 -> 2016 | S4: =FS!S4 -> 2017 | T4: =FS!T4 -> 2018 | U4: =FS!U4 -> 2019 | V4: =FS!V4 -> 2020 | W4: =FS!W4 -> 2021 | X4: =FS!X4 -> 2022 | Y4: =FS!Y4 -> 2023 | Z4: =FS!Z4 -> 2024 | AA4: =FS!AA4 -> 2025 | AB4: =FS!AB4 -> 2026 | AC4: =FS!AC4 -> 2027 | AD4: =FS!AD4 -> 2028 | AE4: =FS!AE4 -> 2029 | AF4: =FS!AF4 -> 2030 | AG4: =FS!AG4 -> 2031 | AH4: =FS!AH4 -> 2032 | AI4: =FS!AI4 -> 2033 | AJ4: =FS!AJ4 -> 2034 | AK4: =FS!AK4 -> 2035 | AL4: =FS!AL4 -> 2036 | AM4: =FS!AM4 -> 2037 | AN4: =FS!AN4 -> 2038 | AO4: =FS!AO4 -> 2039 | AP4: =FS!AP4 -> 2040 | AQ4: =FS!AQ4 -> 2041 | AR4: =FS!AR4 -> 2042 | AS4: =FS!AS4 -> 2043 | AT4: =FS!AT4 -> 2044 | AU4: =FS!AU4 -> 2045 | AV4: =FS!AV4 -> 2046 | AW4: =FS!AW4 -> 2047 | AX4: =FS!AX4 -> 2048 | AY4: =FS!AY4 -> 2049 | AZ4: =FS!AZ4 -> 2050 | BA4: =FS!BA4 -> 2051
B5: SUMMARY
B7: Contract
B8: =B79 -> Capacity Revenue - $000s | N8: =N79 -> 0 | O8: 0 | P8: 0 | Q8: 0 | R8: 0 | S8: 0 | T8: 0 | U8: 0 | V8: 0 | W8: 0 | X8: 0 | Y8: 0 | Z8: 0 | AA8: 0 | AB8: 0 | AC8: 0 | AD8: 0 | AE8: 0 | AF8: 0 | AG8: 0 | AH8: 0 | AI8: 0 | AJ8: 0 | AK8: 0 | AL8: 0 | AM8: 0 | AN8: 0 | AO8: 0 | AP8: 0 | AQ8: 0 | AR8: 0 | AS8: 0 | AT8: =AT79 -> 0 | AU8: 0 | AV8: 0 | AW8: 0 | AX8: 0 | AY8: 0 | AZ8: 0 | BA8: 0
B9: =B99 -> Energy Revenues - $000s - Excluded Excess Calculation | N9: =N99 -> 6097.528086 | O9: 14518.33806 | P9: 14851.5543 | Q9: 15050.57716 | R9: 15255.00336 | S9: 15460.24126 | T9: 15657.69382 | U9: 15855.80689 | V9: 16060.73352 | W9: 16272.87107 | X9: 16489.35027 | Y9: 16706.09022 | Z9: 16924.49518 | AA9: 17142.59449 | AB9: 17366.97476 | AC9: 17616.67118 | AD9: 17868.05993 | AE9: 18120.02185 | AF9: 18375.01075 | AG9: 18631.67452 | AH9: 18887.89314 | AI9: 19143.14478 | AJ9: 19403.84595 | AK9: 19669.83162 | AL9: 19940.55831 | AM9: 11664.95315 | AN9: 0 | AO9: 0 | AP9: 0 | AQ9: 0 | AR9: 0 | AS9: 0 | AT9: =AT99 -> 0 | AU9: 0 | AV9: 0 | AW9: 0 | AX9: 0 | AY9: 0 | AZ9: 0 | BA9: 0
B10: =B96 -> Adjusted Excess Energy Revenues - $000s | L10: Yingli Sensitivity | N10: =N96 -> 6079.629836 | O10: =O96 -> 14493.48086 | P10: 14787.71434 | Q10: 14981.4397 | R10: 15181.0794 | S10: 15381.86791 | T10: 15575.8054 | U10: 15770.30306 | V10: 15971.60506 | W10: 16179.9062 | X10: 16391.98009 | Y10: 16604.15035 | Z10: 16818.05258 | AA10: 17031.59513 | AB10: 17251.38852 | AC10: 17491.49233 | AD10: 17733.18635 | AE10: 17975.19928 | AF10: 18220.70616 | AG10: 18467.72777 | AH10: 18714.19034 | AI10: 18961.12203 | AJ10: 19213.35967 | AK10: 19470.60457 | AL10: 19729.66783 | AM10: 11561.1352 | AN10: 0 | AO10: 0 | AP10: 0 | AQ10: 0 | AR10: 0 | AS10: 0 | AT10: 0 | AU10: 0 | AV10: 0 | AW10: 0 | AX10: 0 | AY10: 0 | AZ10: 0 | BA10: 0
K11: on/off : | L11: =Scen!G113 -> 0 | N11: =IF($L11=1,SUM(N8:N9),(N8+N10)) -> 6079.629836 | O11: 14493.48086 | P11: 14787.71434 | Q11: 14981.4397 | R11: 15181.0794 | S11: 15381.86791 | T11: 15575.8054 | U11: 15770.30306 | V11: 15971.60506 | W11: 16179.9062 | X11: 16391.98009 | Y11: 16604.15035 | Z11: 16818.05258 | AA11: 17031.59513 | AB11: 17251.38852 | AC11: 17491.49233 | AD11: 17733.18635 | AE11: 17975.19928 | AF11: 18220.70616 | AG11: 18467.72777 | AH11: 18714.19034 | AI11: 18961.12203 | AJ11: 19213.35967 | AK11: 19470.60457 | AL11: 19729.66783 | AM11: 11561.1352 | AN11: 0 | AO11: 0 | AP11: 0 | AQ11: 0 | AR11: 0 | AS11: 0 | AT11: 0 | AU11: 0 | AV11: 0 | AW11: 0 | AX11: 0 | AY11: 0 | AZ11: 0 | BA11: 0
B12: Merchant
B13: =B111 -> Adjusted Merchant Capacity Revenue - $000s | N13: =N111 -> 0 | O13: 0 | P13: 0 | Q13: 0 | R13: 0 | S13: 0 | T13: 0 | U13: 0 | V13: 0 | W13: 0 | X13: 0 | Y13: 0 | Z13: 0 | AA13: 0 | AB13: 0 | AC13: 0 | AD13: 0 | AE13: 0 | AF13: 0 | AG13: 0 | AH13: 0 | AI13: 0 | AJ13: 0 | AK13: 0 | AL13: 0 | AM13: 0 | AN13: 0 | AO13: 0 | AP13: 0 | AQ13: 0 | AR13: 0 | AS13: 0 | AT13: =AT111 -> 0 | AU13: 0 | AV13: 0 | AW13: 0 | AX13: 0 | AY13: 0 | AZ13: 0 | BA13: 0
B14: =B116 -> Adjusted Energy Revenue - $000s | N14: =N116 -> 0 | O14: 0 | P14: 0 | Q14: 0 | R14: 0 | S14: 0 | T14: 0 | U14: 0 | V14: 0 | W14: 0 | X14: 0 | Y14: 0 | Z14: 0 | AA14: 0 | AB14: 0 | AC14: 0 | AD14: 0 | AE14: 0 | AF14: 0 | AG14: 0 | AH14: 0 | AI14: 0 | AJ14: 0 | AK14: 0 | AL14: 0 | AM14: 0 | AN14: 0 | AO14: 0 | AP14: 0 | AQ14: 0 | AR14: 0 | AS14: 0 | AT14: =AT116 -> 0 | AU14: 0 | AV14: 0 | AW14: 0 | AX14: 0 | AY14: 0 | AZ14: 0 | BA14: 0
B15: =B121 -> Adjusted REC Energy Revenue - $000s | N15: =N121 -> 0 | O15: 0 | P15: 0 | Q15: 0 | R15: 0 | S15: 0 | T15: 0 | U15: 0 | V15: 0 | W15: 0 | X15: 0 | Y15: 0 | Z15: 0 | AA15: 0 | AB15: 0 | AC15: 0 | AD15: 0 | AE15: 0 | AF15: 0 | AG15: 0 | AH15: 0 | AI15: 0 | AJ15: 0 | AK15: 0 | AL15: 0 | AM15: 0 | AN15: 0 | AO15: 0 | AP15: 0 | AQ15: 0 | AR15: 0 | AS15: 0 | AT15: =AT121 -> 0 | AU15: 0 | AV15: 0 | AW15: 0 | AX15: 0 | AY15: 0 | AZ15: 0 | BA15: 0
B16: =B124 -> Merchant Revenue $000s | N16: =N124 -> 0 | O16: 0 | P16: 0 | Q16: 0 | R16: 0 | S16: 0 | T16: 0 | U16: 0 | V16: 0 | W16: 0 | X16: 0 | Y16: 0 | Z16: 0 | AA16: 0 | AB16: 0 | AC16: 0 | AD16: 0 | AE16: 0 | AF16: 0 | AG16: 0 | AH16: 0 | AI16: 0 | AJ16: 0 | AK16: 0 | AL16: 0 | AM16: 0 | AN16: 0 | AO16: 0 | AP16: 0 | AQ16: 0 | AR16: 0 | AS16: 0 | AT16: =AT124 -> 0 | AU16: 0 | AV16: 0 | AW16: 0 | AX16: 0 | AY16: 0 | AZ16: 0 | BA16: 0
N17: =SUM(N13:N16) -> 0 | O17: 0 | P17: 0 | Q17: 0 | R17: 0 | S17: 0 | T17: 0 | U17: 0 | V17: 0 | W17: 0 | X17: 0 | Y17: 0 | Z17: 0 | AA17: 0 | AB17: 0 | AC17: 0 | AD17: 0 | AE17: 0 | AF17: 0 | AG17: 0 | AH17: 0 | AI17: 0 | AJ17: 0 | AK17: 0 | AL17: 0 | AM17: 0 | AN17: 0 | AO17: 0 | AP17: 0 | AQ17: 0 | AR17: 0 | AS17: 0 | AT17: 0 | AU17: 0 | AV17: 0 | AW17: 0 | AX17: 0 | AY17: 0 | AZ17: 0 | BA17: 0
B19: Total Revenue | N19: =N11+N17 -> 6079.629836 | O19: =O11+O17 -> 14493.48086 | P19: 14787.71434 | Q19: 14981.4397 | R19: 15181.0794 | S19: 15381.86791 | T19: 15575.8054 | U19: 15770.30306 | V19: 15971.60506 | W19: 16179.9062 | X19: 16391.98009 | Y19: 16604.15035 | Z19: 16818.05258 | AA19: 17031.59513 | AB19: 17251.38852 | AC19: 17491.49233 | AD19: 17733.18635 | AE19: 17975.19928 | AF19: 18220.70616 | AG19: 18467.72777 | AH19: 18714.19034 | AI19: 18961.12203 | AJ19: 19213.35967 | AK19: 19470.60457 | AL19: 19729.66783 | AM19: 11561.1352 | AN19: 0 | AO19: 0 | AP19: 0 | AQ19: 0 | AR19: 0 | AS19: 0 | AT19: 0 | AU19: 0 | AV19: 0 | AW19: 0 | AX19: 0 | AY19: 0 | AZ19: 0 | BA19: 0
B21: EXCESS DELIVERED ENGERY TEST
B23: Annual Net Annual Generation - GWh | N23: =N66 -> 101.4730268 | O23: 100.1152391 | P23: 100.3095374 | Q23: 99.5756733 | R23: 98.83129963 | S23: 98.08000689 | T23: 97.31091148 | U23: 96.54776922 | V23: 95.78870384 | W23: 95.03734579 | X23: 94.30468973 | Y23: 93.57762725 | Z23: 92.85434139 | AA23: 92.13430122 | AB23: 91.41978471 | AC23: 90.8098724 | AD23: 90.20229809 | AE23: 89.60049409 | AF23: 88.98708473 | AG23: 88.37787381 | AH23: 87.77115517 | AI23: 87.13780206 | AJ23: 86.50901305 | AK23: 85.88475529 | AL23: 85.26336668 | AM23: 84.67067197 | AN23: 85.93518681 | AO23: 85.33782206 | AP23: 84.74299023 | AQ23: 84.15391284 | AR23: 83.56893032 | AS23: 82.98801422 | AT23: 82.4095613 | AU23: 81.83670437 | AV23: 81.26782957 | AW23: 80.7029092 | AX23: 80.14038419 | AY23: 79.58330108 | AZ23: 79.03009045 | BA23: 78.48072537
B25: Thin Film - Unweighted
B26: Contract Period | N26: =N72 -> 0.4180327869 | O26: 1 | P26: 1 | Q26: 1 | R26: 1 | S26: 1 | T26: 1 | U26: 1 | V26: 1 | W26: 1 | X26: 1 | Y26: 1 | Z26: 1 | AA26: 1 | AB26: 1 | AC26: 1 | AD26: 1 | AE26: 1 | AF26: 1 | AG26: 1 | AH26: 1 | AI26: 1 | AJ26: 1 | AK26: 1 | AL26: 1 | AM26: 0.5819672131 | AN26: 0 | AO26: 0 | AP26: 0 | AQ26: 0 | AR26: 0 | AS26: 0 | AT26: 0 | AU26: 0 | AV26: 0 | AW26: 0 | AX26: 0 | AY26: 0 | AZ26: 0 | BA26: 0
B27: PPA Contract Quantity Schedule - First Solar | M27: partial year effect? | N27: 83.568 | O27: 82.858 | P27: 82.154 | Q27: 81.455 | R27: 80.763 | S27: 80.076 | T27: 79.396 | U27: 78.721 | V27: 78.052 | W27: 77.388 | X27: 76.731 | Y27: 76.078 | Z27: 75.432 | AA27: 74.79 | AB27: 74.155 | AC27: 73.524 | AD27: 72.899 | AE27: 72.28 | AF27: 71.665 | AG27: 71.056 | AH27: 70.452 | AI27: 69.853 | AJ27: 69.26 | AK27: 68.671 | AL27: 68.047 | AM27: 68.047 | AN27: 0 | AO27: 0 | AP27: 0 | AQ27: 0 | AR27: 0 | AS27: 0 | AT27: 0 | AU27: 0 | AV27: 0 | AW27: 0 | AX27: 0 | AY27: 0 | AZ27: 0 | BA27: 0
B28: PPA Contract Quantity Schedule - First Solar * Section 4.4 Multiple of 1.2 | L28: 1.2 | N28: =N27*$L$28 -> 100.2816 | O28: 99.4296 | P28: 98.5848 | Q28: 97.746 | R28: 96.9156 | S28: 96.0912 | T28: 95.2752 | U28: 94.4652 | V28: 93.6624 | W28: 92.8656 | X28: 92.0772 | Y28: 91.2936 | Z28: 90.5184 | AA28: 89.748 | AB28: 88.986 | AC28: 88.2288 | AD28: 87.4788 | AE28: 86.736 | AF28: 85.998 | AG28: 85.2672 | AH28: 84.5424 | AI28: 83.8236 | AJ28: 83.112 | AK28: 82.4052 | AL28: 81.6564 | AM28: 81.6564 | AN28: 0 | AO28: 0 | AP28: 0 | AQ28: 0 | AR28: 0 | AS28: 0 | AT28: 0 | AU28: 0 | AV28: 0 | AW28: 0 | AX28: 0 | AY28: 0 | AZ28: 0 | BA28: 0
B29: Hardcoded Annual Net Annual Generation - GWh for First Solar | K29: Check : | L29: =IF(Input!L$11=0,SUM(RF!N23:AM23)-SUM(RF!N29:AM29),"Adjust Yingli Input Sensistivity") -> -670.8689999 | N29: 126.6187492 | O29: 126.2344556 | P29: 125.5917103 | Q29: 124.9209872 | R29: 124.234563 | S29: 123.5355141 | T29: 122.8107231 | U29: 122.0900862 | V29: 121.3719215 | W29: 120.6595326 | X29: 119.9676189 | Y29: 119.2796034 | Z29: 118.5938438 | AA29: 117.9083839 | AB29: 117.226809 | AC29: 116.6764545 | AD29: 116.1270877 | AE29: 115.5818777 | AF29: 115.0190376 | AG29: 114.4589369 | AH29: 113.9000061 | AI29: 113.3031393 | AJ29: 112.7093922 | AK29: 112.1187487 | AL29: 111.5296683 | AM29: 110.9747944 | AN29: 0 | AO29: 0 | AP29: 0 | AQ29: 0 | AR29: 0 | AS29: 0 | AT29: 0 | AU29: 0 | AV29: 0 | AW29: 0 | AX29: 0 | AY29: 0 | AZ29: 0 | BA29: 0
B30: Difference -Generation in Excess of 1.2 | N30: =N28-N29 -> -26.33714918 | O30: -26.80485558 | P30: -27.00691033 | Q30: -27.1749872 | R30: -27.31896299 | S30: -27.44431405 | T30: -27.53552306 | U30: -27.62488618 | V30: -27.70952153 | W30: -27.79393257 | X30: -27.89041889 | Y30: -27.98600339 | Z30: -28.07544384 | AA30: -28.1603839 | AB30: -28.24080904 | AC30: -28.44765447 | AD30: -28.64828767 | AE30: -28.84587773 | AF30: -29.02103755 | AG30: -29.19173691 | AH30: -29.35760607 | AI30: -29.47953929 | AJ30: -29.59739224 | AK30: -29.71354866 | AL30: -29.87326835 | AM30: 0 | AN30: 0 | AO30: 0 | AP30: 0 | AQ30: 0 | AR30: 0 | AS30: 0 | AT30: 0 | AU30: 0 | AV30: 0 | AW30: 0 | AX30: 0 | AY30: 0 | AZ30: 0 | BA30: 0
L31: Excess Delivered Energy = Yes / No : | N31: =IF(N30<0,"Yes", "No") -> Yes | O31: =IF(O30<0,"Yes", "No") -> Yes | P31: =IF(P30<0,"Yes", "No") -> Yes | Q31: =IF(Q30<0,"Yes", "No") -> Yes | R31: =IF(R30<0,"Yes", "No") -> Yes | S31: =IF(S30<0,"Yes", "No") -> Yes | T31: =IF(T30<0,"Yes", "No") -> Yes | U31: =IF(U30<0,"Yes", "No") -> Yes | V31: =IF(V30<0,"Yes", "No") -> Yes | W31: =IF(W30<0,"Yes", "No") -> Yes | X31: =IF(X30<0,"Yes", "No") -> Yes | Y31: =IF(Y30<0,"Yes", "No") -> Yes | Z31: =IF(Z30<0,"Yes", "No") -> Yes | AA31: =IF(AA30<0,"Yes", "No") -> Yes | AB31: =IF(AB30<0,"Yes", "No") -> Yes | AC31: =IF(AC30<0,"Yes", "No") -> Yes | AD31: =IF(AD30<0,"Yes", "No") -> Yes | AE31: =IF(AE30<0,"Yes", "No") -> Yes | AF31: =IF(AF30<0,"Yes", "No") -> Yes | AG31: =IF(AG30<0,"Yes", "No") -> Yes | AH31: =IF(AH30<0,"Yes", "No") -> Yes | AI31: =IF(AI30<0,"Yes", "No") -> Yes | AJ31: =IF(AJ30<0,"Yes", "No") -> Yes | AK31: =IF(AK30<0,"Yes", "No") -> Yes | AL31: =IF(AL30<0,"Yes", "No") -> Yes | AM31: =IF(AM30<0,"Yes", "No") -> No | AN31: =IF(AN30<0,"Yes", "No") -> No | AO31: =IF(AO30<0,"Yes", "No") -> No | AP31: =IF(AP30<0,"Yes", "No") -> No | AQ31: =IF(AQ30<0,"Yes", "No") -> No | AR31: =IF(AR30<0,"Yes", "No") -> No | AS31: =IF(AS30<0,"Yes", "No") -> No | AT31: =IF(AT30<0,"Yes", "No") -> No | AU31: =IF(AU30<0,"Yes", "No") -> No | AV31: =IF(AV30<0,"Yes", "No") -> No | AW31: =IF(AW30<0,"Yes", "No") -> No | AX31: =IF(AX30<0,"Yes", "No") -> No | AY31: =IF(AY30<0,"Yes", "No") -> No | AZ31: =IF(AZ30<0,"Yes", "No") -> No | BA31: =IF(BA30<0,"Yes", "No") -> No
B32: Thin Film - Weighted
B33: PPA Contract Quantity Schedule - First Solar * Section 4.4 Multiple of 1.2 -Adjusted for partial year | N33: =N28*N26 -> 41.92099672 | O33: 99.4296 | P33: 98.5848 | Q33: 97.746 | R33: 96.9156 | S33: 96.0912 | T33: 95.2752 | U33: 94.4652 | V33: 93.6624 | W33: 92.8656 | X33: 92.0772 | Y33: 91.2936 | Z33: 90.5184 | AA33: 89.748 | AB33: 88.986 | AC33: 88.2288 | AD33: 87.4788 | AE33: 86.736 | AF33: 85.998 | AG33: 85.2672 | AH33: 84.5424 | AI33: 83.8236 | AJ33: 83.112 | AK33: 82.4052 | AL33: 81.6564 | AM33: 47.52134754 | AN33: 0 | AO33: 0 | AP33: 0 | AQ33: 0 | AR33: 0 | AS33: 0 | AT33: 0 | AU33: 0 | AV33: 0 | AW33: 0 | AX33: 0 | AY33: 0 | AZ33: 0 | BA33: 0
B34: Contract Generation - GWh | N34: =N72*N66 -> 42.41905219 | O34: =O72*O66 -> 100.1152391 | P34: 100.3095374 | Q34: 99.5756733 | R34: 98.83129963 | S34: 98.08000689 | T34: 97.31091148 | U34: 96.54776922 | V34: 95.78870384 | W34: 95.03734579 | X34: 94.30468973 | Y34: 93.57762725 | Z34: 92.85434139 | AA34: 92.13430122 | AB34: 91.41978471 | AC34: 90.8098724 | AD34: 90.20229809 | AE34: 89.60049409 | AF34: 88.98708473 | AG34: 88.37787381 | AH34: 87.77115517 | AI34: 87.13780206 | AJ34: 86.50901305 | AK34: 85.88475529 | AL34: 85.26336668 | AM34: 49.275555 | AN34: 0 | AO34: 0 | AP34: 0 | AQ34: 0 | AR34: 0 | AS34: 0 | AT34: 0 | AU34: 0 | AV34: 0 | AW34: 0 | AX34: 0 | AY34: 0 | AZ34: 0 | BA34: 0
B35: Difference -Generation in Excess of 1.2 | N35: =N33-N34 -> -0.4980554696 | O35: =O33-O34 -> -0.6856390902 | P35: -1.72473741 | Q35: -1.8296733 | R35: -1.915699632 | S35: -1.988806889 | T35: -2.035711477 | U35: -2.082569216 | V35: -2.126303843 | W35: -2.171745785 | X35: -2.227489731 | Y35: -2.284027247 | Z35: -2.335941391 | AA35: -2.386301221 | AB35: -2.433784712 | AC35: -2.581072395 | AD35: -2.72349809 | AE35: -2.864494091 | AF35: -2.989084734 | AG35: -3.110673815 | AH35: -3.228755169 | AI35: -3.314202055 | AJ35: -3.397013046 | AK35: -3.479555293 | AL35: -3.606966676 | AM35: -1.754207459 | AN35: 0 | AO35: 0 | AP35: 0 | AQ35: 0 | AR35: 0 | AS35: 0 | AT35: 0 | AU35: 0 | AV35: 0 | AW35: 0 | AX35: 0 | AY35: 0 | AZ35: 0 | BA35: 0
B37: Crystaline Technology:
B38: PPA Contract Quantity Schedule - Yingi | N38: 112.674 | O38: 112.11 | P38: 111.55 | Q38: 110.992 | R38: 110.437 | S38: 109.885 | T38: 109.336 | U38: 108.789 | V38: 108.245 | W38: 107.704 | X38: 107.165 | Y38: 106.629 | Z38: 106.096 | AA38: 105.556 | AB38: 105.038 | AC38: 104.513 | AD38: 103.99 | AE38: 103.47 | AF38: 102.953 | AG38: 102.438 | AH38: 101.926 | AI38: 101.416 | AJ38: 100.909 | AK38: 100.405 | AL38: 99.903 | AM38: 0 | AN38: 0 | AO38: 0 | AP38: 0 | AQ38: 0 | AR38: 0 | AS38: 0 | AT38: 0 | AU38: 0 | AV38: 0 | AW38: 0 | AX38: 0 | AY38: 0 | AZ38: 0 | BA38: 0
B39: PPA Contract Quantity Schedule - Yingli * Section 4.4 Mulitple of 1.2 | L39: 1.2 | N39: =N38*$L$39 -> 135.2088 | O39: 134.532 | P39: 133.86 | Q39: 133.1904 | R39: 132.5244 | S39: 131.862 | T39: 131.2032 | U39: 130.5468 | V39: 129.894 | W39: 129.2448 | X39: 128.598 | Y39: 127.9548 | Z39: 127.3152 | AA39: 126.6672 | AB39: 126.0456 | AC39: 125.4156 | AD39: 124.788 | AE39: 124.164 | AF39: 123.5436 | AG39: 122.9256 | AH39: 122.3112 | AI39: 121.6992 | AJ39: 121.0908 | AK39: 120.486 | AL39: 119.8836 | AM39: 0 | AN39: 0 | AO39: 0 | AP39: 0 | AQ39: 0 | AR39: 0 | AS39: 0 | AT39: 0 | AU39: 0 | AV39: 0 | AW39: 0 | AX39: 0 | AY39: 0 | AZ39: 0 | BA39: 0
B40: Hardcoded Annual Net Annual Generation - GWh for Yingli | K40: Check : | L40: =IF(Input!L$11=1,SUM(RF!N23:AM23)-SUM(RF!N40:AM40),"Adjust Yingli Input Sensitivity") -> Adjust Yingli Input Sensitivity | N40: 98.20703992 | O40: 97.90851354 | P40: 97.4101093 | Q40: 96.89024706 | R40: 96.35833999 | S40: 95.81677659 | T40: 95.25547156 | U40: 94.69738001 | V40: 94.14119747 | W40: 93.58948628 | X40: 93.05352013 | Y40: 92.52057046 | Z40: 91.98936354 | AA40: 91.45842253 | AB40: 90.93048761 | AC40: 90.50333068 | AD40: 90.07694251 | AE40: 89.65378128 | AF40: 89.21710554 | AG40: 88.78255573 | AH40: 88.34891427 | AI40: 87.88617885 | AJ40: 87.42586096 | AK40: 86.967948 | AL40: 86.5112453 | AM40: 86.08084109 | AN40: 0 | AO40: 0 | AP40: 0 | AQ40: 0 | AR40: 0 | AS40: 0 | AT40: 0 | AU40: 0 | AV40: 0 | AW40: 0 | AX40: 0 | AY40: 0 | AZ40: 0 | BA40: 0
B41: Difference -Generation in Excess of 1.2 | N41: =N39-N40 -> 37.00176008 | O41: =O39-O40 -> 36.62348646 | P41: 36.4498907 | Q41: 36.30015294 | R41: 36.16606001 | S41: 36.04522341 | T41: 35.94772844 | U41: 35.84941999 | V41: 35.75280253 | W41: 35.65531372 | X41: 35.54447987 | Y41: 35.43422954 | Z41: 35.32583646 | AA41: 35.20877747 | AB41: 35.11511239 | AC41: 34.91226932 | AD41: 34.71105749 | AE41: 34.51021872 | AF41: 34.32649446 | AG41: 34.14304427 | AH41: 33.96228573 | AI41: 33.81302115 | AJ41: 33.66493904 | AK41: 33.518052 | AL41: 33.3723547 | AM41: 0 | AN41: 0 | AO41: 0 | AP41: 0 | AQ41: 0 | AR41: 0 | AS41: 0 | AT41: 0 | AU41: 0 | AV41: 0 | AW41: 0 | AX41: 0 | AY41: 0 | AZ41: 0 | BA41: 0
L42: Excess Delivered Energy = Yes / No : | N42: =IF(N41<0,"Yes", "No") -> No | O42: =IF(O41<0,"Yes", "No") -> No | P42: No | Q42: No | R42: No | S42: No | T42: No | U42: No | V42: No | W42: No | X42: No | Y42: No | Z42: No | AA42: No | AB42: No | AC42: No | AD42: No | AE42: No | AF42: No | AG42: No | AH42: No | AI42: No | AJ42: No | AK42: No | AL42: No | AM42: No | AN42: No | AO42: No | AP42: No | AQ42: No | AR42: No | AS42: No | AT42: No | AU42: No | AV42: No | AW42: No | AX42: No | AY42: No | AZ42: No | BA42: No
B45: PLANT PERFORMANCE
B47: Design Output | I47: MW : | J47: =Scen!G49 -> 50 | N47: =$J47 -> 50 | O47: 50 | P47: 50 | Q47: 50 | R47: 50 | S47: 50 | T47: 50 | U47: 50 | V47: 50 | W47: 50 | X47: =$J47 -> 50 | Y47: 50 | Z47: 50 | AA47: 50 | AB47: 50 | AC47: 50 | AD47: 50 | AE47: 50 | AF47: 50 | AG47: 50 | AH47: =$J47 -> 50 | AI47: 50 | AJ47: 50 | AK47: 50 | AL47: 50 | AM47: 50 | AN47: 50 | AO47: 50 | AP47: 50 | AQ47: 50 | AR47: =$J47 -> 50 | AS47: 50 | AT47: 50 | AU47: 50 | AV47: 50 | AW47: 50 | AX47: 50 | AY47: 50 | AZ47: 50 | BA47: 50
B48: EFOR Strip from PGD for Yingli (Sensitivity) | I48: Yingli O&M Sensitivity : | J48: =OM!I19 -> 0 | N48: 0.01326179666 | O48: 0.01279109198 | P48: 0.01290790623 | Q48: 0.01327405965 | R48: 0.01378109732 | S48: 0.01443362728 | T48: 0.01532608807 | U48: 0.01621854887 | V48: 0.01711100966 | W48: 0.01800347045 | X48: 0.01876049426 | Y48: 0.01951751807 | Z48: 0.02027454188 | AA48: 0.02107505672 | AB48: 0.02187557156 | AC48: 0.02159716478 | AD48: 0.02131875799 | AE48: 0.0210403512 | AF48: 0.02093548891 | AG48: 0.02083062662 | AH48: 0.02072576433 | AI48: 0.02098938765 | AJ48: 0.02125301096 | AK48: 0.02151663428 | AL48: 0.0217802576 | AM48: 0.0217802576 | AN48: 0 | AO48: 0 | AP48: 0 | AQ48: 0 | AR48: 0 | AS48: 0 | AT48: 0 | AU48: 0 | AV48: 0 | AW48: 0 | AX48: 0 | AY48: 0 | AZ48: 0 | BA48: 0
B49: EFOR Strip from PGD for First Solar (Base) | N49: 0.01326179699 | O49: 0.01279109224 | P49: 0.0129079065 | Q49: 0.01327405992 | R49: 0.01378109759 | S49: 0.01443362754 | T49: 0.01532608833 | U49: 0.01621854911 | V49: 0.01711100989 | W49: 0.01800347067 | X49: 0.01876049448 | Y49: 0.0195175183 | Z49: 0.02027454211 | AA49: 0.02107505703 | AB49: 0.02187557194 | AC49: 0.02159716516 | AD49: 0.02131875838 | AE49: 0.0210403516 | AF49: 0.02093548935 | AG49: 0.02083062709 | AH49: 0.02072576484 | AI49: 0.02098938817 | AJ49: 0.02125301151 | AK49: 0.02151663484 | AL49: 0.02178025818 | AM49: 0.02178025818 | AN49: 0 | AO49: 0 | AP49: 0 | AQ49: 0 | AR49: 0 | AS49: 0 | AT49: 0 | AU49: 0 | AV49: 0 | AW49: 0 | AX49: 0 | AY49: 0 | AZ49: 0 | BA49: 0
B50: EFOR Strip from PGD | N50: =IF($J$48=0,N49,N48) -> 0.01326179699 | O50: =IF($J$48=0,O49,O48) -> 0.01279109224 | P50: 0.0129079065 | Q50: 0.01327405992 | R50: 0.01378109759 | S50: 0.01443362754 | T50: 0.01532608833 | U50: 0.01621854911 | V50: 0.01711100989 | W50: 0.01800347067 | X50: 0.01876049448 | Y50: 0.0195175183 | Z50: 0.02027454211 | AA50: 0.02107505703 | AB50: 0.02187557194 | AC50: 0.02159716516 | AD50: 0.02131875838 | AE50: 0.0210403516 | AF50: 0.02093548935 | AG50: 0.02083062709 | AH50: 0.02072576484 | AI50: 0.02098938817 | AJ50: 0.02125301151 | AK50: 0.02151663484 | AL50: 0.02178025818 | AM50: 0.02178025818 | AN50: 0 | AO50: 0 | AP50: 0 | AQ50: 0 | AR50: 0 | AS50: 0 | AT50: 0 | AU50: 0 | AV50: 0 | AW50: 0 | AX50: 0 | AY50: 0 | AZ50: 0 | BA50: 0
B51: EFOR Strip Adjusted for Percentage Change | N51: 0.01 | O51: =((O50-N50)/N50) -> -0.03549328554 | P51: =((P50-O50)/O50) -> 0.009132469362 | Q51: 0.0283665999 | R51: 0.03819763319 | S51: 0.04734963628 | T51: 0.06183205007 | U51: 0.05823147839 | V51: 0.05502716521 | W51: 0.05215710744 | X51: 0.04204877093 | Y51: 0.04035201816 | Z51: 0.03878688892 | AA51: 0.03948374825 | AB51: 0.03798399765 | AC51: -0.01272683434 | AD51: -0.01289089462 | AE51: -0.0130592399 | AF51: -0.004983864216 | AG51: -0.005008827532 | AH51: -0.005034042181 | AI51: 0.01271959502 | AJ51: 0.01255983896 | AK51: 0.01240404614 | AL51: 0.01225207089 | AM51: 0 | AN51: 0 | AO51: 0 | AP51: 0 | AQ51: 0 | AR51: 0 | AS51: 0 | AT51: 0 | AU51: 0 | AV51: 0 | AW51: 0 | AX51: 0 | AY51: 0 | AZ51: 0 | BA51: 0
B52: EFOR Strip Adjusted for Partial Year | J52: =Scen!G115 -> 0.013 | M52: =J52 -> 0.013 | N52: =M52*(1+N51) -> 0.01313 | O52: =N52*(1+O51) -> 0.01266397316 | P52: =O52*(1+P51) -> 0.01277962651 | Q52: 0.01314214106 | R52: 0.01364413974 | S52: 0.0142901848 | T52: 0.01517377622 | U52: 0.01605736764 | V52: 0.01694095906 | W52: 0.01782455049 | X52: 0.01857405093 | Y52: 0.01932355137 | Z52: 0.02007305181 | AA52: 0.02086561113 | AB52: 0.02165817045 | AC52: 0.02138253051 | AD52: 0.02110689056 | AE52: 0.02083125061 | AF52: 0.02072743049 | AG52: 0.02062361036 | AH52: 0.02051979024 | AI52: 0.02078079366 | AJ52: 0.02104179708 | AK52: 0.0213028005 | AL52: 0.02156380393 | AM52: 0.02156380393 | AN52: 0 | AO52: 0 | AP52: 0 | AQ52: 0 | AR52: 0 | AS52: 0 | AT52: 0 | AU52: 0 | AV52: 0 | AW52: 0 | AX52: 0 | AY52: 0 | AZ52: 0 | BA52: 0
B53: Availability | I53: Avail % : | J53: =Scen!G50 -> 1 | N53: 1 | O53: 1 | P53: 1 | Q53: 1 | R53: 1 | S53: 1 | T53: 1 | U53: 1 | V53: 1 | W53: 1 | X53: 1 | Y53: 1 | Z53: 1 | AA53: 1 | AB53: 1 | AC53: 1 | AD53: 1 | AE53: 1 | AF53: 1 | AG53: 1 | AH53: 1 | AI53: 1 | AJ53: 1 | AK53: 1 | AL53: 1 | AM53: 1 | AN53: 1 | AO53: 1 | AP53: 1 | AQ53: 1 | AR53: 1 | AS53: 1 | AT53: 1 | AU53: 1 | AV53: 1 | AW53: 1 | AX53: 1 | AY53: 1 | AZ53: 1 | BA53: 1
B54: Available Output | N54: =N47*(1-N52)*N53 -> 49.3435 | O54: =O47*(1-O52)*O53 -> 49.36680134 | P54: 49.36101867 | Q54: 49.34289295 | R54: 49.31779301 | S54: 49.28549076 | T54: 49.24131119 | U54: 49.19713162 | V54: 49.15295205 | W54: 49.10877248 | X54: 49.07129745 | Y54: 49.03382243 | Z54: 48.99634741 | AA54: 48.95671944 | AB54: 48.91709148 | AC54: 48.93087347 | AD54: 48.94465547 | AE54: 48.95843747 | AF54: 48.96362848 | AG54: 48.96881948 | AH54: 48.97401049 | AI54: 48.96096032 | AJ54: 48.94791015 | AK54: 48.93485997 | AL54: 48.9218098 | AM54: 48.9218098 | AN54: 50 | AO54: 50 | AP54: 50 | AQ54: 50 | AR54: 50 | AS54: 50 | AT54: 50 | AU54: 50 | AV54: 50 | AW54: 50 | AX54: 50 | AY54: 50 | AZ54: 50 | BA54: 50
B56: Capacity Factor | I56: CF : | J56: =ToD!E73 -> 0.2347559225 | N56: =$J56 -> 0.2347559225 | O56: 0.2347559225 | P56: 0.2347559225 | Q56: 0.2347559225 | R56: 0.2347559225 | S56: 0.2347559225 | T56: 0.2347559225 | U56: 0.2347559225 | V56: 0.2347559225 | W56: 0.2347559225 | X56: 0.2347559225 | Y56: 0.2347559225 | Z56: 0.2347559225 | AA56: 0.2347559225 | AB56: 0.2347559225 | AC56: 0.2347559225 | AD56: 0.2347559225 | AE56: 0.2347559225 | AF56: 0.2347559225 | AG56: 0.2347559225 | AH56: 0.2347559225 | AI56: 0.2347559225 | AJ56: 0.2347559225 | AK56: 0.2347559225 | AL56: 0.2347559225 | AM56: 0.2347559225 | AN56: 0.2347559225 | AO56: 0.2347559225 | AP56: 0.2347559225 | AQ56: 0.2347559225 | AR56: 0.2347559225 | AS56: 0.2347559225 | AT56: =$J56 -> 0.2347559225 | AU56: 0.2347559225 | AV56: 0.2347559225 | AW56: 0.2347559225 | AX56: 0.2347559225 | AY56: 0.2347559225 | AZ56: 0.2347559225 | BA56: 0.2347559225
B57: Gross Annual Generation - GWh | N57: =N54*8.76*N56 -> 101.4730268 | O57: =O54*8.76*O56 -> 101.5209451 | P57: 101.5090533 | Q57: 101.4717784 | R57: 101.4201614 | S57: 101.353733 | T57: 101.2628794 | U57: 101.1720258 | V57: 101.0811722 | W57: 100.9903186 | X57: 100.9132526 | Y57: 100.8361867 | Z57: 100.7591207 | AA57: 100.6776273 | AB57: 100.5961339 | AC57: 100.6244761 | AD57: 100.6528182 | AE57: 100.6811604 | AF57: 100.6918355 | AG57: 100.7025106 | AH57: 100.7131857 | AI57: 100.6863485 | AJ57: 100.6595114 | AK57: 100.6326742 | AL57: 100.605837 | AM57: 100.605837 | AN57: 102.823094 | AO57: 102.823094 | AP57: 102.823094 | AQ57: 102.823094 | AR57: 102.823094 | AS57: 102.823094 | AT57: 102.823094 | AU57: 102.823094 | AV57: 102.823094 | AW57: 102.823094 | AX57: 102.823094 | AY57: 102.823094 | AZ57: 102.823094 | BA57: 102.823094
B58: Less: Line Losses | I58: LL : | J58: =Scen!G114 -> 0 | N58: =-N57*$J58 -> 0 | O58: 0 | P58: 0 | Q58: 0 | R58: 0 | S58: 0 | T58: 0 | U58: 0 | V58: 0 | W58: 0 | X58: 0 | Y58: 0 | Z58: 0 | AA58: 0 | AB58: 0 | AC58: 0 | AD58: 0 | AE58: 0 | AF58: 0 | AG58: 0 | AH58: 0 | AI58: 0 | AJ58: 0 | AK58: 0 | AL58: 0 | AM58: 0 | AN58: 0 | AO58: 0 | AP58: 0 | AQ58: 0 | AR58: 0 | AS58: 0 | AT58: =-AT57*$J58 -> 0 | AU58: 0 | AV58: 0 | AW58: 0 | AX58: 0 | AY58: 0 | AZ58: 0 | BA58: 0
N59: =SUM(N57:N58) -> 101.4730268 | O59: =SUM(O57:O58) -> 101.5209451 | P59: 101.5090533 | Q59: 101.4717784 | R59: 101.4201614 | S59: 101.353733 | T59: 101.2628794 | U59: 101.1720258 | V59: 101.0811722 | W59: 100.9903186 | X59: 100.9132526 | Y59: 100.8361867 | Z59: 100.7591207 | AA59: 100.6776273 | AB59: 100.5961339 | AC59: 100.6244761 | AD59: 100.6528182 | AE59: 100.6811604 | AF59: 100.6918355 | AG59: 100.7025106 | AH59: 100.7131857 | AI59: 100.6863485 | AJ59: 100.6595114 | AK59: 100.6326742 | AL59: 100.605837 | AM59: 100.605837 | AN59: 102.823094 | AO59: 102.823094 | AP59: 102.823094 | AQ59: 102.823094 | AR59: 102.823094 | AS59: 102.823094 | AT59: 102.823094 | AU59: 102.823094 | AV59: 102.823094 | AW59: 102.823094 | AX59: 102.823094 | AY59: 102.823094 | AZ59: 102.823094 | BA59: 102.823094
B61: Degradation - First Solar Base Case as a Percent | I61: Degrad % : | J61: =Scen!G109 -> 0 | M61: cod issue | N61: 0.02 | O61: 0.02 | P61: 0.007 | Q61: 0.007 | R61: 0.007 | S61: 0.007 | T61: 0.007 | U61: 0.007 | V61: 0.007 | W61: 0.007 | X61: 0.007 | Y61: 0.007 | Z61: 0.007 | AA61: 0.007 | AB61: 0.007 | AC61: 0.007 | AD61: 0.007 | AE61: 0.007 | AF61: 0.007 | AG61: 0.007 | AH61: 0.007 | AI61: 0.007 | AJ61: 0.007 | AK61: 0.007 | AL61: 0.007 | AM61: 0.007 | AN61: 0.007 | AO61: 0.007 | AP61: 0.007 | AQ61: 0.007 | AR61: 0.007 | AS61: 0.007 | AT61: 0.007 | AU61: 0.007 | AV61: 0.007 | AW61: 0.007 | AX61: 0.007 | AY61: 0.007 | AZ61: 0.007 | BA61: 0.007
B62: Degradation - Yingli Sensitivity | I62: Manual Overrride : | J62: =Scen!G110 -> 0 | N62: 0.019 | O62: 0.009 | P62: 0.009 | Q62: 0.009 | R62: 0.009 | S62: 0.009 | T62: 0.009 | U62: 0.009 | V62: 0.009 | W62: 0.009 | X62: 0.005 | Y62: 0.005 | Z62: 0.005 | AA62: 0.005 | AB62: 0.005 | AC62: 0.005 | AD62: 0.005 | AE62: 0.005 | AF62: 0.005 | AG62: 0.005 | AH62: 0.01 | AI62: 0.01 | AJ62: 0.01 | AK62: 0.01 | AL62: 0.01 | AM62: 0 | AN62: 0 | AO62: 0 | AP62: 0 | AQ62: 0 | AR62: 0 | AS62: 0 | AT62: 0 | AU62: 0 | AV62: 0 | AW62: 0 | AX62: 0 | AY62: 0 | AZ62: 0 | BA62: 0
B63: Degradation | I63: Check : | J63: =IF(Input!F22>25,"ERROR",0) -> 0 | N63: =IF(J63=1,N62,N61) -> 0.02 | O63: =IF(K63=1,O62,O61) -> 0.02 | P63: =IF(L63=1,P62,P61) -> 0.007 | Q63: 0.007 | R63: 0.007 | S63: 0.007 | T63: 0.007 | U63: 0.007 | V63: 0.007 | W63: 0.007 | X63: 0.007 | Y63: 0.007 | Z63: 0.007 | AA63: 0.007 | AB63: 0.007 | AC63: 0.007 | AD63: 0.007 | AE63: 0.007 | AF63: 0.007 | AG63: 0.007 | AH63: 0.007 | AI63: 0.007 | AJ63: 0.007 | AK63: 0.007 | AL63: 0.007 | AM63: 0.007 | AN63: 0.007 | AO63: 0.007 | AP63: 0.007 | AQ63: 0.007 | AR63: 0.007 | AS63: 0.007 | AT63: 0.007 | AU63: 0.007 | AV63: 0.007 | AW63: 0.007 | AX63: 0.007 | AY63: 0.007 | AZ63: 0.007 | BA63: 0.007
B64: Degradation Factor | I64: Base : | J64: =N2 -> 2012-12-01 | N64: =(1+N63)^((OM!N2-$J64)/365*-1) -> 1 | O64: =(1+O63)^((OM!O2-$J64)/365*-1) -> 0.9861535367 | P64: =(1+P63)^((OM!P2-$J64)/365*-1) -> 0.9881831635 | Q64: =(1+Q63)^((OM!Q2-$J64)/365*-1) -> 0.9813139657 | R64: =(1+R63)^((OM!R2-$J64)/365*-1) -> 0.9744738945 | S64: =(1+S63)^((OM!S2-$J64)/365*-1) -> 0.9676999945 | T64: =(1+T63)^((OM!T2-$J64)/365*-1) -> 0.9609731823 | U64: =(1+U63)^((OM!U2-$J64)/365*-1) -> 0.9542931304 | V64: =(1+V63)^((OM!V2-$J64)/365*-1) -> 0.947641403 | W64: =(1+W63)^((OM!W2-$J64)/365*-1) -> 0.9410540248 | X64: =(1+X63)^((OM!X2-$J64)/365*-1) -> 0.9345124377 | Y64: =(1+Y63)^((OM!Y2-$J64)/365*-1) -> 0.9280163234 | Z64: =(1+Z63)^((OM!Z2-$J64)/365*-1) -> 0.9215477538 | AA64: =(1+AA63)^((OM!AA2-$J64)/365*-1) -> 0.9151417614 | AB64: =(1+AB63)^((OM!AB2-$J64)/365*-1) -> 0.9087802993 | AC64: =(1+AC63)^((OM!AC2-$J64)/365*-1) -> 0.9024630579 | AD64: =(1+AD63)^((OM!AD2-$J64)/365*-1) -> 0.8961726027 | AE64: =(1+AE63)^((OM!AE2-$J64)/365*-1) -> 0.8899430017 | AF64: =(1+AF63)^((OM!AF2-$J64)/365*-1) -> 0.8837567047 | AG64: =(1+AG63)^((OM!AG2-$J64)/365*-1) -> 0.8776134109 | AH64: =(1+AH63)^((OM!AH2-$J64)/365*-1) -> 0.8714961655 | AI64: =(1+AI63)^((OM!AI2-$J64)/365*-1) -> 0.8654380989 | AJ64: =(1+AJ63)^((OM!AJ2-$J64)/365*-1) -> 0.8594221438 | AK64: =(1+AK63)^((OM!AK2-$J64)/365*-1) -> 0.8534480078 | AL64: =(1+AL63)^((OM!AL2-$J64)/365*-1) -> 0.847499203 | AM64: =(1+AM63)^((OM!AM2-$J64)/365*-1) -> 0.8416079474 | AN64: =(1+AN63)^((OM!AN2-$J64)/365*-1) -> 0.8357576439 | AO64: =(1+AO63)^((OM!AO2-$J64)/365*-1) -> 0.8299480079 | AP64: =(1+AP63)^((OM!AP2-$J64)/365*-1) -> 0.8241630056 | AQ64: =(1+AQ63)^((OM!AQ2-$J64)/365*-1) -> 0.8184339678 | AR64: =(1+AR63)^((OM!AR2-$J64)/365*-1) -> 0.8127447546 | AS64: =(1+AS63)^((OM!AS2-$J64)/365*-1) -> 0.8070950889 | AT64: =(1+AT63)^((OM!AT2-$J64)/365*-1) -> 0.8014693788 | AU64: =(1+AU63)^((OM!AU2-$J64)/365*-1) -> 0.7958980922 | AV64: =(1+AV63)^((OM!AV2-$J64)/365*-1) -> 0.7903655334 | AW64: =(1+AW63)^((OM!AW2-$J64)/365*-1) -> 0.7848714334 | AX64: =(1+AX63)^((OM!AX2-$J64)/365*-1) -> 0.7794006292 | AY64: =(1+AY63)^((OM!AY2-$J64)/365*-1) -> 0.77398275 | AZ64: =(1+AZ63)^((OM!AZ2-$J64)/365*-1) -> 0.7686025323 | BA64: =(1+BA63)^((OM!BA2-$J64)/365*-1) -> 0.7632597143
B66: Annual Net Annual Generation - GWh | N66: =N59*N64 -> 101.4730268 | O66: =O59*O64 -> 100.1152391 | P66: 100.3095374 | Q66: 99.5756733 | R66: 98.83129963 | S66: 98.08000689 | T66: 97.31091148 | U66: 96.54776922 | V66: 95.78870384 | W66: 95.03734579 | X66: 94.30468973 | Y66: 93.57762725 | Z66: 92.85434139 | AA66: 92.13430122 | AB66: 91.41978471 | AC66: 90.8098724 | AD66: 90.20229809 | AE66: 89.60049409 | AF66: 88.98708473 | AG66: 88.37787381 | AH66: 87.77115517 | AI66: 87.13780206 | AJ66: 86.50901305 | AK66: 85.88475529 | AL66: 85.26336668 | AM66: 84.67067197 | AN66: 85.93518681 | AO66: 85.33782206 | AP66: 84.74299023 | AQ66: 84.15391284 | AR66: 83.56893032 | AS66: 82.98801422 | AT66: 82.4095613 | AU66: 81.83670437 | AV66: 81.26782957 | AW66: 80.7029092 | AX66: 80.14038419 | AY66: 79.58330108 | AZ66: 79.03009045 | BA66: 78.48072537
B70: CONTRACT REVENUE
K71: Check
B72: Contract Period | I72: Years : | J72: =Scen!G59 -> 25 | K72: =SUM(N72:BA72)-J72 -> 0 | M72: 0 | N72: =(N$3<=$J72)*N$1 + (N$3>$J72)* ($J72-SUM($M72:M72)) -> 0.4180327869 | O72: =(O$3<=$J72)*O$1 + (O$3>$J72)* ($J72-SUM($M72:N72)) -> 1 | P72: =(P$3<=$J72)*P$1 + (P$3>$J72)* ($J72-SUM($M72:O72)) -> 1 | Q72: =(Q$3<=$J72)*Q$1 + (Q$3>$J72)* ($J72-SUM($M72:P72)) -> 1 | R72: =(R$3<=$J72)*R$1 + (R$3>$J72)* ($J72-SUM($M72:Q72)) -> 1 | S72: =(S$3<=$J72)*S$1 + (S$3>$J72)* ($J72-SUM($M72:R72)) -> 1 | T72: =(T$3<=$J72)*T$1 + (T$3>$J72)* ($J72-SUM($M72:S72)) -> 1 | U72: =(U$3<=$J72)*U$1 + (U$3>$J72)* ($J72-SUM($M72:T72)) -> 1 | V72: =(V$3<=$J72)*V$1 + (V$3>$J72)* ($J72-SUM($M72:U72)) -> 1 | W72: =(W$3<=$J72)*W$1 + (W$3>$J72)* ($J72-SUM($M72:V72)) -> 1 | X72: =(X$3<=$J72)*X$1 + (X$3>$J72)* ($J72-SUM($M72:W72)) -> 1 | Y72: =(Y$3<=$J72)*Y$1 + (Y$3>$J72)* ($J72-SUM($M72:X72)) -> 1 | Z72: =(Z$3<=$J72)*Z$1 + (Z$3>$J72)* ($J72-SUM($M72:Y72)) -> 1 | AA72: =(AA$3<=$J72)*AA$1 + (AA$3>$J72)* ($J72-SUM($M72:Z72)) -> 1 | AB72: =(AB$3<=$J72)*AB$1 + (AB$3>$J72)* ($J72-SUM($M72:AA72)) -> 1 | AC72: =(AC$3<=$J72)*AC$1 + (AC$3>$J72)* ($J72-SUM($M72:AB72)) -> 1 | AD72: =(AD$3<=$J72)*AD$1 + (AD$3>$J72)* ($J72-SUM($M72:AC72)) -> 1 | AE72: =(AE$3<=$J72)*AE$1 + (AE$3>$J72)* ($J72-SUM($M72:AD72)) -> 1 | AF72: =(AF$3<=$J72)*AF$1 + (AF$3>$J72)* ($J72-SUM($M72:AE72)) -> 1 | AG72: =(AG$3<=$J72)*AG$1 + (AG$3>$J72)* ($J72-SUM($M72:AF72)) -> 1 | AH72: =(AH$3<=$J72)*AH$1 + (AH$3>$J72)* ($J72-SUM($M72:AG72)) -> 1 | AI72: =(AI$3<=$J72)*AI$1 + (AI$3>$J72)* ($J72-SUM($M72:AH72)) -> 1 | AJ72: =(AJ$3<=$J72)*AJ$1 + (AJ$3>$J72)* ($J72-SUM($M72:AI72)) -> 1 | AK72: =(AK$3<=$J72)*AK$1 + (AK$3>$J72)* ($J72-SUM($M72:AJ72)) -> 1 | AL72: =(AL$3<=$J72)*AL$1 + (AL$3>$J72)* ($J72-SUM($M72:AK72)) -> 1 | AM72: =(AM$3<=$J72)*AM$1 + (AM$3>$J72)* ($J72-SUM($M72:AL72)) -> 0.5819672131 | AN72: =(AN$3<=$J72)*AN$1 + (AN$3>$J72)* ($J72-SUM($M72:AM72)) -> 0 | AO72: =(AO$3<=$J72)*AO$1 + (AO$3>$J72)* ($J72-SUM($M72:AN72)) -> 0 | AP72: =(AP$3<=$J72)*AP$1 + (AP$3>$J72)* ($J72-SUM($M72:AO72)) -> 0 | AQ72: =(AQ$3<=$J72)*AQ$1 + (AQ$3>$J72)* ($J72-SUM($M72:AP72)) -> 0 | AR72: =(AR$3<=$J72)*AR$1 + (AR$3>$J72)* ($J72-SUM($M72:AQ72)) -> 0 | AS72: =(AS$3<=$J72)*AS$1 + (AS$3>$J72)* ($J72-SUM($M72:AR72)) -> 0 | AT72: =(AT$3<=$J72)*AT$1 + (AT$3>$J72)* ($J72-SUM($M72:AS72)) -> 0 | AU72: =(AU$3<=$J72)*AU$1 + (AU$3>$J72)* ($J72-SUM($M72:AT72)) -> 0 | AV72: =(AV$3<=$J72)*AV$1 + (AV$3>$J72)* ($J72-SUM($M72:AU72)) -> 0 | AW72: =(AW$3<=$J72)*AW$1 + (AW$3>$J72)* ($J72-SUM($M72:AV72)) -> 0 | AX72: =(AX$3<=$J72)*AX$1 + (AX$3>$J72)* ($J72-SUM($M72:AW72)) -> 0 | AY72: =(AY$3<=$J72)*AY$1 + (AY$3>$J72)* ($J72-SUM($M72:AX72)) -> 0 | AZ72: =(AZ$3<=$J72)*AZ$1 + (AZ$3>$J72)* ($J72-SUM($M72:AY72)) -> 0 | BA72: =(BA$3<=$J72)*BA$1 + (BA$3>$J72)* ($J72-SUM($M72:AZ72)) -> 0
B75: PPA Capacity Revenue
B76: Available Output | I76: MW : | J76: =J47 -> 50 | N76: =$J76 -> 50 | O76: 50 | P76: 50 | Q76: 50 | R76: 50 | S76: 50 | T76: 50 | U76: 50 | V76: 50 | W76: 50 | X76: =$J76 -> 50 | Y76: 50 | Z76: 50 | AA76: 50 | AB76: 50 | AC76: 50 | AD76: 50 | AE76: 50 | AF76: 50 | AG76: 50 | AH76: =$J76 -> 50 | AI76: 50 | AJ76: 50 | AK76: 50 | AL76: 50 | AM76: 50 | AN76: 50 | AO76: 50 | AP76: 50 | AQ76: 50 | AR76: =$J76 -> 50 | AS76: 50 | AT76: 50 | AU76: 50 | AV76: 50 | AW76: 50 | AX76: 50 | AY76: 50 | AZ76: 50 | BA76: 50
B77: Contract Price | I77: $/kWyr : | J77: =Scen!G51 -> 0 | N77: 0 | O77: 0 | P77: 0 | Q77: 0 | R77: 0 | S77: 0 | T77: 0 | U77: 0 | V77: 0 | W77: 0 | X77: 0 | Y77: 0 | Z77: 0 | AA77: 0 | AB77: 0 | AC77: 0 | AD77: 0 | AE77: 0 | AF77: 0 | AG77: 0 | AH77: 0 | AI77: 0 | AJ77: 0 | AK77: 0 | AL77: 0 | AM77: 0 | AN77: 0 | AO77: 0 | AP77: 0 | AQ77: 0 | AR77: 0 | AS77: 0 | AT77: 0 | AU77: 0 | AV77: 0 | AW77: 0 | AX77: 0 | AY77: 0 | AZ77: 0 | BA77: 0
B78: Growth Factor | I78: G : | J78: =Scen!G52 -> 0 | N78: =(1+$J78)^SUM($M$1:M$1) -> 1 | O78: =(1+$J78)^SUM($M$1:N$1) -> 1 | P78: =(1+$J78)^SUM($M$1:O$1) -> 1 | Q78: =(1+$J78)^SUM($M$1:P$1) -> 1 | R78: =(1+$J78)^SUM($M$1:Q$1) -> 1 | S78: =(1+$J78)^SUM($M$1:R$1) -> 1 | T78: =(1+$J78)^SUM($M$1:S$1) -> 1 | U78: =(1+$J78)^SUM($M$1:T$1) -> 1 | V78: =(1+$J78)^SUM($M$1:U$1) -> 1 | W78: =(1+$J78)^SUM($M$1:V$1) -> 1 | X78: =(1+$J78)^SUM($M$1:W$1) -> 1 | Y78: =(1+$J78)^SUM($M$1:X$1) -> 1 | Z78: =(1+$J78)^SUM($M$1:Y$1) -> 1 | AA78: =(1+$J78)^SUM($M$1:Z$1) -> 1 | AB78: =(1+$J78)^SUM($M$1:AA$1) -> 1 | AC78: =(1+$J78)^SUM($M$1:AB$1) -> 1 | AD78: =(1+$J78)^SUM($M$1:AC$1) -> 1 | AE78: =(1+$J78)^SUM($M$1:AD$1) -> 1 | AF78: =(1+$J78)^SUM($M$1:AE$1) -> 1 | AG78: =(1+$J78)^SUM($M$1:AF$1) -> 1 | AH78: =(1+$J78)^SUM($M$1:AG$1) -> 1 | AI78: =(1+$J78)^SUM($M$1:AH$1) -> 1 | AJ78: =(1+$J78)^SUM($M$1:AI$1) -> 1 | AK78: =(1+$J78)^SUM($M$1:AJ$1) -> 1 | AL78: =(1+$J78)^SUM($M$1:AK$1) -> 1 | AM78: =(1+$J78)^SUM($M$1:AL$1) -> 1 | AN78: =(1+$J78)^SUM($M$1:AM$1) -> 1 | AO78: =(1+$J78)^SUM($M$1:AN$1) -> 1 | AP78: =(1+$J78)^SUM($M$1:AO$1) -> 1 | AQ78: =(1+$J78)^SUM($M$1:AP$1) -> 1 | AR78: =(1+$J78)^SUM($M$1:AQ$1) -> 1 | AS78: =(1+$J78)^SUM($M$1:AR$1) -> 1 | AT78: =(1+$J78)^SUM($M$1:AS$1) -> 1 | AU78: =(1+$J78)^SUM($M$1:AT$1) -> 1 | AV78: =(1+$J78)^SUM($M$1:AU$1) -> 1 | AW78: =(1+$J78)^SUM($M$1:AV$1) -> 1 | AX78: =(1+$J78)^SUM($M$1:AW$1) -> 1 | AY78: =(1+$J78)^SUM($M$1:AX$1) -> 1 | AZ78: =(1+$J78)^SUM($M$1:AY$1) -> 1 | BA78: =(1+$J78)^SUM($M$1:AZ$1) -> 1
B79: Capacity Revenue - $000s | N79: =N76*N77*N78*N72 -> 0 | O79: 0 | P79: 0 | Q79: 0 | R79: 0 | S79: 0 | T79: 0 | U79: 0 | V79: 0 | W79: 0 | X79: 0 | Y79: 0 | Z79: 0 | AA79: 0 | AB79: 0 | AC79: 0 | AD79: 0 | AE79: 0 | AF79: 0 | AG79: 0 | AH79: 0 | AI79: 0 | AJ79: 0 | AK79: 0 | AL79: 0 | AM79: 0 | AN79: 0 | AO79: 0 | AP79: 0 | AQ79: 0 | AR79: 0 | AS79: 0 | AT79: 0 | AU79: 0 | AV79: 0 | AW79: 0 | AX79: 0 | AY79: 0 | AZ79: 0 | BA79: 0
O80: =((O82-N82)/N82)-O81 -> 0
O81: 0.0211554109 | P81: 0.02071713147 | Q81: 0.02107728337 | R81: 0.02140672783 | S81: 0.02095808383 | T81: 0.02052785924 | U81: 0.02083333333 | V81: 0.02111189303 | W81: 0.02136457615 | X81: 0.02091767881 | Y81: 0.02115003305 | Z81: 0.02071197411 | AA81: 0.0209258085 | AB81: 0.02111801242 | AC81: 0.02128953771 | AD81: 0.02084574151 | AE81: 0.02100350058 | AF81: 0.02114285714 | AG81: 0.02070509233 | AH81: 0.02083333333 | AI81: 0.02094522019 | AJ81: 0.02104155708 | AK81: 0.02112313241 | AL81: 0.02119071645 | AM81: 0
B82: PPA Energy Revenue | N82: =J84 -> 122.9 | O82: =N82*(1+O81) -> 125.5 | P82: =O82*(1+P81) -> 128.1 | Q82: =P82*(1+Q81) -> 130.8 | R82: =Q82*(1+R81) -> 133.6 | S82: 136.4 | T82: 139.2 | U82: 142.1 | V82: 145.1 | W82: 148.2 | X82: 151.3 | Y82: 154.5 | Z82: 157.7 | AA82: 161 | AB82: 164.4 | AC82: 167.9 | AD82: 171.4 | AE82: 175 | AF82: 178.7 | AG82: 182.4 | AH82: 186.2 | AI82: 190.1 | AJ82: 194.1 | AK82: 198.2 | AL82: 202.4 | AM82: 202.4
B83: Growth Factor | I83: G : | J83: 0 | N83: =(1+$J83)^SUM($M$1:M$1) -> 1 | O83: =(1+$J83)^SUM($M$1:N$1) -> 1 | P83: =(1+$J83)^SUM($M$1:O$1) -> 1 | Q83: =(1+$J83)^SUM($M$1:P$1) -> 1 | R83: =(1+$J83)^SUM($M$1:Q$1) -> 1 | S83: =(1+$J83)^SUM($M$1:R$1) -> 1 | T83: =(1+$J83)^SUM($M$1:S$1) -> 1 | U83: =(1+$J83)^SUM($M$1:T$1) -> 1 | V83: =(1+$J83)^SUM($M$1:U$1) -> 1 | W83: =(1+$J83)^SUM($M$1:V$1) -> 1 | X83: =(1+$J83)^SUM($M$1:W$1) -> 1 | Y83: =(1+$J83)^SUM($M$1:X$1) -> 1 | Z83: =(1+$J83)^SUM($M$1:Y$1) -> 1 | AA83: =(1+$J83)^SUM($M$1:Z$1) -> 1 | AB83: =(1+$J83)^SUM($M$1:AA$1) -> 1 | AC83: =(1+$J83)^SUM($M$1:AB$1) -> 1 | AD83: =(1+$J83)^SUM($M$1:AC$1) -> 1 | AE83: =(1+$J83)^SUM($M$1:AD$1) -> 1 | AF83: =(1+$J83)^SUM($M$1:AE$1) -> 1 | AG83: =(1+$J83)^SUM($M$1:AF$1) -> 1 | AH83: =(1+$J83)^SUM($M$1:AG$1) -> 1 | AI83: =(1+$J83)^SUM($M$1:AH$1) -> 1 | AJ83: =(1+$J83)^SUM($M$1:AI$1) -> 1 | AK83: =(1+$J83)^SUM($M$1:AJ$1) -> 1 | AL83: =(1+$J83)^SUM($M$1:AK$1) -> 1 | AM83: =(1+$J83)^SUM($M$1:AL$1) -> 1 | AN83: =(1+$J83)^SUM($M$1:AM$1) -> 1 | AO83: =(1+$J83)^SUM($M$1:AN$1) -> 1 | AP83: =(1+$J83)^SUM($M$1:AO$1) -> 1 | AQ83: =(1+$J83)^SUM($M$1:AP$1) -> 1 | AR83: =(1+$J83)^SUM($M$1:AQ$1) -> 1 | AS83: =(1+$J83)^SUM($M$1:AR$1) -> 1 | AT83: =(1+$J83)^SUM($M$1:AS$1) -> 1 | AU83: =(1+$J83)^SUM($M$1:AT$1) -> 1 | AV83: =(1+$J83)^SUM($M$1:AU$1) -> 1 | AW83: =(1+$J83)^SUM($M$1:AV$1) -> 1 | AX83: =(1+$J83)^SUM($M$1:AW$1) -> 1 | AY83: =(1+$J83)^SUM($M$1:AX$1) -> 1 | AZ83: =(1+$J83)^SUM($M$1:AY$1) -> 1 | BA83: =(1+$J83)^SUM($M$1:AZ$1) -> 1
B84: Effective Price - $/MWh | I84: $/MWh : | J84: =Scen!G56 -> 122.9 | N84: =N82 -> 122.9 | O84: =O82*$N1+N82*(1-$N1) -> 123.9868852 | P84: 126.5868852 | Q84: 129.2286885 | R84: 131.9704918 | S84: 134.7704918 | T84: 137.5704918 | U84: 140.4122951 | V84: 143.3540984 | W84: 146.3959016 | X84: 149.4959016 | Y84: 152.6377049 | Z84: 155.8377049 | AA84: 159.0795082 | AB84: 162.4213115 | AC84: 165.8631148 | AD84: 169.3631148 | AE84: 172.904918 | AF84: 176.5467213 | AG84: 180.2467213 | AH84: 183.9885246 | AI84: 187.8303279 | AJ84: 191.7721311 | AK84: 195.8139344 | AL84: 199.9557377 | AM84: 202.4 | AN84: 0 | AO84: 0 | AP84: 0 | AQ84: 0 | AR84: 0 | AS84: 0 | AT84: 0 | AU84: 0 | AV84: 0 | AW84: 0 | AX84: 0 | AY84: 0 | AZ84: 0 | BA84: 0
B85: TOD Adjustment Multiple | I85: TOD: | J85: =Scen!G57 -> 1.169609713 | N85: =$J$85 -> 1.169609713 | O85: 1.169609713 | P85: 1.169609713 | Q85: 1.169609713 | R85: 1.169609713 | S85: 1.169609713 | T85: 1.169609713 | U85: 1.169609713 | V85: 1.169609713 | W85: 1.169609713 | X85: 1.169609713 | Y85: 1.169609713 | Z85: 1.169609713 | AA85: 1.169609713 | AB85: 1.169609713 | AC85: 1.169609713 | AD85: 1.169609713 | AE85: 1.169609713 | AF85: 1.169609713 | AG85: 1.169609713 | AH85: 1.169609713 | AI85: 1.169609713 | AJ85: 1.169609713 | AK85: 1.169609713 | AL85: 1.169609713 | AM85: 1.169609713 | AN85: 1.169609713 | AO85: 1.169609713 | AP85: 1.169609713 | AQ85: 1.169609713 | AR85: 1.169609713 | AS85: 1.169609713 | AT85: 1.169609713 | AU85: 1.169609713 | AV85: 1.169609713 | AW85: 1.169609713 | AX85: 1.169609713 | AY85: 1.169609713 | AZ85: 1.169609713 | BA85: 1.169609713
B86: TOD Adjusted Effective Price - $/MWh | N86: =N84*N85 -> 143.7450337 | O86: 145.0162652 | P86: 148.0572505 | Q86: 151.1471292 | R86: 154.353969 | S86: 157.6288762 | T86: 160.9037834 | U86: 164.2275841 | V86: 167.6683458 | W86: 171.2260684 | X86: 174.8518586 | Y86: 178.5265422 | Z86: 182.2692933 | AA86: 186.0609379 | AB86: 189.9695434 | AC86: 193.99511 | AD86: 198.088744 | AE86: 202.2312715 | AF86: 206.49076 | AG86: 210.8183159 | AH86: 215.1947654 | AI86: 219.6881758 | AJ86: 224.2985472 | AK86: 229.0258796 | AL86: 233.8701729 | AM86: 236.7290058 | AN86: =AN84*AN85 -> 0 | AO86: =AO84*AO85 -> 0 | AP86: 0 | AQ86: 0 | AR86: 0 | AS86: 0 | AT86: =AT84*AT85 -> 0 | AU86: 0 | AV86: 0 | AW86: 0 | AX86: 0 | AY86: 0 | AZ86: 0 | BA86: 0
B87: TOD Adjusted Effective Price - $/MWh - Adjusted Excess Energy | J87: 0.75 | N87: =N86*$J$87 -> 107.8087753 | O87: =O86*$J$87 -> 108.7621989 | P87: =P86*$J$87 -> 111.0429379 | Q87: 113.3603469 | R87: 115.7654767 | S87: 118.2216571 | T87: 120.6778375 | U87: 123.1706881 | V87: 125.7512593 | W87: 128.4195513 | X87: 131.1388939 | Y87: 133.8949066 | Z87: 136.7019699 | AA87: 139.5457034 | AB87: 142.4771576 | AC87: 145.4963325 | AD87: 148.566558 | AE87: 151.6734536 | AF87: 154.86807 | AG87: 158.1137369 | AH87: 161.396074 | AI87: 164.7661318 | AJ87: 168.2239104 | AK87: 171.7694097 | AL87: 175.4026297 | AM87: 177.5467544 | AN87: 0 | AO87: 0 | AP87: 0 | AQ87: 0 | AR87: 0 | AS87: 0 | AT87: 0 | AU87: 0 | AV87: 0 | AW87: 0 | AX87: 0 | AY87: 0 | AZ87: 0 | BA87: 0
B89: PPA Contract Quantity Schedule - First Solar * Section 4.4 Multiple of 1.2 -Adjusted for partial year | N89: =N33 -> 41.92099672 | O89: =O33 -> 99.4296 | P89: 98.5848 | Q89: 97.746 | R89: 96.9156 | S89: 96.0912 | T89: 95.2752 | U89: 94.4652 | V89: 93.6624 | W89: 92.8656 | X89: 92.0772 | Y89: 91.2936 | Z89: 90.5184 | AA89: 89.748 | AB89: 88.986 | AC89: 88.2288 | AD89: 87.4788 | AE89: 86.736 | AF89: 85.998 | AG89: 85.2672 | AH89: 84.5424 | AI89: 83.8236 | AJ89: 83.112 | AK89: 82.4052 | AL89: 81.6564 | AM89: 47.52134754 | AN89: 0 | AO89: 0 | AP89: 0 | AQ89: 0 | AR89: 0 | AS89: 0 | AT89: 0 | AU89: 0 | AV89: 0 | AW89: 0 | AX89: 0 | AY89: 0 | AZ89: 0 | BA89: 0
B90: Contract Generation - GWh - Adjusted Excess Energy | N90: =N34-N33 -> 0.4980554696 | O90: =O34-O33 -> 0.6856390902 | P90: 1.72473741 | Q90: 1.8296733 | R90: 1.915699632 | S90: 1.988806889 | T90: 2.035711477 | U90: 2.082569216 | V90: 2.126303843 | W90: 2.171745785 | X90: 2.227489731 | Y90: 2.284027247 | Z90: 2.335941391 | AA90: 2.386301221 | AB90: 2.433784712 | AC90: 2.581072395 | AD90: 2.72349809 | AE90: 2.864494091 | AF90: 2.989084734 | AG90: 3.110673815 | AH90: 3.228755169 | AI90: 3.314202055 | AJ90: 3.397013046 | AK90: 3.479555293 | AL90: 3.606966676 | AM90: 1.754207459 | AN90: 0 | AO90: 0 | AP90: 0 | AQ90: 0 | AR90: 0 | AS90: 0 | AT90: 0 | AU90: 0 | AV90: 0 | AW90: 0 | AX90: 0 | AY90: 0 | AZ90: 0 | BA90: 0
B91: Contract Generation - GWh | I91: Check : | J91: =SUM(N91:BA91)-(SUM(N89:BA89)+SUM(N90:BA90)) -> 0 | N91: =N66*N72 -> 42.41905219 | O91: =O66*O72 -> 100.1152391 | P91: 100.3095374 | Q91: 99.5756733 | R91: 98.83129963 | S91: 98.08000689 | T91: 97.31091148 | U91: 96.54776922 | V91: 95.78870384 | W91: 95.03734579 | X91: 94.30468973 | Y91: 93.57762725 | Z91: 92.85434139 | AA91: 92.13430122 | AB91: 91.41978471 | AC91: 90.8098724 | AD91: 90.20229809 | AE91: 89.60049409 | AF91: 88.98708473 | AG91: 88.37787381 | AH91: 87.77115517 | AI91: 87.13780206 | AJ91: 86.50901305 | AK91: 85.88475529 | AL91: 85.26336668 | AM91: 49.275555 | AN91: 0 | AO91: 0 | AP91: 0 | AQ91: 0 | AR91: 0 | AS91: 0 | AT91: 0 | AU91: 0 | AV91: 0 | AW91: 0 | AX91: 0 | AY91: 0 | AZ91: 0 | BA91: 0
B93: Excess Energy Included
B94: Contract Generation - GWh - Adjusted Excess Energy | N94: =N89*N86 -> 6025.935086 | O94: =O89*O86 -> 14418.90924 | P94: =P89*P86 -> 14596.19443 | Q94: 14774.0273 | R94: 14959.30752 | S94: 15146.74787 | T94: 15330.14014 | U94: 15513.79158 | V94: 15704.21967 | W94: 15901.01158 | X94: 16099.86955 | Y94: 16298.33073 | Z94: 16498.7248 | AA94: 16698.59705 | AB94: 16904.62979 | AC94: 17115.95576 | AD94: 17328.56562 | AE94: 17540.73156 | AF94: 17757.79238 | AG94: 17975.88751 | AH94: 18193.08193 | AI94: 18415.05377 | AJ94: 18641.90085 | AK94: 18872.92341 | AL94: 19096.99639 | AM94: 11249.68136 | AN94: 0 | AO94: 0 | AP94: 0 | AQ94: 0 | AR94: 0 | AS94: 0 | AT94: 0 | AU94: 0 | AV94: 0 | AW94: 0 | AX94: 0 | AY94: 0 | AZ94: 0 | BA94: 0
B95: Contract Generation - GWh | N95: =N90*N87 -> 53.69475019 | O95: =O90*O87 -> 74.57161511 | P95: =P90*P87 -> 191.519909 | Q95: 207.4124001 | R95: 221.7718811 | S95: 235.1200462 | T95: 245.6652589 | U95: 256.5114832 | V95: 267.3853859 | W95: 278.8946194 | X95: 292.1105395 | Y95: 305.819615 | Z95: 319.3277898 | AA95: 332.9980824 | AB95: 346.758728 | AC95: 375.5365674 | AD95: 404.6207368 | AE95: 434.4677117 | AF95: 462.9137838 | AG95: 491.8402612 | AH95: 521.1084082 | AI95: 546.0682528 | AJ95: 571.4588183 | AK95: 597.6811586 | AL95: 632.6714401 | AM95: 311.4538409 | AN95: 0 | AO95: 0 | AP95: 0 | AQ95: 0 | AR95: 0 | AS95: 0 | AT95: 0 | AU95: 0 | AV95: 0 | AW95: 0 | AX95: 0 | AY95: 0 | AZ95: 0 | BA95: 0
B96: Adjusted Excess Energy Revenues - $000s | N96: =N94+N95 -> 6079.629836 | O96: =O94+O95 -> 14493.48086 | P96: 14787.71434 | Q96: 14981.4397 | R96: 15181.0794 | S96: 15381.86791 | T96: 15575.8054 | U96: 15770.30306 | V96: 15971.60506 | W96: 16179.9062 | X96: 16391.98009 | Y96: 16604.15035 | Z96: 16818.05258 | AA96: 17031.59513 | AB96: 17251.38852 | AC96: 17491.49233 | AD96: 17733.18635 | AE96: 17975.19928 | AF96: 18220.70616 | AG96: 18467.72777 | AH96: 18714.19034 | AI96: 18961.12203 | AJ96: 19213.35967 | AK96: 19470.60457 | AL96: 19729.66783 | AM96: 11561.1352 | AN96: 0 | AO96: 0 | AP96: 0 | AQ96: 0 | AR96: 0 | AS96: 0 | AT96: 0 | AU96: 0 | AV96: 0 | AW96: 0 | AX96: 0 | AY96: 0 | AZ96: 0 | BA96: 0
B98: Excess Energy Excluded
B99: Energy Revenues - $000s - Excluded Excess Calculation | N99: =N86*N91 -> 6097.528086 | O99: =O86*O91 -> 14518.33806 | P99: 14851.5543 | Q99: 15050.57716 | R99: 15255.00336 | S99: 15460.24126 | T99: 15657.69382 | U99: 15855.80689 | V99: 16060.73352 | W99: 16272.87107 | X99: 16489.35027 | Y99: 16706.09022 | Z99: 16924.49518 | AA99: 17142.59449 | AB99: 17366.97476 | AC99: 17616.67118 | AD99: 17868.05993 | AE99: 18120.02185 | AF99: 18375.01075 | AG99: 18631.67452 | AH99: 18887.89314 | AI99: 19143.14478 | AJ99: 19403.84595 | AK99: 19669.83162 | AL99: 19940.55831 | AM99: 11664.95315 | AN99: 0 | AO99: 0 | AP99: 0 | AQ99: 0 | AR99: 0 | AS99: 0 | AT99: 0 | AU99: 0 | AV99: 0 | AW99: 0 | AX99: 0 | AY99: 0 | AZ99: 0 | BA99: 0
B102: MERCHANT REVENUE
K103: Check
B104: Merchant Period | I104: Years : | J104: =Scen!G60 -> 0 | K104: =SUM(N104:BA104)-J104 -> 0 | L104: Broken @ am104/105 | M104: 0 | N104: =(N$3<=($J104+$J72))*N$1 + (N$3>($J104+$J72))* ($J104-SUM($M104:M104))-N72 -> 0 | O104: =(O$3<=($J104+$J72))*O$1 + (O$3>($J104+$J72))* ($J104-SUM($M104:N104))-O72 -> 0 | P104: =(P$3<=($J104+$J72))*P$1 + (P$3>($J104+$J72))* ($J104-SUM($M104:O104))-P72 -> 0 | Q104: =(Q$3<=($J104+$J72))*Q$1 + (Q$3>($J104+$J72))* ($J104-SUM($M104:P104))-Q72 -> 0 | R104: =(R$3<=($J104+$J72))*R$1 + (R$3>($J104+$J72))* ($J104-SUM($M104:Q104))-R72 -> 0 | S104: =(S$3<=($J104+$J72))*S$1 + (S$3>($J104+$J72))* ($J104-SUM($M104:R104))-S72 -> 0 | T104: =(T$3<=($J104+$J72))*T$1 + (T$3>($J104+$J72))* ($J104-SUM($M104:S104))-T72 -> 0 | U104: =(U$3<=($J104+$J72))*U$1 + (U$3>($J104+$J72))* ($J104-SUM($M104:T104))-U72 -> 0 | V104: =(V$3<=($J104+$J72))*V$1 + (V$3>($J104+$J72))* ($J104-SUM($M104:U104))-V72 -> 0 | W104: =(W$3<=($J104+$J72))*W$1 + (W$3>($J104+$J72))* ($J104-SUM($M104:V104))-W72 -> 0 | X104: =(X$3<=($J104+$J72))*X$1 + (X$3>($J104+$J72))* ($J104-SUM($M104:W104))-X72 -> 0 | Y104: =(Y$3<=($J104+$J72))*Y$1 + (Y$3>($J104+$J72))* ($J104-SUM($M104:X104))-Y72 -> 0 | Z104: =(Z$3<=($J104+$J72))*Z$1 + (Z$3>($J104+$J72))* ($J104-SUM($M104:Y104))-Z72 -> 0 | AA104: =(AA$3<=($J104+$J72))*AA$1 + (AA$3>($J104+$J72))* ($J104-SUM($M104:Z104))-AA72 -> 0 | AB104: =(AB$3<=($J104+$J72))*AB$1 + (AB$3>($J104+$J72))* ($J104-SUM($M104:AA104))-AB72 -> 0 | AC104: =(AC$3<=($J104+$J72))*AC$1 + (AC$3>($J104+$J72))* ($J104-SUM($M104:AB104))-AC72 -> 0 | AD104: =(AD$3<=($J104+$J72))*AD$1 + (AD$3>($J104+$J72))* ($J104-SUM($M104:AC104))-AD72 -> 0 | AE104: =(AE$3<=($J104+$J72))*AE$1 + (AE$3>($J104+$J72))* ($J104-SUM($M104:AD104))-AE72 -> 0 | AF104: =(AF$3<=($J104+$J72))*AF$1 + (AF$3>($J104+$J72))* ($J104-SUM($M104:AE104))-AF72 -> 0 | AG104: =(AG$3<=($J104+$J72))*AG$1 + (AG$3>($J104+$J72))* ($J104-SUM($M104:AF104))-AG72 -> 0 | AH104: =(AH$3<=($J104+$J72))*AH$1 + (AH$3>($J104+$J72))* ($J104-SUM($M104:AG104))-AH72 -> 0 | AI104: =(AI$3<=($J104+$J72))*AI$1 + (AI$3>($J104+$J72))* ($J104-SUM($M104:AH104))-AI72 -> 0 | AJ104: =(AJ$3<=($J104+$J72))*AJ$1 + (AJ$3>($J104+$J72))* ($J104-SUM($M104:AI104))-AJ72 -> 0 | AK104: =(AK$3<=($J104+$J72))*AK$1 + (AK$3>($J104+$J72))* ($J104-SUM($M104:AJ104))-AK72 -> 0 | AL104: =(AL$3<=($J104+$J72))*AL$1 + (AL$3>($J104+$J72))* ($J104-SUM($M104:AK104))-AL72 -> 0 | AM104: 0 | AN104: 0 | AO104: =(AO$3<=($J104+$J72))*AO$1 + (AO$3>($J104+$J72))* ($J104-SUM($M104:AN104))-AO72 -> 0 | AP104: =(AP$3<=($J104+$J72))*AP$1 + (AP$3>($J104+$J72))* ($J104-SUM($M104:AO104))-AP72 -> 0 | AQ104: =(AQ$3<=($J104+$J72))*AQ$1 + (AQ$3>($J104+$J72))* ($J104-SUM($M104:AP104))-AQ72 -> 0 | AR104: =(AR$3<=($J104+$J72))*AR$1 + (AR$3>($J104+$J72))* ($J104-SUM($M104:AQ104))-AR72 -> 0 | AS104: =(AS$3<=($J104+$J72))*AS$1 + (AS$3>($J104+$J72))* ($J104-SUM($M104:AR104))-AS72 -> 0 | AT104: =(AT$3<=($J104+$J72))*AT$1 + (AT$3>($J104+$J72))* ($J104-SUM($M104:AS104))-AT72 -> 0 | AU104: =(AU$3<=($J104+$J72))*AU$1 + (AU$3>($J104+$J72))* ($J104-SUM($M104:AT104))-AU72 -> 0 | AV104: =(AV$3<=($J104+$J72))*AV$1 + (AV$3>($J104+$J72))* ($J104-SUM($M104:AU104))-AV72 -> 0 | AW104: =(AW$3<=($J104+$J72))*AW$1 + (AW$3>($J104+$J72))* ($J104-SUM($M104:AV104))-AW72 -> 0 | AX104: =(AX$3<=($J104+$J72))*AX$1 + (AX$3>($J104+$J72))* ($J104-SUM($M104:AW104))-AX72 -> 0 | AY104: =(AY$3<=($J104+$J72))*AY$1 + (AY$3>($J104+$J72))* ($J104-SUM($M104:AX104))-AY72 -> 0 | AZ104: =(AZ$3<=($J104+$J72))*AZ$1 + (AZ$3>($J104+$J72))* ($J104-SUM($M104:AY104))-AZ72 -> 0 | BA104: =(BA$3<=($J104+$J72))*BA$1 + (BA$3>($J104+$J72))* ($J104-SUM($M104:AZ104))-BA72 -> 0
B106: Merchant - Capacity Revenue
B107: Contract Price - $/kWyr | N107: 0 | O107: 0 | P107: 0 | Q107: 0 | R107: 0 | S107: 0 | T107: 0 | U107: 0 | V107: 0 | W107: 0 | X107: 0 | Y107: 0 | Z107: 0 | AA107: 0 | AB107: 0 | AC107: 0 | AD107: 0 | AE107: 0 | AF107: 0 | AG107: 0 | AH107: 0 | AI107: 0 | AJ107: 0 | AK107: 0 | AL107: 0 | AM107: 0 | AN107: 0 | AO107: 0 | AP107: 0 | AQ107: 0 | AR107: 0 | AS107: 0 | AT107: 0 | AU107: 0 | AV107: 0 | AW107: 0 | AX107: 0 | AY107: 0 | AZ107: 0 | BA107: 0
B108: Available Output | I108: MW : | J108: =J76 -> 50 | N108: =$J108 -> 50 | O108: 50 | P108: 50 | Q108: 50 | R108: 50 | S108: 50 | T108: 50 | U108: 50 | V108: 50 | W108: 50 | X108: 50 | Y108: 50 | Z108: 50 | AA108: 50 | AB108: 50 | AC108: 50 | AD108: 50 | AE108: 50 | AF108: 50 | AG108: 50 | AH108: 50 | AI108: 50 | AJ108: 50 | AK108: 50 | AL108: 50 | AM108: 50 | AN108: 50 | AO108: 50 | AP108: 50 | AQ108: 50 | AR108: 50 | AS108: 50 | AT108: =$J108 -> 50 | AU108: 50 | AV108: 50 | AW108: 50 | AX108: 50 | AY108: 50 | AZ108: 50 | BA108: 50
B109: Solar Capacity Adjustment | I109: Sol Adj : | J109: 1 | N109: =$J$109 -> 1 | O109: 1 | P109: 1 | Q109: 1 | R109: 1 | S109: 1 | T109: 1 | U109: 1 | V109: 1 | W109: 1 | X109: 1 | Y109: 1 | Z109: 1 | AA109: 1 | AB109: 1 | AC109: 1 | AD109: 1 | AE109: 1 | AF109: 1 | AG109: 1 | AH109: 1 | AI109: 1 | AJ109: 1 | AK109: 1 | AL109: 1 | AM109: 1 | AN109: 1 | AO109: 1 | AP109: 1 | AQ109: 1 | AR109: 1 | AS109: 1 | AT109: 1 | AU109: 1 | AV109: 1 | AW109: 1 | AX109: 1 | AY109: 1 | AZ109: 1 | BA109: 1
B110: Adjusted Available Output - MW | N110: =N108*N109 -> 50 | O110: 50 | P110: 50 | Q110: 50 | R110: 50 | S110: 50 | T110: 50 | U110: 50 | V110: 50 | W110: 50 | X110: 50 | Y110: 50 | Z110: 50 | AA110: 50 | AB110: 50 | AC110: 50 | AD110: 50 | AE110: 50 | AF110: 50 | AG110: 50 | AH110: 50 | AI110: 50 | AJ110: 50 | AK110: 50 | AL110: 50 | AM110: 50 | AN110: 50 | AO110: 50 | AP110: 50 | AQ110: 50 | AR110: 50 | AS110: 50 | AT110: =AT108*AT109 -> 50 | AU110: 50 | AV110: 50 | AW110: 50 | AX110: 50 | AY110: 50 | AZ110: 50 | BA110: 50
B111: Adjusted Merchant Capacity Revenue - $000s | N111: =N107*N110*N104 -> 0 | O111: 0 | P111: 0 | Q111: 0 | R111: 0 | S111: 0 | T111: 0 | U111: 0 | V111: 0 | W111: 0 | X111: 0 | Y111: 0 | Z111: 0 | AA111: 0 | AB111: 0 | AC111: 0 | AD111: 0 | AE111: 0 | AF111: 0 | AG111: 0 | AH111: 0 | AI111: 0 | AJ111: 0 | AK111: 0 | AL111: 0 | AM111: 0 | AN111: 0 | AO111: 0 | AP111: 0 | AQ111: 0 | AR111: 0 | AS111: 0 | AT111: =AT107*AT110*AT104 -> 0 | AU111: 0 | AV111: 0 | AW111: 0 | AX111: 0 | AY111: 0 | AZ111: 0 | BA111: 0
B113: Merchant - Energy Revenue
B114: Merchant Energy Price - $/MWh | N114: =LOOKUP(N$4,Merch!$R$26:$R$66,Merch!$Q$26:$Q$66) -> 37.04486302 | O114: =LOOKUP(O$4,Merch!$R$26:$R$66,Merch!$Q$26:$Q$66) -> 40.34813902 | P114: =LOOKUP(P$4,Merch!$R$26:$R$66,Merch!$Q$26:$Q$66) -> 42.7465393 | Q114: =LOOKUP(Q$4,Merch!$R$26:$R$66,Merch!$Q$26:$Q$66) -> 45.68433454 | R114: =LOOKUP(R$4,Merch!$R$26:$R$66,Merch!$Q$26:$Q$66) -> 47.52725739 | S114: =LOOKUP(S$4,Merch!$R$26:$R$66,Merch!$Q$26:$Q$66) -> 49.80046418 | T114: =LOOKUP(T$4,Merch!$R$26:$R$66,Merch!$Q$26:$Q$66) -> 51.75176835 | U114: =LOOKUP(U$4,Merch!$R$26:$R$66,Merch!$Q$26:$Q$66) -> 54.27855608 | V114: =LOOKUP(V$4,Merch!$R$26:$R$66,Merch!$Q$26:$Q$66) -> 57.42318989 | W114: =LOOKUP(W$4,Merch!$R$26:$R$66,Merch!$Q$26:$Q$66) -> 60.69440323 | X114: =LOOKUP(X$4,Merch!$R$26:$R$66,Merch!$Q$26:$Q$66) -> 65.39022418 | Y114: =LOOKUP(Y$4,Merch!$R$26:$R$66,Merch!$Q$26:$Q$66) -> 67.45391906 | Z114: =LOOKUP(Z$4,Merch!$R$26:$R$66,Merch!$Q$26:$Q$66) -> 69.69772858 | AA114: =LOOKUP(AA$4,Merch!$R$26:$R$66,Merch!$Q$26:$Q$66) -> 72.59320477 | AB114: =LOOKUP(AB$4,Merch!$R$26:$R$66,Merch!$Q$26:$Q$66) -> 74.89463335 | AC114: =LOOKUP(AC$4,Merch!$R$26:$R$66,Merch!$Q$26:$Q$66) -> 77.42153811 | AD114: =LOOKUP(AD$4,Merch!$R$26:$R$66,Merch!$Q$26:$Q$66) -> 79.91975239 | AE114: =LOOKUP(AE$4,Merch!$R$26:$R$66,Merch!$Q$26:$Q$66) -> 82.42308573 | AF114: =LOOKUP(AF$4,Merch!$R$26:$R$66,Merch!$Q$26:$Q$66) -> 85.91094287 | AG114: =LOOKUP(AG$4,Merch!$R$26:$R$66,Merch!$Q$26:$Q$66) -> 89.5245143 | AH114: =LOOKUP(AH$4,Merch!$R$26:$R$66,Merch!$Q$26:$Q$66) -> 91.9795143 | AI114: =LOOKUP(AI$4,Merch!$R$26:$R$66,Merch!$Q$26:$Q$66) -> 95.43344287 | AJ114: =LOOKUP(AJ$4,Merch!$R$26:$R$66,Merch!$Q$26:$Q$66) -> 99.01106192 | AK114: =LOOKUP(AK$4,Merch!$R$26:$R$66,Merch!$Q$26:$Q$66) -> 102.4465381 | AL114: =LOOKUP(AL$4,Merch!$R$26:$R$66,Merch!$Q$26:$Q$66) -> 106.5199905 | AM114: =LOOKUP(AM$4,Merch!$R$26:$R$66,Merch!$Q$26:$Q$66) -> 110.7518953 | AN114: =LOOKUP(AN$4,Merch!$R$26:$R$66,Merch!$Q$26:$Q$66) -> 114.5590381 | AO114: =LOOKUP(AO$4,Merch!$R$26:$R$66,Merch!$Q$26:$Q$66) -> 117.7609429 | AP114: =LOOKUP(AP$4,Merch!$R$26:$R$66,Merch!$Q$26:$Q$66) -> 121.4568953 | AQ114: =LOOKUP(AQ$4,Merch!$R$26:$R$66,Merch!$Q$26:$Q$66) -> 127.0354667 | AR114: =LOOKUP(AR$4,Merch!$R$26:$R$66,Merch!$Q$26:$Q$66) -> 132.1128476 | AS114: =LOOKUP(AS$4,Merch!$R$26:$R$66,Merch!$Q$26:$Q$66) -> 136.8151095 | AT114: =LOOKUP(AT$4,Merch!$R$26:$R$66,Merch!$Q$26:$Q$66) -> 141.1982048 | AU114: =LOOKUP(AU$4,Merch!$R$26:$R$66,Merch!$Q$26:$Q$66) -> 146.2858238 | AV114: =LOOKUP(AV$4,Merch!$R$26:$R$66,Merch!$Q$26:$Q$66) -> 151.4629667 | AW114: =LOOKUP(AW$4,Merch!$R$26:$R$66,Merch!$Q$26:$Q$66) -> 156.8365381 | AX114: =LOOKUP(AX$4,Merch!$R$26:$R$66,Merch!$Q$26:$Q$66) -> 164.0579667 | AY114: =LOOKUP(AY$4,Merch!$R$26:$R$66,Merch!$Q$26:$Q$66) -> 169.8540381 | AZ114: =LOOKUP(AZ$4,Merch!$R$26:$R$66,Merch!$Q$26:$Q$66) -> 174.3964191 | BA114: =LOOKUP(BA$4,Merch!$R$26:$R$66,Merch!$Q$26:$Q$66) -> 174.3964191
B115: Net Generation Sold - GWh | N115: =N66*N104 -> 0 | O115: 0 | P115: 0 | Q115: 0 | R115: 0 | S115: 0 | T115: 0 | U115: 0 | V115: 0 | W115: 0 | X115: 0 | Y115: 0 | Z115: 0 | AA115: 0 | AB115: 0 | AC115: 0 | AD115: 0 | AE115: 0 | AF115: 0 | AG115: 0 | AH115: 0 | AI115: 0 | AJ115: 0 | AK115: 0 | AL115: 0 | AM115: 0 | AN115: 0 | AO115: 0 | AP115: 0 | AQ115: 0 | AR115: 0 | AS115: 0 | AT115: 0 | AU115: 0 | AV115: 0 | AW115: 0 | AX115: 0 | AY115: 0 | AZ115: 0 | BA115: 0
B116: Adjusted Energy Revenue - $000s | N116: =N114*N115 -> 0 | O116: 0 | P116: 0 | Q116: 0 | R116: 0 | S116: 0 | T116: 0 | U116: 0 | V116: 0 | W116: 0 | X116: 0 | Y116: 0 | Z116: 0 | AA116: 0 | AB116: 0 | AC116: 0 | AD116: 0 | AE116: 0 | AF116: 0 | AG116: 0 | AH116: 0 | AI116: 0 | AJ116: 0 | AK116: 0 | AL116: 0 | AM116: 0 | AN116: 0 | AO116: 0 | AP116: 0 | AQ116: 0 | AR116: 0 | AS116: 0 | AT116: 0 | AU116: 0 | AV116: 0 | AW116: 0 | AX116: 0 | AY116: 0 | AZ116: 0 | BA116: 0
B118: Merchant - Renewable Energy Credit
B119: REC Revenue - $/MWh Low | N119: =LOOKUP(N$4,Merch!$R$26:$R$66,Merch!$H$26:$H$66) -> 0.85 | O119: =LOOKUP(O$4,Merch!$R$26:$R$66,Merch!$H$26:$H$66) -> 1.25 | P119: =LOOKUP(P$4,Merch!$R$26:$R$66,Merch!$H$26:$H$66) -> 1.65 | Q119: =LOOKUP(Q$4,Merch!$R$26:$R$66,Merch!$H$26:$H$66) -> 2.05 | R119: =LOOKUP(R$4,Merch!$R$26:$R$66,Merch!$H$26:$H$66) -> 2.05 | S119: =LOOKUP(S$4,Merch!$R$26:$R$66,Merch!$H$26:$H$66) -> 2.05 | T119: =LOOKUP(T$4,Merch!$R$26:$R$66,Merch!$H$26:$H$66) -> 2.05 | U119: =LOOKUP(U$4,Merch!$R$26:$R$66,Merch!$H$26:$H$66) -> 2.05 | V119: =LOOKUP(V$4,Merch!$R$26:$R$66,Merch!$H$26:$H$66) -> 2.05 | W119: =LOOKUP(W$4,Merch!$R$26:$R$66,Merch!$H$26:$H$66) -> 2.05 | X119: =LOOKUP(X$4,Merch!$R$26:$R$66,Merch!$H$26:$H$66) -> 2.05 | Y119: =LOOKUP(Y$4,Merch!$R$26:$R$66,Merch!$H$26:$H$66) -> 2.05 | Z119: =LOOKUP(Z$4,Merch!$R$26:$R$66,Merch!$H$26:$H$66) -> 2.05 | AA119: =LOOKUP(AA$4,Merch!$R$26:$R$66,Merch!$H$26:$H$66) -> 2.05 | AB119: =LOOKUP(AB$4,Merch!$R$26:$R$66,Merch!$H$26:$H$66) -> 2.05 | AC119: =LOOKUP(AC$4,Merch!$R$26:$R$66,Merch!$H$26:$H$66) -> 2.05 | AD119: =LOOKUP(AD$4,Merch!$R$26:$R$66,Merch!$H$26:$H$66) -> 2.05 | AE119: =LOOKUP(AE$4,Merch!$R$26:$R$66,Merch!$H$26:$H$66) -> 2.05 | AF119: =LOOKUP(AF$4,Merch!$R$26:$R$66,Merch!$H$26:$H$66) -> 2.05 | AG119: =LOOKUP(AG$4,Merch!$R$26:$R$66,Merch!$H$26:$H$66) -> 2.05 | AH119: =LOOKUP(AH$4,Merch!$R$26:$R$66,Merch!$H$26:$H$66) -> 2.05 | AI119: =LOOKUP(AI$4,Merch!$R$26:$R$66,Merch!$H$26:$H$66) -> 2.05 | AJ119: =LOOKUP(AJ$4,Merch!$R$26:$R$66,Merch!$H$26:$H$66) -> 2.05 | AK119: =LOOKUP(AK$4,Merch!$R$26:$R$66,Merch!$H$26:$H$66) -> 2.05 | AL119: =LOOKUP(AL$4,Merch!$R$26:$R$66,Merch!$H$26:$H$66) -> 2.05 | AM119: =LOOKUP(AM$4,Merch!$R$26:$R$66,Merch!$H$26:$H$66) -> 2.05 | AN119: =LOOKUP(AN$4,Merch!$R$26:$R$66,Merch!$H$26:$H$66) -> 2.05 | AO119: =LOOKUP(AO$4,Merch!$R$26:$R$66,Merch!$H$26:$H$66) -> 2.05 | AP119: =LOOKUP(AP$4,Merch!$R$26:$R$66,Merch!$H$26:$H$66) -> 2.05 | AQ119: =LOOKUP(AQ$4,Merch!$R$26:$R$66,Merch!$H$26:$H$66) -> 2.05 | AR119: =LOOKUP(AR$4,Merch!$R$26:$R$66,Merch!$H$26:$H$66) -> 2.05 | AS119: =LOOKUP(AS$4,Merch!$R$26:$R$66,Merch!$H$26:$H$66) -> 2.05 | AT119: =LOOKUP(AT$4,Merch!$R$26:$R$66,Merch!$H$26:$H$66) -> 2.05 | AU119: =LOOKUP(AU$4,Merch!$R$26:$R$66,Merch!$H$26:$H$66) -> 2.05 | AV119: =LOOKUP(AV$4,Merch!$R$26:$R$66,Merch!$H$26:$H$66) -> 2.05 | AW119: =LOOKUP(AW$4,Merch!$R$26:$R$66,Merch!$H$26:$H$66) -> 2.05 | AX119: =LOOKUP(AX$4,Merch!$R$26:$R$66,Merch!$H$26:$H$66) -> 2.05 | AY119: =LOOKUP(AY$4,Merch!$R$26:$R$66,Merch!$H$26:$H$66) -> 2.05 | AZ119: =LOOKUP(AZ$4,Merch!$R$26:$R$66,Merch!$H$26:$H$66) -> 2.05 | BA119: =LOOKUP(BA$4,Merch!$R$26:$R$66,Merch!$H$26:$H$66) -> 2.05
B120: Net Generation Sold - GWh | N120: =N66*N104 -> 0 | O120: 0 | P120: 0 | Q120: 0 | R120: 0 | S120: 0 | T120: 0 | U120: 0 | V120: 0 | W120: 0 | X120: 0 | Y120: 0 | Z120: 0 | AA120: 0 | AB120: 0 | AC120: 0 | AD120: 0 | AE120: 0 | AF120: 0 | AG120: 0 | AH120: 0 | AI120: 0 | AJ120: 0 | AK120: 0 | AL120: 0 | AM120: 0 | AN120: 0 | AO120: 0 | AP120: 0 | AQ120: 0 | AR120: 0 | AS120: 0 | AT120: 0 | AU120: 0 | AV120: 0 | AW120: 0 | AX120: 0 | AY120: 0 | AZ120: 0 | BA120: 0
B121: Adjusted REC Energy Revenue - $000s | N121: =N119*N120 -> 0 | O121: =O119*O120 -> 0 | P121: 0 | Q121: 0 | R121: 0 | S121: 0 | T121: 0 | U121: 0 | V121: 0 | W121: 0 | X121: 0 | Y121: 0 | Z121: 0 | AA121: 0 | AB121: 0 | AC121: 0 | AD121: 0 | AE121: 0 | AF121: 0 | AG121: 0 | AH121: 0 | AI121: 0 | AJ121: 0 | AK121: 0 | AL121: 0 | AM121: 0 | AN121: 0 | AO121: 0 | AP121: 0 | AQ121: 0 | AR121: 0 | AS121: 0 | AT121: 0 | AU121: 0 | AV121: 0 | AW121: 0 | AX121: 0 | AY121: 0 | AZ121: 0 | BA121: 0
B123: Merchant - Other Revenue | N123: 0 | O123: 0 | P123: 0 | Q123: 0 | R123: 0 | S123: 0 | T123: 0 | U123: 0 | V123: 0 | W123: 0 | X123: 0 | Y123: 0 | Z123: 0 | AA123: 0 | AB123: 0 | AC123: 0 | AD123: 0 | AE123: 0 | AF123: 0 | AG123: 0 | AH123: 0 | AI123: 0 | AJ123: 0 | AK123: 0 | AL123: 0 | AM123: 0 | AN123: 0 | AO123: 0 | AP123: 0 | AQ123: 0 | AR123: 0 | AS123: 0 | AT123: 0 | AU123: 0 | AV123: 0 | AW123: 0 | AX123: 0 | AY123: 0 | AZ123: 0 | BA123: 0
B124: Merchant Revenue $000s | N124: =N123*N104 -> 0 | O124: 0 | P124: 0 | Q124: 0 | R124: 0 | S124: 0 | T124: 0 | U124: 0 | V124: 0 | W124: 0 | X124: 0 | Y124: 0 | Z124: 0 | AA124: 0 | AB124: 0 | AC124: 0 | AD124: 0 | AE124: 0 | AF124: 0 | AG124: 0 | AH124: 0 | AI124: 0 | AJ124: 0 | AK124: 0 | AL124: 0 | AM124: 0 | AN124: 0 | AO124: 0 | AP124: 0 | AQ124: 0 | AR124: 0 | AS124: 0 | AT124: =AT123*AT104 -> 0 | AU124: 0 | AV124: 0 | AW124: 0 | AX124: 0 | AY124: 0 | AZ124: 0 | BA124: 0
B127: FUEL COST
B129: Contract Fuel Cost
B130: Fuel Consumption - mmbtu | J130: =Scen!G61 -> 0 | N130: =$J130*M$1 -> 0 | O130: 0 | P130: 0 | Q130: =$J130*P$1 -> 0 | R130: 0 | S130: 0 | T130: 0 | U130: 0 | V130: 0 | W130: 0 | X130: 0 | Y130: =$J130*X$1 -> 0 | Z130: 0 | AA130: 0 | AB130: 0 | AC130: 0 | AD130: 0 | AE130: 0 | AF130: 0 | AG130: 0 | AH130: 0 | AI130: 0 | AJ130: 0 | AK130: 0 | AL130: 0 | AM130: 0 | AN130: 0 | AO130: 0 | AP130: 0 | AQ130: 0 | AR130: 0 | AS130: 0 | AT130: =$J130*AS$1 -> 0 | AU130: 0 | AV130: 0 | AW130: 0 | AX130: 0 | AY130: 0 | AZ130: 0 | BA130: 0
B131: Fuel Price - $/MMBtu | N131: 0 | O131: 0 | P131: 0 | Q131: 0 | R131: 0 | S131: 0 | T131: 0 | U131: 0 | V131: 0 | W131: 0 | X131: 0 | Y131: 0 | Z131: 0 | AA131: 0 | AB131: 0 | AC131: 0 | AD131: 0 | AE131: 0 | AF131: 0 | AG131: 0 | AH131: 0 | AI131: 0 | AJ131: 0 | AK131: 0 | AL131: 0 | AM131: 0 | AN131: 0 | AO131: 0 | AP131: 0 | AQ131: 0 | AR131: 0 | AS131: =AR131*1.02 -> 0 | AT131: 0 | AU131: 0 | AV131: 0 | AW131: 0 | AX131: 0 | AY131: 0 | AZ131: 0 | BA131: 0
B132: Fuel Cost - $000s | N132: =N130*N131/1000 -> 0 | O132: 0 | P132: 0 | Q132: 0 | R132: 0 | S132: 0 | T132: 0 | U132: 0 | V132: 0 | W132: 0 | X132: 0 | Y132: 0 | Z132: 0 | AA132: 0 | AB132: 0 | AC132: 0 | AD132: 0 | AE132: 0 | AF132: 0 | AG132: 0 | AH132: 0 | AI132: 0 | AJ132: 0 | AK132: 0 | AL132: 0 | AM132: 0 | AN132: 0 | AO132: 0 | AP132: 0 | AQ132: 0 | AR132: 0 | AS132: 0 | AT132: =AT130*AT131/1000 -> 0 | AU132: 0 | AV132: 0 | AW132: 0 | AX132: 0 | AY132: 0 | AZ132: 0 | BA132: 0

Sheet GA
B1: G&A | L1: Par Yr : | M1: =FS!M1 -> 0 | N1: =FS!N1 -> 0.4180327869 | O1: =FS!O1 -> 1 | P1: =FS!P1 -> 1 | Q1: =FS!Q1 -> 1 | R1: =FS!R1 -> 1 | S1: =FS!S1 -> 1 | T1: =FS!T1 -> 1 | U1: =FS!U1 -> 1 | V1: =FS!V1 -> 1 | W1: =FS!W1 -> 1 | X1: =FS!X1 -> 1 | Y1: =FS!Y1 -> 1 | Z1: =FS!Z1 -> 1 | AA1: =FS!AA1 -> 1 | AB1: =FS!AB1 -> 1 | AC1: =FS!AC1 -> 1 | AD1: =FS!AD1 -> 1 | AE1: =FS!AE1 -> 1 | AF1: =FS!AF1 -> 1 | AG1: =FS!AG1 -> 1 | AH1: =FS!AH1 -> 1 | AI1: =FS!AI1 -> 1 | AJ1: =FS!AJ1 -> 1 | AK1: =FS!AK1 -> 1 | AL1: =FS!AL1 -> 1 | AM1: =FS!AM1 -> 0.5819672131 | AN1: =FS!AN1 -> 0 | AO1: =FS!AO1 -> 0 | AP1: =FS!AP1 -> 0 | AQ1: =FS!AQ1 -> 0 | AR1: =FS!AR1 -> 0 | AS1: =FS!AS1 -> 0 | AT1: =FS!AT1 -> 0 | AU1: =FS!AU1 -> 0 | AV1: =FS!AV1 -> 0 | AW1: =FS!AW1 -> 0 | AX1: =FS!AX1 -> 0 | AY1: =FS!AY1 -> 0 | AZ1: =FS!AZ1 -> 0 | BA1: =FS!BA1 -> 0
L2: Disc Date : | M2: =FS!M2 -> 2012-08-01 | N2: =FS!N2 -> 2012-12-01 | O2: =FS!O2 -> 2013-08-15 | P2: =FS!P2 -> 2014-08-15 | Q2: =FS!Q2 -> 2015-08-15 | R2: =FS!R2 -> 2016-08-15 | S2: =FS!S2 -> 2017-08-15 | T2: =FS!T2 -> 2018-08-15 | U2: =FS!U2 -> 2019-08-15 | V2: =FS!V2 -> 2020-08-15 | W2: =FS!W2 -> 2021-08-15 | X2: =FS!X2 -> 2022-08-15 | Y2: =FS!Y2 -> 2023-08-15 | Z2: =FS!Z2 -> 2024-08-15 | AA2: =FS!AA2 -> 2025-08-15 | AB2: =FS!AB2 -> 2026-08-15 | AC2: =FS!AC2 -> 2027-08-15 | AD2: =FS!AD2 -> 2028-08-15 | AE2: =FS!AE2 -> 2029-08-15 | AF2: =FS!AF2 -> 2030-08-15 | AG2: =FS!AG2 -> 2031-08-15 | AH2: =FS!AH2 -> 2032-08-15 | AI2: =FS!AI2 -> 2033-08-15 | AJ2: =FS!AJ2 -> 2034-08-15 | AK2: =FS!AK2 -> 2035-08-15 | AL2: =FS!AL2 -> 2036-08-15 | AM2: =FS!AM2 -> 2037-08-15 | AN2: =FS!AN2 -> 2038-08-15 | AO2: =FS!AO2 -> 2039-08-15 | AP2: =FS!AP2 -> 2040-08-15 | AQ2: =FS!AQ2 -> 2041-08-15 | AR2: =FS!AR2 -> 2042-08-15 | AS2: =FS!AS2 -> 2043-08-15 | AT2: =FS!AT2 -> 2044-08-15 | AU2: =FS!AU2 -> 2045-08-15 | AV2: =FS!AV2 -> 2046-08-15 | AW2: =FS!AW2 -> 2047-08-15 | AX2: =FS!AX2 -> 2048-08-15 | AY2: =FS!AY2 -> 2049-08-15 | AZ2: =FS!AZ2 -> 2050-08-15 | BA2: =FS!BA2 -> 2051-08-15
L3: Period : | M3: =FS!M3 -> 0 | N3: =FS!N3 -> 1 | O3: =FS!O3 -> 2 | P3: =FS!P3 -> 3 | Q3: =FS!Q3 -> 4 | R3: =FS!R3 -> 5 | S3: =FS!S3 -> 6 | T3: =FS!T3 -> 7 | U3: =FS!U3 -> 8 | V3: =FS!V3 -> 9 | W3: =FS!W3 -> 10 | X3: =FS!X3 -> 11 | Y3: =FS!Y3 -> 12 | Z3: =FS!Z3 -> 13 | AA3: =FS!AA3 -> 14 | AB3: =FS!AB3 -> 15 | AC3: =FS!AC3 -> 16 | AD3: =FS!AD3 -> 17 | AE3: =FS!AE3 -> 18 | AF3: =FS!AF3 -> 19 | AG3: =FS!AG3 -> 20 | AH3: =FS!AH3 -> 21 | AI3: =FS!AI3 -> 22 | AJ3: =FS!AJ3 -> 23 | AK3: =FS!AK3 -> 24 | AL3: =FS!AL3 -> 25 | AM3: =FS!AM3 -> 26 | AN3: =FS!AN3 -> 27 | AO3: =FS!AO3 -> 28 | AP3: =FS!AP3 -> 29 | AQ3: =FS!AQ3 -> 30 | AR3: =FS!AR3 -> 31 | AS3: =FS!AS3 -> 32 | AT3: =FS!AT3 -> 33 | AU3: =FS!AU3 -> 34 | AV3: =FS!AV3 -> 35 | AW3: =FS!AW3 -> 36 | AX3: =FS!AX3 -> 37 | AY3: =FS!AY3 -> 38 | AZ3: =FS!AZ3 -> 39 | BA3: =FS!BA3 -> 40
L4: Year : | M4: =FS!M4 -> 2012 | N4: =FS!N4 -> 2012 | O4: =FS!O4 -> 2013 | P4: =FS!P4 -> 2014 | Q4: =FS!Q4 -> 2015 | R4: =FS!R4 -> 2016 | S4: =FS!S4 -> 2017 | T4: =FS!T4 -> 2018 | U4: =FS!U4 -> 2019 | V4: =FS!V4 -> 2020 | W4: =FS!W4 -> 2021 | X4: =FS!X4 -> 2022 | Y4: =FS!Y4 -> 2023 | Z4: =FS!Z4 -> 2024 | AA4: =FS!AA4 -> 2025 | AB4: =FS!AB4 -> 2026 | AC4: =FS!AC4 -> 2027 | AD4: =FS!AD4 -> 2028 | AE4: =FS!AE4 -> 2029 | AF4: =FS!AF4 -> 2030 | AG4: =FS!AG4 -> 2031 | AH4: =FS!AH4 -> 2032 | AI4: =FS!AI4 -> 2033 | AJ4: =FS!AJ4 -> 2034 | AK4: =FS!AK4 -> 2035 | AL4: =FS!AL4 -> 2036 | AM4: =FS!AM4 -> 2037 | AN4: =FS!AN4 -> 2038 | AO4: =FS!AO4 -> 2039 | AP4: =FS!AP4 -> 2040 | AQ4: =FS!AQ4 -> 2041 | AR4: =FS!AR4 -> 2042 | AS4: =FS!AS4 -> 2043 | AT4: =FS!AT4 -> 2044 | AU4: =FS!AU4 -> 2045 | AV4: =FS!AV4 -> 2046 | AW4: =FS!AW4 -> 2047 | AX4: =FS!AX4 -> 2048 | AY4: =FS!AY4 -> 2049 | AZ4: =FS!AZ4 -> 2050 | BA4: =FS!BA4 -> 2051
B5: Property Taxes
B7: Personal Property Depreciation Factor | N7: 0.96 | O7: =MAX(N7-4%,0.3) -> 0.92 | P7: =MAX(O7-4%,0.3) -> 0.88 | Q7: 0.84 | R7: 0.8 | S7: 0.76 | T7: 0.72 | U7: 0.68 | V7: 0.64 | W7: 0.6 | X7: 0.56 | Y7: 0.52 | Z7: 0.48 | AA7: 0.44 | AB7: 0.4 | AC7: 0.36 | AD7: 0.32 | AE7: 0.3 | AF7: 0.3 | AG7: 0.3 | AH7: 0.3 | AI7: 0.3 | AJ7: 0.3 | AK7: 0.3 | AL7: 0.3 | AM7: 0.3 | AN7: 0.3 | AO7: 0.3 | AP7: 0.3 | AQ7: 0.3 | AR7: 0.3 | AS7: 0.3 | AT7: 0.3 | AU7: 0.3 | AV7: 0.3 | AW7: 0.3 | AX7: 0.3 | AY7: 0.3 | AZ7: 0.3 | BA7: 0.3
B8: Real & Personal Property | K8: =Alloc!AC42 -> 2276.311552 | N8: =$K8*N7 -> 2185.25909 | O8: 2094.206628 | P8: 2003.154166 | Q8: 1912.101704 | R8: 1821.049242 | S8: 1729.99678 | T8: 1638.944318 | U8: 1547.891856 | V8: 1456.839393 | W8: 1365.786931 | X8: 1274.734469 | Y8: 1183.682007 | Z8: 1092.629545 | AA8: 1001.577083 | AB8: 910.5246209 | AC8: 819.4721588 | AD8: 728.4196967 | AE8: 682.8934657 | AF8: 682.8934657 | AG8: 682.8934657 | AH8: 682.8934657 | AI8: 682.8934657 | AJ8: 682.8934657 | AK8: 682.8934657 | AL8: 682.8934657 | AM8: 682.8934657 | AN8: 682.8934657 | AO8: 682.8934657 | AP8: 682.8934657 | AQ8: 682.8934657 | AR8: 682.8934657 | AS8: 682.8934657 | AT8: =$K8*AT7 -> 682.8934657 | AU8: 682.8934657 | AV8: 682.8934657 | AW8: 682.8934657 | AX8: 682.8934657 | AY8: 682.8934657 | AZ8: 682.8934657 | BA8: 682.8934657
B9: Land | I9: Check : | J9: =K9-(CapEx!W175+CapEx!W167) -> -5314.43008 | K9: =Alloc!AC38 -> 0 | N9: =$K9 -> 0 | O9: =$K9 -> 0 | P9: 0 | Q9: 0 | R9: 0 | S9: 0 | T9: 0 | U9: 0 | V9: 0 | W9: 0 | X9: 0 | Y9: 0 | Z9: 0 | AA9: 0 | AB9: 0 | AC9: 0 | AD9: 0 | AE9: 0 | AF9: 0 | AG9: 0 | AH9: 0 | AI9: 0 | AJ9: 0 | AK9: 0 | AL9: 0 | AM9: 0 | AN9: 0 | AO9: 0 | AP9: 0 | AQ9: 0 | AR9: 0 | AS9: 0 | AT9: 0 | AU9: 0 | AV9: 0 | AW9: 0 | AX9: 0 | AY9: 0 | AZ9: 0 | BA9: 0
B10: Millage Rate Escalation | I10: 2012 | J10: 0 | N10: =(1+$J10)^(N$4-$I10) -> 1 | O10: 1 | P10: 1 | Q10: 1 | R10: 1 | S10: 1 | T10: 1 | U10: 1 | V10: 1 | W10: 1 | X10: 1 | Y10: 1 | Z10: 1 | AA10: 1 | AB10: 1 | AC10: 1 | AD10: 1 | AE10: 1 | AF10: 1 | AG10: 1 | AH10: 1 | AI10: 1 | AJ10: 1 | AK10: 1 | AL10: 1 | AM10: 1 | AN10: 1 | AO10: 1 | AP10: 1 | AQ10: 1 | AR10: 1 | AS10: 1 | AT10: =(1+$J10)^(AT$4-$I10) -> 1 | AU10: 1 | AV10: 1 | AW10: 1 | AX10: 1 | AY10: 1 | AZ10: 1 | BA10: 1
B11: Millage Rate | J11: 0.011 | N11: =$J11*N10 -> 0.011 | O11: =$J11*O10 -> 0.011 | P11: 0.011 | Q11: 0.011 | R11: 0.011 | S11: 0.011 | T11: 0.011 | U11: 0.011 | V11: 0.011 | W11: 0.011 | X11: 0.011 | Y11: 0.011 | Z11: 0.011 | AA11: 0.011 | AB11: 0.011 | AC11: 0.011 | AD11: 0.011 | AE11: 0.011 | AF11: 0.011 | AG11: 0.011 | AH11: 0.011 | AI11: 0.011 | AJ11: 0.011 | AK11: 0.011 | AL11: 0.011 | AM11: 0.011 | AN11: 0.011 | AO11: 0.011 | AP11: 0.011 | AQ11: 0.011 | AR11: 0.011 | AS11: 0.011 | AT11: 0.011 | AU11: 0.011 | AV11: 0.011 | AW11: 0.011 | AX11: 0.011 | AY11: 0.011 | AZ11: 0.011 | BA11: 0.011
B12: Total Real & Personal Property Taxes | N12: =N11*(N8+N9)*N1 -> 10.04860942 | O12: 23.03627291 | P12: 22.03469583 | Q12: 21.03311874 | R12: 20.03154166 | S12: 19.02996458 | T12: 18.02838749 | U12: 17.02681041 | V12: 16.02523333 | W12: 15.02365624 | X12: 14.02207916 | Y12: 13.02050208 | Z12: 12.018925 | AA12: 11.01734791 | AB12: 10.01577083 | AC12: 9.014193747 | AD12: 8.012616664 | AE12: 7.511828122 | AF12: 7.511828122 | AG12: 7.511828122 | AH12: 7.511828122 | AI12: 7.511828122 | AJ12: 7.511828122 | AK12: 7.511828122 | AL12: 7.511828122 | AM12: 4.371637678 | AN12: 0 | AO12: 0 | AP12: 0 | AQ12: 0 | AR12: 0 | AS12: 0 | AT12: =AT11*(AT8+AT9)*AT1 -> 0 | AU12: 0 | AV12: 0 | AW12: 0 | AX12: 0 | AY12: 0 | AZ12: 0 | BA12: 0
B15: Project Insurance
B17: Insurance | I17: $000's : | J17: 90.40695919 | N17: =$J17*N$7*N$1 -> 36.28135018 | O17: =$J17*O$7*O$1 -> 83.17440246 | P17: 79.55812409 | Q17: =$J17*Q$7*Q$1 -> 75.94184572 | R17: 72.32556735 | S17: 68.70928899 | T17: 65.09301062 | U17: 61.47673225 | V17: 57.86045388 | W17: 54.24417552 | X17: 50.62789715 | Y17: 47.01161878 | Z17: 43.39534041 | AA17: 39.77906204 | AB17: 36.16278368 | AC17: 32.54650531 | AD17: 28.93022694 | AE17: 27.12208776 | AF17: 27.12208776 | AG17: 27.12208776 | AH17: 27.12208776 | AI17: 27.12208776 | AJ17: 27.12208776 | AK17: 27.12208776 | AL17: 27.12208776 | AM17: 15.78416583 | AN17: 0 | AO17: 0 | AP17: 0 | AQ17: 0 | AR17: 0 | AS17: 0 | AT17: 0 | AU17: 0 | AV17: 0 | AW17: 0 | AX17: 0 | AY17: 0 | AZ17: 0 | BA17: 0
B18: Other | I18: $000's : | J18: 0 | N18: =$J18*N$7*N$1 -> 0 | O18: 0 | P18: 0 | Q18: 0 | R18: 0 | S18: 0 | T18: 0 | U18: 0 | V18: 0 | W18: 0 | X18: 0 | Y18: 0 | Z18: 0 | AA18: 0 | AB18: 0 | AC18: 0 | AD18: 0 | AE18: 0 | AF18: 0 | AG18: 0 | AH18: 0 | AI18: 0 | AJ18: 0 | AK18: 0 | AL18: 0 | AM18: 0 | AN18: 0 | AO18: 0 | AP18: 0 | AQ18: 0 | AR18: 0 | AS18: 0 | AT18: 0 | AU18: 0 | AV18: 0 | AW18: 0 | AX18: 0 | AY18: 0 | AZ18: 0 | BA18: 0
B19: Insurance | N19: 0 | O19: 0 | P19: 0 | Q19: 0 | R19: 0 | S19: 0 | T19: 0 | U19: 0 | V19: 0 | W19: 0 | X19: 0 | Y19: 0 | Z19: 0 | AA19: 0 | AB19: 0 | AC19: 0 | AD19: 0 | AE19: 0 | AF19: 0 | AG19: 0 | AH19: 0 | AI19: 0 | AJ19: 0 | AK19: 0 | AL19: 0 | AM19: 0 | AN19: 0 | AO19: 0 | AP19: 0 | AQ19: 0 | AR19: 0 | AS19: 0 | AT19: 0 | AU19: 0 | AV19: 0 | AW19: 0 | AX19: 0 | AY19: 0 | AZ19: 0 | BA19: 0
B20: Total Real $'s | N20: =SUM(N17:N19)*N$1 -> 15.16679393 | O20: =SUM(O17:O19)*O$1 -> 83.17440246 | P20: 79.55812409 | Q20: 75.94184572 | R20: 72.32556735 | S20: 68.70928899 | T20: 65.09301062 | U20: 61.47673225 | V20: 57.86045388 | W20: 54.24417552 | X20: 50.62789715 | Y20: 47.01161878 | Z20: 43.39534041 | AA20: 39.77906204 | AB20: 36.16278368 | AC20: 32.54650531 | AD20: 28.93022694 | AE20: 27.12208776 | AF20: 27.12208776 | AG20: 27.12208776 | AH20: 27.12208776 | AI20: 27.12208776 | AJ20: 27.12208776 | AK20: 27.12208776 | AL20: 27.12208776 | AM20: 9.185866997 | AN20: 0 | AO20: 0 | AP20: 0 | AQ20: 0 | AR20: 0 | AS20: 0 | AT20: 0 | AU20: 0 | AV20: 0 | AW20: 0 | AX20: 0 | AY20: 0 | AZ20: 0 | BA20: 0
B21: Total Nominal $'s | I21: 2012 | J21: 0.02 | N21: =N20*(1+$J21)^(N$4-$I21) -> 15.16679393 | O21: =O20*(1+$J21)^(O$4-$I21) -> 84.83789051 | P21: 82.7722723 | Q21: 80.59009421 | R21: 78.28752009 | S21: 75.86060697 | T21: 73.30530232 | U21: 70.61744123 | V21: 67.79274358 | W21: 64.82681105 | X21: 61.71512412 | Y21: 58.45303899 | Z21: 55.0357844 | AA21: 51.45845841 | AB21: 47.71602507 | AC21: 43.80331102 | AD21: 39.71500199 | AE21: 37.97747065 | AF21: 38.73702007 | AG21: 39.51176047 | AH21: 40.30199568 | AI21: 41.10803559 | AJ21: 41.9301963 | AK21: 42.76880023 | AL21: 43.62417623 | AM21: 15.07038846 | AN21: 0 | AO21: 0 | AP21: 0 | AQ21: 0 | AR21: 0 | AS21: 0 | AT21: =AT20*(1+$J21)^(AT$4-$I21) -> 0 | AU21: 0 | AV21: 0 | AW21: 0 | AX21: 0 | AY21: 0 | AZ21: 0 | BA21: 0
B24: Prof, Bus Mgmt, and Proj Admin Fees
B26: Management Fees & Costs | I26: $000's : | J26: =50/130*80 -> 30.76923077 | N26: =$J26*N$1 -> 12.86254729 | O26: 30.76923077 | P26: 30.76923077 | Q26: 30.76923077 | R26: 30.76923077 | S26: 30.76923077 | T26: 30.76923077 | U26: 30.76923077 | V26: 30.76923077 | W26: 30.76923077 | X26: 30.76923077 | Y26: 30.76923077 | Z26: 30.76923077 | AA26: 30.76923077 | AB26: 30.76923077 | AC26: 30.76923077 | AD26: 30.76923077 | AE26: 30.76923077 | AF26: 30.76923077 | AG26: 30.76923077 | AH26: 30.76923077 | AI26: 30.76923077 | AJ26: 30.76923077 | AK26: 30.76923077 | AL26: 30.76923077 | AM26: 17.90668348 | AN26: 0 | AO26: 0 | AP26: 0 | AQ26: 0 | AR26: 0 | AS26: 0 | AT26: 0 | AU26: 0 | AV26: 0 | AW26: 0 | AX26: 0 | AY26: 0 | AZ26: 0 | BA26: 0
B27: Professional/Consulting Fees | I27: $000's : | J27: 0 | N27: =$J27*N$7 -> 0 | O27: =$J27*O$7 -> 0 | P27: 0 | Q27: 0 | R27: 0 | S27: 0 | T27: 0 | U27: 0 | V27: 0 | W27: 0 | X27: 0 | Y27: 0 | Z27: 0 | AA27: 0 | AB27: 0 | AC27: 0 | AD27: 0 | AE27: 0 | AF27: 0 | AG27: 0 | AH27: 0 | AI27: 0 | AJ27: 0 | AK27: 0 | AL27: 0 | AM27: 0 | AN27: 0 | AO27: 0 | AP27: 0 | AQ27: 0 | AR27: 0 | AS27: 0 | AT27: 0 | AU27: 0 | AV27: 0 | AW27: 0 | AX27: 0 | AY27: 0 | AZ27: 0 | BA27: 0
B28: Other Fees | I28: $000's : | J28: 0 | N28: =$J28*N$7 -> 0 | O28: 0 | P28: 0 | Q28: 0 | R28: 0 | S28: 0 | T28: 0 | U28: 0 | V28: 0 | W28: 0 | X28: 0 | Y28: 0 | Z28: 0 | AA28: 0 | AB28: 0 | AC28: 0 | AD28: 0 | AE28: 0 | AF28: 0 | AG28: 0 | AH28: 0 | AI28: 0 | AJ28: 0 | AK28: 0 | AL28: 0 | AM28: 0 | AN28: 0 | AO28: 0 | AP28: 0 | AQ28: 0 | AR28: 0 | AS28: 0 | AT28: 0 | AU28: 0 | AV28: 0 | AW28: 0 | AX28: 0 | AY28: 0 | AZ28: 0 | BA28: 0
B29: Mgmt, Prof, Consulting Fees | N29: 0 | O29: 0 | P29: 0 | Q29: 0 | R29: 0 | S29: 0 | T29: 0 | U29: 0 | V29: 0 | W29: 0 | X29: 0 | Y29: 0 | Z29: 0 | AA29: 0 | AB29: 0 | AC29: 0 | AD29: 0 | AE29: 0 | AF29: 0 | AG29: 0 | AH29: 0 | AI29: 0 | AJ29: 0 | AK29: 0 | AL29: 0 | AM29: 0 | AN29: 0 | AO29: 0 | AP29: 0 | AQ29: 0 | AR29: 0 | AS29: 0 | AT29: 0 | AU29: 0 | AV29: 0 | AW29: 0 | AX29: 0 | AY29: 0 | AZ29: 0 | BA29: 0
B30: Other Fees - PGD | N30: 0 | O30: 0 | P30: 0 | Q30: 0 | R30: 0 | S30: 0 | T30: 0 | U30: 0 | V30: 0 | W30: 0 | X30: 0 | Y30: 0 | Z30: 0 | AA30: 0 | AB30: 0 | AC30: 0 | AD30: 0 | AE30: 0 | AF30: 0 | AG30: 0 | AH30: 0 | AI30: 0 | AJ30: 0 | AK30: 0 | AL30: 0 | AM30: 0 | AN30: 0 | AO30: 0 | AP30: 0 | AQ30: 0 | AR30: 0 | AS30: 0 | AT30: 0 | AU30: 0 | AV30: 0 | AW30: 0 | AX30: 0 | AY30: 0 | AZ30: 0 | BA30: 0
B31: Total Real $'s | N31: =SUM(N26:N30)*N$1 -> 5.37696649 | O31: =SUM(O26:O30)*O$1 -> 30.76923077 | P31: 30.76923077 | Q31: 30.76923077 | R31: 30.76923077 | S31: 30.76923077 | T31: 30.76923077 | U31: 30.76923077 | V31: 30.76923077 | W31: 30.76923077 | X31: 30.76923077 | Y31: 30.76923077 | Z31: 30.76923077 | AA31: 30.76923077 | AB31: 30.76923077 | AC31: 30.76923077 | AD31: 30.76923077 | AE31: 30.76923077 | AF31: 30.76923077 | AG31: 30.76923077 | AH31: 30.76923077 | AI31: 30.76923077 | AJ31: 30.76923077 | AK31: 30.76923077 | AL31: 30.76923077 | AM31: 10.42110268 | AN31: 0 | AO31: 0 | AP31: 0 | AQ31: 0 | AR31: 0 | AS31: 0 | AT31: 0 | AU31: 0 | AV31: 0 | AW31: 0 | AX31: 0 | AY31: 0 | AZ31: 0 | BA31: 0
B32: Total Nominal $'s | I32: 2012 | J32: 0.02 | N32: =N31*(1+$J32)^(N$4-$I32) -> 5.37696649 | O32: =O31*(1+$J32)^(O$4-$I32) -> 31.38461538 | P32: =P31*(1+$J32)^(P$4-$I32) -> 32.01230769 | Q32: 32.65255385 | R32: 33.30560492 | S32: =S31*(1+$J32)^(S$4-$I32) -> 33.97171702 | T32: 34.65115136 | U32: 35.34417439 | V32: 36.05105788 | W32: 36.77207903 | X32: 37.50752062 | Y32: 38.25767103 | Z32: 39.02282445 | AA32: 39.80328094 | AB32: 40.59934656 | AC32: 41.41133349 | AD32: 42.23956016 | AE32: 43.08435136 | AF32: 43.94603839 | AG32: 44.82495915 | AH32: 45.72145834 | AI32: 46.6358875 | AJ32: 47.56860525 | AK32: 48.51997736 | AL32: 49.49037691 | AM32: 17.09692353 | AN32: 0 | AO32: 0 | AP32: 0 | AQ32: 0 | AR32: 0 | AS32: 0 | AT32: =AT31*(1+$J32)^(AT$4-$I32) -> 0 | AU32: 0 | AV32: 0 | AW32: 0 | AX32: 0 | AY32: 0 | AZ32: 0 | BA32: 0
B35: Land Royalty
B37: Gross Revenues | N37: =RF!N$19 -> 6079.629836 | O37: =RF!O$19 -> 14493.48086 | P37: =RF!P$19 -> 14787.71434 | Q37: =RF!Q$19 -> 14981.4397 | R37: =RF!R$19 -> 15181.0794 | S37: =RF!S$19 -> 15381.86791 | T37: =RF!T$19 -> 15575.8054 | U37: =RF!U$19 -> 15770.30306 | V37: =RF!V$19 -> 15971.60506 | W37: =RF!W$19 -> 16179.9062 | X37: =RF!X$19 -> 16391.98009 | Y37: =RF!Y$19 -> 16604.15035 | Z37: =RF!Z$19 -> 16818.05258 | AA37: =RF!AA$19 -> 17031.59513 | AB37: =RF!AB$19 -> 17251.38852 | AC37: =RF!AC$19 -> 17491.49233 | AD37: =RF!AD$19 -> 17733.18635 | AE37: =RF!AE$19 -> 17975.19928 | AF37: =RF!AF$19 -> 18220.70616 | AG37: =RF!AG$19 -> 18467.72777 | AH37: =RF!AH$19 -> 18714.19034 | AI37: =RF!AI$19 -> 18961.12203 | AJ37: =RF!AJ$19 -> 19213.35967 | AK37: =RF!AK$19 -> 19470.60457 | AL37: =RF!AL$19 -> 19729.66783 | AM37: =RF!AM$19 -> 11561.1352 | AN37: =RF!AN$19 -> 0 | AO37: =RF!AO$19 -> 0 | AP37: =RF!AP$19 -> 0 | AQ37: =RF!AQ$19 -> 0 | AR37: =RF!AR$19 -> 0 | AS37: =RF!AS$19 -> 0 | AT37: =RF!AT$19 -> 0 | AU37: =RF!AU$19 -> 0 | AV37: =RF!AV$19 -> 0 | AW37: =RF!AW$19 -> 0 | AX37: =RF!AX$19 -> 0 | AY37: =RF!AY$19 -> 0 | AZ37: =RF!AZ$19 -> 0 | BA37: =RF!BA$19 -> 0
B38: Royalty % | J38: 0 | N38: =$J38 -> 0 | O38: 0 | P38: 0 | Q38: 0 | R38: 0 | S38: 0 | T38: 0 | U38: 0 | V38: 0 | W38: 0 | X38: 0 | Y38: 0 | Z38: 0 | AA38: 0 | AB38: 0 | AC38: 0 | AD38: 0 | AE38: 0 | AF38: 0 | AG38: 0 | AH38: 0 | AI38: 0 | AJ38: 0 | AK38: 0 | AL38: 0 | AM38: 0 | AN38: 0 | AO38: 0 | AP38: 0 | AQ38: 0 | AR38: 0 | AS38: 0 | AT38: =$J38 -> 0 | AU38: 0 | AV38: 0 | AW38: 0 | AX38: 0 | AY38: 0 | AZ38: 0 | BA38: 0
B39: Total Nominal $'s | N39: =N37*N38 -> 0 | O39: 0 | P39: 0 | Q39: 0 | R39: 0 | S39: 0 | T39: 0 | U39: 0 | V39: 0 | W39: 0 | X39: 0 | Y39: 0 | Z39: 0 | AA39: 0 | AB39: 0 | AC39: 0 | AD39: 0 | AE39: 0 | AF39: 0 | AG39: 0 | AH39: 0 | AI39: 0 | AJ39: 0 | AK39: 0 | AL39: 0 | AM39: 0 | AN39: 0 | AO39: 0 | AP39: 0 | AQ39: 0 | AR39: 0 | AS39: 0 | AT39: =AT37*AT38 -> 0 | AU39: 0 | AV39: 0 | AW39: 0 | AX39: 0 | AY39: 0 | AZ39: 0 | BA39: 0
B42: Performance Bond
B44: Gross Contract Revenues | N44: =RF!N$19 -> 6079.629836 | O44: =RF!O$19 -> 14493.48086 | P44: =RF!P$19 -> 14787.71434 | Q44: =RF!Q$19 -> 14981.4397 | R44: =RF!R$19 -> 15181.0794 | S44: =RF!S$19 -> 15381.86791 | T44: =RF!T$19 -> 15575.8054 | U44: =RF!U$19 -> 15770.30306 | V44: =RF!V$19 -> 15971.60506 | W44: =RF!W$19 -> 16179.9062 | X44: =RF!X$19 -> 16391.98009 | Y44: =RF!Y$19 -> 16604.15035 | Z44: =RF!Z$19 -> 16818.05258 | AA44: =RF!AA$19 -> 17031.59513 | AB44: =RF!AB$19 -> 17251.38852 | AC44: =RF!AC$19 -> 17491.49233 | AD44: =RF!AD$19 -> 17733.18635 | AE44: =RF!AE$19 -> 17975.19928 | AF44: =RF!AF$19 -> 18220.70616 | AG44: =RF!AG$19 -> 18467.72777 | AH44: =RF!AH$19 -> 18714.19034 | AI44: =RF!AI$19 -> 18961.12203 | AJ44: =RF!AJ$19 -> 19213.35967 | AK44: =RF!AK$19 -> 19470.60457 | AL44: =RF!AL$19 -> 19729.66783 | AM44: =RF!AM$19 -> 11561.1352 | AN44: =RF!AN$19 -> 0 | AO44: =RF!AO$19 -> 0 | AP44: =RF!AP$19 -> 0 | AQ44: =RF!AQ$19 -> 0 | AR44: =RF!AR$19 -> 0 | AS44: =RF!AS$19 -> 0 | AT44: =RF!AT$19 -> 0 | AU44: =RF!AU$19 -> 0 | AV44: =RF!AV$19 -> 0 | AW44: =RF!AW$19 -> 0 | AX44: =RF!AX$19 -> 0 | AY44: =RF!AY$19 -> 0 | AZ44: =RF!AZ$19 -> 0 | BA44: =RF!BA$19 -> 0
B45: Annual Bond Req - Months | I45: 0 | N45: =$I45 -> 0 | O45: 0 | P45: 0 | Q45: 0 | R45: 0 | S45: 0 | T45: 0 | U45: 0 | V45: 0 | W45: 0 | X45: 0 | Y45: 0 | Z45: 0 | AA45: 0 | AB45: 0 | AC45: 0 | AD45: 0 | AE45: 0 | AF45: 0 | AG45: 0 | AH45: 0 | AI45: 0 | AJ45: 0 | AK45: 0 | AL45: 0 | AM45: 0 | AN45: 0 | AO45: 0 | AP45: 0 | AQ45: 0 | AR45: 0 | AS45: 0 | AT45: =$I45 -> 0 | AU45: 0 | AV45: 0 | AW45: 0 | AX45: 0 | AY45: 0 | AZ45: 0 | BA45: 0
B46: Annual Bond Req - $000s | N46: =N44*N45/12 -> 0 | O46: 0 | P46: 0 | Q46: 0 | R46: 0 | S46: 0 | T46: 0 | U46: 0 | V46: 0 | W46: 0 | X46: 0 | Y46: 0 | Z46: 0 | AA46: 0 | AB46: 0 | AC46: 0 | AD46: 0 | AE46: 0 | AF46: 0 | AG46: 0 | AH46: 0 | AI46: 0 | AJ46: 0 | AK46: 0 | AL46: 0 | AM46: 0 | AN46: 0 | AO46: 0 | AP46: 0 | AQ46: 0 | AR46: 0 | AS46: 0 | AT46: =AT44*AT45/12 -> 0 | AU46: 0 | AV46: 0 | AW46: 0 | AX46: 0 | AY46: 0 | AZ46: 0 | BA46: 0
B47: Guarantee Fee - bps | J47: 0 | N47: =$J47 -> 0 | O47: =$J47 -> 0 | P47: 0 | Q47: 0 | R47: 0 | S47: 0 | T47: 0 | U47: 0 | V47: 0 | W47: 0 | X47: 0 | Y47: 0 | Z47: 0 | AA47: 0 | AB47: 0 | AC47: 0 | AD47: 0 | AE47: 0 | AF47: 0 | AG47: 0 | AH47: 0 | AI47: 0 | AJ47: 0 | AK47: 0 | AL47: 0 | AM47: 0 | AN47: 0 | AO47: 0 | AP47: 0 | AQ47: 0 | AR47: 0 | AS47: 0 | AT47: =$J47 -> 0 | AU47: 0 | AV47: 0 | AW47: 0 | AX47: 0 | AY47: 0 | AZ47: 0 | BA47: 0
B48: Other Bond - PPA Incremental Security | H48: bbps : | I48: 200 | J48: =8500+2500 -> 11000 | K48: $$ Posted | N48: =$J48*($I48/10000) -> 220 | O48: 220 | P48: 220 | Q48: 220 | R48: 220 | S48: 220 | T48: 220 | U48: 220 | V48: 220 | W48: 220 | X48: 220 | Y48: 220 | Z48: 220 | AA48: 220 | AB48: 220 | AC48: 220 | AD48: 220 | AE48: 220 | AF48: 220 | AG48: 220 | AH48: 220 | AI48: 220 | AJ48: 220 | AK48: 220 | AL48: 220 | AM48: 220 | AN48: 220 | AO48: 220 | AP48: 220 | AQ48: 220 | AR48: 220 | AS48: 220 | AT48: 220 | AU48: 220 | AV48: 220 | AW48: 220 | AX48: 220 | AY48: 220 | AZ48: 220 | BA48: 220
B49: Total Real $'s (Annual Bond & PPA Incremental Security) | N49: =SUM(N46:N48)*N$1 -> 91.96721311 | O49: 220 | P49: 220 | Q49: 220 | R49: 220 | S49: 220 | T49: 220 | U49: 220 | V49: 220 | W49: 220 | X49: 220 | Y49: 220 | Z49: 220 | AA49: 220 | AB49: 220 | AC49: 220 | AD49: 220 | AE49: 220 | AF49: 220 | AG49: 220 | AH49: 220 | AI49: 220 | AJ49: 220 | AK49: 220 | AL49: 220 | AM49: 128.0327869 | AN49: 0 | AO49: 0 | AP49: 0 | AQ49: 0 | AR49: 0 | AS49: 0 | AT49: 0 | AU49: 0 | AV49: 0 | AW49: 0 | AX49: 0 | AY49: 0 | AZ49: 0 | BA49: 0
I50: 2012 | J50: 0.02 | N50: =N49*(1+$J50)^(N$4-$I50) -> 91.96721311 | O50: 224.4 | P50: 228.888 | Q50: 233.46576 | R50: 238.1350752 | S50: 242.8977767 | T50: 247.7557322 | U50: 252.7108469 | V50: 257.7650638 | W50: 262.9203651 | X50: 268.1787724 | Y50: 273.5423478 | Z50: 279.0131948 | AA50: 284.5934587 | AB50: 290.2853279 | AC50: 296.0910344 | AD50: 302.0128551 | AE50: 308.0531122 | AF50: 314.2141745 | AG50: 320.498458 | AH50: 326.9084271 | AI50: 333.4465957 | AJ50: 340.1155276 | AK50: 346.9178381 | AL50: 353.8561949 | AM50: 210.0513577 | AN50: 0 | AO50: 0 | AP50: 0 | AQ50: 0 | AR50: 0 | AS50: 0 | AT50: 0 | AU50: 0 | AV50: 0 | AW50: 0 | AX50: 0 | AY50: 0 | AZ50: 0 | BA50: 0
B51: Total Nominal $'s | N51: =(N46*N47)+N50 -> 91.96721311 | O51: =(O46*O47)+O50 -> 224.4 | P51: =(P46*P47)+P50 -> 228.888 | Q51: 233.46576 | R51: 238.1350752 | S51: 242.8977767 | T51: 247.7557322 | U51: 252.7108469 | V51: 257.7650638 | W51: 262.9203651 | X51: 268.1787724 | Y51: 273.5423478 | Z51: 279.0131948 | AA51: 284.5934587 | AB51: 290.2853279 | AC51: 296.0910344 | AD51: 302.0128551 | AE51: 308.0531122 | AF51: 314.2141745 | AG51: 320.498458 | AH51: 326.9084271 | AI51: 333.4465957 | AJ51: 340.1155276 | AK51: 346.9178381 | AL51: 353.8561949 | AM51: 210.0513577 | AN51: 0 | AO51: 0 | AP51: 0 | AQ51: 0 | AR51: 0 | AS51: 0 | AT51: 0 | AU51: 0 | AV51: 0 | AW51: 0 | AX51: 0 | AY51: 0 | AZ51: 0 | BA51: 0

Sheet OM
L1: Par Yr : | M1: =FS!M1 -> 0 | N1: =FS!N1 -> 0.4180327869 | O1: =FS!O1 -> 1 | P1: =FS!P1 -> 1 | Q1: =FS!Q1 -> 1 | R1: =FS!R1 -> 1 | S1: =FS!S1 -> 1 | T1: =FS!T1 -> 1 | U1: =FS!U1 -> 1 | V1: =FS!V1 -> 1 | W1: =FS!W1 -> 1 | X1: =FS!X1 -> 1 | Y1: =FS!Y1 -> 1 | Z1: =FS!Z1 -> 1 | AA1: =FS!AA1 -> 1 | AB1: =FS!AB1 -> 1 | AC1: =FS!AC1 -> 1 | AD1: =FS!AD1 -> 1 | AE1: =FS!AE1 -> 1 | AF1: =FS!AF1 -> 1 | AG1: =FS!AG1 -> 1 | AH1: =FS!AH1 -> 1 | AI1: =FS!AI1 -> 1 | AJ1: =FS!AJ1 -> 1 | AK1: =FS!AK1 -> 1 | AL1: =FS!AL1 -> 1 | AM1: =FS!AM1 -> 0.5819672131 | AN1: =FS!AN1 -> 0 | AO1: =FS!AO1 -> 0 | AP1: =FS!AP1 -> 0 | AQ1: =FS!AQ1 -> 0 | AR1: =FS!AR1 -> 0 | AS1: =FS!AS1 -> 0 | AT1: =FS!AT1 -> 0 | AU1: =FS!AU1 -> 0 | AV1: =FS!AV1 -> 0 | AW1: =FS!AW1 -> 0 | AX1: =FS!AX1 -> 0 | AY1: =FS!AY1 -> 0 | AZ1: =FS!AZ1 -> 0 | BA1: =FS!BA1 -> 0
L2: Disc Date : | M2: =FS!M2 -> 2012-08-01 | N2: =FS!N2 -> 2012-12-01 | O2: =FS!O2 -> 2013-08-15 | P2: =FS!P2 -> 2014-08-15 | Q2: =FS!Q2 -> 2015-08-15 | R2: =FS!R2 -> 2016-08-15 | S2: =FS!S2 -> 2017-08-15 | T2: =FS!T2 -> 2018-08-15 | U2: =FS!U2 -> 2019-08-15 | V2: =FS!V2 -> 2020-08-15 | W2: =FS!W2 -> 2021-08-15 | X2: =FS!X2 -> 2022-08-15 | Y2: =FS!Y2 -> 2023-08-15 | Z2: =FS!Z2 -> 2024-08-15 | AA2: =FS!AA2 -> 2025-08-15 | AB2: =FS!AB2 -> 2026-08-15 | AC2: =FS!AC2 -> 2027-08-15 | AD2: =FS!AD2 -> 2028-08-15 | AE2: =FS!AE2 -> 2029-08-15 | AF2: =FS!AF2 -> 2030-08-15 | AG2: =FS!AG2 -> 2031-08-15 | AH2: =FS!AH2 -> 2032-08-15 | AI2: =FS!AI2 -> 2033-08-15 | AJ2: =FS!AJ2 -> 2034-08-15 | AK2: =FS!AK2 -> 2035-08-15 | AL2: =FS!AL2 -> 2036-08-15 | AM2: =FS!AM2 -> 2037-08-15 | AN2: =FS!AN2 -> 2038-08-15 | AO2: =FS!AO2 -> 2039-08-15 | AP2: =FS!AP2 -> 2040-08-15 | AQ2: =FS!AQ2 -> 2041-08-15 | AR2: =FS!AR2 -> 2042-08-15 | AS2: =FS!AS2 -> 2043-08-15 | AT2: =FS!AT2 -> 2044-08-15 | AU2: =FS!AU2 -> 2045-08-15 | AV2: =FS!AV2 -> 2046-08-15 | AW2: =FS!AW2 -> 2047-08-15 | AX2: =FS!AX2 -> 2048-08-15 | AY2: =FS!AY2 -> 2049-08-15 | AZ2: =FS!AZ2 -> 2050-08-15 | BA2: =FS!BA2 -> 2051-08-15
B3: O&M | L3: Period : | M3: =FS!M3 -> 0 | N3: =FS!N3 -> 1 | O3: =FS!O3 -> 2 | P3: =FS!P3 -> 3 | Q3: =FS!Q3 -> 4 | R3: =FS!R3 -> 5 | S3: =FS!S3 -> 6 | T3: =FS!T3 -> 7 | U3: =FS!U3 -> 8 | V3: =FS!V3 -> 9 | W3: =FS!W3 -> 10 | X3: =FS!X3 -> 11 | Y3: =FS!Y3 -> 12 | Z3: =FS!Z3 -> 13 | AA3: =FS!AA3 -> 14 | AB3: =FS!AB3 -> 15 | AC3: =FS!AC3 -> 16 | AD3: =FS!AD3 -> 17 | AE3: =FS!AE3 -> 18 | AF3: =FS!AF3 -> 19 | AG3: =FS!AG3 -> 20 | AH3: =FS!AH3 -> 21 | AI3: =FS!AI3 -> 22 | AJ3: =FS!AJ3 -> 23 | AK3: =FS!AK3 -> 24 | AL3: =FS!AL3 -> 25 | AM3: =FS!AM3 -> 26 | AN3: =FS!AN3 -> 27 | AO3: =FS!AO3 -> 28 | AP3: =FS!AP3 -> 29 | AQ3: =FS!AQ3 -> 30 | AR3: =FS!AR3 -> 31 | AS3: =FS!AS3 -> 32 | AT3: =FS!AT3 -> 33 | AU3: =FS!AU3 -> 34 | AV3: =FS!AV3 -> 35 | AW3: =FS!AW3 -> 36 | AX3: =FS!AX3 -> 37 | AY3: =FS!AY3 -> 38 | AZ3: =FS!AZ3 -> 39 | BA3: =FS!BA3 -> 40
L4: Year : | M4: =FS!M4 -> 2012 | N4: =FS!N4 -> 2012 | O4: =FS!O4 -> 2013 | P4: =FS!P4 -> 2014 | Q4: =FS!Q4 -> 2015 | R4: =FS!R4 -> 2016 | S4: =FS!S4 -> 2017 | T4: =FS!T4 -> 2018 | U4: =FS!U4 -> 2019 | V4: =FS!V4 -> 2020 | W4: =FS!W4 -> 2021 | X4: =FS!X4 -> 2022 | Y4: =FS!Y4 -> 2023 | Z4: =FS!Z4 -> 2024 | AA4: =FS!AA4 -> 2025 | AB4: =FS!AB4 -> 2026 | AC4: =FS!AC4 -> 2027 | AD4: =FS!AD4 -> 2028 | AE4: =FS!AE4 -> 2029 | AF4: =FS!AF4 -> 2030 | AG4: =FS!AG4 -> 2031 | AH4: =FS!AH4 -> 2032 | AI4: =FS!AI4 -> 2033 | AJ4: =FS!AJ4 -> 2034 | AK4: =FS!AK4 -> 2035 | AL4: =FS!AL4 -> 2036 | AM4: =FS!AM4 -> 2037 | AN4: =FS!AN4 -> 2038 | AO4: =FS!AO4 -> 2039 | AP4: =FS!AP4 -> 2040 | AQ4: =FS!AQ4 -> 2041 | AR4: =FS!AR4 -> 2042 | AS4: =FS!AS4 -> 2043 | AT4: =FS!AT4 -> 2044 | AU4: =FS!AU4 -> 2045 | AV4: =FS!AV4 -> 2046 | AW4: =FS!AW4 -> 2047 | AX4: =FS!AX4 -> 2048 | AY4: =FS!AY4 -> 2049 | AZ4: =FS!AZ4 -> 2050 | BA4: =FS!BA4 -> 2051
B5: VARIABLE OPERATING COSTS
B7: MW's | H7: MW : | I7: =Scen!G49 -> 50 | N7: =$I7 -> 50 | O7: 50 | P7: 50 | Q7: 50 | R7: 50 | S7: 50 | T7: 50 | U7: 50 | V7: 50 | W7: 50 | X7: 50 | Y7: 50 | Z7: 50 | AA7: 50 | AB7: 50 | AC7: 50 | AD7: 50 | AE7: 50 | AF7: 50 | AG7: 50 | AH7: 50 | AI7: 50 | AJ7: 50 | AK7: 50 | AL7: 50 | AM7: 50 | AN7: 50 | AO7: 50 | AP7: 50 | AQ7: 50 | AR7: 50 | AS7: 50 | AT7: 50 | AU7: 50 | AV7: 50 | AW7: 50 | AX7: 50 | AY7: 50 | AZ7: 50 | BA7: 50
B8: Forecasted New & Clean Generation - GWh | N8: =RF!N57*N1 -> 42.41905219 | O8: =RF!O57*O1 -> 101.5209451 | P8: =RF!P57*P1 -> 101.5090533 | Q8: =RF!Q57*Q1 -> 101.4717784 | R8: =RF!R57*R1 -> 101.4201614 | S8: =RF!S57*S1 -> 101.353733 | T8: =RF!T57*T1 -> 101.2628794 | U8: =RF!U57*U1 -> 101.1720258 | V8: =RF!V57*V1 -> 101.0811722 | W8: =RF!W57*W1 -> 100.9903186 | X8: =RF!X57*X1 -> 100.9132526 | Y8: =RF!Y57*Y1 -> 100.8361867 | Z8: =RF!Z57*Z1 -> 100.7591207 | AA8: =RF!AA57*AA1 -> 100.6776273 | AB8: =RF!AB57*AB1 -> 100.5961339 | AC8: =RF!AC57*AC1 -> 100.6244761 | AD8: =RF!AD57*AD1 -> 100.6528182 | AE8: =RF!AE57*AE1 -> 100.6811604 | AF8: =RF!AF57*AF1 -> 100.6918355 | AG8: =RF!AG57*AG1 -> 100.7025106 | AH8: =RF!AH57*AH1 -> 100.7131857 | AI8: =RF!AI57*AI1 -> 100.6863485 | AJ8: =RF!AJ57*AJ1 -> 100.6595114 | AK8: =RF!AK57*AK1 -> 100.6326742 | AL8: =RF!AL57*AL1 -> 100.605837 | AM8: =RF!AM57*AM1 -> 58.54929858 | AN8: =RF!AN57*AN1 -> 0 | AO8: =RF!AO57*AO1 -> 0 | AP8: =RF!AP57*AP1 -> 0 | AQ8: =RF!AQ57*AQ1 -> 0 | AR8: =RF!AR57*AR1 -> 0 | AS8: =RF!AS57*AS1 -> 0 | AT8: =RF!AT57*AT1 -> 0 | AU8: =RF!AU57*AU1 -> 0 | AV8: =RF!AV57*AV1 -> 0 | AW8: =RF!AW57*AW1 -> 0 | AX8: =RF!AX57*AX1 -> 0 | AY8: =RF!AY57*AY1 -> 0 | AZ8: =RF!AZ57*AZ1 -> 0 | BA8: =RF!BA57*BA1 -> 0
B10: Variable Operating Costs | I10: GWh | J10: $000s | K10: $/MWh
B11: VOM Production | I11: =O8 -> 101.5209451 | J11: 0 | K11: =J11/I11 -> 0 | N11: =$K11*N$8 -> 0 | O11: 0 | P11: 0 | Q11: 0 | R11: 0 | S11: 0 | T11: 0 | U11: 0 | V11: 0 | W11: 0 | X11: =$K11*X$8 -> 0 | Y11: 0 | Z11: 0 | AA11: 0 | AB11: 0 | AC11: 0 | AD11: 0 | AE11: 0 | AF11: 0 | AG11: 0 | AH11: =$K11*AH$8 -> 0 | AI11: 0 | AJ11: 0 | AK11: 0 | AL11: 0 | AM11: 0 | AN11: 0 | AO11: 0 | AP11: 0 | AQ11: 0 | AR11: =$K11*AR$8 -> 0 | AS11: 0 | AT11: 0 | AU11: 0 | AV11: 0 | AW11: 0 | AX11: 0 | AY11: 0 | AZ11: 0 | BA11: 0
B12: Open | I12: =I11 -> 101.5209451 | J12: 0 | K12: =J12/I12 -> 0 | N12: 0 | O12: 0 | P12: 0 | Q12: 0 | R12: 0 | S12: 0 | T12: 0 | U12: 0 | V12: 0 | W12: 0 | X12: 0 | Y12: 0 | Z12: 0 | AA12: 0 | AB12: 0 | AC12: 0 | AD12: 0 | AE12: 0 | AF12: 0 | AG12: 0 | AH12: 0 | AI12: 0 | AJ12: 0 | AK12: 0 | AL12: 0 | AM12: 0 | AN12: 0 | AO12: 0 | AP12: 0 | AQ12: 0 | AR12: 0 | AS12: 0 | AT12: 0 | AU12: 0 | AV12: 0 | AW12: 0 | AX12: 0 | AY12: 0 | AZ12: 0 | BA12: 0
B13: Total Real $'s | J13: =SUM(J11:J12) -> 0 | K13: =SUM(K11:K12) -> 0 | N13: =SUM(N11:N12) -> 0 | O13: 0 | P13: 0 | Q13: 0 | R13: 0 | S13: 0 | T13: 0 | U13: 0 | V13: 0 | W13: 0 | X13: 0 | Y13: 0 | Z13: 0 | AA13: 0 | AB13: 0 | AC13: 0 | AD13: 0 | AE13: 0 | AF13: 0 | AG13: 0 | AH13: 0 | AI13: 0 | AJ13: 0 | AK13: 0 | AL13: 0 | AM13: 0 | AN13: 0 | AO13: 0 | AP13: 0 | AQ13: 0 | AR13: 0 | AS13: 0 | AT13: 0 | AU13: 0 | AV13: 0 | AW13: 0 | AX13: 0 | AY13: 0 | AZ13: 0 | BA13: 0
B14: Total Nominal $'s | H14: 2012 | I14: 0.025 | N14: =N13*(1+$I14)^(N$4-$H14) -> 0 | O14: 0 | P14: 0 | Q14: 0 | R14: 0 | S14: 0 | T14: 0 | U14: 0 | V14: 0 | W14: 0 | X14: 0 | Y14: 0 | Z14: 0 | AA14: 0 | AB14: 0 | AC14: 0 | AD14: 0 | AE14: 0 | AF14: 0 | AG14: 0 | AH14: 0 | AI14: 0 | AJ14: 0 | AK14: 0 | AL14: 0 | AM14: 0 | AN14: 0 | AO14: 0 | AP14: 0 | AQ14: 0 | AR14: 0 | AS14: 0 | AT14: 0 | AU14: 0 | AV14: 0 | AW14: 0 | AX14: 0 | AY14: 0 | AZ14: 0 | BA14: 0
B17: FIXED OPERATING COSTS
B19: Yingli O&M Sensitivity | I19: =Scen!G112 -> 0
B21: Salaries and Benefits
B22: Production Payroll | H22: $/kW : | I22: =IF($I$19=0,I58,I94) -> 0 | N22: =IF($I$19=0,N58,N94) -> 0 | O22: 0 | P22: 0 | Q22: 0 | R22: 0 | S22: 0 | T22: 0 | U22: 0 | V22: 0 | W22: 0 | X22: 0 | Y22: 0 | Z22: 0 | AA22: 0 | AB22: 0 | AC22: 0 | AD22: 0 | AE22: 0 | AF22: 0 | AG22: 0 | AH22: 0 | AI22: 0 | AJ22: 0 | AK22: 0 | AL22: 0 | AM22: 0 | AN22: 0 | AO22: 0 | AP22: 0 | AQ22: 0 | AR22: 0 | AS22: 0 | AT22: 0 | AU22: 0 | AV22: 0 | AW22: 0 | AX22: 0 | AY22: 0 | AZ22: 0 | BA22: 0
B23: Other | M23: =IF($I$19=0,M59,M95) -> 90.97886196 | N23: =IF($I$19=0,N59,N95) -> 310.1173077 | O23: 310.1173077 | P23: 310.1173077 | Q23: 310.1173077 | R23: 310.1173077 | S23: 310.1173077 | T23: 310.1173077 | U23: 310.1173077 | V23: 310.1173077 | W23: 310.1173077 | X23: 310.1173077 | Y23: 310.1173077 | Z23: 310.1173077 | AA23: 310.1173077 | AB23: 310.1173077 | AC23: 310.1173077 | AD23: 310.1173077 | AE23: 310.1173077 | AF23: 310.1173077 | AG23: 310.1173077 | AH23: 310.1173077 | AI23: 310.1173077 | AJ23: 310.1173077 | AK23: 310.1173077 | AL23: 310.1173077 | AM23: 310.1173077 | AN23: 310.1173077 | AO23: 310.1173077 | AP23: 310.1173077 | AQ23: 310.1173077 | AR23: 310.1173077 | AS23: 310.1173077 | AT23: 310.1173077 | AU23: 310.1173077 | AV23: 310.1173077 | AW23: 310.1173077 | AX23: 310.1173077 | AY23: 310.1173077 | AZ23: 310.1173077 | BA23: 310.1173077
B24: Total Real $'s | M24: =IF($I$19=0,M60,M96) -> 39.39154478 | N24: =IF($I$19=0,N60,N96) -> 129.6392024 | O24: 310.1173077 | P24: 310.1173077 | Q24: 310.1173077 | R24: 310.1173077 | S24: 310.1173077 | T24: 310.1173077 | U24: 310.1173077 | V24: 310.1173077 | W24: 310.1173077 | X24: 310.1173077 | Y24: 310.1173077 | Z24: 310.1173077 | AA24: 310.1173077 | AB24: 310.1173077 | AC24: 310.1173077 | AD24: 310.1173077 | AE24: 310.1173077 | AF24: 310.1173077 | AG24: 310.1173077 | AH24: 310.1173077 | AI24: 310.1173077 | AJ24: 310.1173077 | AK24: 310.1173077 | AL24: 310.1173077 | AM24: 180.4781053 | AN24: 0 | AO24: 0 | AP24: 0 | AQ24: 0 | AR24: 0 | AS24: 0 | AT24: 0 | AU24: 0 | AV24: 0 | AW24: 0 | AX24: 0 | AY24: 0 | AZ24: 0 | BA24: 0
B25: Total Nominal $'s | H25: =IF($I$19=0,H61,H97) -> 2012 | I25: =IF($I$19=0,I61,I97) -> 0.035 | M25: =IF($I$19=0,M61,M97) -> 39.39154478 | N25: =IF($I$19=0,N61,N97) -> 129.6392024 | O25: 320.9714135 | P25: 332.2054129 | Q25: 343.8326024 | R25: 355.8667435 | S25: 368.3220795 | T25: 381.2133523 | U25: 394.5558196 | V25: 408.3652733 | W25: 422.6580579 | X25: 437.4510899 | Y25: 452.761878 | Z25: 468.6085438 | AA25: 485.0098428 | AB25: 501.9851873 | AC25: 519.5546688 | AD25: 537.7390822 | AE25: 556.5599501 | AF25: 576.0395484 | AG25: 596.2009326 | AH25: 617.0679652 | AI25: 638.665344 | AJ25: 661.018631 | AK25: 684.1542831 | AL25: 708.099683 | AM25: 426.5139771 | AN25: 0 | AO25: 0 | AP25: 0 | AQ25: 0 | AR25: 0 | AS25: 0 | AT25: 0 | AU25: 0 | AV25: 0 | AW25: 0 | AX25: 0 | AY25: 0 | AZ25: 0 | BA25: 0
B27: Fixed Operating Costs
B28: Production Costs | H28: $/kW : | I28: =IF($I$19=0,I64,I100) -> 0
B29: Other | N29: =IF($I$19=0,N65,N101) -> 167.7687424 | O29: 167.7687424 | P29: 167.7687424 | Q29: 167.7687424 | R29: 167.7687424 | S29: 167.7687424 | T29: 167.7687424 | U29: 167.7687424 | V29: 167.7687424 | W29: 167.7687424 | X29: 167.7687424 | Y29: 167.7687424 | Z29: 167.7687424 | AA29: 167.7687424 | AB29: 167.7687424 | AC29: 167.7687424 | AD29: 167.7687424 | AE29: 167.7687424 | AF29: 167.7687424 | AG29: 167.7687424 | AH29: 167.7687424 | AI29: 167.7687424 | AJ29: 167.7687424 | AK29: 167.7687424 | AL29: 167.7687424 | AM29: 167.7687424 | AN29: 167.7687424 | AO29: 167.7687424 | AP29: 167.7687424 | AQ29: 167.7687424 | AR29: 167.7687424 | AS29: 167.7687424 | AT29: 167.7687424 | AU29: 167.7687424 | AV29: 167.7687424 | AW29: 167.7687424 | AX29: 167.7687424 | AY29: 167.7687424 | AZ29: 167.7687424 | BA29: 167.7687424
B30: Total Real $'s | N30: =IF($I$19=0,N66,N102) -> 70.13283493 | O30: 167.7687424 | P30: 167.7687424 | Q30: 167.7687424 | R30: 167.7687424 | S30: 167.7687424 | T30: 167.7687424 | U30: 167.7687424 | V30: 167.7687424 | W30: 167.7687424 | X30: 167.7687424 | Y30: 167.7687424 | Z30: 167.7687424 | AA30: 167.7687424 | AB30: 167.7687424 | AC30: 167.7687424 | AD30: 167.7687424 | AE30: 167.7687424 | AF30: 167.7687424 | AG30: 167.7687424 | AH30: 167.7687424 | AI30: 167.7687424 | AJ30: 167.7687424 | AK30: 167.7687424 | AL30: 167.7687424 | AM30: 97.63590746 | AN30: 0 | AO30: 0 | AP30: 0 | AQ30: 0 | AR30: 0 | AS30: 0 | AT30: 0 | AU30: 0 | AV30: 0 | AW30: 0 | AX30: 0 | AY30: 0 | AZ30: 0 | BA30: 0
B31: Total Nominal $'s | H31: =IF($I$19=0,H67,H103) -> 2012 | I31: =IF($I$19=0,I67,I103) -> 0.02 | N31: =IF($I$19=0,N67,N103) -> 70.13283493 | O31: 171.1241172 | P31: 174.5465996 | Q31: 178.0375316 | R31: 181.5982822 | S31: 185.2302478 | T31: 188.9348528 | U31: 192.7135499 | V31: 196.5678209 | W31: 200.4991773 | X31: 204.5091608 | Y31: 208.599344 | Z31: 212.7713309 | AA31: 217.0267575 | AB31: 221.3672927 | AC31: 225.7946385 | AD31: 230.3105313 | AE31: 234.9167419 | AF31: 239.6150768 | AG31: 244.4073783 | AH31: 249.2955259 | AI31: 254.2814364 | AJ31: 259.3670651 | AK31: 264.5544064 | AL31: 269.8454946 | AM31: 160.182055 | AN31: 0 | AO31: 0 | AP31: 0 | AQ31: 0 | AR31: 0 | AS31: 0 | AT31: 0 | AU31: 0 | AV31: 0 | AW31: 0 | AX31: 0 | AY31: 0 | AZ31: 0 | BA31: 0
B33: Major Maintenance Costs
B34: Major Maintenance | H34: $/kW : | I34: =IF($I$19=0,I70,I106) -> 0 | N34: =IF($I$19=0,N70,N106) -> 213.3589026 | O34: 235.3589026 | P34: 269.3657447 | Q34: 248.4884534 | R34: 260.8611933 | S34: 312.5552863 | T34: 298.3234637 | U34: 342.7166047 | V34: 364.7608813 | W34: 403.1552765 | X34: 406.0779333 | Y34: 441.8343853 | Z34: 473.5590079 | AA34: 494.901701 | AB34: 490.5088999 | AC34: 485.4661447 | AD34: 486.1584749 | AE34: 544.5119919 | AF34: 482.7983062 | AG34: 483.4362941 | AH34: 497.7972571 | AI34: 521.7637455 | AJ34: 530.2072404 | AK34: 537.1575129 | AL34: 546.3034418 | AM34: 575.136884 | AN34: 576.6449284 | AO34: 603.1452195 | AP34: 599.2441559 | AQ34: 431.4526144 | AR34: 0 | AS34: 0 | AT34: 0 | AU34: 0 | AV34: 0 | AW34: 0 | AX34: 0 | AY34: 0 | AZ34: 0 | BA34: 0
B35: Capital Replacement | N35: =IF($I$19=0,N71,N107) -> 12.4 | O35: 85.7 | P35: 0 | Q35: 0 | R35: 0 | S35: 0 | T35: 0 | U35: 0 | V35: 0 | W35: 113.1 | X35: 0 | Y35: 0 | Z35: 0 | AA35: 0 | AB35: 0 | AC35: 0 | AD35: 0 | AE35: 0 | AF35: 0 | AG35: 113.1 | AH35: 0 | AI35: 0 | AJ35: 0 | AK35: 0 | AL35: 0 | AM35: 0 | AN35: 0 | AO35: 0 | AP35: 0 | AQ35: 0 | AR35: 0 | AS35: 0 | AT35: 0 | AU35: 0 | AV35: 0 | AW35: 0 | AX35: 0 | AY35: 0 | AZ35: 0 | BA35: 0
B36: Other | N36: =IF($I$19=0,N72,N108) -> 0 | O36: 0 | P36: 0 | Q36: 0 | R36: 0 | S36: 0 | T36: 0 | U36: 0 | V36: 0 | W36: 0 | X36: 0 | Y36: 0 | Z36: 0 | AA36: 0 | AB36: 0 | AC36: 0 | AD36: 0 | AE36: 0 | AF36: 0 | AG36: 0 | AH36: 0 | AI36: 0 | AJ36: 0 | AK36: 0 | AL36: 0 | AM36: 0 | AN36: 0 | AO36: 0 | AP36: 0 | AQ36: 0 | AR36: 0 | AS36: 0 | AT36: 0 | AU36: 0 | AV36: 0 | AW36: 0 | AX36: 0 | AY36: 0 | AZ36: 0 | BA36: 0
B37: Total Real $'s | N37: =IF($I$19=0,N73,N109) -> 0 | O37: 0 | P37: 0 | Q37: 0 | R37: 0 | S37: 0 | T37: 0 | U37: 0 | V37: 0 | W37: 0 | X37: 0 | Y37: 0 | Z37: 0 | AA37: 0 | AB37: 0 | AC37: 0 | AD37: 0 | AE37: 0 | AF37: 0 | AG37: 0 | AH37: 0 | AI37: 0 | AJ37: 0 | AK37: 0 | AL37: 0 | AM37: 0 | AN37: 0 | AO37: 0 | AP37: 0 | AQ37: 0 | AR37: 0 | AS37: 0 | AT37: 0 | AU37: 0 | AV37: 0 | AW37: 0 | AX37: 0 | AY37: 0 | AZ37: 0 | BA37: 0
B38: Total Nominal $'s | H38: =IF($I$19=0,H74,H110) -> 2012 | I38: =IF($I$19=0,I74,I110) -> 0.029 | N38: =IF($I$19=0,N74,N110) -> 0 | O38: 0 | P38: 0 | Q38: 0 | R38: 0 | S38: 0 | T38: 0 | U38: 0 | V38: 0 | W38: 0 | X38: 0 | Y38: 0 | Z38: 0 | AA38: 0 | AB38: 0 | AC38: 0 | AD38: 0 | AE38: 0 | AF38: 0 | AG38: 0 | AH38: 0 | AI38: 0 | AJ38: 0 | AK38: 0 | AL38: 0 | AM38: 0 | AN38: 0 | AO38: 0 | AP38: 0 | AQ38: 0 | AR38: 0 | AS38: 0 | AT38: 0 | AU38: 0 | AV38: 0 | AW38: 0 | AX38: 0 | AY38: 0 | AZ38: 0 | BA38: 0
B40: Other Operating Costs | N40: =IF($I$19=0,N76,N112) -> 67.35769231 | O40: 75.85769231 | P40: 67.35769231 | Q40: 75.85769231 | R40: 67.35769231 | S40: 75.85769231 | T40: 67.35769231 | U40: 75.85769231 | V40: 67.35769231 | W40: 75.85769231 | X40: 67.35769231 | Y40: 75.85769231 | Z40: 67.35769231 | AA40: 75.85769231 | AB40: 67.35769231 | AC40: 75.85769231 | AD40: 67.35769231 | AE40: 75.85769231 | AF40: 67.35769231 | AG40: 75.85769231 | AH40: 67.35769231 | AI40: 75.85769231 | AJ40: 67.35769231 | AK40: 75.85769231 | AL40: 67.35769231 | AM40: 0 | AN40: 0 | AO40: 0 | AP40: 0 | AQ40: 0 | AR40: 0 | AS40: 0 | AT40: 0 | AU40: 0 | AV40: 0 | AW40: 0 | AX40: 0 | AY40: 0 | AZ40: 0 | BA40: 0
B42: Land Lease
B43: Year 1 - 5 | N43: =IF($I$19=0,N79,N115) -> 0.35 | O43: 0.35 | P43: 0.35 | Q43: 0.35 | R43: 0.35 | S43: 0 | T43: 0 | U43: 0 | V43: 0 | W43: 0 | X43: 0 | Y43: 0 | Z43: 0 | AA43: 0 | AB43: 0 | AC43: 0 | AD43: 0 | AE43: 0 | AF43: 0 | AG43: 0 | AH43: 0 | AI43: 0 | AJ43: 0 | AK43: 0 | AL43: 0 | AM43: 0 | AN43: 0 | AO43: 0 | AP43: 0 | AQ43: 0 | AR43: 0 | AS43: 0 | AT43: 0 | AU43: 0 | AV43: 0 | AW43: 0 | AX43: 0 | AY43: 0 | AZ43: 0 | BA43: 0
B44: Year 6 - 10 | N44: =IF($I$19=0,N80,N116) -> 0 | O44: 0 | P44: 0 | Q44: 0 | R44: 0 | S44: 0.5 | T44: 0.5 | U44: 0.5 | V44: 0.5 | W44: 0.5 | X44: 0 | Y44: 0 | Z44: 0 | AA44: 0 | AB44: 0 | AC44: 0 | AD44: 0 | AE44: 0 | AF44: 0 | AG44: 0 | AH44: 0 | AI44: 0 | AJ44: 0 | AK44: 0 | AL44: 0 | AM44: 0 | AN44: 0 | AO44: 0 | AP44: 0 | AQ44: 0 | AR44: 0 | AS44: 0 | AT44: 0 | AU44: 0 | AV44: 0 | AW44: 0 | AX44: 0 | AY44: 0 | AZ44: 0 | BA44: 0
B45: Year 10+ | H45: CPI : | I45: =IF($I$19=0,I81,I117) -> 0.0194 | N45: =IF($I$19=0,N81,N117) -> 0 | O45: 0 | P45: 0 | Q45: 0 | R45: 0 | S45: 0 | T45: 0 | U45: 0 | V45: 0 | W45: 0 | X45: 0.5 | Y45: 0.5097 | Z45: 0.51958818 | AA45: 0.5296681907 | AB45: 0.5399437536 | AC45: 0.5504186624 | AD45: 0.5610967845 | AE45: 0.5719820621 | AF45: 0.5830785141 | AG45: 0.5943902373 | AH45: 0.6059214079 | AI45: 0.6176762832 | AJ45: 0.6296592031 | AK45: 0.6418745916 | AL45: 0.6543269587 | AM45: 0.6670209017 | AN45: 0 | AO45: 0 | AP45: 0 | AQ45: 0 | AR45: 0 | AS45: 0 | AT45: 0 | AU45: 0 | AV45: 0 | AW45: 0 | AX45: 0 | AY45: 0 | AZ45: 0 | BA45: 0
B46: Base Land Lease | N46: =IF($I$19=0,N82,N118) -> 0.35 | O46: 0.35 | P46: 0.35 | Q46: 0.35 | R46: 0.35 | S46: 0.5 | T46: 0.5 | U46: 0.5 | V46: 0.5 | W46: 0.5 | X46: 0.5 | Y46: 0.5097 | Z46: 0.51958818 | AA46: 0.5296681907 | AB46: 0.5399437536 | AC46: 0.5504186624 | AD46: 0.5610967845 | AE46: 0.5719820621 | AF46: 0.5830785141 | AG46: 0.5943902373 | AH46: 0.6059214079 | AI46: 0.6176762832 | AJ46: 0.6296592031 | AK46: 0.6418745916 | AL46: 0.6543269587 | AM46: 0.6670209017 | AN46: 0 | AO46: 0 | AP46: 0 | AQ46: 0 | AR46: 0 | AS46: 0 | AT46: 0 | AU46: 0 | AV46: 0 | AW46: 0 | AX46: 0 | AY46: 0 | AZ46: 0 | BA46: 0
B47: Base * Acerage | H47: Average Acerage : | I47: =IF($I$19=0,I83,I119) -> 580 | N47: =IF($I$19=0,N83,N119) -> 203 | O47: 203 | P47: 203 | Q47: 203 | R47: 203 | S47: 290 | T47: 290 | U47: 290 | V47: 290 | W47: 290 | X47: 290 | Y47: 295.626 | Z47: 301.3611444 | AA47: 307.2075506 | AB47: 313.1673771 | AC47: 319.2428242 | AD47: 325.436135 | AE47: 331.749596 | AF47: 338.1855382 | AG47: 344.7463376 | AH47: 351.4344166 | AI47: 358.2522442 | AJ47: 365.2023378 | AK47: 372.2872631 | AL47: 379.509636 | AM47: 386.872123 | AN47: 0 | AO47: 0 | AP47: 0 | AQ47: 0 | AR47: 0 | AS47: 0 | AT47: 0 | AU47: 0 | AV47: 0 | AW47: 0 | AX47: 0 | AY47: 0 | AZ47: 0 | BA47: 0
B48: Total Real $'s | N48: =IF($I$19=0,N84,N120) -> 203 | O48: 203 | P48: 203 | Q48: 203 | R48: 203 | S48: 290 | T48: 290 | U48: 290 | V48: 290 | W48: 290 | X48: 290 | Y48: 295.626 | Z48: 301.3611444 | AA48: 307.2075506 | AB48: 313.1673771 | AC48: 319.2428242 | AD48: 325.436135 | AE48: 331.749596 | AF48: 338.1855382 | AG48: 344.7463376 | AH48: 351.4344166 | AI48: 358.2522442 | AJ48: 365.2023378 | AK48: 372.2872631 | AL48: 379.509636 | AM48: 386.872123 | AN48: 0 | AO48: 0 | AP48: 0 | AQ48: 0 | AR48: 0 | AS48: 0 | AT48: 0 | AU48: 0 | AV48: 0 | AW48: 0 | AX48: 0 | AY48: 0 | AZ48: 0 | BA48: 0
B49: Total Nominal $'s | H49: =IF($I$19=0,H85,H121) -> 2012 | I49: =IF($I$19=0,I85,I121) -> 0.02 | N49: =IF($I$19=0,N85,N121) -> 203 | O49: 207.06 | P49: 211.2012 | Q49: 215.425224 | R49: 219.7337285 | S49: 320.1834329 | T49: 326.5871016 | U49: 333.1188436 | V49: 339.7812205 | W49: 346.5768449 | X49: 353.5083818 | Y49: 367.5737733 | Z49: 382.1987986 | AA49: 397.4057244 | AB49: 413.2177033 | AC49: 429.6588093 | AD49: 446.754074 | AE49: 464.5295251 | AF49: 483.0122259 | AG49: 502.2303163 | AH49: 522.2130561 | AI49: 542.9908692 | AJ49: 564.5953899 | AK49: 587.0595113 | AL49: 610.4174351 | AM49: 634.704724 | AN49: 0 | AO49: 0 | AP49: 0 | AQ49: 0 | AR49: 0 | AS49: 0 | AT49: 0 | AU49: 0 | AV49: 0 | AW49: 0 | AX49: 0 | AY49: 0 | AZ49: 0 | BA49: 0
B55: FIXED OPERATING COSTS - First Solar
B57: Salaries and Benefits
